{"text_format":"1","workbook":"xlsx","n_sheets":13,"sheets":["★入力シート","申請データ (利用児童票（施設用）)","setting","ZBパラメータ","指数","施設情報","@変更履歴","電子申請CSVフォーマット","申請CSV→ツール","申請CSV→ツール_2","申請CSV→ツールbak","登録データ一覧シート","申請データ"],"not_rendered":{"charts":0,"images":9,"macros":1,"external_links":0,"defined_names":27,"comments":0,"pivot_tables":0},"unopened":[],"bounds":{"document_bytes":16777216,"sheet_cells":100000,"rows_first":2000,"rows_last":500,"rows_between":2000,"halvings":0,"cell_chars":16384,"cell_head_chars":4096},"cells_cut":0,"cells_raw":0,"read":"whole","date_system":"1900"}

{"sheet":"★入力シート","index":0,"n_rows":1,"n_cols":1,"rows_kept":1,"cut":false,"hidden":true,"merged":[]}
["★基盤利用用にからファイル作成"]

{"sheet":"申請データ (利用児童票（施設用）)","index":1,"n_rows":305,"n_cols":53,"rows_kept":305,"cut":false,"hidden":true,"merged":[[169,1,169,37],[170,1,170,37],[172,1,172,15],[174,1,174,37],[175,1,175,37],[176,1,176,37],[135,1,135,37],[136,1,136,37],[137,1,137,37],[138,1,138,37],[139,1,139,37],[140,1,140,37],[141,1,141,37],[142,1,142,37],[156,1,156,37],[154,1,154,37],[163,1,163,37],[164,1,164,37],[165,1,165,37],[167,1,167,37],[168,1,168,37],[159,1,159,30],[160,1,160,8],[161,1,161,37],[223,24,224,37],[225,24,226,37],[227,24,228,37],[220,7,221,23],[222,7,222,23],[223,7,224,23],[225,7,226,23],[227,7,228,23],[220,1,221,6],[222,1,222,6],[223,1,224,6],[225,1,226,6],[227,1,228,6],[162,1,162,37],[204,1,204,37],[205,1,205,37],[157,1,157,37],[206,1,206,37],[302,2,302,32],[303,2,303,32],[304,2,304,32],[296,2,296,32],[297,2,297,32],[298,2,298,32],[299,2,299,32],[300,2,300,32],[301,2,301,32],[290,2,290,32],[291,2,291,32],[292,2,292,32],[293,2,293,32],[294,2,294,32],[295,2,295,32],[284,2,284,32],[285,2,285,32],[286,2,286,32],[287,2,287,32],[288,2,288,32],[289,2,289,32],[278,1,278,32],[279,2,279,32],[280,2,280,32],[281,2,281,32],[282,2,282,32],[283,2,283,32],[271,1,271,32],[272,2,272,32],[273,2,273,32],[274,2,274,32],[275,2,275,32],[276,2,276,32],[267,1,267,5],[267,6,267,14],[267,15,267,23],[267,24,267,32],[268,1,268,5],[268,6,268,14],[268,15,268,23],[268,24,268,32],[265,1,265,5],[265,6,265,14],[265,15,265,23],[265,24,265,32],[266,1,266,5],[266,6,266,14],[266,15,266,23],[266,24,266,32],[119,28,119,30],[119,32,119,36],[121,1,131,37],[264,1,264,5],[264,6,264,14],[264,15,264,23],[264,24,264,32],[114,7,114,8],[114,24,114,25],[116,1,119,2],[116,3,116,26],[116,28,116,30],[116,32,116,36],[117,3,117,36],[118,5,118,15],[118,17,118,36],[119,3,119,26],[152,1,152,37],[134,1,134,15],[143,1,143,37],[146,1,146,37],[147,1,147,37],[148,1,148,37],[153,1,153,37],[110,1,114,1],[110,2,111,2],[110,3,110,19],[110,20,110,36],[111,3,111,10],[111,11,111,16],[111,17,111,18],[111,20,111,27],[111,28,111,33],[111,34,111,35],[112,2,113,2],[112,7,112,19],[112,24,112,36],[113,3,113,4],[113,5,113,19],[113,20,113,21],[113,22,113,36],[105,1,109,1],[105,2,106,2],[105,3,105,19],[105,20,105,36],[106,3,106,10],[106,11,106,16],[106,17,106,18],[106,20,106,27],[106,28,106,33],[106,34,106,35],[107,2,108,2],[107,7,107,19],[107,24,107,36],[108,3,108,4],[108,5,108,19],[108,20,108,21],[108,22,108,36],[109,7,109,8],[109,24,109,25],[101,1,102,2],[101,3,101,7],[101,9,101,11],[101,13,101,21],[101,22,101,26],[101,28,101,31],[102,3,102,7],[104,1,104,2],[104,3,104,19],[104,20,104,36],[100,1,100,2],[100,3,100,19],[100,23,100,27],[100,33,100,36],[96,1,99,2],[96,4,96,6],[96,8,96,9],[96,11,96,12],[96,14,96,19],[96,21,96,23],[96,25,96,26],[96,28,96,29],[99,3,99,4],[99,5,99,19],[99,20,99,21],[99,22,99,36],[95,24,95,27],[95,28,95,31],[98,3,98,8],[98,9,98,19],[98,20,98,25],[98,26,98,36],[96,31,96,36],[97,4,97,5],[97,7,97,9],[97,10,97,18],[97,21,97,22],[97,24,97,26],[97,27,97,35],[87,1,89,2],[87,3,87,5],[87,6,87,19],[87,20,87,22],[87,23,87,36],[93,3,93,8],[93,20,93,25],[94,3,94,5],[94,6,94,19],[94,20,94,22],[94,23,94,36],[92,18,93,18],[92,19,93,19],[92,20,92,25],[92,26,93,34],[92,35,93,35],[92,36,93,36],[90,1,95,2],[90,10,90,19],[90,27,90,36],[91,3,91,14],[91,15,91,18],[91,20,91,31],[91,32,91,35],[92,3,92,8],[92,9,93,17],[95,32,95,33],[95,34,95,36],[88,30,88,35],[89,3,89,6],[89,7,89,10],[89,11,89,14],[89,15,89,16],[89,17,89,19],[89,20,89,23],[89,24,89,27],[89,28,89,31],[89,32,89,33],[88,3,88,5],[88,6,88,11],[88,13,88,18],[88,20,88,22],[88,23,88,28],[89,34,89,36],[95,7,95,10],[95,11,95,14],[95,15,95,16],[95,17,95,19],[86,20,86,24],[86,25,86,27],[86,28,86,29],[86,30,86,31],[86,32,86,33],[86,34,86,35],[85,3,85,6],[85,17,85,18],[85,20,85,23],[85,34,85,35],[86,3,86,7],[86,8,86,10],[86,11,86,12],[86,13,86,14],[86,15,86,16],[86,17,86,18],[83,29,83,30],[83,31,83,36],[84,3,84,8],[84,9,84,13],[84,15,84,19],[84,20,84,25],[84,26,84,30],[84,32,84,36],[82,3,82,7],[82,16,82,19],[82,20,82,24],[82,33,82,36],[83,3,83,5],[83,6,83,11],[83,12,83,13],[83,14,83,19],[83,20,83,22],[83,23,83,28],[81,3,81,5],[81,6,81,11],[81,12,81,13],[81,14,81,19],[81,20,81,22],[81,23,81,28],[81,29,81,30],[81,31,81,36],[80,3,80,8],[80,10,80,11],[80,13,80,15],[80,17,80,19],[80,20,80,25],[80,27,80,28],[78,3,78,5],[78,6,78,19],[78,20,78,22],[78,23,78,36],[79,3,79,12],[79,13,79,19],[79,20,79,29],[79,30,79,36],[80,30,80,32],[80,34,80,36],[76,33,76,34],[76,35,76,36],[77,3,77,4],[77,6,77,7],[77,8,77,9],[77,18,77,19],[77,20,77,21],[77,23,77,24],[77,25,77,26],[77,35,77,36],[74,33,74,34],[74,35,74,36],[75,3,75,4],[75,5,75,7],[75,9,75,11],[75,12,75,15],[75,16,75,17],[75,35,75,36],[76,3,76,4],[76,5,76,7],[76,9,76,11],[76,12,76,15],[76,16,76,17],[76,18,76,19],[76,20,76,21],[76,22,76,24],[76,26,76,28],[75,18,75,19],[75,20,75,21],[75,22,75,24],[75,26,75,28],[75,29,75,32],[75,33,75,34],[76,29,76,32],[72,6,72,7],[72,9,72,19],[72,23,72,24],[72,26,72,36],[73,1,86,2],[73,5,73,6],[73,8,73,9],[73,11,73,15],[73,17,73,19],[73,22,73,23],[71,1,72,2],[73,25,73,26],[73,28,73,32],[73,34,73,36],[74,3,74,4],[74,5,74,7],[74,9,74,11],[74,12,74,15],[74,16,74,17],[74,18,74,19],[74,20,74,21],[74,22,74,24],[74,26,74,28],[74,29,74,32],[71,18,71,19],[71,23,71,24],[71,26,71,27],[71,29,71,30],[71,32,71,33],[71,35,71,36],[69,23,69,24],[69,27,69,29],[69,33,69,36],[70,3,70,19],[70,20,70,36],[71,6,71,7],[71,9,71,10],[71,12,71,13],[71,15,71,16],[67,1,67,5],[67,7,67,13],[67,15,67,22],[67,23,67,37],[69,1,70,2],[69,3,69,4],[69,6,69,7],[69,10,69,12],[69,16,69,19],[69,20,69,21],[65,1,66,5],[65,6,65,30],[65,31,66,32],[65,33,66,37],[66,7,66,11],[66,13,66,30],[62,16,62,18],[62,21,62,23],[62,34,62,36],[63,1,64,5],[63,6,63,10],[63,11,63,12],[63,13,63,16],[63,26,63,37],[64,6,64,37],[60,19,62,20],[60,21,60,23],[60,31,60,36],[61,3,61,5],[61,6,61,9],[61,10,61,12],[61,13,61,15],[61,16,61,18],[61,21,61,23],[61,31,61,36],[60,1,62,2],[60,3,60,5],[60,6,60,9],[60,10,60,12],[60,13,60,15],[60,16,60,18],[62,3,62,5],[62,6,62,9],[62,10,62,12],[62,13,62,15],[55,19,55,20],[55,25,55,27],[55,32,55,35],[55,36,55,37],[56,12,56,37],[57,1,59,1],[57,2,58,37],[53,32,53,35],[53,36,53,37],[54,4,55,5],[54,6,55,7],[54,8,54,20],[54,21,55,22],[54,23,55,24],[54,25,54,37],[55,8,55,10],[55,15,55,18],[52,4,53,5],[52,6,53,7],[52,8,52,20],[52,21,53,22],[52,23,53,24],[52,25,52,37],[53,8,53,10],[47,1,49,2],[41,19,42,19],[42,3,42,9],[42,10,42,12],[43,5,43,13],[47,30,47,36],[48,3,48,37],[50,1,56,2],[50,3,56,3],[50,4,51,5],[50,6,51,7],[50,8,50,20],[50,21,51,22],[50,23,51,24],[50,25,50,37],[53,15,53,18],[53,19,53,20],[53,25,53,27],[51,8,51,10],[51,15,51,18],[51,19,51,20],[51,25,51,27],[51,32,51,35],[51,36,51,37],[37,23,38,37],[38,3,38,13],[38,14,39,14],[38,15,39,15],[38,16,39,16],[38,17,39,17],[38,18,39,18],[44,17,45,17],[44,18,45,18],[44,19,45,19],[45,3,45,9],[45,10,45,12],[36,3,36,9],[36,10,36,12],[37,5,37,13],[32,19,33,19],[33,3,33,9],[33,10,33,12],[34,5,34,13],[43,20,45,22],[43,23,44,37],[44,3,44,13],[44,14,45,14],[44,15,45,15],[44,16,45,16],[39,10,39,12],[40,5,40,13],[40,20,42,22],[40,23,41,37],[41,3,41,13],[41,14,42,14],[41,15,42,15],[41,16,42,16],[41,17,42,17],[41,18,42,18],[37,20,39,22],[27,1,30,2],[27,3,27,13],[27,14,27,19],[34,20,36,22],[34,23,35,37],[35,3,35,13],[35,14,36,14],[35,15,36,15],[35,16,36,16],[31,1,45,2],[31,5,31,13],[31,20,33,22],[31,23,32,37],[32,3,32,13],[32,14,33,14],[32,15,33,15],[32,16,33,16],[32,17,33,17],[32,18,33,18],[38,19,39,19],[39,3,39,9],[35,17,36,17],[35,18,36,18],[35,19,36,19],[18,25,18,26],[18,28,18,30],[18,31,18,37],[27,20,27,22],[27,23,27,37],[28,5,28,13],[28,20,30,22],[28,23,29,37],[29,3,29,13],[29,14,30,14],[24,25,24,37],[25,6,25,11],[25,12,25,14],[25,15,25,16],[25,17,25,18],[26,19,26,21],[26,28,26,36],[29,15,30,15],[29,16,30,16],[29,17,30,17],[29,18,30,18],[29,19,30,19],[30,3,30,9],[30,10,30,12],[15,24,15,37],[16,3,17,20],[16,28,16,29],[17,33,17,34],[17,36,17,37],[23,1,26,2],[23,3,23,5],[23,6,23,18],[23,19,25,21],[24,3,24,14],[24,22,24,24],[20,1,20,5],[20,6,20,8],[20,9,20,10],[20,14,20,19],[20,21,20,23],[22,1,22,2],[22,3,22,18],[22,19,22,37],[18,1,19,2],[18,4,18,5],[18,7,18,9],[18,10,18,20],[18,21,19,23],[177,1,177,37],[19,3,19,20],[19,25,19,32],[19,33,19,37],[16,33,16,34],[16,36,16,37],[17,28,17,29],[1,1,1,5],[2,6,2,9],[3,6,3,9],[5,4,5,29],[6,1,6,30],[8,1,8,3],[8,4,8,6],[8,7,8,8],[8,9,8,10],[8,11,8,12],[8,18,8,19],[8,21,8,22],[8,24,8,25],[15,1,17,2],[15,3,15,5],[15,6,15,20],[15,21,17,23],[208,1,208,37],[209,1,209,37],[210,1,210,37],[179,1,179,37],[180,1,180,37],[181,1,181,37],[182,1,182,37],[183,1,183,37],[184,1,184,37],[185,1,185,37],[186,1,186,37],[187,1,187,37],[188,1,188,37],[189,1,189,37],[200,1,200,37],[201,1,201,37],[202,1,202,37],[203,1,203,37],[213,24,213,37],[213,7,213,23],[213,1,213,6],[214,24,215,37],[216,24,217,37],[218,24,219,37],[220,24,221,37],[222,24,222,37],[211,1,211,37],[212,1,212,37],[214,7,215,23],[216,7,217,23],[218,7,219,23],[214,1,215,6],[216,1,217,6],[218,1,219,6],[258,1,258,37],[241,1,241,37],[242,1,242,37],[244,1,244,37],[246,1,246,37],[248,1,248,37],[250,1,250,17],[233,1,233,37],[234,1,234,37],[235,1,235,37],[237,1,237,12],[239,1,239,37],[240,1,240,37],[229,1,230,6],[251,1,251,37],[252,1,252,37],[253,1,253,37],[255,1,255,11],[256,1,256,37],[229,24,230,37],[229,7,230,23],[257,1,257,37]]}
[]
[null,2021]
[null,"《新規登録》",null,null,null,null,"ﾃﾞｰﾀ№",null,null,null,null,null,null,"※登録データ一覧シート転送時に使用"]
[null,null,null,null,null,null,"申請連番"]
[]
[]
[null,"利用児童票（施設用）"]
[]
[null,"（宛先）",null,null,"名古屋市",null,null,null,null,"区社会福祉事務所長",null,null,null,null,null,null,null,null,null,null,"年",null,null,"月",null,null,"日",null,null,null,null,null,null,null,null,null,null,null,null,null,{"$f":"IFERROR(INDEX(ZBパラメータ!$B$142:$F$157,MATCH(L9,ZBパラメータ!$F$142:$F$157,0),4), \"\")","v":""},{"$f":"IF(S9=\"\",\"\",TEXT(S9,\"00\")&\"/\")&IF(V9=\"\",\"\",TEXT(V9,\"00\")&\"/\")&IF(Y9=\"\",\"\",TEXT(Y9,\"00\"))","v":""}]
[null,"【同意事項】"]
[null,"　次のとおり、教育・保育給付2号・3号に係る教育・保育給付認定を申請します。"]
[null,"　なお、必要な場合は、名古屋市において市民税等に関する課税資料 （必要に応じ世帯分を含む。）、住民基本台帳、生活保護受給状況、障害の"]
[null,"種類及び程度に関する資料、児童扶養手当、ひとり親家庭手当、愛知県遺児手当及びひとり親家庭等医療費助成制度に関する資料並びに妊娠"]
[null,"の届出に関する資料を確認されることに同意します。また、施設・事業所に必要に応じ情報提供することに同意します。"]
[null,"■申込者【教育・保育給付認定保護者（原則、世帯主）】",null,null,null,null,null,null,null,null,null,null,null,null,null,null,null,null,null,"※教育・保育給付認定保護者が、利用料の納入義務者となります。"]
[null,"氏　名",null,"（フリガナ）",null,null,"",null,null,null,null,null,null,null,null,null,null,null,null,null,null,"連 絡 先",null,null,"　子どもとの続柄"]
[null,null,null,"",null,null,null,null,null,null,null,null,null,null,null,null,null,null,null,null,null,null,null,null,"①　　父",null,null,"（",null,null,")","","-","",null,"-","",null,null,null,false,false,{"$f":"IFERROR(INDEX(ZBパラメータ!$B$44:$F$58,MATCH(AC17,ZBパラメータ!$F$44:$F$58,0),4), \"\")","v":""},{"$f":"AF17&AH17&AK17","v":""},null,null,null,null,null,null,null,null,{"$f":"AO17&\",\"&AP17","v":"FALSE,FALSE"}]
[null,null,null,null,null,null,null,null,null,null,null,null,null,null,null,null,null,null,null,null,null,null,null,null,"②　　母",null,null,"（",null,null,")","","-","",null,"-","",null,null,null,false,false,{"$f":"IFERROR(INDEX(ZBパラメータ!$B$44:$F$58,MATCH(AC18,ZBパラメータ!$F$44:$F$58,0),4), \"\")","v":""},{"$f":"AF18&AH18&AK18","v":""},null,null,null,null,null,null,null,null,{"$f":"AO18&\",\"&AP18","v":"FALSE,FALSE"}]
[null,"現住所",null,"〒","",null,"－","",null,null,null,null,null,null,null,null,null,null,null,null,null,"転居（予定）\n先住所",null,null,"〒　　　　－","",null,"－","",null,null,null,null,null,null,null,null,null,null,null,{"$f":"E19&H19","v":""},{"$f":"Z19&AC19","v":""}]
[null,null,null,"",null,null,null,null,null,null,null,null,null,null,null,null,null,null,null,null,null,null,null,null,"(",null,null,null,null,null,null,null,null,"転居(転入)予定)",null,null,null,null,null,null,{"$f":"Z20","v":"00:00:00"}]
[null,"過去2年以内の\n転入歴　",null,null,null,null,null,null,null,"",null,"市・町・村から",null,null,null,null,null,null,null,null,"転入","送付物発送先",null,null,null,null,null,"現住所",null,null,null,"転居（予定）先住所",null,null,null,null,null,null,null,null,{"$f":"IFERROR(INDEX(ZBパラメータ!$E$158:$F$204,MATCH(G21,ZBパラメータ!$F$158:$F$204,0),1), \"\")","v":""},{"$f":"O21","v":"00:00:00"}]
[null,"■申込児童及び世帯の状況（申込みに係る児童の保護者、家族及び同居人）",null,null,null,null,null,null,null,null,null,null,null,null,null,null,null,null,null,null,null,null,null,null,null,null,null,null,null,null,null,null,null,null,null,null,null,null,null,null,false,false,null,null,null,null,null,null,null,null,null,null,{"$f":"AO22&\",\"&AP22","v":"FALSE,FALSE"}]
[null,"区分",null,"氏名",null,null,null,null,null,null,null,null,null,null,null,null,null,null,null,"健康状態等"]
[null,"申込\n児童",null,"（フリガナ）",null,null,null,null,null,null,null,null,null,null,null,null,null,null,null,"アレルギー\n食事制限等",null,null,null,"なし",null,null,"あり(",null,null,null,null,null,")",null,"検査未実施",null,null,null,null,null,false,false,false,{"$f":"IFERROR(INDEX(ZBパラメータ!$B$70:$F$95,MATCH(AC24,ZBパラメータ!$F$70:$F$95,0),4), \"\")","v":""},{"$f":"IFERROR(INDEX(ZBパラメータ!$B$70:$F$95,MATCH(AD24,ZBパラメータ!$F$70:$F$95,0),4), \"\")","v":""},{"$f":"IFERROR(INDEX(ZBパラメータ!$B$70:$F$95,MATCH(AE24,ZBパラメータ!$F$70:$F$95,0),4), \"\")","v":""},{"$f":"IFERROR(INDEX(ZBパラメータ!$B$70:$F$95,MATCH(AF24,ZBパラメータ!$F$70:$F$95,0),4), \"\")","v":""},null,null,null,null,null,{"$f":"AO24&\",\"&AP24&\",\"&AQ24","v":"FALSE,FALSE,FALSE"}]
[null,null,null,null,null,null,null,null,null,null,null,null,null,null,null,null,"男",null,"女",null,null,null,"特記事項：",null,null,null,null,null,null,null,null,null,null,null,null,null,null,null,null,null,false,false,null,null,null,null,null,null,null,null,null,null,{"$f":"AO25&\",\"&AP25","v":"FALSE,FALSE"}]
[null,null,null,"(生年月日:",null,null,null,null,null,null,null,null,"4月1日時点",null,null,null,null,"歳)",null,null,null,null,"希望施設・事業所への相談",null,null,null,null,null,null,null,null,null,"済",null,null,"未",null,null,null,null,false,false,{"$f":"G26","v":"00:00:00"},null,null,null,null,null,null,null,null,null,{"$f":"AO26&\",\"&AP26","v":"FALSE,FALSE"}]
[null,null,null,null,null,null,null,null,null,null,null,null,null,null,null,null,null,null,null,"障　害",null,null,null,"なし",null,null,"あり",null,null,null,null,null,null,null,null,null,null,null,null,null,false,false,{"$f":"H27&I27&J27&K27&L27&M27&N27&O27&P27&Q27&R27&S27","v":""},null,null,null,null,null,null,null,null,null,{"$f":"AO27&\",\"&AP27","v":"FALSE,FALSE"}]
[null,"世帯\n構成員",null,"氏名",null,null,null,null,null,null,null,null,null,null,"生年月日",null,null,null,null,null,"健康状態等",null,null,"備考（勤務先名称/通学（園）先名称　等）"]
[null,null,null,"(フリガナ)",null,null,null,null,null,null,null,null,null,null,null,"昭",null,"平",null,"令",null,null,null,"",null,null,null,null,null,null,null,null,null,null,null,null,null,null,null,null,false,false,false,{"$f":"IFERROR(INDEX(ZBパラメータ!$B$2:$F$3,MATCH(U29,ZBパラメータ!$F$2:$F$3,0),4), \"\")","v":""},null,null,null,null,null,null,null,null,{"$f":"AO29&\",\"&AP29&\",\"&AQ29","v":"FALSE,FALSE,FALSE"}]
[null,null,null,null,null,null,null,null,null,null,null,null,null,null,null,"年",null,"月",null,"日",null,null,null,null,null,null,null,null,null,null,null,null,null,null,null,null,null,null,null,null,{"$f":"IF($O30=\"\",\"\",TEXT($O30,\"00\")&\"/\")&IF($Q30=\"\",\"\",TEXT($Q30,\"00\")&\"/\")&IF($S30=\"\",\"\",TEXT($S30,\"00\"))","v":""}]
[null,null,null,"　　　　　　　　　　　続柄(",null,null,null,null,null,null,null,null,null,")",null,null,null,null,null,null,null,null,null,null,null,null,null,null,null,null,null,null,null,null,null,null,null,null,null,null,{"$f":"IFERROR(INDEX(ZBパラメータ!$B$44:$F$58,MATCH(K31,ZBパラメータ!$F$44:$F$58,0),4), \"\")","v":""},{"$f":"AA31&AB31&AC31&AD31&AE31&AF31&AG31&AH31&AI31&AJ31&AK31&AL31","v":""}]
[null,"※申込みに係る児童の保護者（申込者含む）、\n 家族及び同居人全て記入ください",null,"(フリガナ)",null,null,null,null,null,null,null,null,null,null,null,"昭",null,"平",null,"令",null,null,null,null,null,null,null,null,null,null,null,null,null,null,null,null,null,null,null,null,false,false,false,{"$f":"IFERROR(INDEX(ZBパラメータ!$B$2:$F$3,MATCH(U32,ZBパラメータ!$F$2:$F$3,0),4), \"\")","v":""},null,null,null,null,null,null,null,null,{"$f":"AO32&\",\"&AP32&\",\"&AQ32","v":"FALSE,FALSE,FALSE"}]
[null,null,null,null,null,null,null,null,null,null,null,null,null,null,null,"年",null,"月",null,"日",null,null,null,null,null,null,null,null,null,null,null,null,null,null,null,null,null,null,null,null,{"$f":"IF($O33=\"\",\"\",TEXT($O33,\"00\")&\"/\")&IF($Q33=\"\",\"\",TEXT($Q33,\"00\")&\"/\")&IF($S33=\"\",\"\",TEXT($S33,\"00\"))","v":""}]
[null,null,null,"　　　　　　　　　　　続柄(",null,null,null,null,null,null,null,null,null,")",null,null,null,null,null,null,null,null,null,null,null,null,null,null,null,null,null,null,null,null,null,null,null,null,null,null,{"$f":"IFERROR(INDEX(ZBパラメータ!$B$44:$F$58,MATCH(K34,ZBパラメータ!$F$44:$F$58,0),4), \"\")","v":""},{"$f":"AA34&AB34&AC34&AD34&AE34&AF34&AG34&AH34&AI34&AJ34&AK34&AL34","v":""}]
[null,null,null,"(フリガナ)",null,null,null,null,null,null,null,null,null,null,null,"昭",null,"平",null,"令",null,null,null,"",null,null,null,null,null,null,null,null,null,null,null,null,null,null,null,null,false,false,false,{"$f":"IFERROR(INDEX(ZBパラメータ!$B$2:$F$3,MATCH(U35,ZBパラメータ!$F$2:$F$3,0),4), \"\")","v":""},null,null,null,null,null,null,null,null,{"$f":"AO35&\",\"&AP35&\",\"&AQ35","v":"FALSE,FALSE,FALSE"}]
[null,null,null,null,null,null,null,null,null,null,null,null,null,null,null,"年",null,"月",null,"日",null,null,null,null,null,null,null,null,null,null,null,null,null,null,null,null,null,null,null,null,{"$f":"IF($O36=\"\",\"\",TEXT($O36,\"00\")&\"/\")&IF($Q36=\"\",\"\",TEXT($Q36,\"00\")&\"/\")&IF($S36=\"\",\"\",TEXT($S36,\"00\"))","v":""}]
[null,null,null,"　　　　　　　　　　　続柄(",null,null,null,null,null,null,null,null,null,")",null,null,null,null,null,null,null,null,null,null,null,null,null,null,null,null,null,null,null,null,null,null,null,null,null,null,{"$f":"IFERROR(INDEX(ZBパラメータ!$B$44:$F$58,MATCH(K37,ZBパラメータ!$F$44:$F$58,0),4), \"\")","v":""},{"$f":"AA37&AB37&AC37&AD37&AE37&AF37&AG37&AH37&AI37&AJ37&AK37&AL37","v":""}]
[null,null,null,"(フリガナ)",null,null,null,null,null,null,null,null,null,null,null,"昭",null,"平",null,"令",null,null,null,"",null,null,null,null,null,null,null,null,null,null,null,null,null,null,null,null,false,false,false,{"$f":"IFERROR(INDEX(ZBパラメータ!$B$2:$F$3,MATCH(U38,ZBパラメータ!$F$2:$F$3,0),4), \"\")","v":""},null,null,null,null,null,null,null,null,{"$f":"AO38&\",\"&AP38&\",\"&AQ38","v":"FALSE,FALSE,FALSE"}]
[null,null,null,null,null,null,null,null,null,null,null,null,null,null,null,"年",null,"月",null,"日",null,null,null,null,null,null,null,null,null,null,null,null,null,null,null,null,null,null,null,null,{"$f":"IF($O39=\"\",\"\",TEXT($O39,\"00\")&\"/\")&IF($Q39=\"\",\"\",TEXT($Q39,\"00\")&\"/\")&IF($S39=\"\",\"\",TEXT($S39,\"00\"))","v":""}]
[null,null,null,"　　　　　　　　　　　続柄(",null,null,null,null,null,null,null,null,null,")",null,null,null,null,null,null,null,null,null,null,null,null,null,null,null,null,null,null,null,null,null,null,null,null,null,null,{"$f":"IFERROR(INDEX(ZBパラメータ!$B$44:$F$58,MATCH(K40,ZBパラメータ!$F$44:$F$58,0),4), \"\")","v":""},{"$f":"AA40&AB40&AC40&AD40&AE40&AF40&AG40&AH40&AI40&AJ40&AK40&AL40","v":""}]
[null,null,null,"(フリガナ)",null,null,null,null,null,null,null,null,null,null,null,"昭",null,"平",null,"令",null,null,null,"",null,null,null,null,null,null,null,null,null,null,null,null,null,null,null,null,false,false,false,{"$f":"IFERROR(INDEX(ZBパラメータ!$B$2:$F$3,MATCH(U41,ZBパラメータ!$F$2:$F$3,0),4), \"\")","v":""},null,null,null,null,null,null,null,null,{"$f":"AO41&\",\"&AP41&\",\"&AQ41","v":"FALSE,FALSE,FALSE"}]
[null,null,null,null,null,null,null,null,null,null,null,null,null,null,null,"年",null,"月",null,"日",null,null,null,null,null,null,null,null,null,null,null,null,null,null,null,null,null,null,null,null,{"$f":"IF($O42=\"\",\"\",TEXT($O42,\"00\")&\"/\")&IF($Q42=\"\",\"\",TEXT($Q42,\"00\")&\"/\")&IF($S42=\"\",\"\",TEXT($S42,\"00\"))","v":""}]
[null,null,null,"　　　　　　　　　　　続柄(",null,null,null,null,null,null,null,null,null,")",null,null,null,null,null,null,null,null,null,null,null,null,null,null,null,null,null,null,null,null,null,null,null,null,null,null,{"$f":"IFERROR(INDEX(ZBパラメータ!$B$44:$F$58,MATCH(K43,ZBパラメータ!$F$44:$F$58,0),4), \"\")","v":""},{"$f":"AA43&AB43&AC43&AD43&AE43&AF43&AG43&AH43&AI43&AJ43&AK43&AL43","v":""}]
[null,null,null,"(フリガナ)",null,null,null,null,null,null,null,null,null,null,null,"昭",null,"平",null,"令",null,null,null,"",null,null,null,null,null,null,null,null,null,null,null,null,null,null,null,null,false,false,false,{"$f":"IFERROR(INDEX(ZBパラメータ!$B$2:$F$3,MATCH(U44,ZBパラメータ!$F$2:$F$3,0),4), \"\")","v":""},null,null,null,null,null,null,null,null,{"$f":"AO44&\",\"&AP44&\",\"&AQ44","v":"FALSE,FALSE,FALSE"}]
[null,null,null,null,null,null,null,null,null,null,null,null,null,null,null,"年",null,"月",null,"日",null,null,null,null,null,null,null,null,null,null,null,null,null,null,null,null,null,null,null,null,{"$f":"IF($O45=\"\",\"\",TEXT($O45,\"00\")&\"/\")&IF($Q45=\"\",\"\",TEXT($Q45,\"00\")&\"/\")&IF($S45=\"\",\"\",TEXT($S45,\"00\"))","v":""}]
[null,null,null,"　　　　　　　　　　　続柄(",null,null,null,null,null,null,null,null,null,")",null,null,null,null,null,null,null,null,null,null,null,null,null,null,null,null,null,null,null,null,null,null,null,null,null,null,{"$f":"IFERROR(INDEX(ZBパラメータ!$B$44:$F$58,MATCH(K46,ZBパラメータ!$F$44:$F$58,0),4), \"\")","v":""},{"$f":"AA46&AB46&AC46&AD46&AE46&AF46&AG46&AH46&AI46&AJ46&AK46&AL46","v":""}]
[null,"■保育施設・事業所の利用申込み内容"]
[null,"申込み区分",null,null,"新規",null,null,"卒園(３月末で卒園となる方)",null,null,null,null,null,null,null,null,"転園【現在利用中(市外含む)の施設・事業所名称:",null,null,null,null,null,null,null,null,null,null,null,null,null,null,null,null,null,null,null,null,"】",null,null,false,false,false,null,null,null,null,null,null,null,null,null,{"$f":"AO48&\",\"&AP48&\",\"&AQ48","v":"FALSE,FALSE,FALSE"}]
[null,null,null,"★転園申込みの場合（他市町村から転入予定で申し込まれる場合も含む）は、以下の内容にお答えください。"]
[null,null,null,null,null,"希望施設に利用決定したら現施設・事業所を退所します",null,null,null,null,null,null,null,null,null,null,null,null,null,null,null,null,null,"利用調整結果に関わらず現施設・事業所を退所します",null,null,null,null,null,null,null,null,null,null,null,null,null,null,null,null,false,false,null,null,null,null,null,null,null,null,null,null,{"$f":"AO50&\",\"&AP50","v":"FALSE,FALSE"}]
[null,"希望施設・事業所",null,"希望順位","第1\n希望",null,null,null,null,null,null,null,null,null,null,null,null,null,null,null,null,"第4\n希望",null,null,null,null,null,null,null,null,null,null,null,null,null,null,null,null,null,null,{"$f":"IFERROR(INDEX(ZBパラメータ!$E$142:$F$157,MATCH(G51,ZBパラメータ!$F$142:$F$157,0),1), \"\")","v":""},{"$f":"IFERROR(INDEX(ZBパラメータ!$E$142:$F$157,MATCH(X51,ZBパラメータ!$F$142:$F$157,0),1), \"\")","v":""}]
[null,null,null,null,null,null,null,null,"見学",null,null,null,"済",null,"未(",null,null,null,null,"予定)",null,null,null,null,null,"見学",null,null,null,"済",null,"未(",null,null,null,null,"予定)",null,null,null,false,false,null,null,null,null,null,null,null,null,null,null,{"$f":"AO52&\",\"&AP52","v":"FALSE,FALSE"}]
[null,null,null,null,"第2\n希望",null,null,null,null,null,null,null,null,null,null,null,null,null,null,null,null,"第5\n希望",null,null,null,null,null,null,null,null,null,null,null,null,null,null,null,null,null,null,false,false,{"$f":"IFERROR(INDEX(ZBパラメータ!$E$142:$F$157,MATCH(G53,ZBパラメータ!$F$142:$F$157,0),1), \"\")","v":""},{"$f":"IFERROR(INDEX(ZBパラメータ!$E$142:$F$157,MATCH(X53,ZBパラメータ!$F$142:$F$157,0),1), \"\")","v":""},null,null,null,null,null,null,null,null,"FALSE,FALSE"]
[null,null,null,null,null,null,null,null,"見学",null,null,null,"済",null,"未(",null,null,null,null,"予定)",null,null,null,null,null,"見学",null,null,null,"済",null,"未(",null,null,null,null,"予定)",null,null,null,false,false,null,null,null,null,null,null,null,null,null,null,"FALSE,FALSE"]
[null,null,null,null,"第3\n希望",null,null,null,null,null,null,null,null,null,null,null,null,null,null,null,null,"第6\n希望",null,null,null,null,null,null,null,null,null,null,null,null,null,null,null,null,null,null,false,false,{"$f":"IFERROR(INDEX(ZBパラメータ!$E$142:$F$157,MATCH(G55,ZBパラメータ!$F$142:$F$157,0),1), \"\")","v":""},{"$f":"IFERROR(INDEX(ZBパラメータ!$E$142:$F$157,MATCH(X55,ZBパラメータ!$F$142:$F$157,0),1), \"\")","v":""},null,null,null,null,null,null,null,null,"FALSE,FALSE"]
[null,null,null,null,null,null,null,null,"見学",null,null,null,"済",null,"未(",null,null,null,null,"予定)",null,null,null,null,null,"見学",null,null,null,"済",null,"未(",null,null,null,null,"予定)",null,null,null,false,false,null,null,null,null,null,null,null,null,null,null,"FALSE,FALSE"]
[null,null,null,null,"利用（転園）を希望する理由",null,null,null,null,null,null,null,null,null,null,null,null,null,null,null,null,null,null,null,null,null,null,null,null,null,null,null,null,null,null,null,null,null,null,null,false,false,null,null,null,null,null,null,null,null,null,null,"FALSE,FALSE"]
[null,"調整希望","希望施設・事業所のいずれも利用できない場合、他の空きのある施設・事業所をご案内させていただきます（＝すべての利用申込み者が希望する第6希望までの利用調整終了後、空きのある施設・事業所への案内となるため、必ずしも希望に沿った施設・事業所とは限りません）"]
[]
[null,null,"上記、希望施設・事業所以外の調整について",null,null,null,null,null,null,null,null,null,null,null,null,null,null,null,"希望する",null,null,null,null,null,null,"希望施設・事業所以外は、希望しない",null,null,null,null,null,null,null,null,null,null,null,null,null,null,false,false,null,null,null,null,null,null,null,null,null,null,{"$f":"AO60&\",\"&AP60","v":"FALSE,FALSE"}]
[null,"希望\n利用\n時間",null,"平　　日",null,null,null,null,null,null,"から",null,null,null,null,null,"まで",null,null,"送迎\n方法",null,"送り",null,null,null,"父",null,"母",null,"その他(",null,null,null,null,null,null,null,")",null,null,false,false,false,{"$f":"IFERROR(INDEX(ZBパラメータ!$B$44:$F$58,MATCH(AF61,ZBパラメータ!$F$44:$F$58,0),4), \"\")","v":""},null,null,null,null,null,null,null,null,{"$f":"AO61&\",\"&AP61&\",\"&AQ61","v":"FALSE,FALSE,FALSE"}]
[null,null,null,"土曜日",null,null,null,null,null,null,"から",null,null,null,null,null,"まで",null,null,null,null,"迎え",null,null,null,"父",null,"母",null,"その他(",null,null,null,null,null,null,null,")",null,null,false,false,false,{"$f":"IFERROR(INDEX(ZBパラメータ!$B$44:$F$58,MATCH(AF62,ZBパラメータ!$F$44:$F$58,0),4), \"\")","v":""},null,null,null,null,null,null,null,null,{"$f":"AO62&\",\"&AP62&\",\"&AQ62","v":"FALSE,FALSE,FALSE"}]
[null,null,null,"日・祝日",null,null,null,null,null,null,"から",null,null,null,null,null,"まで",null,null,null,null,"手段",null,null,null,"徒歩",null,"自転車",null,null,"車",null,null,"その他(",null,null,null,")",null,null,false,false,false,false,null,null,null,null,null,null,null,null,{"$f":"AO63&\",\"&AP63&\",\"&AQ63&\",\"&AR63","v":"FALSE,FALSE,FALSE,FALSE"}]
[null,"利用希望\n期間",null,null,null,null,null,null,null,null,null,"から",null,null,null,null,null,"まで",null,"・",null,null,"就学前まで",null,null,null,null,null,null,null,null,null,null,null,null,null,null,null,null,null,false,null,null,null,null,null,null,null,null,null,null,null,{"$f":"AO64","v":false}]
[null,null,null,null,null,null,"※開始日は原則、各月1日付けとなりますが、希望する施設・事業所の受入年齢により月途中からの利用となる場合があります。"]
[null,"育児休業からの\n復職の意思",null,null,null,null,"★育児休業からの復職予定で申し込まれた方は、いずれかに☑してください",null,null,null,null,null,null,null,null,null,null,null,null,null,null,null,null,null,null,null,null,null,null,null,null,"復職\n時期　　　"]
[null,null,null,null,null,null,null,"直ちに復職を希望する",null,null,null,null,null,"希望する保育所等に入所できない場合は、育児休業の延長も許容できる",null,null,null,null,null,null,null,null,null,null,null,null,null,null,null,null,null,null,null,null,null,null,null,null,null,null,false,false,null,null,null,null,null,null,null,null,null,null,{"$f":"AO67&\",\"&AP67","v":"FALSE,FALSE"}]
[null,"希望する保育必要量",null,null,null,null,null,"保育標準時間（最大11時間まで）",null,null,null,null,null,null,null,"保育短時間（最大8時間まで）",null,null,null,null,null,null,null,"※なお、申請書の希望、保育の必要な事由、状況等から区役所で決定します",null,null,null,null,null,null,null,null,null,null,null,null,null,null,null,null,false,false,null,null,null,null,null,null,null,null,null,null,{"$f":"AO68&\",\"&AP68","v":"FALSE,FALSE"}]
[null,"■父母等の「保育の必要な事由」",null,null,null,null,null,null,null,null,null,"※事由により必要書類が異なります。「保育所・認定こども園・小規模保育事業・家庭的保育事業等の利用のご案内」をご確認ください。"]
[null,"区分",null,null,null,null,"父 ・",null,null,"（",null,null,null,"）の状況",null,null,null,null,null,null,null,null,null,"母 ・",null,null,"（",null,null,null,"）の状況",null,null,null,null,null,null,null,null,null,false,false,null,null,null,null,null,null,null,null,null,null,{"$f":"AO70&\",\"&AP70","v":"FALSE,FALSE"}]
[null,null,null,"※保護者が父母以外の場合は、（）に申込児童との関係を記入してください。",null,null,null,null,null,null,null,null,null,null,null,null,null,null,null,null,"※保護者が父母以外の場合は、（）に申込児童との関係を記入してください。",null,null,null,null,null,null,null,null,null,null,null,null,null,null,null,null,null,null,null,false,false,null,null,null,null,null,null,null,null,null,null,{"$f":"AO71&\",\"&AP71","v":"FALSE,FALSE"}]
[null,"保育の必要な事由",null,null,"就労",null,"産前産後",null,null,"疾病等",null,null,"親族介護",null,null,"災害復旧",null,null,"求職活動",null,null,"就労",null,"産前産後",null,null,"疾病等",null,null,"親族介護",null,null,"災害復旧",null,null,"求職活動",null,null,null,null,false,false,false,false,false,false,false,false,false,null,null,null,{"$f":"AO72&\",\"&AP72&\",\"&AQ72&\",\"&AR72&\",\"&AS72&\",\"&AT72&\",\"&AU72&\",\"&AV72&\",\"&AW72","v":"FALSE,FALSE,FALSE,FALSE,FALSE,FALSE,FALSE,FALSE,FALSE"}]
[null,null,null,null,"就学",null,"発達援助",null,null,"育児休業(利用開始希望日時点)",null,null,null,null,null,null,null,null,null,null,null,"就学",null,"発達援助",null,null,"育児休業(利用開始希望日時点)",null,null,null,null,null,null,null,null,null,null,null,null,null,false,false,false,false,false,false,false,false,false,null,null,null,{"$f":"AO73&\",\"&AP73&\",\"&AQ73&\",\"&AR73&\",\"&AS73&\",\"&AT73&\",\"&AU73&\",\"&AV73&\",\"&AW73","v":"FALSE,FALSE,FALSE,FALSE,FALSE,FALSE,FALSE,FALSE,FALSE"}]
[null,"就労又は就学",null,"１日",null,"時間・週",null,null,"日勤務(週",null,null,"時間以上勤務）・１か月",null,null,null,null,null,"日勤務",null,null,"１日",null,"時間・週",null,null,"日勤務(週",null,null,"時間以上勤務）・１か月",null,null,null,null,null,"日勤務"]
[null,null,null,"平　日：",null,null,null,null,"～",null,null,null,"まで　（うち、休憩",null,null,null,null,null,"分）",null,"平　日：",null,null,null,null,"～",null,null,null,"まで　（うち、休憩",null,null,null,null,null,"分）"]
[null,null,null,"土曜日：",null,null,null,null,"～",null,null,null,"まで　（うち、休憩",null,null,null,null,null,"分）",null,"土曜日：",null,null,null,null,"～",null,null,null,"まで　（うち、休憩",null,null,null,null,null,"分）"]
[null,null,null,"日曜日：",null,null,null,null,"～",null,null,null,"まで　（うち、休憩",null,null,null,null,null,"分）",null,"日曜日：",null,null,null,null,"～",null,null,null,"まで　（うち、休憩",null,null,null,null,null,"分）"]
[null,null,null,"休　日：",null,"毎週",null,null,"曜日（月",null,null,"日)・",null,"祝日 ・ 不定休（月",null,null,null,null,"日程度）",null,"休　日：",null,"毎週",null,null,"曜日（月",null,null,"日)・",null,"祝日 ・ 不定休（月",null,null,null,null,"日程度）",null,null,null,null,false,null,null,null,null,null,null,null,null,null,null,null,{"$f":"AO78","v":false}]
[null,null,null,"就労内容:",null,null,null,null,null,null,null,null,null,null,null,null,null,null,null,null,"就労内容:",null,null,null,null,null,null,null,null,null,null,null,null,null,null,null,null,null,null,null,false,null,null,null,null,null,null,null,null,null,null,null,{"$f":"AO79","v":false}]
[null,null,null,"卒業（終了）日【就学のみ記入】：",null,null,null,null,null,null,null,null,null,null,null,null,null,null,null,null,"卒業（終了）日【就学のみ記入】："]
[null,null,null,"産休・育休の取得：",null,null,null,null,null,null,"取得中",null,null,"取得予定",null,null,null,"なし",null,null,"産休・育休の取得：",null,null,null,null,null,null,"取得中",null,null,"取得予定",null,null,null,"なし",null,null,null,null,null,false,false,false,null,null,null,null,null,null,null,null,null,{"$f":"AO81&\",\"&AP81&\",\"&AQ81","v":"FALSE,FALSE,FALSE"}]
[null,null,null,"取得期間：",null,null,null,null,null,null,null,null,"～",null,null,null,null,null,null,null,"取得期間：",null,null,null,null,null,null,null,null,"～",null,null,null,null,null,null,null,null,null,null,false,false,false,null,null,null,null,null,null,null,null,null,{"$f":"AO82&\",\"&AP82&\",\"&AQ82","v":"FALSE,FALSE,FALSE"}]
[null,null,null,"育児短縮勤務:",null,null,null,null,null,"取得中",null,null,"取得予定",null,null,null,"なし",null,null,null,"育児短縮勤務:",null,null,null,null,null,"取得中",null,null,"取得予定",null,null,null,"なし",null,null,null,null,null,null,false,false,false,null,null,null,null,null,null,null,null,null,{"$f":"AO83&\",\"&AP83&\",\"&AQ83","v":"FALSE,FALSE,FALSE"}]
[null,null,null,"取得期間:",null,null,null,null,null,null,null,null,"～",null,null,null,null,null,null,null,"取得期間:",null,null,null,null,null,null,null,null,"～",null,null,null,null,null,null,null,null,null,null,false,false,false,null,null,null,null,null,null,null,null,null,{"$f":"AO84&\",\"&AP84&\",\"&AQ84","v":"FALSE,FALSE,FALSE"}]
[null,null,null,"取得中の勤務時間:",null,null,null,null,null,null,null,null,null,null,"～",null,null,null,null,null,"取得中の勤務時間:",null,null,null,null,null,null,null,null,null,null,"～"]
[null,null,null,"通勤(通学)方法：",null,null,null,null,"徒歩",null,"自転車",null,null,"車",null,"その他（",null,null,null,"）","通勤(通学)方法：",null,null,null,null,"徒歩",null,"自転車",null,null,"車",null,"その他（",null,null,null,"）",null,null,null,false,false,false,false,null,null,null,null,null,null,null,null,{"$f":"AO86&\",\"&AP86&\",\"&AQ86&\",\"&AR86","v":"FALSE,FALSE,FALSE,FALSE"}]
[null,null,null,"通勤(通学)時間：",null,null,null,null,"行き",null,null,null,null,"分",null,"帰り",null,null,null,"分","通勤(通学)時間：",null,null,null,null,"行き",null,null,null,null,"分",null,"帰り",null,null,null,"分",null,null,null,false,false,false,false,null,null,null,null,null,null,null,null,{"$f":"AO87&\",\"&AP87&\",\"&AQ87&\",\"&AR87","v":"FALSE,FALSE,FALSE,FALSE"}]
[null,"疾病等",null,"傷病名：",null,null,null,null,null,null,null,null,null,null,null,null,null,null,null,null,"傷病名："]
[null,null,null,"(治療期間",null,null,null,null,null,null,null,null,"～",null,null,null,null,null,null,")","(治療期間",null,null,null,null,null,null,null,null,"～",null,null,null,null,null,null,")"]
[null,null,null,"手帳の種類：",null,null,null,null,null,null,null,"手帳　等級：",null,null,null,null,null,"級・度",null,null,"手帳の種類：",null,null,null,null,null,null,null,"手帳　等級：",null,null,null,null,null,"級・度",null,null,null,null,null,{"$f":"IFERROR(INDEX(ZBパラメータ!$B$12:$F$15,MATCH(H90,ZBパラメータ!$F$9:$F$11,0),4), \"\")","v":""},{"$f":"IFERROR(INDEX(ZBパラメータ!$B$12:$F$15,MATCH(P90,ZBパラメータ!$F$12:$F$15,0),4), \"\")","v":""},{"$f":"IFERROR(INDEX(ZBパラメータ!$B$12:$F$15,MATCH(Y90,ZBパラメータ!$F$9:$F$11,0),4), \"\")","v":""},{"$f":"IFERROR(INDEX(ZBパラメータ!$B$12:$F$15,MATCH(AG90,ZBパラメータ!$F$12:$F$15,0),4), \"\")","v":""}]
[null,"親族\n介護\n（看護）",null,"被介護（看護）者氏名：",null,null,null,null,null,null,null,null,null,null,null,null,null,null,null,null,"被介護（看護）者氏名："]
[null,null,null,"(児童との続柄：",null,null,null,null,null,null,null,null,null,null,null,null,null,null,null,")","(児童との続柄：",null,null,null,null,null,null,null,null,null,null,null,null,null,null,null,")",null,null,null,{"$f":"IFERROR(INDEX(ZBパラメータ!$B$44:$F$58,MATCH(P92,ZBパラメータ!$F$44:$F$58,0),4), \"\")","v":""},{"$f":"IFERROR(INDEX(ZBパラメータ!$B$44:$F$58,MATCH(AG92,ZBパラメータ!$F$44:$F$58,0),4), \"\")","v":""}]
[null,null,null,"被介護（看護）者住所：",null,null,null,null,null,null,null,null,null,null,null,null,null,null,null,"同居","被介護（看護）者住所：",null,null,null,null,null,null,null,null,null,null,null,null,null,null,null,"同居",null,null,null,false,null,null,null,null,null,null,null,null,null,null,null,{"$f":"AO93","v":false}]
[null,null,null,"（別居の場合のみ記入）",null,null,null,null,null,null,null,null,null,null,null,null,null,null,null,null,"（別居の場合のみ記入）",null,null,null,null,null,null,null,null,null,null,null,null,null,null,null,null,null,null,null,false,null,null,null,null,null,null,null,null,null,null,null,{"$f":"AO94","v":false}]
[null,null,null,"傷病名：",null,null,null,null,null,null,null,null,null,null,null,null,null,null,null,null,"傷病名："]
[null,null,null,"手帳の種類：",null,null,null,null,null,null,null,"手帳　等級：",null,null,null,null,null,"級・度",null,null,"手帳の種類：",null,null,null,null,null,null,null,"手帳　等級：",null,null,null,null,null,"級・度",null,null,null,null,null,{"$f":"IFERROR(INDEX(ZBパラメータ!$B$12:$F$15,MATCH(H96,ZBパラメータ!$F$9:$F$11,0),4), \"\")","v":""},{"$f":"IFERROR(INDEX(ZBパラメータ!$B$12:$F$15,MATCH(P96,ZBパラメータ!$F$12:$F$15,0),4), \"\")","v":""},{"$f":"IFERROR(INDEX(ZBパラメータ!$B$12:$F$15,MATCH(Y96,ZBパラメータ!$F$9:$F$11,0),4), \"\")","v":""},{"$f":"IFERROR(INDEX(ZBパラメータ!$B$12:$F$15,MATCH(AG96,ZBパラメータ!$F$12:$F$15,0),4), \"\")","v":""}]
[null,"不在の\n場合",null,null,"単身赴任",null,null,null,"未婚",null,null,"離別",null,null,"離婚前提別居",null,null,null,null,null,null,"単身赴任",null,null,null,"未婚",null,null,"離別",null,null,"離婚前提別居",null,null,null,null,null,null,null,null,false,false,false,false,false,false,null,null,null,null,null,null,{"$f":"AO97&\",\"&AP97&\",\"&AQ97&\",\"&AR97&\",\"&AS97&\",\"&AT97","v":"FALSE,FALSE,FALSE,FALSE,FALSE,FALSE"}]
[null,null,null,null,"死別",null,null,"その他（",null,null,null,null,null,null,null,null,null,null,null,"）",null,"死別",null,null,"その他（",null,null,null,null,null,null,null,null,null,null,null,"）",null,null,null,false,false,false,false,false,false,null,null,null,null,null,null,{"$f":"AO98&\",\"&AP98&\",\"&AQ98&\",\"&AR98&\",\"&AS98&\",\"&AT98","v":"FALSE,FALSE,FALSE,FALSE,FALSE,FALSE"}]
[null,null,null,null,null,null,null,null,null,"より別居中",null,null,null,null,null,null,null,null,null,null,null,null,null,null,null,null,"より別居中"]
[null,null,null,"居所：",null,null,null,null,null,null,null,null,null,null,null,null,null,null,null,null,"居所："]
[null,"出産予定",null,"-",null,null,null,null,null,null,null,null,null,null,null,null,null,null,null,null,null,"あり（",null,null,null,null,null,null,"（予定））",null,null,null,null,"なし",null,null,null,null,null,null,false,false,null,null,null,null,null,null,null,null,null,null,{"$f":"AO101&\",\"&AP101","v":"FALSE,FALSE"}]
[null,"手当受給状況",null,"生活保護",null,null,null,null,null,"適用なし",null,null,null,"適用あり(担当ケースワーカー：",null,null,null,null,null,null,null,null,"",null,null,null,null,null,null,null,null,null,"開始)",null,null,"申請中",null,null,null,null,false,false,false,null,null,null,null,null,null,null,null,null,{"$f":"AO102&\",\"&AP102&\",\"&AQ102","v":"FALSE,FALSE,FALSE"}]
[null,null,null,"ひとり親関係手当",null,null,null,null,null,"なし",null,"受給（ ",null,null,"児童扶養手当受給",null,null,null,null,"ひとり親家庭手当受給",null,null,null,null,null,"遺児手当受給",null,null,null,"ひとり親医療証　）",null,null,null,null,"申請中　",null,null,null,null,null,false,false,false,null,null,null,null,null,null,null,null,null,{"$f":"AO103&\",\"&AP103&\",\"&AQ103","v":"FALSE,FALSE,FALSE"}]
[null,"■祖父母の状況",null,null,null,null,null,null,null,null,null,null,null,null,null,null,null,null,null,null,null,null,null,null,null,null,null,null,null,null,null,null,null,null,null,null,null,null,null,null,false,false,false,false,null,null,null,null,null,null,null,null,{"$f":"AO104&\",\"&AP104&\",\"&AQ104&\",\"&AR104","v":"FALSE,FALSE,FALSE,FALSE"}]
[null,"区分",null,"父方",null,null,null,null,null,null,null,null,null,null,null,null,null,null,null,null,"母方",null,null,null,null,null,null,null,null,null,null,null,null,null,null,null,null,null,null,null,false,false,null,null,null,null,null,null,null,null,null,null,{"$f":"AO105&\",\"&AP105","v":"FALSE,FALSE"}]
[null,"祖父","氏名",null,null,null,null,null,null,null,null,null,null,null,null,null,null,null,null,null,null,null,null,null,null,null,null,null,null,null,null,null,null,null,null,null,null,null,null,null,false,false,null,null,null,null,null,null,null,null,null,null,{"$f":"AO106&\",\"&AP106","v":"FALSE,FALSE"}]
[null,null,null,"（生年月日：",null,null,null,null,null,null,null,null,null,null,null,null,null,null,null,"歳）","（生年月日：",null,null,null,null,null,null,null,null,null,null,null,null,null,null,null,"歳)",null,null,null,false,false,false,null,null,null,null,null,null,null,null,null,{"$f":"AO107&\",\"&AP107&\",\"&AQ107","v":"FALSE,FALSE,FALSE"}]
[null,null,"住所",null,"別居",null,null,"同居　※別居の場合のみ住所を記入ください。",null,null,null,null,null,null,null,null,null,null,null,null,null,"別居",null,null,"同居　※別居の場合のみ住所を記入ください。",null,null,null,null,null,null,null,null,null,null,null,null,null,null,null,false,false,false,null,null,null,null,null,null,null,null,null,{"$f":"AO108&\",\"&AP108&\",\"&AQ108","v":"FALSE,FALSE,FALSE"}]
[null,null,null,"住所：",null,null,null,null,null,null,null,null,null,null,null,null,null,null,null,null,"住所：",null,null,null,null,null,null,null,null,null,null,null,null,null,null,null,null,null,null,null,false,false,false,null,null,null,null,null,null,null,null,null,{"$f":"AO109&\",\"&AP109&\",\"&AQ109","v":"FALSE,FALSE,FALSE"}]
[null,null,"状況","就労(",null,"居宅外",null,"居宅内",null,null,"無就労)　健康(",null,null,null,"良好",null,"入院",null,"通院)",null,"就労(",null,"居宅外",null,"居宅内",null,null,"無就労)　健康(",null,null,null,"良好",null,"入院",null,"通院)",null,null,null,null,false,false,false,null,null,null,null,null,null,null,null,null,{"$f":"AO110&\",\"&AP110&\",\"&AQ110","v":"FALSE,FALSE,FALSE"}]
[null,"祖母","氏名"]
[null,null,null,"（生年月日：",null,null,null,null,null,null,null,null,null,null,null,null,null,null,null,"歳）","（生年月日：",null,null,null,null,null,null,null,null,null,null,null,null,null,null,null,"歳)"]
[null,null,"住所",null,"別居",null,null,"同居　※別居の場合のみ住所を記入ください。",null,null,null,null,null,null,null,null,null,null,null,null,null,"別居",null,null,"同居　※別居の場合のみ住所を記入ください。",null,null,null,null,null,null,null,null,null,null,null,null,null,null,null,false,false,null,null,null,null,null,null,null,null,null,null,{"$f":"AO113&\",\"&AP113","v":"FALSE,FALSE"}]
[null,null,null,"住所：",null,null,null,null,null,null,null,null,null,null,null,null,null,null,null,null,"住所：",null,null,null,null,null,null,null,null,null,null,null,null,null,null,null,null,null,null,null,false,false,null,null,null,null,null,null,null,null,null,null,{"$f":"AO114&\",\"&AP114","v":"FALSE,FALSE"}]
[null,null,"状況","就労(",null,"居宅外",null,"居宅内",null,null,"無就労)　健康(",null,null,null,"良好",null,"入院",null,"通院)",null,"就労(",null,"居宅外",null,"居宅内",null,null,"無就労)　健康(",null,null,null,"良好",null,"入院",null,"通院)",null,null,null,null,false,false,false,null,null,null,null,null,null,null,null,null,{"$f":"AO115&\",\"&AP115&\",\"&AQ115","v":"FALSE,FALSE,FALSE"}]
[null,"■きょうだい児が同時に利用申込みを行う場合",null,null,null,null,null,null,null,null,null,null,null,null,null,null,null,null,null,null,null,null,null,null,null,null,null,null,null,null,null,null,null,null,null,null,null,null,null,null,false,false,false,null,null,null,null,null,null,null,null,null,{"$f":"AO116&\",\"&AP116&\",\"&AQ116","v":"FALSE,FALSE,FALSE"}]
[null,"きょうだい\n利用希望\n詳細",null,"①  きょうだいが別々の保育施設等であれば利用できる場合、利用を希望しますか。",null,null,null,null,null,null,null,null,null,null,null,null,null,null,null,null,null,null,null,null,null,null,null,null,"希望する",null,null,null,"希望しない",null,null,null,null,null,null,null,false,false,false,null,null,null,null,null,null,null,null,null,{"$f":"AO117&\",\"&AP117&\",\"&AQ117","v":"FALSE,FALSE,FALSE"}]
[null,null,null,"②  きょうだいが同時に利用できる場合、以下のどちらを希望しますか。",null,null,null,null,null,null,null,null,null,null,null,null,null,null,null,null,null,null,null,null,null,null,null,null,null,null,null,null,null,null,null,null,null,null,null,null,false,false,false,null,null,null,null,null,null,null,null,null,{"$f":"AO118&\",\"&AP118&\",\"&AQ118","v":"FALSE,FALSE,FALSE"}]
[null,null,null,null,null,"希望順位が下でも同じ保育施設等の利用を希望する",null,null,null,null,null,null,null,null,null,null,null,"きょうだい別々でもそれぞれの希望順位の高い保育施設等の利用を希望する",null,null,null,null,null,null,null,null,null,null,null,null,null,null,null,null,null,null,null,null,null,null,false,false,null,null,null,null,null,null,null,null,null,null,{"$f":"AO119&\",\"&AP119","v":"FALSE,FALSE"}]
[null,null,null,"③　きょうだいのうち、一人(本申請児童)だけ利用できる場合、利用を希望しますか。",null,null,null,null,null,null,null,null,null,null,null,null,null,null,null,null,null,null,null,null,null,null,null,null,"希望する",null,null,null,"希望しない",null,null,null,null,null,null,null,false,false,null,null,null,null,null,null,null,null,null,null,{"$f":"AO120&\",\"&AP120","v":"FALSE,FALSE"}]
[null,"■名古屋市記載欄",null,null,null,null,null,null,null,null,null,null,null,null,null,null,null,null,null,null,null,null,null,null,null,null,null,null,null,null,null,null,null,null,null,null,null,null,null,null,false,false,null,null,null,null,null,null,null,null,null,null,{"$f":"AO121&\",\"&AP121","v":"FALSE,FALSE"}]
[]
[]
[]
[]
[]
[]
[]
[]
[]
[]
[]
[]
[]
[null,"保育所等の利用にあたっての注意事項"]
[null,"　幼児期の学校教育・保育の総合的な提供、地域の子ども・子育て支援の充実を目的とした子ども・子育て支援新制度で"]
[null,"は、「施設型給付」及び「地域型保育給付」が創設され、２つの給付制度に基づいた財政支援を受ける施設として保育所"]
[null,"・認定こども園・小規模保育事業及び家庭的保育事業等があります。"]
[null,"　施設・事業所を利用するには、市町村により客観的な基準に基づき保育の必要性の認定を受ける必要があり、施設・事"]
[null,"業所の利用の可否は、保護者の方から提出された「教育・保育給付認定申請書・保育利用申込書」やその他の書類で保育"]
[null,"の必要な事由を把握し、希望される施設・事業所の受入人数を考慮して決定します。"]
[null,"　また、施設・事業所の利用申込み時から退所されるまで様々な手続きが必要となります。詳細は、本市公式ウェブサイ"]
[null,"ト掲載の「保育所・認定こども園・小規模保育事業・家庭的保育事業等の利用のご案内」等を確認いただき、施設・事業"]
[null,"所の概要、諸手続きを十分ご理解のうえ、利用申込みを行ってください。"]
[]
[null,"「教育・保育給付認定申請書・保育利用申込書」の記入上の注意"]
[null,"　この利用申込書は、施設・事業所への利用の可否の決定に際しての資料となります。それぞれの欄について、該当する"]
[null,"ものに☑し、また、必要事項を記入いただき、正確に作成してください。受付時に記入上の不備等の修正・補筆をお願い"]
[null,"したり、申込書に合わせて区長（社会福祉事務所長）が指示する書類の提出または提示をお願いする場合があります。"]
[]
[null,"　申込者【教育・保育給付認定保護者（原則、世帯主）】"]
[null,"■申込者【教育・保育給付認定保護者（原則、世帯主）】"]
[null,"　申込者【教育・保育給付認定保護者（原則、世帯主）】欄に記入の方が、保育料の納入義務者となります。"]
[null,"　なお、今回申込みをされるお子さんのきょうだいが既に施設・事業所を利用している場合は、その際にご提出いただい"]
[null,"た申込書「保護者」欄に記入した方を、申込者【教育・保育給付認定保護者（原則、世帯主）】欄に記入してください。"]
[null,"■過去２年以内の転入歴"]
[null,"　利用申込時から過去２年以内の１月１日時点の居住地が本市以外の場合は、本市転入日・市外の前住所をご記入ください。"]
[null,"い。"]
[]
[null,"　申込児童及び世帯の状況（申込みに係る児童の保護者、家族及び同居人）"]
[null,"■申込児童"]
[null,"　年齢は施設・事業所の利用を希望する年度の４月１日現在の年齢をご記入ください。"]
[null,"　健康状態等の欄には、お子さんを安全に保育するにあたっての大切な情報になります。心身の発達に遅れがある場合や"]
[null,"、身体障害者手帳や愛護手帳がある場合、医療的ケアが必要な場合は、障害の有無欄の「あり」に☑をつけ、あわせて社"]
[null,"会福祉事務所長の指示により、「発達質問票」を記入・提出ください。また、アレルギー等がある場合は、詳細に記入く"]
[null,"ださい。"]
[null,"■世帯構成員※申込みに係る児童の保護者（申込者含む）、家族及び同居人全て記入"]
[null,"　健康状態等の欄には、世帯に「身体障害者手帳」「愛護手帳」「精神障害者保健福祉手帳」をお持ちの方がいる場合は"]
[null,"、手帳名と等級を記入ください。"]
[null,"　備考（勤務先名称/通学（園）先名称　等）には、その方の勤務先、通学先（小中学校等）、通園先（保育所、幼稚園"]
[null,"等）を記入ください。なお、世帯構成員欄に記入いただく方については、ご家族、同居人全て記入ください。"]
[]
[null,"保育施設・事業所の利用申込み内容"]
[null,"■申込み区分"]
[null,"　申込み区分が「転園」の方については、現在、利用中の施設・事業所名称を記入ください。"]
[null,"　また、転園が可能となり、現在の利用施設・事業所を退園となることで発生する空き枠については、他の方の利用調整"]
[null,"の対象となります。したがって、利用調整の中で転園が可能となった場合は、利用決定を取りやめて、現在利用する施設"]
[null,"・事業所を継続利用することはできませんので、ご注意ください。"]
[null,"■希望施設・事業所"]
[null,"　利用を希望する施設・事業所名称を第１希望から順に記入ください。（最大、第６希望まで記入が可能です。）"]
[null,"　記入した希望施設・事業所の申込み人数が定員を超える等により、利用調整が必要になった場合は、記入された施設・"]
[null,"事業所の希望順位にしたがって利用の可否を決定します。"]
[null,"　より多くの施設・事業所を記入いただいた方が、施設・事業所を利用できる可能性が広がることとなりますので、なる"]
[null,"べく希望施設・事業所は第６希望まで記入いただくようお願いします。"]
[null,"　「調整希望」欄は、利用を希望する施設・事業所のいずれも利用できない場合、他の空きのある施設・事業所へ調整"]
[null,"（すべての利用申込み者が希望する第６希望までの利用調整終了後、空きのある施設・事業所への案内を行います。必ず"]
[null,"しも希望に沿った施設・事業所とは限りません）することを希望するか、希望施設・事業所以外は希望しないかを確認す"]
[null,"るためのものです。（どちらかに必ず☑してください。）"]
[null,"　なお、希望施設・事業所以外の調整について「希望する」場合は、別紙「保育所等利用申込みに係る申込児童等の状況"]
[null,"確認票」■希望施設・事業所以外の調整を「希望する」とした場合の希望範囲について欄に希望範囲を記入ください。"]
[]
[]
[]
[]
[]
[]
[]
[]
[]
[null,"■希望利用時間"]
[null,"　利用時間は各施設・事業所の開所時間内で、施設長又は管理者が家庭の状況等を考慮してそれぞれに定めます。"]
[null,"　施設・事業所の開所時間は一般におおむね午前７時３０分から午後６時３０分となっています。また、原則的な保育時"]
[null,"間帯（８時間）が各施設・事業所によって定められています。開所時間と原則的な保育時間は施設によって違いがあり、"]
[null,"ご利用される時間によっては延長料金が別途かかることがあります。"]
[null,"　本市公式ウェブサイト「保育所等認可施設・事業所一覧」にも各施設・事業所の開所時間は掲載しておりますが、詳細"]
[null,"については、お住まいの区の社会福祉事務所（民生子ども係）支所区民福祉課（保護・子ども係）または、利用を希望す"]
[null,"る施設・事業所にお問合せのうえ、記入ください。"]
[null,"■利用希望期間"]
[null,"　利用開始日は、原則各月1日となります。なお、転入予定での申込で1日に名古屋市に住民票がない、施設・事業所の受"]
[null,"入年齢に達していないなど、やむを得ない事情により1日利用開始が困難な場合は月途中からの利用開始となります。"]
[null,"　詳細は、お住まいの区（転入予定の区）の社会福祉事務所（民生子ども課）、支所区民福祉課（保護・子ども係）に確"]
[null,"認ください。また、利用できる期間は保育の必要な事由ごとに決まります。以下の表を参照のうえ、保護者の方がどの事"]
[null,"由に該当するかご確認のうえ、希望する期間をご記入ください。"]
[null,"保育の必要な事由",null,null,null,null,null,"具体的な保護者の状況",null,null,null,null,null,null,null,null,null,null,null,null,null,null,null,null,"利用期間"]
[null,"就　　労",null,null,null,null,null,"月64時間以上、労働することを常態としていること",null,null,null,null,null,null,null,null,null,null,null,null,null,null,null,null,"最長で、児童の小学校就学前までの期間内で左の状態が継続すると見込まれる期間"]
[]
[null,"産前産後",null,null,null,null,null,"出産予定日８週間前（多胎妊娠の場合は、１４週間前）の日から出産日後８週間を経過するまでの期間で保育が必要な状況にあること",null,null,null,null,null,null,null,null,null,null,null,null,null,null,null,null,"出産日から８週間経過する日の翌日が属する月の末日まで"]
[]
[null,"疾 病 等",null,null,null,null,null,"医師が作成した診断書により保護者の疾病もしくは負傷が確認できる状態にあること、または、右に掲げる手帳の交付を受けていること",null,null,null,null,null,null,null,null,null,null,null,null,null,null,null,null,"① 身体障害者手帳、愛護手帳、精神障害者保健福祉手帳を所持している場合は、お子さんの就学前日まで"]
[]
[null,"親族介護",null,null,null,null,null,"１日につきおおむね４時間以上同居の親族その他の者を介護することを常態としていること。",null,null,null,null,null,null,null,null,null,null,null,null,null,null,null,null,"② ①以外の場合は、医師等の作成した診断書に記載されている終期まで"]
[]
[null,"災害復旧",null,null,null,null,null,"自宅及びその近隣地域内の災害の復旧にあたっていること。",null,null,null,null,null,null,null,null,null,null,null,null,null,null,null,null,"災害の復旧が完了すると見込まれる期間"]
[null,"求職活動",null,null,null,null,null,"１日につきおおむね４時間以上同居の親族その他の者を介護することを常態としていること。",null,null,null,null,null,null,null,null,null,null,null,null,null,null,null,null,"利用開始日から９０日を経過する日が属する月の末日まで"]
[]
[null,"就　　学",null,null,null,null,null,"１日につき概ね４時間以上、職業能力開発施設において職業訓練を受け、又は学校教育法に基づく大学、短期大学、高等学校などにおいて就学していること。",null,null,null,null,null,null,null,null,null,null,null,null,null,null,null,null,"卒業（修了）の予定日が属する月の末日まで"]
[]
[null,"発達援助",null,null,null,null,null,"心身の発達に遅れのある概ね３歳以上のお子さんを監護しており、そのお子さんの障害の程度が別に定める基準を満たしていること。",null,null,null,null,null,null,null,null,null,null,null,null,null,null,null,null,"お子さんの小学校就学前日まで"]
[]
[null,"育児休業",null,null,null,null,null,"下の子の育児休業中で上の子について家庭で保育をしている場合、上の子が４月１日において満３歳以上であること。",null,null,null,null,null,null,null,null,null,null,null,null,null,null,null,null,"育児休業終了日の属する月の末日まで"]
[]
[null,"注 ： いずれの場合も、利用期間は、保護者の希望する期間内で、施設の卒園年齢となる年度の末日までとなります。"]
[null,"■希望する保育必要量"]
[null,"　施設ごとに定められている原則的な保育時間帯（８時間）の範囲内で施設・事業所の利用を希望される場合は保育短時"]
[null,"間を、原則的な保育時間帯を超えて施設・事業所の利用を希望される場合は保育標準時間を選択してください。"]
[null,"　保育必要量は保育の必要な事由・状況、保護者の希望等から区役所において決定します。"]
[]
[null,"父母等の「保育の必要な事由」"]
[null,"■保育の必要な事由"]
[null,"　父母等の保育の必要な事由（家庭でお子さんの保育ができない状況）に該当するものに☑してください。"]
[null,"　また、☑した保育の必要な事由（家庭でお子さんの保育ができない状況）が確認できる書類を提出ください。"]
[null,"※家庭でお子さんの保育ができない状況をを確認できる書類は、「保育所・認定こども園・小規模保育事業・家庭的保育"]
[null,"　事業等の利用のご案内（２・３号認定）」を確認ください。"]
[null,"■「就労又は就学」「疾病等」「親族介護（看護）」"]
[null,"　保育の必要な事由欄で該当する（☑した）事由の詳細情報を記入ください。"]
[null,"■不在の場合"]
[null,"　申込児童の父母等が不在の場合は、記入ください。"]
[null,"■出産予定"]
[null,"　出産予定で、母子健康手帳をお持ちの場合は、表紙と出産（分娩）予定日の記載のあるページの写しを提出ください。"]
[]
[null,"きょうだい児が同時に利用申込みを行う場合"]
[null,"　きょうだいで同時に利用申込みを行う場合の利用希望詳細について、該当するものに☑を記入ください。"]
[null,"　きょうだいの利用申込みについて、個別具体的な利用希望詳細がある場合は、お住まいの区の社会福祉事務所（民生子"]
[null,"ども係）支所区民福祉課（保護・子ども係）までご相談ください。"]
[]
[null,"個人番号（マイナンバー）"]
[null,"　個人番号を記入した申込書を提出する場合は、通知カード等の番号が確認できる書類及び運転免許証等の身元確認書類"]
[null,"の提示が必要です。個人番号の記入のある申込書を教育・保育給付認定保護者（原則、世帯主）欄記入の方以外の方が提"]
[null,"出する際は、委任状欄を記入ください。（本人がご提出される場合及び個人番号未記入の場合は委任状欄の記入は不要です。）"]
[]
[]
[]
[null,"■ 職員入力欄"]
[null,"ランク判定"]
[null,"区分",null,null,null,null,"レベル１",null,null,null,null,null,null,null,null,"レベル２",null,null,null,null,null,null,null,null,"レベル3"]
[null,"父",null,null,null,null,null,null,null,null,null,null,null,null,null,null,null,null,null,null,null,null,null,null,null,null,null,null,null,null,null,null,null,null,null,null,null,null,null,null,{"$f":"IFERROR(VLOOKUP($B$2&\"101:\"&$G266,指数!$A:$L,12,FALSE), \"\")","v":""},{"$f":"IFERROR(VLOOKUP($B$2&\"201:\"&$AO266&\":\"&$P266,指数!$A:$L,12,FALSE), \"\")","v":""},{"$f":"IFERROR(VLOOKUP($B$2&\"301:\"&$AP266&\":\"&$Y266,指数!$A:$L,12,FALSE), \"\")","v":""}]
[null,"母",null,null,null,null,null,null,null,null,null,null,null,null,null,null,null,null,null,null,null,null,null,null,null,null,null,null,null,null,null,null,null,null,null,null,null,null,null,null,{"$f":"IFERROR(VLOOKUP($B$2&\"102:\"&$G267,指数!$A:$L,12,FALSE), \"\")","v":""},{"$f":"IFERROR(VLOOKUP($B$2&\"202:\"&$AO267&\":\"&$P267,指数!$A:$L,12,FALSE), \"\")","v":""},{"$f":"IFERROR(VLOOKUP($B$2&\"302:\"&$AP267&\":\"&$Y267,指数!$A:$L,12,FALSE), \"\")","v":""}]
[null,"祖父",null,null,null,null,null,null,null,null,null,null,null,null,null,null,null,null,null,null,null,null,null,null,null,null,null,null,null,null,null,null,null,null,null,null,null,null,null,null,{"$f":"IFERROR(VLOOKUP($B$2&\"108:\"&$G268,指数!$A:$L,12,FALSE), \"\")","v":""},{"$f":"IFERROR(VLOOKUP($B$2&\"208:\"&$AO268&\":\"&$P268,指数!$A:$L,12,FALSE), \"\")","v":""},{"$f":"IFERROR(VLOOKUP($B$2&\"309:\"&$AP268&\":\"&$Y268,指数!$A:$L,12,FALSE), \"\")","v":""}]
[null,"祖母",null,null,null,null,null,null,null,null,null,null,null,null,null,null,null,null,null,null,null,null,null,null,null,null,null,null,null,null,null,null,null,null,null,null,null,null,null,null,{"$f":"IFERROR(VLOOKUP($B$2&\"109:\"&$G269,指数!$A:$L,12,FALSE), \"\")","v":""},{"$f":"IFERROR(VLOOKUP($B$2&\"208:\"&$AO269&\":\"&$P269,指数!$A:$L,12,FALSE), \"\")","v":""},{"$f":"IFERROR(VLOOKUP($B$2&\"308:\"&$AP269&\":\"&$Y269,指数!$A:$L,12,FALSE), \"\")","v":""}]
[]
[null,"加減点判定"]
[null,"ランクアップ"]
[null,null,"①ひとり親世帯等",null,null,null,null,null,null,null,null,null,null,null,null,null,null,null,null,null,null,null,null,null,null,null,null,null,null,null,null,null,null,null,null,null,null,null,null,null,false,null,null,null,null,null,null,null,null,null,null,null,{"$f":"AO273","v":false}]
[null,null,"②既にきょうだいが利用している施設への申込　　",null,null,null,null,null,null,null,null,null,null,null,null,null,null,null,null,null,null,null,null,null,null,null,null,null,null,null,null,null,null,null,null,null,null,null,null,null,false,null,null,null,null,null,null,null,null,null,null,null,{"$f":"AO274","v":false}]
[null,null,"③家庭的保育室・乳児専門保育所・準乳児専門保育所・小規模保育事業・家庭的保育事業等の卒園児",null,null,null,null,null,null,null,null,null,null,null,null,null,null,null,null,null,null,null,null,null,null,null,null,null,null,null,null,null,null,null,null,null,null,null,null,null,false,null,null,null,null,null,null,null,null,null,null,null,false]
[null,null,"④生計主宰者の失業",null,null,null,null,null,null,null,null,null,null,null,null,null,null,null,null,null,null,null,null,null,null,null,null,null,null,null,null,null,null,null,null,null,null,null,null,null,false,null,null,null,null,null,null,null,null,null,null,null,false]
[null,null,"⑤認定こども園を利用している子どもが1号から2号に認定区分が変更になり、引続き当該施設の利用を希望する場合",null,null,null,null,null,null,null,null,null,null,null,null,null,null,null,null,null,null,null,null,null,null,null,null,null,null,null,null,null,null,null,null,null,null,null,null,null,false,null,null,null,null,null,null,null,null,null,null,null,false]
[]
[null,"調整指数"]
[null,null,"2_保育の代替え手段　育児休業からの復職　　",null,null,null,null,null,null,null,null,null,null,null,null,null,null,null,null,null,null,null,null,null,null,null,null,null,null,null,null,null,null,null,null,null,null,null,null,null,false,null,null,null,null,null,null,null,null,null,null,null,false]
[null,null,"5_保育の代替手段　同一区内（支所管内にお住まいの方は同一支所管内）に保育可能な６５歳未満の祖父母あり",null,null,null,null,null,null,null,null,null,null,null,null,null,null,null,null,null,null,null,null,null,null,null,null,null,null,null,null,null,null,null,null,null,null,null,null,null,false,null,null,null,null,null,null,null,null,null,null,null,false]
[null,null,"6_保育の代替手段　保育可能な６５歳未満の祖父母と同居している",null,null,null,null,null,null,null,null,null,null,null,null,null,null,null,null,null,null,null,null,null,null,null,null,null,null,null,null,null,null,null,null,null,null,null,null,null,false,null,null,null,null,null,null,null,null,null,null,null,false]
[null,null,"9_世帯の状況　保護者が身体障害者手帳所持１・２級、愛護手帳所持、精神障害者保健手帳所持１・２級の一つに該当する場合",null,null,null,null,null,null,null,null,null,null,null,null,null,null,null,null,null,null,null,null,null,null,null,null,null,null,null,null,null,null,null,null,null,null,null,null,null,false,null,null,null,null,null,null,null,null,null,null,null,false]
[null,null,"10_世帯の状況　保護者が身体障害者手帳所持３級以下又は精神障害者保健手帳所持３級で保育に著しく負担がかかる場合",null,null,null,null,null,null,null,null,null,null,null,null,null,null,null,null,null,null,null,null,null,null,null,null,null,null,null,null,null,null,null,null,null,null,null,null,null,false,null,null,null,null,null,null,null,null,null,null,null,false]
[null,null,"11_世帯の状況　保護者が身体障害者手帳所持１・２級、愛護手帳所持、精神障害者保健手帳所持１・２級の一つに該当する場合",null,null,null,null,null,null,null,null,null,null,null,null,null,null,null,null,null,null,null,null,null,null,null,null,null,null,null,null,null,null,null,null,null,null,null,null,null,false,null,null,null,null,null,null,null,null,null,null,null,false]
[null,null,"12_世帯の状況　保護者が身体障害者手帳所持３級以下又は精神障害者保健手帳所持3級で保育に著しく負担がかかる場合",null,null,null,null,null,null,null,null,null,null,null,null,null,null,null,null,null,null,null,null,null,null,null,null,null,null,null,null,null,null,null,null,null,null,null,null,null,false,null,null,null,null,null,null,null,null,null,null,null,false]
[null,null,"13_世帯の状況　同居の家族内に身体障害者手帳３級以上、愛護手帳、精神障害者保健手帳を持っている者がいて、保護者が日常的に介護している場合",null,null,null,null,null,null,null,null,null,null,null,null,null,null,null,null,null,null,null,null,null,null,null,null,null,null,null,null,null,null,null,null,null,null,null,null,null,false,null,null,null,null,null,null,null,null,null,null,null,false]
[null,null,"14_世帯の状況　別居の家族内に身体障害者手帳３級以上、愛護手帳、精神障害者保健手帳を持っている者がいて、保護者が日常的に介護している場合",null,null,null,null,null,null,null,null,null,null,null,null,null,null,null,null,null,null,null,null,null,null,null,null,null,null,null,null,null,null,null,null,null,null,null,null,null,false,null,null,null,null,null,null,null,null,null,null,null,false]
[null,null,"15_世帯の状況　保護者が継続的な入院、通院を必要としているきょうだい児の介護を行っている",null,null,null,null,null,null,null,null,null,null,null,null,null,null,null,null,null,null,null,null,null,null,null,null,null,null,null,null,null,null,null,null,null,null,null,null,null,false,null,null,null,null,null,null,null,null,null,null,null,false]
[null,null,"16_世帯の状況　保護者が通信制大学、通信教育学生である",null,null,null,null,null,null,null,null,null,null,null,null,null,null,null,null,null,null,null,null,null,null,null,null,null,null,null,null,null,null,null,null,null,null,null,null,null,false,null,null,null,null,null,null,null,null,null,null,null,false]
[null,null,"17_世帯の状況　生活保護世帯",null,null,null,null,null,null,null,null,null,null,null,null,null,null,null,null,null,null,null,null,null,null,null,null,null,null,null,null,null,null,null,null,null,null,null,null,null,false,null,null,null,null,null,null,null,null,null,null,null,false]
[null,null,"9-2_世帯の状況　保護者が身体障害者手帳所持１・２級、愛護手帳所持、精神障害者保健手帳所持１・２級の一つに該当する場合",null,null,null,null,null,null,null,null,null,null,null,null,null,null,null,null,null,null,null,null,null,null,null,null,null,null,null,null,null,null,null,null,null,null,null,null,null,false,null,null,null,null,null,null,null,null,null,null,null,false]
[null,null,"10-2_世帯の状況　保護者が身体障害者手帳所持３級以下又は精神障害者保健手帳所持３級で保育に著しく負担がかかる場合",null,null,null,null,null,null,null,null,null,null,null,null,null,null,null,null,null,null,null,null,null,null,null,null,null,null,null,null,null,null,null,null,null,null,null,null,null,false,null,null,null,null,null,null,null,null,null,null,null,false]
[null,null,"11-2_世帯の状況　保護者が身体障害者手帳所持１・２級、愛護手帳所持、精神障害者保健手帳所持１・２級の一つに該当する場合",null,null,null,null,null,null,null,null,null,null,null,null,null,null,null,null,null,null,null,null,null,null,null,null,null,null,null,null,null,null,null,null,null,null,null,null,null,false,null,null,null,null,null,null,null,null,null,null,null,false]
[null,null,"12-2_世帯の状況　保護者が身体障害者手帳所持３級以下又は精神障害者保健手帳所持3級で保育に著しく負担がかかる場合",null,null,null,null,null,null,null,null,null,null,null,null,null,null,null,null,null,null,null,null,null,null,null,null,null,null,null,null,null,null,null,null,null,null,null,null,null,false,null,null,null,null,null,null,null,null,null,null,null,false]
[null,null,"19_就労の状況　単身赴任",null,null,null,null,null,null,null,null,null,null,null,null,null,null,null,null,null,null,null,null,null,null,null,null,null,null,null,null,null,null,null,null,null,null,null,null,null,false,null,null,null,null,null,null,null,null,null,null,null,false]
[null,null,"20_就労の状況　毎月２回以上の夜勤を伴う勤務がある",null,null,null,null,null,null,null,null,null,null,null,null,null,null,null,null,null,null,null,null,null,null,null,null,null,null,null,null,null,null,null,null,null,null,null,null,null,false,null,null,null,null,null,null,null,null,null,null,null,false]
[null,null,"20-2_就労の状況　毎月２回以上の夜勤を伴う勤務がある ",null,null,null,null,null,null,null,null,null,null,null,null,null,null,null,null,null,null,null,null,null,null,null,null,null,null,null,null,null,null,null,null,null,null,null,null,null,false,null,null,null,null,null,null,null,null,null,null,null,false]
[null,null,"21_就労の状況　継続して３カ月以上就労をしている場合",null,null,null,null,null,null,null,null,null,null,null,null,null,null,null,null,null,null,null,null,null,null,null,null,null,null,null,null,null,null,null,null,null,null,null,null,null,false,null,null,null,null,null,null,null,null,null,null,null,false]
[null,null,"22_就労の状況　居宅外自営だが、職場が自宅と併設している（居宅外自営協力者を除く）",null,null,null,null,null,null,null,null,null,null,null,null,null,null,null,null,null,null,null,null,null,null,null,null,null,null,null,null,null,null,null,null,null,null,null,null,null,false,null,null,null,null,null,null,null,null,null,null,null,false]
[null,null,"23_就労の状況　勤務実績が１カ月未満である",null,null,null,null,null,null,null,null,null,null,null,null,null,null,null,null,null,null,null,null,null,null,null,null,null,null,null,null,null,null,null,null,null,null,null,null,null,false,null,null,null,null,null,null,null,null,null,null,null,false]
[null,null,"24_ひとり親世帯等　ひとり親世帯等で６５歳未満の同居親族がいない場合",null,null,null,null,null,null,null,null,null,null,null,null,null,null,null,null,null,null,null,null,null,null,null,null,null,null,null,null,null,null,null,null,null,null,null,null,null,false,null,null,null,null,null,null,null,null,null,null,null,false]
[null,null,"25_ひとり親世帯等　ひとり親世帯等で６５歳未満の同居親族がいる場合",null,null,null,null,null,null,null,null,null,null,null,null,null,null,null,null,null,null,null,null,null,null,null,null,null,null,null,null,null,null,null,null,null,null,null,null,null,false,null,null,null,null,null,null,null,null,null,null,null,false]
[null,null,"28_きょうだいの状況　多胎児の加点",null,null,null,null,null,null,null,null,null,null,null,null,null,null,null,null,null,null,null,null,null,null,null,null,null,null,null,null,null,null,null,null,null,null,null,null,null,false,null,null,null,null,null,null,null,null,null,null,null,false]
[null,null,"29_きょうだいの状況　申込児以外に利用申込しない未就学児がいる",null,null,null,null,null,null,null,null,null,null,null,null,null,null,null,null,null,null,null,null,null,null,null,null,null,null,null,null,null,null,null,null,null,null,null,null,null,false,null,null,null,null,null,null,null,null,null,null,null,false]

{"sheet":"setting","index":2,"n_rows":12,"n_cols":2,"rows_kept":12,"cut":false,"hidden":true,"merged":[]}
["電子申請CSVフォーマット"]
["必須入力","入力形式"]
["必須入力","チェックボックス"]
["任意","コンボ"]
["住登外必須","コンボ指数"]
[null,"日付"]
[null,"数値"]
[null,"半角カナ"]
[null,"全角"]
[null,"時刻"]
[null,"Excel関数"]
[null,"チェックボックス指数"]

{"sheet":"ZBパラメータ","index":3,"n_rows":0,"n_cols":0,"rows_kept":0,"cut":false,"hidden":true,"merged":[]}

{"sheet":"指数","index":4,"n_rows":0,"n_cols":0,"rows_kept":0,"cut":false,"hidden":true,"merged":[]}

{"sheet":"施設情報","index":5,"n_rows":0,"n_cols":0,"rows_kept":0,"cut":false,"hidden":true,"merged":[]}

{"sheet":"@変更履歴","index":6,"n_rows":37,"n_cols":6,"rows_kept":37,"cut":false,"hidden":true,"merged":[[0,1,0,3]]}
["No","バージョン",null,null,"対象シート","変更履歴"]
[1,1,0,0,"―","初版"]
[2,1,0,1,"申請データ","認定期間_自がエラーとなった際に色が変更とならない不具合の修正"]
[null,null,null,null,"申請データ","登録押下の際の速度改善"]
[null,null,null,null,"申請データ","選考基準の「ランク」情報を表示するように対応"]
[null,null,null,null,"申請データ","身元確認のチェックを必須から任意へ変更"]
[null,null,null,null,"電子申請CSVフォーマット","フリーワード箇所の文字数制限を基本20文字へ変更"]
[null,null,null,null,"登録データ一覧シート","CSV出力時にフリーワード項目に\",\"が存在した場合に出力位置がずれてしまう不具合の解消"]
[3,1,0,2,"申請データ","施設コード誤りエラーの色変更不具合対応"]
[null,null,null,null,"申請データ","入力項目「優先枠」「待機と入所になった場合」「別施設入所になった場合」の追加"]
[null,null,null,null,"申請データ","「名古屋市記載欄」の判定チェック変更。\n１．項目入力がない場合は「警告」として出力し、支給認定の作成を行わない。\n２．項目「要件対象者」「保育の必要な事由」「認定区分」「認定期間_自」「認定期間_至」の　１つでも入力があれば入力不足としてエラーとする。"]
[null,null,null,null,"申請データ","不在の場合のチェックボックス「その他」選択時の判定を修正"]
[null,null,null,null,"申請データ","希望施設にて第2希望施設から入力されていた場合のエラー判定を修正"]
[null,null,null,null,"申請データ","各期間入力項目の期間逆転、片方のみ入力されているケースの判定を修正"]
[null,null,null,null,"申請データ","エラー時に黄色にならない部分の修正"]
[null,null,null,null,"電子申請CSVフォーマット","利用希望施設・事業所のいずれも利用できない場合、社会福祉事務所において他の施設・事業所の利用のための調整を行うことを希望するか。 のエラー時の色変更不具合対応"]
[null,null,null,null,"電子申請CSVフォーマット","印刷における個人番号項目の非表示方法の変更"]
[4,1,0,3,"申請データ","エラー時に黄色にならない部分の再修正"]
[null,null,null,null,"登録データ一覧シート","電子データ取込時の「日」「時間」「分」の除外対応"]
[null,null,null,null,"登録データ一覧シート","電子データ取込時の区情報変換方法の変更"]
[null,null,null,null,"登録データ一覧シート","コンボ値の見直し"]
[5,1,0,4,"申請データ","児童年齢を児童生年月日より変換する機能を追加。（申請データへ展開時に判定）\n※申請データB2列にある年度より年齢を判定する"]
[null,null,null,null,"登録データ一覧シート","転園申込の場合のチェックボックス変換不具合の修正"]
[null,null,null,null,"登録データ一覧シート","西区用フォーマット変換機能の追加\n※シート「申請データ」B2列にある年度が2022の場合かつ「登録データ一覧シート」初期所管区コードが\"23104\"の場合に西区用フォーマット変換にて電子申請データを取り込みする。"]
[6,1,0,5,"登録データ一覧シート","項目「転園利用申込み選択時_区分判定」　の　チェックボックス変換名称の修正"]
[7,1,0,6,"登録データ一覧シート","分割取込ファイル時に前ゼロが取れる不具合を修正"]
[null,null,null,null,"登録データ一覧シート","項目「申込み区分」の取込不具合対応"]
[null,null,null,null,"登録データ一覧シート","項目「きょうだい利用の希望詳細」の取込不具合対応"]
[null,null,null,null,"登録データ一覧シート","分割データ取込時の児童指数、調整指数の値不正不具合の修正"]
[8,1,0,7,"登録データ一覧シート","セル内改行データが存在するCSVの取込不具合対応"]
[null,null,null,null,"登録データ一覧シート","項目「祖父母の状況」の取込不具合対応"]
[null,null,null,null,"申請データ","時刻項目の転送方法の変更"]
[]
[9,2,0,0,"登録データ一覧シート","最新化"]
[null,null,null,null,"申請データ","最新化"]
[null,null,null,null,"申請CSV→ツール","最新化"]
[null,null,null,null,"電子申請CSVフォーマット","最新化"]

{"sheet":"電子申請CSVフォーマット","index":7,"n_rows":368,"n_cols":29,"rows_kept":368,"cut":false,"hidden":true,"merged":[[2,7,2,12],[283,1,296,1],[2,18,2,19],[2,20,2,23],[4,1,6,1],[281,1,282,1],[143,1,249,1],[278,1,280,1],[7,1,28,1],[29,1,40,1],[41,1,95,1],[96,1,142,1],[250,1,277,1],[2,14,2,16],[318,1,343,1],[344,1,352,1],[297,1,312,1],[313,1,317,1],[2,1,2,6]]}
["電子申請CSVフォーマット"]
[4]
[null,"申込書",null,null,null,null,null,"入力シート\n登録データ一覧",null,null,null,null,null,"範囲指定","条件付きチェック",null,null,"カラム","中間テーブル",null,"実テーブル"]
["No","分類","列名","必須\n入力","型","最大\n文字数","入力規則","入力\n行","入力\n列","変換\n位置","入力\n形式","設定値","データ\n列位置","エラー位置","チェック\n行","チェック\n列","条件","別名","カラム名","型","登録対象テーブル\n（電子申請取込）","カラム名","型","最大\n文字数","備考"]
[{"$f":"ROW()-$A$2","v":1},"識別情報","データNo","任意","X",100,"-",3,11,"-","数値",0,2,null,null,null,null,null,null,null,"取込不要","-","-","-","CSVファイル作成時にVBAで設定します。"]
[{"$f":"ROW()-$A$2","v":2},null,"申請状態","任意","X",100,"-",4,11,"-","全角",8,3,null,null,null,null,null,null,null,"取込不要","-","-","-","CSVファイル作成時にVBAで設定します。"]
[{"$f":"ROW()-$A$2","v":3},null,"申請ID","任意","X",100,"-",3,17,"-","全角","-",4,null,null,null,null,null,null,null,"取込不要","-","-","-","CSVファイル作成時にVBAで設定します。",null,"20210928対応"]
[{"$f":"ROW()-$A$2","v":4},"申込者【教育・保育給付認定保護者（原則、世帯主）】","宛先区長","必須","X",2,"01：「千種区」\n02：「東区」\n03：「北区」\n04：「西区」\n05：「中村区」\n06：「中区」\n07：「昭和区」\n08：「瑞穂区」\n09：「熱田区」\n10：「中川区」\n11：「港区」\n12：「南区」\n13：「守山区」\n14：「緑区」\n15：「名東区」\n16：「天白区」\n",9,10,41,"コンボ","2:NAGVBAS001",5,null,null,null,null,null,null,null,"QPDB支給認定\nQPDC入所施設管理","区C","varchar",5,"-"]
[5,null,"日付","必須","X",8,"「XXXX/XX/XX」と入力",9,21,"-","日付","-",6,null,null,null,null,null,null,null,"取込対象外","-","-","-","-",null,"⇒新規追加"]
[6,null,"世帯台帳番号","任意","X",100,null,3,34,"-","数値","-",7,null,null,null,null,null,null,null,null,null,null,null,null,null,"20210928対応"]
[7,null,"ステータス","任意","N",100,"「未処理」等",4,33,"-","全角","-",8,null,null,null,null,null,null,null,null,null,null,null,null,null,"20210928対応"]
[8,null,"保護者漢字氏名","住登外必須","N",100,"姓と名の間は全角スペース",17,4,"-","全角","-",9,null,null,null,null,null,null,null,"QPDA世帯保護者認定","保護者1_宛名C","varchar",15,"宛名コード取得用"]
[9,null,"保護者カナ氏名","必須","X",100,"姓と名の間は半角スペース",16,7,"-","半角カナ","-",10,null,null,null,null,null,null,null,"QPDA世帯保護者認定","保護者1_宛名C","varchar",15,"宛名コード取得用　マッチングキー"]
[10,null,"保護者郵便番号","住登外必須","X",8,"「XXX-XXXX」と入力",19,5,"-","半角カナ","-",11,"E19",null,null,null,"保護者郵便番号",null,null,"住基情報に保持しているため対象外","-","-","-","-"]
[11,null,"保護者現住所","住登外必須","N",100,"-",20,4,"-","全角","-",12,null,null,null,null,null,null,null,"住基情報に保持しているため対象外","-","-","-","-"]
[12,null,"転居先住所（予定）_転居予定日","任意","X",8,"-",20,26,"-","日付","-",13,null,null,null,null,null,null,null,"取込対象外","-","-","-","-",null,"⇒新規追加"]
[13,null,"転居先住所（予定）_郵便番号","任意","X",8,"「XXX-XXXX」と入力",19,26,"-","半角カナ","-",14,"Z19",null,null,null,"転居先住所郵便番号",null,null,"取込対象外","-","-","-","-",null,"⇒新規追加"]
[14,null,"転居先住所（予定）_住所","任意","N",100,"-",19,32,"-","全角","-",15,null,null,null,null,null,null,null,"取込対象外","-","-","-","-",null,"⇒新規追加"]
[15,null,"名古屋市からの送付物発送先","任意","N","不明","01：「現住所」\n02：「転居（予定）先住所」",22,41,53,"チェックボックス","2:NAGVBAC001",16,"Y21:AL21",null,null,null,"送付物発送先",null,null,"取込対象外","-","-","-","-",null,"⇒新規追加"]
[16,null,"過去2年以内の転入歴\n(転入元）_県・市名","任意","N",200,"「～県～市」と入力",21,7,"-","全角","-",17,null,null,null,null,null,null,null,"取込対象外","-","-","-","-",null,"20210928対応"]
[17,null,"過去2年以内の転入歴\n(転入日）","任意","X",8,"「（　）に名古屋市に転入」と入力\n（）の部分を日付として入力",21,15,"-","日付","-",18,null,null,null,null,null,null,null,"取込対象外","-","-","-","-"]
[18,null,"保護者連絡先1_子どもとの続柄_①チェックボックス","任意","N","-","01：「父」\n02：「父以外」",17,41,53,"チェックボックス","2:NAGVBAC002",19,"Y17:AB17",null,null,null,"保護者続柄",null,null,"取込対象外","-","-","-","-"]
[19,null,"保護者連絡先1_子どもとの続柄_①選択","任意","X",10,"01：「祖父」\n02：「祖母」\n…",17,29,43,"コンボ","2:NAGVBAS002",20,null,null,null,null,null,null,null,"取込対象外","-","-","-","-",null,"⇒新規追加"]
[20,null,"保護者連絡先1_子どもとの続柄","任意","X",10,null,17,46,"-","全角","-",21,null,null,null,null,null,null,null,"取込対象外","-","-","-","-"]
[21,null,"保護者連絡先1_電話番号","任意","X",20,"「XXXX-XXXX-XXXX」と入力",17,26,"-","半角カナ","-",22,null,null,null,null,"保護者1電話番号",null,null,"FAT連絡先","電話番号1","varchar",20,"続柄と世帯の状況にある続柄に紐づく世帯員の電話番号を追加する。"]
[22,null,"保護者連絡先1_子どもとの続柄_②チェックボックス","任意","N","-","01：「母」\n02：「母以外」",18,41,53,"チェックボックス","2:NAGVBAC003",23,"Y18:AB18",null,null,null,"保護者続柄",null,null,"取込対象外","-","-","-","-"]
[23,null,"保護者連絡先1_子どもとの続柄_②選択","任意","X",2,"01：「祖父」\n02：「祖母」\n…\n\n※コンボとして入力としたい\n",18,29,43,"コンボ","2:NAGVBAC003",24,null,null,null,null,null,null,null,"取込対象外","-","-","-","-",null,"⇒新規追加"]
[24,null,"保護者連絡先2_子どもとの続柄","任意","X",10,null,18,46,"-","全角","-",25,null,null,null,null,null,null,null,"取込対象外","-","-","-","-"]
[25,null,"保護者連絡先2_電話番号","任意","X",20,"「XXXX-XXXX-XXXX」と入力",18,26,"-","半角カナ","-",26,null,null,null,null,"保護者2電話番号",null,null,"FAT連絡先","電話番号2","varchar",20,"続柄と世帯の状況にある続柄に紐づく世帯員の電話番号を追加する。"]
[26,null,"申請児童漢字氏名","住登外必須","N",100,"姓と名の間は全角スペース",25,4,"-","全角","-",27,null,null,null,null,null,null,null,"住基情報に保持しているため対象外","-","-","-","宛名コード取得用"]
[27,null,"申請児童カナ氏名","必須","X",100,"姓と名の間は半角スペース",24,7,"-","半角カナ","-",28,null,null,null,null,null,null,null,"住基情報に保持しているため対象外","-","-","-","宛名コード取得用　マッチングキー"]
[28,null,"申請児童性別","任意","X",2,"01：「男」\n02：「女」",25,41,53,"チェックボックス","2:NAGVBAC004",29,"P25:S25",null,null,null,null,null,null,"住基情報に保持しているため対象外","-","-","-","宛名コード取得用",null,"⇒新規追加"]
[29,null,"申請児童生年月日","必須","X",8,"日付として入力",26,7,"-","日付","-",30,null,null,null,null,"児童生年月日",null,null,"住基情報に保持しているため対象外","-","-","-","宛名コード取得用　マッチングキー"]
[30,null,"申請児童年齢","任意","X",10,"-",26,16,"-","数値","-",31,null,null,null,null,"児童年齢",null,null,"住基情報に保持しているため対象外","-","-","-","-"]
[31,null,"申請児童個人番号","任意","X",12,"-",27,8,43,"数値",4,32,null,null,null,null,null,null,null,"取込対象外","-","-","-","-",null,"⇒新規追加"]
[32,null,"申請児童アレルギー選択","任意","X",2,"アレルギーを選択",24,41,53,"チェックボックス","2:NAGVBAC005",33,"W24:AL24",null,null,null,"児童_アレルギー",null,null,"取込対象外","-","-","-","取込用判定",null,"⇒ZBパラメータ要確認"]
[33,null,"申請児童アレルギー選択_あり_内容","任意","X",50,"-",24,29,"-","全角","-",34,null,null,null,null,null,null,null,"取込対象外","-","-","-","-",null,"⇒申請データシートにて、4つまで複数入力可にしましたが、レイアウトはどうしますか。\n（チェック項目化する場合、サイズ的にレイアウトを変更する必要があります）"]
[34,null,"申請児童アレルギー選択_特記事項","任意","N",100,"-",25,26,"-","全角","-",35,null,null,null,null,null,null,null,"QPDA世帯員詳細","アレルギー_備考","nvarchar","max","アレルギー食事制限等_02：「あり」選択時",null,"⇒新規追加"]
[35,null,"申請児童アレルギー選択_希望施設・事業所への相談","任意","X",2,"01：「済」\n02：「未」",26,41,53,"チェックボックス","2:NAGVBAC006",36,"AE26:AL26",null,null,null,null,null,null,"取込対象外","-","-","-","-",null,"⇒新規追加"]
[36,null,"申請児童アレルギー選択_障害","任意","X",2,"01：「なし」\n02：「あり」",27,41,53,"チェックボックス","2:NAGVBAC007",37,"W27:AB27",null,null,null,"児童_障害",null,null,"取込対象外","-","-","-","取込用判定",null,"⇒新規追加"]
[37,null,"申請児童アレルギー選択_障害_あり内容","任意","N",100,"-",27,29,"-","全角","-",38,null,null,null,null,null,null,null,"取込対象外","-","-","-","-",null,"⇒新規追加"]
[38,"世帯の状況（世帯構成員）","世帯構成員1カナ氏名","必須","X",100,"姓と名の間は半角スペース",29,6,"-","半角カナ","-",39,null,null,null,null,"世帯員",null,null,"住基情報に保持しているため対象外","-","-","-","宛名コード取得用　マッチングキー"]
[39,null,"世帯構成員1漢字氏名","住登外必須","N",100,"姓と名の間は全角スペース",30,4,"-","全角","-",40,null,null,null,null,"世帯員",null,null,"住基情報に保持しているため対象外","-","-","-","宛名コード取得用"]
[40,null,"世帯構成員1続柄","必須","N",2,"01：「父」\n02：「母」\n03：「祖父」\n04：「祖母」\n05：「子」…",31,11,41,"コンボ","2:NAGVBAS004",41,null,null,null,null,"世帯員",null,null,"QZDA福祉世帯","受給者との関係C","varchar",10,"-"]
[41,null,"世帯構成員1続柄_入力","任意","N",50,null,31,46,"-","全角","-",42,null,null,null,null,null,null,null,null,null,null,null,null,null,"20210928対応",null,"追加"]
[42,null,"世帯構成員1生年月日_元号","必須","X",2,"01：「昭」\n02：「平」\n03：「令」",29,41,53,"チェックボックス","2:NAGVBAC008",43,"O29:T31",null,null,null,"世帯員1_元号",null,null,"住基情報に保持しているため対象外","-","-","-","宛名コード取得用　マッチングキー",null,"⇒新規追加"]
[43,null,"世帯構成員1生年月日","必須","X",8,"-",30,15,41,"数値",6,44,null,null,null,null,"世帯員",null,null,"住基情報に保持しているため対象外","-","-","-","宛名コード取得用　マッチングキー",null,"⇒新規追加"]
[44,null,"世帯構成員1健康状態等","任意","N",20,null,29,21,"-","全角","-",45,null,null,null,null,null,null,null,"QPDA世帯員詳細","健康状態C","varchar",10,"良好、虚弱、病気、障がい　　など。コンボ追加可能"]
[45,null,"世帯構成員1備考（現在の状況）_勤務先/通学（園）先","任意","N",100,"-",29,24,"-","全角","-",46,null,null,null,null,null,null,null,"QPDA世帯員就労","勤務先_名称","nvarchar",100,"-"]
[46,null,"世帯構成員1個人番号","任意","X",12,"-",31,27,42,"数値",5,47,null,null,null,null,null,null,null,"取込対象外","-","-","-","-",null,"⇒新規追加"]
[47,null,"世帯構成員2カナ氏名","任意","X",100,"姓と名の間は半角スペース",32,6,"-","半角カナ","-",48,null,null,null,null,null,null,null,"取込不要","-","-","-","宛名コード取得用　マッチングキー\n※複合チェックをすること。（対象世帯員にひとつでもデータがあれば必須チェック、それ以外の場合は任意）"]
[48,null,"世帯構成員2漢字氏名","条件付き必須","N",100,"姓と名の間は全角スペース",33,4,"-","全角","-",49,null,32,6,null,null,null,null,"住基情報に保持しているため対象外","-","-","-","宛名コード取得用\n※複合チェックをすること。（対象世帯員にひとつでもデータがあれば必須チェック、それ以外の場合は任意）"]
[49,null,"世帯構成員2続柄","条件付き必須","N",2,"01：「父」\n02：「母」\n03：「祖父」\n04：「祖母」\n05：「子」…",34,11,41,"コンボ","2:NAGVBAS004",50,null,32,6,null,null,null,null,"QZDA福祉世帯","受給者との関係C","varchar",10,"※複合チェックをすること。（対象世帯員にひとつでもデータがあれば必須チェック、それ以外の場合は任意）"]
[50,null,"世帯構成員2続柄_入力","任意","N",50,null,34,46,"-","全角","-",51,null,null,null,null,null,null,null,null,null,null,null,null,null,"20210928対応",null,"追加"]
[51,null,"世帯構成員2生年月日_元号","条件付き必須","X",2,"01：「昭」\n02：「平」\n03：「令」",32,41,53,"チェックボックス","2:NAGVBAC008",52,"O32:T34",32,6,null,"世帯員2_元号",null,null,"住基情報に保持しているため対象外","-","-","-","宛名コード取得用　マッチングキー",null,"⇒新規追加"]
[52,null,"世帯構成員2生年月日","条件付き必須","X",8,"-",33,15,41,"数値",6,53,"O32:T34",32,6,null,null,null,null,"住基情報に保持しているため対象外","-","-","-","宛名コード取得用　マッチングキー",null,"⇒新規追加"]
[53,null,"世帯構成員2健康状態等","任意","N",20,null,32,21,"-","全角","-",54,null,null,null,null,null,null,null,"QPDA世帯員詳細","健康状態C","varchar",10,"良好、虚弱、病気、障がい　　など。コンボ追加可能"]
[54,null,"世帯構成員2備考（現在の状況）_勤務先/通学（園）先","任意","N",100,"-",32,24,"-","全角","-",55,null,null,null,null,null,null,null,"QPDA世帯員就労","勤務先_名称","nvarchar",100,"-"]
[55,null,"世帯構成員2個人番号","任意","X",12,"-",34,27,42,"数値",5,56,null,null,null,null,null,null,null,"取込対象外","-","-","-","-",null,"⇒新規追加"]
[56,null,"世帯構成員3カナ氏名","任意","X",100,"姓と名の間は半角スペース",35,6,"-","半角カナ","-",57,null,null,null,null,null,null,null,"取込不要","-","-","-","宛名コード取得用　マッチングキー\n※複合チェックをすること。（対象世帯員にひとつでもデータがあれば必須チェック、それ以外の場合は任意）"]
[57,null,"世帯構成員3漢字氏名","条件付き必須","N",100,"姓と名の間は全角スペース",36,4,"-","全角","-",58,null,35,6,null,null,null,null,"住基情報に保持しているため対象外","-","-","-","宛名コード取得用\n※複合チェックをすること。（対象世帯員にひとつでもデータがあれば必須チェック、それ以外の場合は任意）"]
[58,null,"世帯構成員3続柄","条件付き必須","N",2,"01：「父」\n02：「母」\n03：「祖父」\n04：「祖母」\n05：「子」…",37,11,41,"コンボ","2:NAGVBAS004",59,null,35,6,null,null,null,null,"QZDA福祉世帯","受給者との関係C","varchar",10,"※複合チェックをすること。（対象世帯員にひとつでもデータがあれば必須チェック、それ以外の場合は任意）"]
[59,null,"世帯構成員3続柄_入力","任意","N",50,null,37,46,"-","全角","-",60,null,null,null,null,null,null,null,null,null,null,null,null,null,"20210928対応"]
[60,null,"世帯構成員3生年月日_元号","条件付き必須","X",2,"01：「昭」\n02：「平」\n03：「令」",35,41,53,"チェックボックス","2:NAGVBAC008",61,"O35:T37",35,6,null,"世帯員3_元号",null,null,"住基情報に保持しているため対象外","-","-","-","宛名コード取得用　マッチングキー",null,"⇒新規追加"]
[61,null,"世帯構成員3生年月日","条件付き必須","X",8,"-",36,15,41,"数値",6,62,"O35:T37",35,6,null,null,null,null,"住基情報に保持しているため対象外","-","-","-","宛名コード取得用　マッチングキー",null,"⇒新規追加"]
[62,null,"世帯構成員3健康状態等","任意","N",20,null,35,21,"-","全角","-",63,null,null,null,null,null,null,null,"QPDA世帯員詳細","健康状態C","varchar",10,"良好、虚弱、病気、障がい　　など。コンボ追加可能"]
[63,null,"世帯構成員3備考（現在の状況）_勤務先/通学（園）先","任意","N",100,"-",35,24,"-","全角","-",64,null,null,null,null,null,null,null,"QPDA世帯員就労","勤務先_名称","nvarchar",100,"-"]
[64,null,"世帯構成員3個人番号","任意","X",12,"-",37,27,42,"数値",5,65,null,null,null,null,null,null,null,"取込対象外","-","-","-","-",null,"⇒新規追加"]
[65,null,"世帯構成員4カナ氏名","任意","X",100,"姓と名の間は半角スペース",38,6,"-","半角カナ","-",66,null,null,null,null,null,null,null,"取込不要","-","-","-","宛名コード取得用　マッチングキー\n※複合チェックをすること。（対象世帯員にひとつでもデータがあれば必須チェック、それ以外の場合は任意）"]
[66,null,"世帯構成員4漢字氏名","条件付き必須","N",100,"姓と名の間は全角スペース",39,4,"-","全角","-",67,null,38,6,null,null,null,null,"住基情報に保持しているため対象外","-","-","-","宛名コード取得用\n※複合チェックをすること。（対象世帯員にひとつでもデータがあれば必須チェック、それ以外の場合は任意）"]
[67,null,"世帯構成員4続柄","条件付き必須","N",2,"01：「父」\n02：「母」\n03：「祖父」\n04：「祖母」\n05：「子」…",40,11,41,"コンボ","2:NAGVBAS004",68,null,38,6,null,null,null,null,"QZDA福祉世帯","受給者との関係C","varchar",10,"※複合チェックをすること。（対象世帯員にひとつでもデータがあれば必須チェック、それ以外の場合は任意）"]
[68,null,"世帯構成員4続柄_入力","任意","N",50,null,40,46,"-","全角","-",69,null,38,6,null,null,null,null,null,null,null,null,null,null,"20210928対応"]
[69,null,"世帯構成員4生年月日_元号","条件付き必須","X",2,"01：「昭」\n02：「平」\n03：「令」",38,41,53,"チェックボックス","2:NAGVBAC008",70,"O38:T40",38,6,null,"世帯員4_元号",null,null,"住基情報に保持しているため対象外","-","-","-","宛名コード取得用　マッチングキー",null,"⇒新規追加"]
[70,null,"世帯構成員4生年月日","条件付き必須","X",8,"-",39,15,41,"数値",6,71,"O38:T40",38,6,null,null,null,null,"住基情報に保持しているため対象外","-","-","-","宛名コード取得用　マッチングキー",null,"⇒新規追加"]
[71,null,"世帯構成員4健康状態等","任意","N",20,null,38,21,"-","全角","-",72,null,null,null,null,null,null,null,"QPDA世帯員詳細","健康状態C","varchar",10,"良好、虚弱、病気、障がい　　など。コンボ追加可能"]
[{"$f":"ROW()-$A$2","v":72},null,"世帯構成員4備考（現在の状況）_勤務先/通学（園）先","任意","N",100,"-",38,24,"-","全角","-",73,null,null,null,null,null,null,null,"QPDA世帯員就労","勤務先_名称","nvarchar",100,"-"]
[73,null,"世帯構成員4個人番号","任意","X",12,"-",40,27,42,"数値",5,74,null,null,null,null,null,null,null,"取込対象外","-","-","-","-",null,"⇒新規追加"]
[74,null,"世帯構成員5カナ氏名","任意","X",100,"姓と名の間は半角スペース",41,6,"-","半角カナ","-",75,null,null,null,null,null,null,null,"取込不要","-","-","-","宛名コード取得用　マッチングキー\n※複合チェックをすること。（対象世帯員にひとつでもデータがあれば必須チェック、それ以外の場合は任意）"]
[75,null,"世帯構成員5漢字氏名","条件付き必須","N",100,"姓と名の間は全角スペース",42,4,"-","全角","-",76,null,41,6,null,null,null,null,"住基情報に保持しているため対象外","-","-","-","宛名コード取得用\n※複合チェックをすること。（対象世帯員にひとつでもデータがあれば必須チェック、それ以外の場合は任意）"]
[76,null,"世帯構成員5続柄","条件付き必須","N",2,"01：「父」\n02：「母」\n03：「祖父」\n04：「祖母」\n05：「子」…",43,11,41,"コンボ","2:NAGVBAS004",77,null,41,6,null,null,null,null,"QZDA福祉世帯","受給者との関係C","varchar",10,"※複合チェックをすること。（対象世帯員にひとつでもデータがあれば必須チェック、それ以外の場合は任意）"]
[{"$f":"ROW()-$A$2","v":77},null,"世帯構成員5続柄_入力","任意","N",50,null,43,46,"-","全角","-",78,null,null,null,null,null,null,null,null,null,null,null,null,null,"20210928対応"]
[78,null,"世帯構成員5生年月日_元号","条件付き必須","X",2,"01：「昭」\n02：「平」\n03：「令」",41,41,53,"チェックボックス","2:NAGVBAC008",79,"O41:T43",41,6,null,"世帯員5_元号",null,null,"住基情報に保持しているため対象外","-","-","-","宛名コード取得用　マッチングキー",null,"⇒新規追加"]
[79,null,"世帯構成員5生年月日","条件付き必須","X",8,"-",42,15,41,"数値",6,80,"O41:T43",41,6,null,null,null,null,"住基情報に保持しているため対象外","-","-","-","宛名コード取得用　マッチングキー",null,"⇒新規追加"]
[80,null,"世帯構成員5健康状態等","任意","N",20,null,41,21,"-","全角","-",81,null,null,null,null,null,null,null,"QPDA世帯員詳細","健康状態C","varchar",10,"良好、虚弱、病気、障がい　　など。コンボ追加可能"]
[81,null,"世帯構成員5備考（現在の状況）_勤務先/通学（園）先","任意","N",100,"-",41,24,"-","全角","-",82,null,null,null,null,null,null,null,"QPDA世帯員就労","勤務先_名称","nvarchar",100,"-"]
[82,null,"世帯構成員5個人番号","任意","X",12,"-",43,27,42,"数値",5,83,null,null,null,null,null,null,null,"取込対象外","-","-","-","-",null,"⇒新規追加"]
[83,null,"世帯構成員6カナ氏名","任意","X",100,"姓と名の間は半角スペース",44,6,"-","半角カナ","-",84,null,null,null,null,null,null,null,"取込不要","-","-","-","宛名コード取得用　マッチングキー\n※複合チェックをすること。（対象世帯員にひとつでもデータがあれば必須チェック、それ以外の場合は任意）"]
[84,null,"世帯構成員6漢字氏名","条件付き必須","N",100,"姓と名の間は全角スペース",45,4,"-","全角","-",85,null,44,6,null,null,null,null,"住基情報に保持しているため対象外","-","-","-","宛名コード取得用\n※複合チェックをすること。（対象世帯員にひとつでもデータがあれば必須チェック、それ以外の場合は任意）"]
[85,null,"世帯構成員6続柄","条件付き必須","N",2,"01：「父」\n02：「母」\n03：「祖父」\n04：「祖母」\n05：「子」…",46,11,41,"コンボ","2:NAGVBAS004",86,null,44,6,null,null,null,null,"QZDA福祉世帯","受給者との関係C","varchar",10,"※複合チェックをすること。（対象世帯員にひとつでもデータがあれば必須チェック、それ以外の場合は任意）"]
[{"$f":"ROW()-$A$2","v":86},null,"世帯構成員6続柄_入力","任意","N",50,null,46,46,"-","全角","-",87,null,44,6,null,null,null,null,null,null,null,null,null,null,"20210928対応"]
[87,null,"世帯構成員6生年月日_元号","条件付き必須","X",2,"01：「昭」\n02：「平」\n03：「令」",44,41,53,"チェックボックス","2:NAGVBAC008",88,"O44:T46",44,6,null,"世帯員6_元号",null,null,"住基情報に保持しているため対象外","-","-","-","宛名コード取得用　マッチングキー",null,"⇒新規追加"]
[88,null,"世帯構成員6生年月日","条件付き必須","X",8,"-",45,15,41,"数値",6,89,"O44:T46",44,6,null,null,null,null,"住基情報に保持しているため対象外","-","-","-","宛名コード取得用　マッチングキー",null,"⇒新規追加"]
[89,null,"世帯構成員6健康状態等","任意","N",20,null,44,21,"-","全角","-",90,null,null,null,null,null,null,null,"QPDA世帯員詳細","健康状態C","varchar",10,"良好、虚弱、病気、障がい　　など。コンボ追加可能"]
[90,null,"世帯構成員6備考（現在の状況）_勤務先/通学（園）先","任意","N",100,"-",44,24,"-","全角","-",91,null,null,null,null,null,null,null,"QPDA世帯員就労","勤務先_名称","nvarchar",100,"-"]
[91,null,"世帯構成員6個人番号","任意","X",12,"-",46,27,42,"数値",5,92,null,null,null,null,null,null,null,"取込対象外","-","-","-","-",null,"⇒新規追加"]
[92,null,"世帯構成員7以上あり","任意","N",2,"氏名7に値がある場合に\"あり\"と表記",4,19,"-","全角","-",93,null,null,null,null,null,null,null,null,null,null,null,null,null,"20210928対応"]
[93,"保育施設・事業所の利用申込み内容","申込み区分","必須","X",2,"01：「新規」\n02：「卒園」\n03：「転園」",48,41,53,"チェックボックス","2:NAGVBAC009",94,"D48:AL48",null,null,null,"申込み区分",null,null,"QPDC入所施設管理","申込区分C\n状態区分C","varchar\nvarchar","10\n10","-"]
[94,null,"転園利用申込み選択時_利用中の施設・事業所名","任意","N",100,"-",48,31,"-","全角","-",95,null,null,null,null,"現施設名",null,null,"取込対象外","-","-","-","-"]
[95,null,"転園利用申込み選択時_区分","任意","X",2,"01：「希望施設に利用決定したら現施設・事業所を退所します」\n02：「希望施設の利用調整結果に関わらず現施設・事業所を退所します」",50,41,53,"チェックボックス","2:NAGVBAC010",96,"D50:AL50",null,null,null,"現施設名判定",null,null,"QPDC入所施設管理","状態区分C","-","-","申込み区分_06：「転園利用申込み」選択時"]
[96,null,"第1希望_施設・事業所名称_区","任意","N",5,"01：「千種区」\n02：「東区」\n03：「北区」\n04：「西区」\n05：「中村区」\n06：「中区」\n07：「昭和区」\n08：「瑞穂区」\n09：「熱田区」\n10：「中川区」\n11：「港区」\n12：「南区」\n13：「守山区」\n14：「緑区」\n15：「名東区」\n16：「天白区」\n",51,7,41,"コンボ","2:NAGVBAS005",97,null,null,null,null,null,null,null,"QPDC入所希望施設","希望順位=1\n区C","varchar",5,"施設情報取得用"]
[97,null,"第1希望_施設・事業所名称","任意","N",40,"-",51,9,"-","全角","-",98,null,null,null,null,"施設名1",null,null,"QPDC入所希望施設","希望順位=1\n希望_施設C","varchar",20,"施設情報取得用"]
[98,null,"第1希望_見学の有無","任意","X",2,"01：「済」\n02：「未」",52,41,53,"チェックボックス","2:NAGVBAC011",99,"I52:O52",null,null,null,"見学の有無",null,null,"取込対象外","-","-","-","-"]
[99,null,"第1希望_見学の有無_未_予定日","任意","X",4,"「XX月XX日予定」と入力",52,16,"-","日付","-",100,null,null,null,null,null,null,null,"取込対象外","-","-","-","-"]
[100,null,"第2希望_施設・事業所名称_区","任意","N",5,"01：「千種区」\n02：「東区」\n03：「北区」\n04：「西区」\n05：「中村区」\n06：「中区」\n07：「昭和区」\n08：「瑞穂区」\n09：「熱田区」\n10：「中川区」\n11：「港区」\n12：「南区」\n13：「守山区」\n14：「緑区」\n15：「名東区」\n16：「天白区」\n",53,7,43,"コンボ","2:NAGVBAS005",101,null,null,null,null,null,null,null,"QPDC入所希望施設","希望順位=2\n区C","varchar",5,"施設情報取得用"]
[101,null,"第2希望_施設・事業所名称","任意","N",40,"-",53,9,"-","全角","-",102,null,null,null,null,"施設名2",null,null,"QPDC入所希望施設","希望順位=2\n希望_施設C","varchar",20,"施設情報取得用"]
[102,null,"第2希望_見学の有無","任意","X",2,"01：「済」\n02：「未」",53,41,53,"チェックボックス","2:NAGVBAC011",103,"I54:O54",null,null,null,"見学の有無",null,null,"取込対象外","-","-","-","-"]
[103,null,"第2希望_見学の有無_未_予定日","任意","X",4,"「XX月XX日予定」と入力",54,16,"-","日付","-",104,null,null,null,null,null,null,null,"取込対象外","-","-","-","-"]
[104,null,"第3希望_施設・事業所名称_区","任意","N",5,"01：「千種区」\n02：「東区」\n03：「北区」\n04：「西区」\n05：「中村区」\n06：「中区」\n07：「昭和区」\n08：「瑞穂区」\n09：「熱田区」\n10：「中川区」\n11：「港区」\n12：「南区」\n13：「守山区」\n14：「緑区」\n15：「名東区」\n16：「天白区」\n",55,7,43,"コンボ","2:NAGVBAS005",105,null,null,null,null,null,null,null,"QPDC入所希望施設","希望順位=3\n区C","varchar",5,"施設情報取得用"]
[105,null,"第3希望_施設・事業所名称","任意","N",40,"-",55,9,"-","全角","-",106,null,null,null,null,"施設名3",null,null,"QPDC入所希望施設","希望順位=3\n希望_施設C","varchar",20,"施設情報取得用"]
[106,null,"第3希望_見学の有無","任意","X",2,"01：「済」\n02：「未」",54,41,53,"チェックボックス","2:NAGVBAC011",107,"I56:O56",null,null,null,"見学の有無",null,null,"取込対象外","-","-","-","-"]
[107,null,"第3希望_見学の有無_未_予定日","任意","X",4,"「XX月XX日予定」と入力",56,16,"-","日付","-",108,null,null,null,null,null,null,null,"取込対象外","-","-","-","-"]
[108,null,"第4希望_施設・事業所名称_区","任意","N",5,"01：「千種区」\n02：「東区」\n03：「北区」\n04：「西区」\n05：「中村区」\n06：「中区」\n07：「昭和区」\n08：「瑞穂区」\n09：「熱田区」\n10：「中川区」\n11：「港区」\n12：「南区」\n13：「守山区」\n14：「緑区」\n15：「名東区」\n16：「天白区」\n",51,24,42,"コンボ","2:NAGVBAS005",109,null,null,null,null,null,null,null,"QPDC入所希望施設","希望順位=4\n区C","varchar",5,"施設情報取得用"]
[109,null,"第4希望_施設・事業所名称","任意","N",40,"-",51,26,"-","全角","-",110,null,null,null,null,"施設名4",null,null,"QPDC入所希望施設","希望順位=4\n希望_施設C","varchar",20,"施設情報取得用"]
[110,null,"第4希望_見学の有無","任意","X",2,"01：「済」\n02：「未」",55,41,53,"チェックボックス","2:NAGVBAC011",111,"Z52:AF52",null,null,null,"見学の有無",null,null,"取込対象外","-","-","-","-"]
[111,null,"第4希望_見学の有無_未_予定日","任意","X",4,"「XX月XX日予定」と入力",52,33,"-","日付","-",112,null,null,null,null,null,null,null,"取込対象外","-","-","-","-"]
[112,null,"第5希望_施設・事業所名称_区","任意","N",5,"01：「千種区」\n02：「東区」\n03：「北区」\n04：「西区」\n05：「中村区」\n06：「中区」\n07：「昭和区」\n08：「瑞穂区」\n09：「熱田区」\n10：「中川区」\n11：「港区」\n12：「南区」\n13：「守山区」\n14：「緑区」\n15：「名東区」\n16：「天白区」\n",53,24,44,"コンボ","2:NAGVBAS005",113,null,null,null,null,null,null,null,"QPDC入所希望施設","希望順位=5\n区C","varchar",5,"施設情報取得用"]
[113,null,"第5希望_施設・事業所名称","任意","N",40,"-",53,26,"-","全角","-",114,null,null,null,null,"施設名5",null,null,"QPDC入所希望施設","希望順位=5\n希望_施設C","varchar",20,"施設情報取得用"]
[114,null,"第5希望_見学の有無","任意","X",2,"01：「済」\n02：「未」",56,41,53,"チェックボックス","2:NAGVBAC011",115,"Z54:AF54",null,null,null,"見学の有無",null,null,"取込対象外","-","-","-","-"]
[115,null,"第5希望_見学の有無_未_予定日","任意","X",4,"「XX月XX日予定」と入力",54,33,"-","日付","-",116,null,null,null,null,null,null,null,"取込対象外","-","-","-","-"]
[116,null,"第6希望_施設・事業所名称_区","任意","N",5,"01：「千種区」\n02：「東区」\n03：「北区」\n04：「西区」\n05：「中村区」\n06：「中区」\n07：「昭和区」\n08：「瑞穂区」\n09：「熱田区」\n10：「中川区」\n11：「港区」\n12：「南区」\n13：「守山区」\n14：「緑区」\n15：「名東区」\n16：「天白区」\n",55,24,44,"コンボ","2:NAGVBAS005",117,null,null,null,null,null,null,null,"QPDC入所希望施設","希望順位=6\n区C","varchar",5,"施設情報取得用"]
[117,null,"第6希望_施設・事業所名称","任意","N",40,"-",55,26,"-","全角","-",118,null,null,null,null,"施設名6",null,null,"QPDC入所希望施設","希望順位=6\n希望_施設C","varchar",20,"施設情報取得用"]
[118,null,"第6希望_見学の有無","任意","X",2,"01：「済」\n02：「未」",57,41,53,"チェックボックス","2:NAGVBAC011",119,"Z56:AF56",null,null,null,"見学の有無",null,null,"取込対象外","-","-","-","-"]
[119,null,"第6希望_見学の有無_未_予定日","任意","X",4,"「XX月XX日予定」と入力",56,33,"-","日付","-",120,null,null,null,null,null,null,null,"取込対象外","-","-","-","-"]
[120,null,"利用（転園）希望理由","任意","N",100,"-",57,13,"-","全角","-",121,null,null,null,null,null,null,null,"取込対象外","-","-","-","-",null,"⇒新規追加"]
[121,null,"利用希望施設・事業所のいずれも利用できない場合、社会福祉事務所において他の施設・事業所の利用のための調整を行うことを希望するか。","任意","X",2,"01：「希望する」\n02：「希望施設・事業所以外は、希望しない」",60,41,53,"チェックボックス","2:NAGVBAC012",122,"C60:AL60",null,null,null,null,null,null,"取込対象外","-","-","-","-"]
[122,null,"利用希望時間_平日開始","任意","X",4,"「XX時XX分」と入力",61,7,"-","時刻","-",123,null,null,null,null,"時刻開始",null,null,"QPDB支給認定","希望曜日\n利用希望時間_開始","char\nchar","7\n4","複合判定として登録とするか。"]
[123,null,"利用希望時間_平日終了","任意","X",4,"「XX時XX分」と入力",61,14,"-","時刻","-",124,null,null,null,null,"時刻終了",null,null,"QPDB支給認定","希望曜日\n利用希望時間_開始","char\nchar","7\n4","複合判定として登録とするか。"]
[124,null,"利用希望時間_土曜日開始","任意","X",4,"「XX時XX分」と入力",62,7,"-","時刻","-",125,null,null,null,null,"時刻開始",null,null,"QPDB支給認定","希望曜日\n利用希望時間_開始","char\nchar","7\n4","複合判定として登録とするか。"]
[125,null,"利用希望時間_土曜日終了","任意","X",4,"「XX時XX分」と入力",62,14,"-","時刻","-",126,null,null,null,null,"時刻終了",null,null,"QPDB支給認定","希望曜日\n利用希望時間_開始","char\nchar","7\n4","複合判定として登録とするか。"]
[126,null,"利用希望時間_日・祝日開始","任意","X",4,"「XX時XX分」と入力",63,7,"-","時刻","-",127,null,null,null,null,"時刻開始",null,null,"QPDB支給認定","希望曜日\n利用希望時間_開始","char\nchar","7\n4","複合判定として登録とするか。"]
[127,null,"利用希望時間_日・祝日終了","任意","X",4,"「XX時XX分」と入力",63,14,"-","時刻","-",128,null,null,null,null,"時刻終了",null,null,"QPDB支給認定","希望曜日\n利用希望時間_開始","char\nchar","7\n4","複合判定として登録とするか。"]
[128,null,"送迎方法_送り","任意","X",2,"01：「父」\n02：「母」\n03：「その他」",61,41,53,"チェックボックス","2:NAGVBAC013",129,"Y61:AE61",null,null,null,"送迎方法",null,null,"取込対象外","-","-","-","-"]
[129,null,"送迎方法_送り_その他内容","任意","N",50,"-",61,32,"-","全角","-",130,null,null,null,null,null,null,null,"取込対象外","-","-","-","送迎方法_送り、03：「その他」選択時",null,"⇒新規追加"]
[130,null,"送迎方法_迎え","任意","X",2,"01：「父」\n02：「母」\n03：「その他」",62,41,53,"チェックボックス","2:NAGVBAC014",131,"Y62:AE62",null,null,null,"送迎方法",null,null,"取込対象外","-","-","-","-"]
[131,null,"送迎方法_迎え_その他内容","任意","N",50,"-",62,32,"-","全角","-",132,null,null,null,null,null,null,null,"取込対象外","-","-","-","送迎方法_迎え、03：「その他」選択時",null,"⇒新規追加"]
[132,null,"送迎方法_使用可能な手段","任意","X",2,"01：「徒歩」\n02：「自転車」\n03：「車」\n04：「その他」",63,41,53,"チェックボックス","2:NAGVBAC015",133,"Y63:AH63",null,null,null,"送迎方法_手段",null,null,"取込対象外","-","-","-","-"]
[133,null,"送迎方法_使用可能な手段_その他内容","任意","N",50,"-",63,35,"-","全角","-",134,null,null,null,null,null,null,null,"取込対象外","-","-","-","送迎方法_使用可能な手段、03：「その他」選択時",null,"⇒新規追加"]
[134,null,"利用希望期間選択_利用希望期間開始","任意","X",8,"「XXXX年XX月XX日から」と入力",64,7,"-","日付","-",135,null,null,null,null,"希望期間開始",null,null,"QPDB支給認定\nQPDC入所施設管理","利用希望期間_開始\n希望期間_開始","char\nchar","8\n8","利用希望期間選択_01：「利用希望期間入力」選択時"]
[135,null,"利用希望期間選択","任意","X",2,"01：「就学前まで」\n02：「その他」",64,41,53,"チェックボックス","2:NAGVBAC016",136,null,null,null,null,null,null,null,"QPDB支給認定\nQPDC入所施設管理","利用希望期間_開始\n利用希望期間_終了\n希望期間_開始\n希望期間_終了","char\nchar\nchar\nchar","8\n8\n8\n8","02：「就学前まで」選択時のみ取込",null,"⇒申請シートのどこに「その他」を追加しますか"]
[136,null,"利用希望期間選択_利用希望期間終了","任意","X",8,"「XXXX年XX月XX日まで」と入力",64,14,"-","日付","-",137,null,null,null,null,"希望期間終了",null,null,"QPDB支給認定\nQPDC入所施設管理","利用希望期間_終了\n希望期間_終了","char\nchar","8\n8","利用希望期間選択_01：「利用希望期間入力」選択時",null,"20210928対応"]
[137,null,"育児休業からの\n復職の意思","任意","X",2,"01：「直ちに復職を希望する」\n02：「希望する保育所等に入所できない場合は、育児休業の延長も許容できる」",67,41,53,"チェックボックス","2:NAGVBAC017",138,"D67:T67",null,null,null,null,null,null,"取込対象外","-","-","-","-"]
[138,null,"復職時期","任意","X",8,"-",66,34,"-","日付","-",139,null,null,null,null,null,null,null,"取込対象外","-","-","-","-",null,"⇒新規追加"]
[{"$f":"ROW()-$A$2","v":139},null,"希望する保育必要量","必須","X",2,"01：「保育標準時間（最大11時間まで）」\n02：「保育短時間　 （最大　8時間まで）」",68,41,53,"チェックボックス","2:NAGVBAC018",140,"D68:T68",null,null,null,null,null,null,"QPDB支給認定","保育必要量C","varchar",10,"-"]
[140,"父母等の状況_保育が必要な事由","利用希望理由_父_区分","任意","X",2,"01：「父」\n02：「状況」",70,41,53,"チェックボックス","2:NAGVBAC019",141,"F70:T70",null,null,null,"利用希望区分1チェック",null,null,"取込対象外","-","-","-","-",null,"⇒新規追加"]
[141,null,"利用希望理由_父の状況","任意","N","不明","01：「母」\n02：「その他」",70,10,46,"コンボ","2:NAGVBAS006",142,null,null,null,null,"利用希望区分1コンボ",null,null,"QPDB支給認定","保護者1_宛名C","varchar",15,"-"]
[142,null,"利用希望理由_父_保育の必要な事由","任意","X",2,"01：「就労」\n02：「産前産後」\n03：「疾病等」\n04：「親族介護」\n05：「災害復旧」\n06：「求職活動」\n07：「就学」\n08：「発達援助」\n09：「育児休業(利用開始希望日時点)」\n★Excelへの転送は各項目ずつ変換して合算転送。",72,41,53,"チェックボックス","2:NAGVBAC020",143,null,null,null,1,null,null,null,"QPDB保育必要理由","保育必要理由C","varchar",20,"-",null,"⇒複数選択可項目"]
[143,null,"利用希望理由_父_就労又は就学_一日の時間","任意","X",2,"-",74,5,"-","数値","-",144,null,null,null,null,null,null,null,"不明","-","-","-","-",null,"⇒新規追加"]
[144,null,"利用希望理由_父_就労又は就学_週の日数","任意","X",1,"-",74,8,"-","数値","-",145,null,null,null,null,null,null,null,"不明","-","-","-","-",null,"⇒新規追加"]
[145,null,"利用希望理由_父_就労又は就学_週の時間","任意","X",3,"-",74,11,"-","数値","-",146,null,null,null,null,null,null,null,"不明","-","-","-","-",null,"⇒新規追加"]
[146,null,"利用希望理由_父_就労又は就学_一ヶ月の日数","任意","X",2,"-",74,17,"-","数値","-",147,null,null,null,null,null,null,null,"不明","-","-","-","-",null,"⇒新規追加"]
[147,null,"利用希望理由_父_就労又は就学_平日開始時間","任意","X",4,"-",75,6,"-","時刻","-",148,null,null,null,null,"時刻開始",null,null,"不明","-","-","-","-",null,"⇒新規追加"]
[148,null,"利用希望理由_父_就労又は就学_平日終了時間","任意","X",4,"-",75,10,"-","時刻","-",149,null,null,null,null,"時刻終了",null,null,"不明","-","-","-","-",null,"⇒新規追加"]
[149,null,"利用希望理由_父_就労又は就学_平日休憩時間","任意","X",4,"-",75,17,"-","数値","-",150,null,null,null,null,"時刻休憩",null,null,"不明","-","-","-","-",null,"⇒新規追加"]
[150,null,"利用希望理由_父_就労又は就学_土曜開始時間","任意","X",4,"-",76,6,"-","時刻","-",151,null,null,null,null,"時刻開始",null,null,"不明","-","-","-","-",null,"⇒新規追加"]
[151,null,"利用希望理由_父_就労又は就学_土曜終了時間","任意","X",4,"-",76,10,"-","時刻","-",152,null,null,null,null,"時刻終了",null,null,"不明","-","-","-","-",null,"⇒新規追加"]
[152,null,"利用希望理由_父_就労又は就学_土曜休憩時間","任意","X",4,"-",76,17,"-","数値","-",153,null,null,null,null,"時刻休憩",null,null,"不明","-","-","-","-",null,"⇒新規追加"]
[153,null,"利用希望理由_父_就労又は就学_日曜開始時間","任意","X",4,"-",77,6,"-","時刻","-",154,null,null,null,null,"時刻開始",null,null,"不明","-","-","-","-",null,"⇒新規追加"]
[154,null,"利用希望理由_父_就労又は就学_日曜終了時間","任意","X",4,"-",77,10,"-","時刻","-",155,null,null,null,null,"時刻終了",null,null,"不明","-","-","-","-",null,"⇒新規追加"]
[155,null,"利用希望理由_父_就労又は就学_日曜休憩時間","任意","X",4,"-",77,17,"-","数値","-",156,null,null,null,null,"時刻休憩",null,null,"不明","-","-","-","-",null,"⇒新規追加"]
[156,null,"利用希望理由_父_就労又は就学_休日曜日","任意","N",50,"-",78,13,"-","全角","-",157,null,null,null,null,null,null,null,"不明","-","-","-","-",null,"⇒新規追加、複数選択時のレイアウトが不明"]
[157,null,"利用希望理由_父の状況詳細","任意","N",20,"-",70,14,"-","全角","-",158,null,null,null,null,"利用希望区分1詳細",null,null,"不明","-","-","-","-",null,"⇒新規追加"]
[158,null,"不使用①","任意","X",2,"★不使用項目",78,42,"-","半角カナ","-",159,null,null,null,null,"利用希望区分_祝日",null,null,"不明","-","-","-","-",null,"⇒新規追加"]
[159,null,"不使用②","任意","X",2,"★不使用項目",78,42,"-","半角カナ","-",160,null,null,null,null,null,null,null,"不明","-","-","-","-",null,"⇒新規追加"]
[160,null,"利用希望理由_父_就労又は就学_就労内容","任意","N",50,"-",79,7,"-","全角","-",161,null,null,null,null,null,null,null,"不明","-","-","-","-",null,"⇒新規追加"]
[161,null,"利用希望理由_父_就労又は就学_卒業日","任意","X",8,"-",80,14,"-","日付","-",162,null,null,null,null,null,null,null,"不明","-","-","-","-",null,"⇒新規追加"]
[162,null,"利用希望理由_父_就労又は就学_産休・育休の取得","任意","X",2,"01：「取得中」\n02：「取得予定」\n03：「なし」",81,41,53,"チェックボックス","2:NAGVBAC022",163,"J81:T81",null,null,null,"利用希望理由_産休育休",null,null,"取込対象外","-","-","-","-",null,"⇒新規追加"]
[163,null,"利用希望理由_父_就労又は就学_産休・育休取得期間開始","任意","X",8,"-",82,7,"-","日付","-",164,null,null,null,null,"父_産休期間開始",null,null,"QPDA世帯員詳細","産休育休取得状況_開始","char",8,"-",null,"⇒新規追加"]
[164,null,"利用希望理由_父_就労又は就学_産休・育休取得期間終了","任意","X",8,"-",82,15,"-","日付","-",165,null,null,null,null,"父_産休期間終了",null,null,"QPDA世帯員詳細"," 産休育休取得状況_終了","char",8,"-",null,"⇒新規追加"]
[165,null,"利用希望理由_父_就労又は就学_育児短縮勤務","任意","X",2,"01：「取得中」\n02：「取得予定」\n03：「なし」",83,41,53,"チェックボックス","2:NAGVBAC023",166,"I83:T83",null,null,null,"利用希望理由_育児短縮勤務",null,null,"取込対象外","-","-","-","-",null,"⇒新規追加"]
[166,null,"利用希望理由_父_就労又は就学_育児短縮勤務期間開始","任意","X",8,"-",84,7,"-","日付","-",167,null,null,null,null,"父_育児期間開始",null,null,"QPDA世帯員詳細","育児短時間_開始","char",8,"-",null,"⇒新規追加"]
[167,null,"利用希望理由_父_就労又は就学_育児短縮勤務期間終了","任意","X",8,"-",84,15,"-","日付","-",168,null,null,null,null,"父_育児期間終了",null,null,"QPDA世帯員詳細"," 育児短時間_終了","char",8,"-",null,"⇒新規追加"]
[168,null,"利用希望理由_父_就労又は就学_育児短縮勤務時間開始","任意","X",4,"-",85,10,"-","時刻","-",169,null,null,null,null,"時刻開始",null,null,"QPDA世帯員詳細","育児短時間","decimal","6,2","-",null,"⇒新規追加"]
[169,null,"利用希望理由_父_就労又は就学_育児短縮勤務時間終了","任意","X",4,"-",85,16,"-","時刻","-",170,null,null,null,null,"時刻終了",null,null,"QPDA世帯員詳細","育児短時間","decimal","6,2","-",null,"⇒新規追加"]
[170,null,"通勤(通学)方法_父","任意","X",2,"01：「徒歩」\n02：「自転車」\n03：「車」\n04：「その他」",86,41,53,"チェックボックス","2:NAGVBAC024",171,null,null,null,null,null,null,null,"取込対象外","-","-","-","-",null,"⇒新規追加"]
[171,null,"通勤(通学)方法_父_その他","任意","N",50,"-",86,18,"-","全角","-",172,null,null,null,null,null,null,null,"取込対象外","-","-","-","-",null,"⇒新規追加"]
[172,null,"通勤(通学)時間_父_行き","任意","X",50,"-",87,12,"-","数値","-",173,null,null,null,null,"通勤時間行き",null,null,"不明","-","-","-","-",null,"⇒新規追加"]
[173,null,"通勤(通学)時間_父_帰り","任意","X",50,"-",87,18,"-","数値","-",174,null,null,null,null,"通勤時間帰り",null,null,"不明","-","-","-","-",null,"⇒新規追加"]
[174,null,"父_疾病等_傷病名","任意","N",100,"-",88,7,"-","全角","-",175,null,null,null,null,"傷病名",null,null,"QPDA世帯員詳細","疫病名称","nvarchar",100,"-",null,"⇒新規追加"]
[175,null,"父_疾病等_治療期間開始","任意","X",8,"-",89,7,"-","日付","-",176,null,null,null,null,"父_治癒期間開始",null,null,"QPDA世帯員詳細","汎用項目15","nvarchar",100,"-",null,"⇒新規追加"]
[176,null,"父_疾病等_治療期間終了","任意","X",8,"-",89,14,"-","日付","-",177,null,null,null,null,"父_治癒期間終了",null,null,"QPDA世帯員詳細","汎用項目15","nvarchar",100,"-",null,"⇒新規追加"]
[177,null,"父_疾病等_手帳の種類","任意","X",20,"-",90,8,"-","全角","-",178,null,null,null,null,null,null,null,"QPDA世帯員詳細","障がい_種別C","varchar",10,"-"]
[178,null,"父_疾病等_総合等級","任意","X",20,"-",90,16,"-","全角","-",179,null,null,null,null,null,null,null,"QPDA世帯員詳細","障がい_総合等級","nvarchar",100,"-"]
[179,null,"父_被介護（看護）者氏名","任意","N",30,"-",91,11,"-","全角","-",180,null,null,null,null,null,null,null,"QPDA世帯員詳細","被介護者_氏名漢字","nvarchar",30,"-",null,"⇒新規追加"]
[180,null,"父_被介護（看護）者氏名_続柄","任意","X",20,"-",92,16,"-","全角","-",181,null,null,null,null,null,null,null,"QPDA世帯員詳細","-","-","-","-",null,"⇒新規追加"]
[181,null,"父_被介護（看護）者別居先","任意","N",50,"-",93,10,"-","全角","-",182,null,null,null,null,null,null,null,"不明","-","-","-","-",null,"⇒新規追加"]
[182,null,"父_被介護（看護）者住所_同居","任意","X",2,"-",93,41,53,"チェックボックス","2:NAGVBAC025",183,"S93:T93",null,null,null,"被介護_同居",null,null,"不明","-","-","-","-",null,"⇒単独選択"]
[183,null,"父_被介護（看護）_疾病等_傷病名","任意","N",100,"-",95,7,"-","全角","-",184,null,null,null,null,null,null,null,"QPDA世帯員詳細","疫病名称","nvarchar",100,"-",null,"⇒新規追加"]
[184,null,"父_父_被介護（看護）_疾病等_手帳の種類","任意","X",20,"-",96,8,"-","全角","-",185,null,null,null,null,null,null,null,"QPDA世帯員詳細","障がい_種別C","varchar",10,"-",null,"⇒新規追加"]
[185,null,"父_父_被介護（看護）_疾病等_総合等級","任意","X",20,"-",96,16,"-","全角","-",186,null,null,null,null,null,null,null,"QPDA世帯員詳細","障がい_総合等級","nvarchar",100,"-",null,"⇒新規追加"]
[186,null,"父_不在の場合","任意","X",2,"01：「単身赴任」\n02：「未婚」\n03：「離別」\n04：「離婚前提別居」\n05：「死別」\n06：「その他」",97,41,53,"チェックボックス","2:NAGVBAC026",187,"D97:T98",null,null,null,"不在の場合",null,null,"取込対象外","-","-","-","-",null,"⇒新規追加"]
[187,null,"父_不在の場合_その他","任意","N",50,"-",98,11,"-","全角","-",188,null,null,null,null,null,null,null,"取込対象外","-","-","-","利用希望理由_父_状況、05「その他」選択時",null,"⇒新規追加"]
[188,null,"父_不在の場合_別居開始日","任意","X",8,"-",99,4,"-","日付","-",189,null,null,null,null,null,null,null,"取込対象外","-","-","-","利用希望理由_父_状況、03：「離婚前提別居」選択時",null,"⇒新規追加"]
[189,null,"父_不在の場合_別居先","任意","N",50,"-",100,6,"-","全角","-",190,null,null,null,null,null,null,null,"取込対象外","-","-","-","利用希望理由_父_状況、03：「離婚前提別居」選択時",null,"⇒新規追加"]
[190,null,"利用希望理由_母_区分","任意","X",2,"01：「母」\n02：「状況」",71,41,53,"チェックボックス","2:NAGVBAC027",191,"W70:AA70",null,null,null,"利用希望区分2チェック",null,null,"取込対象外","-","-","-","-",null,"⇒新規追加"]
[191,null,"利用希望理由_母の状況","任意","N",50,"「母・（　　　）の状況」と入力",70,27,47,"コンボ","2:NAGVBAS007",192,null,null,null,null,"利用希望区分2コンボ",null,null,"QPDB支給認定","保護者1_宛名C","varchar",15,"-"]
[192,null,"利用希望理由_母_保育の必要な事由","任意","X",2,"01：「就労」\n02：「産前産後」\n03：「疾病等」\n04：「親族介護」\n05：「災害復旧」\n06：「求職活動」\n07：「就学」\n08：「発達援助」\n09：「育児休業(利用開始希望日時点)」\n★Excelへの転送は各項目ずつ変換して合算転送。",73,41,53,"チェックボックス","2:NAGVBAC028",193,null,null,null,1,null,null,null,"QPDB保育必要理由","保育必要理由C","varchar",20,"-",null,"⇒複数選択可項目"]
[193,null,"利用希望理由_母_就労又は就学_一日の時間","任意","X",2,"-",74,22,"-","数値","-",194,null,null,null,null,null,null,null,"不明","-","-","-","-"]
[194,null,"利用希望理由_母_就労又は就学_週の日数","任意","X",1,"-",74,25,"-","数値","-",195,null,null,null,null,null,null,null,"不明","-","-","-","-",null,"⇒新規追加"]
[195,null,"利用希望理由_母_就労又は就学_週の時間","任意","X",3,"-",74,28,"-","数値","-",196,null,null,null,null,null,null,null,"不明","-","-","-","-",null,"⇒新規追加"]
[196,null,"利用希望理由_母_就労又は就学_一ヶ月の日数","任意","X",2,"-",74,34,"-","数値","-",197,null,null,null,null,null,null,null,"不明","-","-","-","-",null,"⇒新規追加"]
[197,null,"利用希望理由_母_就労又は就学_平日開始時間","任意","X",4,"-",75,23,"-","時刻","-",198,null,null,null,null,"時刻開始",null,null,"不明","-","-","-","-",null,"⇒新規追加"]
[198,null,"利用希望理由_母_就労又は就学_平日終了時間","任意","X",4,"-",75,27,"-","時刻","-",199,null,null,null,null,"時刻終了",null,null,"不明","-","-","-","-",null,"⇒新規追加"]
[199,null,"利用希望理由_母_就労又は就学_平日休憩時間","任意","X",4,"-",75,34,"-","数値","-",200,null,null,null,null,"時刻休憩",null,null,"不明","-","-","-","-",null,"⇒新規追加"]
[200,null,"利用希望理由_母_就労又は就学_土曜開始時間","任意","X",4,"-",76,23,"-","時刻","-",201,null,null,null,null,"時刻開始",null,null,"不明","-","-","-","-",null,"⇒新規追加"]
[201,null,"利用希望理由_母_就労又は就学_土曜終了時間","任意","X",4,"-",76,27,"-","時刻","-",202,null,null,null,null,"時刻終了",null,null,"不明","-","-","-","-",null,"⇒新規追加"]
[202,null,"利用希望理由_母_就労又は就学_土曜休憩時間","任意","X",4,"-",76,34,"-","数値","-",203,null,null,null,null,"時刻休憩",null,null,"不明","-","-","-","-",null,"⇒新規追加"]
[203,null,"利用希望理由_母_就労又は就学_日曜開始時間","任意","X",4,"-",77,23,"-","時刻","-",204,null,null,null,null,"時刻開始",null,null,"不明","-","-","-","-",null,"⇒新規追加"]
[{"$f":"ROW()-$A$2","v":204},null,"利用希望理由_母_就労又は就学_日曜終了時間","任意","X",4,"-",77,27,"-","時刻","-",205,null,null,null,null,"時刻終了",null,null,"不明","-","-","-","-",null,"⇒新規追加"]
[205,null,"利用希望理由_母_就労又は就学_日曜休憩時間","任意","X",4,"-",77,34,"-","数値","-",206,null,null,null,null,"時刻休憩",null,null,"不明","-","-","-","-",null,"⇒新規追加"]
[206,null,"利用希望理由_母_就労又は就学_休日曜日","任意","N",50,"-",78,30,"-","全角","-",207,null,null,null,null,null,null,null,"不明","-","-","-","-",null,"⇒新規追加"]
[207,null,"利用希望理由_母の状況詳細","任意","X",20,"-",70,31,"-","全角","-",208,null,null,null,null,"利用希望区分2詳細",null,null,"不明","-","-","-","-",null,"⇒新規追加"]
[208,null,"不使用③","任意","X",2,"★不使用項目",79,42,"-","半角カナ","-",209,null,null,null,null,"利用希望区分_祝日",null,null,"不明","-","-","-","-",null,"⇒新規追加"]
[209,null,"不使用④","任意","X",2,"★不使用項目",78,42,"-","半角カナ","-",210,null,null,null,null,null,null,null,"不明","-","-","-","-",null,"20210928対応"]
[210,null,"利用希望理由_母_就労又は就学_就労内容","任意","N",50,"-",79,24,"-","全角","-",211,null,null,null,null,null,null,null,"不明","-","-","-","-",null,"⇒新規追加"]
[211,null,"利用希望理由_母_就労又は就学_卒業日","任意","X",8,"-",80,31,"-","日付","-",212,null,null,null,null,null,null,null,"不明","-","-","-","-",null,"⇒新規追加"]
[212,null,"利用希望理由_母_就労又は就学_産休・育休の取得","任意","X",2,"01：「取得中」\n02：「取得予定」\n03：「なし」",82,41,53,"チェックボックス","2:NAGVBAC030",213,"AA81:AK81",null,null,null,"利用希望理由_産休育休",null,null,"取込対象外","-","-","-","-",null,"⇒新規追加"]
[213,null,"利用希望理由_母_就労又は就学_産休・育休取得期間開始","任意","X",8,"-",82,24,"-","日付","-",214,null,null,null,null,"母_産休期間開始",null,null,"QPDA世帯員詳細","産休育休取得状況_開始","char",8,"-",null,"⇒新規追加"]
[214,null,"利用希望理由_母_就労又は就学_産休・育休取得期間終了","任意","X",8,"-",82,32,"-","日付","-",215,null,null,null,null,"母_産休期間終了",null,null,"QPDA世帯員詳細"," 産休育休取得状況_終了","char",8,"-",null,"⇒新規追加"]
[215,null,"利用希望理由_母_就労又は就学_育児短縮勤務","任意","X",2,"01：「取得中」\n02：「取得予定」\n03：「なし」",84,41,53,"チェックボックス","2:NAGVBAC031",216,"Z83:AK83",null,null,null,"利用希望理由_育児短縮勤務",null,null,"取込対象外","-","-","-","-",null,"⇒新規追加"]
[216,null,"利用希望理由_母_就労又は就学_育児短縮勤務期間開始","任意","X",8,"-",84,24,"-","日付","-",217,null,null,null,null,"母_育児期間開始",null,null,"QPDA世帯員詳細","育児短時間_開始","char",8,"-",null,"⇒新規追加"]
[217,null,"利用希望理由_母_就労又は就学_育児短縮勤務期間終了","任意","X",8,"-",84,32,"-","日付","-",218,null,null,null,null,"母_育児期間終了",null,null,"QPDA世帯員詳細"," 育児短時間_終了","char",8,"-",null,"⇒新規追加"]
[218,null,"利用希望理由_母_就労又は就学_育児短縮勤務時間開始","任意","X",4,"-",85,27,"-","時刻","-",219,null,null,null,null,"時刻開始",null,null,"QPDA世帯員詳細","育児短時間","decimal","6,2","-",null,"⇒新規追加"]
[219,null,"利用希望理由_母_就労又は就学_育児短縮勤務時間終了","任意","X",4,"-",85,33,"-","時刻","-",220,null,null,null,null,"時刻終了",null,null,"QPDA世帯員詳細","育児短時間","decimal","6,2","-",null,"⇒新規追加"]
[220,null,"通勤(通学)方法_母","任意","X",2,"01：「徒歩」\n02：「自転車」\n03：「車」\n04：「その他」",87,41,53,"チェックボックス","2:NAGVBAC032",221,null,null,null,null,null,null,null,"取込対象外","-","-","-","-",null,"⇒新規追加"]
[221,null,"通勤(通学)方法_母_その他","任意","N",50,"-",86,35,"-","全角","-",222,null,null,null,null,null,null,null,"取込対象外","-","-","-","-",null,"⇒新規追加"]
[222,null,"通勤(通学)時間_母_行き","任意","X",50,"-",87,29,"-","数値","-",223,null,null,null,null,"通勤時間行き",null,null,"不明","-","-","-","-",null,"⇒新規追加"]
[223,null,"通勤(通学)時間_母_帰り","任意","X",50,"-",87,35,"-","数値","-",224,null,null,null,null,"通勤時間帰り",null,null,"不明","-","-","-","-",null,"⇒新規追加"]
[224,null,"母_疾病等_傷病名","任意","N",100,"-",88,24,"-","全角","-",225,null,null,null,null,"傷病名",null,null,"QPDA世帯員詳細","疫病名称","nvarchar",100,"-",null,"⇒新規追加"]
[225,null,"母_疾病等_治療期間開始","任意","X",8,"-",89,24,"-","日付","-",226,null,null,null,null,"母_治癒期間開始",null,null,"QPDA世帯員詳細","汎用項目15","nvarchar",100,"-",null,"⇒新規追加"]
[226,null,"母_疾病等_治療期間終了","任意","X",8,"-",89,31,"-","日付","-",227,null,null,null,null,"母_治癒期間終了",null,null,"QPDA世帯員詳細","汎用項目15","nvarchar",100,"-",null,"⇒新規追加"]
[227,null,"母_疾病等_手帳の種類","任意","X",20,null,90,25,"-","全角","-",228,null,null,null,null,null,null,null,"QPDA世帯員詳細","障がい_種別C","varchar",10,"-"]
[228,null,"母_疾病等_総合等級","任意","X",20,null,90,33,"-","全角","-",229,null,null,null,null,null,null,null,"QPDA世帯員詳細","障がい_総合等級","nvarchar",100,"-"]
[229,null,"母_被介護（看護）者氏名","任意","N",30,"-",91,28,"-","全角","-",230,null,null,null,null,null,null,null,"QPDA世帯員詳細","被介護者_氏名漢字","nvarchar",30,"-",null,"⇒新規追加"]
[230,null,"母_被介護（看護）者氏名_続柄","任意","X",20,"-",92,33,"-","全角","-",231,null,null,null,null,null,null,null,"QPDA世帯員詳細","-","-","-","-",null,"⇒新規追加"]
[231,null,"母_被介護（看護）者別居先","任意","N",50,"-",93,27,"-","全角","-",232,null,null,null,null,null,null,null,"不明","-","-","-","-",null,"⇒新規追加"]
[232,null,"母_被介護（看護）者住所_同居","任意","X",2,"-",94,41,53,"チェックボックス","2:NAGVBAC033",233,"AJ93:AK93",null,null,null,"被介護_同居",null,null,"不明","-","-","-","-",null,"⇒単独選択"]
[233,null,"母_疾病等_傷病名","任意","N",100,"-",95,24,"-","全角","-",234,null,null,null,null,null,null,null,"QPDA世帯員詳細","疫病名称","nvarchar",100,"-",null,"⇒新規追加"]
[234,null,"母_疾病等_手帳の種類","任意","X",20,"-",96,25,"-","全角","-",235,null,null,null,null,null,null,null,"QPDA世帯員詳細","障がい_種別C","varchar",10,"-",null,"⇒新規追加"]
[235,null,"母_疾病等_総合等級","任意","X",20,"-",96,33,"-","全角","-",236,null,null,null,null,null,null,null,"QPDA世帯員詳細","障がい_総合等級","nvarchar",100,"-",null,"⇒新規追加"]
[236,null,"母_不在の場合","任意","X",2,"01：「単身赴任」\n02：「未婚」\n03：「離別」\n04：「離婚前提別居」\n05：「死別」\n06：「その他」",98,41,53,"チェックボックス","2:NAGVBAC034",237,"U97:AK98",null,null,null,"不在の場合",null,null,"取込対象外","-","-","-","-",null,"⇒新規追加"]
[237,null,"母_不在の場合_その他","任意","N",50,"-",98,28,"-","全角","-",238,null,null,null,null,null,null,null,"取込対象外","-","-","-","利用希望理由_母_状況、05「その他」選択時",null,"⇒新規追加"]
[238,null,"母_不在の場合_別居開始日","任意","X",8,"-",99,21,"-","日付","-",239,null,null,null,null,null,null,null,"取込対象外","-","-","-","利用希望理由_母_状況、03：「離婚前提別居」選択時",null,"⇒新規追加"]
[239,null,"母_不在の場合_別居先","任意","N",50,"-",100,23,"-","全角","-",240,null,null,null,null,null,null,null,"取込対象外","-","-","-","利用希望理由_母_状況、03：「離婚前提別居」選択時",null,"⇒新規追加"]
[240,null,"母_出産予定","任意","X",2,"01：「あり」\n02：「なし」",101,41,53,"チェックボックス","2:NAGVBAC035",241,"U101:AK101",null,null,null,"出産予定",null,null,"取込対象外","-","-","-","-",null,"⇒新規追加"]
[241,null,"母_出産予定日","任意","X",8,"-",101,24,"-","日付","-",242,null,null,null,null,null,null,null,"QPDA世帯員詳細","出産予定日","char",8,"-",null,"⇒新規追加"]
[242,null,"生活保護_適用なし","必須","X",2,"01：「適用なし」\n02：「適用あり」\n03：「申請中」",102,41,53,"チェックボックス","2:NAGVBAC036",243,"D102:AK102",null,null,null,"生活保護_適用あり",null,null,"QPDB支給認定","生保世帯","-","-","「適用あり」「申請中」の場合にチェックを付ける。"]
[243,null,"生活保護_担当ケースワーカー","任意","N",50,"-",102,23,"-","全角","-",244,null,null,null,null,null,null,null,"不明","-","-","-","-",null,"⇒新規追加"]
[244,null,"生活保護_適用あり_受給開始年月日","任意","X",8,"「XXXX年XX月XX日受給開始」と入力",102,29,"-","日付","-",245,null,null,null,null,null,null,null,"取込対象外","-","-","-","-"]
[245,null,"ひとり親関係手当","必須","X",2,"01：「なし」\n02：「受給」\n03：「申請中」",103,41,53,"チェックボックス","2:NAGVBAC037",246,"D103:AK103",null,null,null,"ひとり親関係手当",null,null,"QPDB支給認定","ひとり親世帯","-","-","「適用あり」「申請中」「同居の扶養義務者所得の制限超過により申請せず」の場合にチェックを付ける。"]
[246,null,"ひとり親関係手当_受給状況","任意","X",2,"01：「児童扶養手当受給」\n02：「ひとり親家庭手当受給」\n03：「遺児手当受給」\n04：「ひとり親医療証」",104,41,53,"チェックボックス","2:NAGVBAC038",247,"N103:AG103",null,null,null,null,null,null,"QPDB支給認定","ひとり親世帯","-","-","「適用あり」「申請中」「同居の扶養義務者所得の制限超過により申請せず」の場合にチェックを付ける。",null,"⇒103行42列がTRUEのみ判定？"]
[247,"祖父母の状況","父方祖父氏名","任意","X",100,"姓と名の間は半角スペース",106,4,"-","全角","-",248,null,null,null,null,null,null,null,"取込対象外","-","-","-","-"]
[248,null,"父方祖父生年月日","任意","X",8,"-",107,12,"-","日付","-",249,null,null,null,null,null,null,null,"取込対象外","-","-","-","-",null,"⇒新規追加"]
[249,null,"父方祖父年齢","任意","X",3,"「（　　　歳）」と入力",107,18,"-","数値","-",250,null,null,null,null,null,null,null,"取込対象外","-","-","-","-"]
[250,null,"父方祖父住所","任意","X",2,"01：「同居」\n02：「別居」",105,41,53,"チェックボックス","2:NAGVBAC039",251,"D108:I108",null,null,null,"祖父母住所",null,null,"取込対象外","-","-","-","-"]
[251,null,"父方祖父住所入力欄","任意","N",100,"-",109,6,"-","全角","-",252,null,null,null,null,null,null,null,"取込対象外","-","-","-","父方1住所_02：「別居」選択時\n住所情報取得用"]
[252,null,"父方祖父状況_就労","任意","X",2,"01：「住居外」\n02：「居宅内」\n03：「無就労」",107,41,53,"チェックボックス","2:NAGVBAC040",253,"D110:L110",null,null,null,null,null,null,"取込対象外","-","-","-","-"]
[253,null,"父方祖父状況_健康","任意","X",2,"01：「良好」\n02：「入院」\n03：「通院」",108,41,53,"チェックボックス","2:NAGVBAC041",254,"M110:T110",null,null,null,null,null,null,"取込対象外","-","-","-","-",null,"⇒新規追加"]
[254,null,"父方祖母氏名","任意","X",100,"姓と名の間は半角スペース",111,4,"-","全角","-",255,null,null,null,null,null,null,null,"取込対象外","-","-","-","-"]
[255,null,"父方祖母生年月日","任意","X",8,"-",112,12,"-","日付","-",256,null,null,null,null,null,null,null,"取込対象外","-","-","-","-",null,"⇒新規追加"]
[256,null,"父方祖母年齢","任意","X",3,"「（　　　歳）」と入力",112,18,"-","数値","-",257,null,null,null,null,null,null,null,"取込対象外","-","-","-","-"]
[257,null,"父方祖母住所","任意","X",2,"01：「同居」\n02：「別居」",113,41,53,"チェックボックス","2:NAGVBAC042",258,"D113:I113",null,null,null,"祖父母住所",null,null,"取込対象外","-","-","-","-"]
[258,null,"父方祖母住所入力欄","任意","N",100,"-",114,6,"-","全角","-",259,null,null,null,null,null,null,null,"取込対象外","-","-","-","父方2住所_02：「別居」選択時\n住所情報取得用"]
[259,null,"父方祖母状況","任意","X",2,"01：「住居外」\n02：「居宅内」\n03：「無就労」",115,41,53,"チェックボックス","2:NAGVBAC043",260,"D115:L115",null,null,null,null,null,null,"取込対象外","-","-","-","-"]
[260,null,"父方1状況_健康","任意","X",2,"01：「良好」\n02：「入院」\n03：「通院」",116,41,53,"チェックボックス","2:NAGVBAC044",261,"M115:T115",null,null,null,null,null,null,"取込対象外","-","-","-","-",null,"⇒新規追加"]
[261,null,"母方祖父氏名","任意","X",100,"姓と名の間は半角スペース",106,21,"-","全角","-",262,null,null,null,null,null,null,null,"取込対象外","-","-","-","-"]
[262,null,"母方祖父生年月日","任意","X",8,"-",107,29,"-","日付","-",263,null,null,null,null,null,null,null,"取込対象外","-","-","-","-",null,"⇒新規追加"]
[263,null,"母方祖父年齢","任意","X",3,"「（　　　歳）」と入力",107,35,"-","数値","-",264,null,null,null,null,null,null,null,"取込対象外","-","-","-","-"]
[264,null,"母方祖父住所","任意","X",2,"01：「同居」\n02：「別居」",106,41,53,"チェックボックス","2:NAGVBAC045",265,"U108:Z108",null,null,null,"祖父母住所",null,null,"取込対象外","-","-","-","-"]
[265,null,"母方祖父住所入力欄","任意","N",100,"-",109,23,"-","全角","-",266,null,null,null,null,null,null,null,"取込対象外","-","-","-","母方1住所_02：「別居」選択時\n住所情報取得用"]
[266,null,"母方祖父状況","任意","X",2,"01：「住居外」\n02：「居宅内」\n03：「無就労」",109,41,53,"チェックボックス","2:NAGVBAC046",267,"U110:AC110",null,null,null,null,null,null,"取込対象外","-","-","-","-"]
[267,null,"母方祖父状況_健康","任意","X",2,"01：「良好」\n02：「入院」\n03：「通院」",110,41,53,"チェックボックス","2:NAGVBAC047",268,"AD110:AK110",null,null,null,null,null,null,"取込対象外","-","-","-","-",null,"⇒新規追加"]
[268,null,"母方祖母氏名","任意","X",100,"姓と名の間は半角スペース",111,21,"-","全角","-",269,null,null,null,null,null,null,null,"取込対象外","-","-","-","-"]
[{"$f":"ROW()-$A$2","v":269},null,"母方祖母生年月日","任意","X",8,"-",112,29,"-","日付","-",270,null,null,null,null,null,null,null,"取込対象外","-","-","-","-",null,"⇒新規追加"]
[270,null,"母方祖母年齢","任意","X",3,"「（　　　歳）」と入力",112,35,"-","数値","-",271,null,null,null,null,null,null,null,"取込対象外","-","-","-","-"]
[271,null,"母方祖母住所","任意","X",2,"01：「同居」\n02：「別居」",114,41,53,"チェックボックス","2:NAGVBAC048",272,"U113:Z113",null,null,null,"祖父母住所",null,null,"取込対象外","-","-","-","-"]
[272,null,"母方祖母住所入力欄","任意","N",100,"-",114,23,"-","全角","-",273,null,null,null,null,null,null,null,"取込対象外","-","-","-","母方2住所_02：「別居」選択時\n住所情報取得用"]
[273,null,"母方祖母状況","任意","X",2,"01：「住居外」\n02：「居宅内」\n03：「無就労」",117,41,53,"チェックボックス","2:NAGVBAC049",274,"U115:AC115",null,null,null,null,null,null,"取込対象外","-","-","-","-"]
[274,null,"母方祖父状況_健康","任意","X",2,"01：「良好」\n02：「入院」\n03：「通院」",118,41,53,"チェックボックス","2:NAGVBAC050",275,"AD115:AK115",null,null,null,null,null,null,"取込対象外","-","-","-","-",null,"⇒新規追加"]
[275,"きょうだいで、同時に利用申込みを行う場合","①きょうだいが別々の保育施設等であれば利用できる場合、利用を希望するか。","任意","X",2,"01：「希望する」\n02：「希望しない」",119,41,53,"チェックボックス","2:NAGVBAC051",276,"D117:AK117",null,null,null,null,null,null,"QPDC入所施設管理","入所不可対応C","varchar",10,"-"]
[276,null,"②きょうだいが同時に利用できる場合、どちらを希望するか。","任意","X",2,"01：「 希望順位が下でも同じ保育施設等の利用を希望する」\n02：「きょうだい別々でもそれぞれの希望順位の高い保育施設等の利用を希望する」",120,41,53,"チェックボックス","2:NAGVBAC052",277,"D118:AK119",null,null,null,null,null,null,"QPDC入所施設管理","同時申請C","varchar",10,"-"]
[277,null,"③きょうだいのうち、１人だけ利用できる場合、利用を希望するか。","任意","X",2,"01：「希望する」\n02：「希望しない」",121,41,53,"チェックボックス","2:NAGVBAC053",278,"D120:AK120",null,null,null,null,null,null,"QPDC入所施設管理","同一施設入所不可対応C","varchar",10,"-"]
[278,"教育・保育給付認定申請の委任","代理人名","任意","N",100,"-",122,8,"-","全角","-",279,null,null,null,null,null,null,null,"取込対象外","-","-","-","個人番号（マイナンバー）の記入のある申請書を「■申込者【教育・保育給付認定保護者（原則、世帯主）】」以外の方が提出する際のみ記入",null,"⇒新規追加"]
[279,null,"教育・保育給付認定保護者氏名","任意","N",100,"-",123,15,"-","全角","-",280,null,null,null,null,null,null,null,"取込対象外","-","-","-","個人番号（マイナンバー）の記入のある申請書を「■申込者【教育・保育給付認定保護者（原則、世帯主）】」以外の方が提出する際のみ記入",null,"⇒新規追加"]
[280,"名古屋市記載欄","要件対象者","任意","X",2,"01：「父」\n02：「母」\n0.3：「その他」",126,41,53,"チェックボックス","2:NAGVBAC054",281,"B126:E127",null,null,null,"要件対象者",null,null,"取込対象外","-","-","-","-",null,"⇒新規追加"]
[281,null,"要件対象者_その他","任意","N",50,"-",128,3,"-","全角","-",282,null,null,null,null,null,null,null,"取込対象外","-","-","-","-",null,"⇒新規追加"]
[282,null,"保育の必要な事由","任意","X",2,"01：「就労」\n02：「産前産後」\n03：「疾病」\n04：「親族介護」\n05：「災害復旧」\n06：「求職活動」\n07：「就学」\n08：「発達援助」\n09：「育休中」",127,41,53,"チェックボックス","2:NAGVBAC055",283,"F126:R128",null,null,null,"保育の必要な事由",null,null,"QPDB保育必要理由","保育必要理由C","varchar",20,"-",null,"⇒新規追加"]
[283,null,"優先利用","任意","X",2,"01：「ひとり」\n02：「親生活保護」\n03：「失業」\n04：「障害」\n05：「育休あけ」\n06：「きょうだい利用」\n07：「卒園児」\n08：「その他」",128,41,53,"チェックボックス","2:NAGVBAC056",284,"S126:AF128",null,null,null,"優先利用",null,null,"QPDB支給認定","優先利用C","varchar",10,"-",null,"⇒新規追加"]
[284,null,"優先利用_その他","任意","N",50,"-",128,26,"-","全角","-",285,null,null,null,null,null,null,null,"不明","-","-","-","-",null,"⇒新規追加"]
[285,null,"認定区分","任意","X",2,"01：「標準時間」\n02：「短時間」",129,41,53,"チェックボックス","2:NAGVBAC057",286,"AG126:AK128",null,null,null,"必要性理由",null,null,"QPDB支給認定","認定区分C","varchar",10,"-",null,"⇒新規追加"]
[286,null,"認定期間_自","任意","X",8,"-",129,9,"-","日付","-",287,"I129",null,null,null,"認定期間開始",null,null,"QPDB支給認定","認定期間_開始","char",8,"-",null,"⇒新規追加"]
[287,null,"認定期間_至","任意","X",2,"01：「満3歳の前日」\n02：「小学校就学前」\n03：「日付入力」",132,41,53,"チェックボックス","2:NAGVBAC058",288,"S129:AD129",null,null,null,"認定期間終了区分",null,null,"QPDB支給認定","認定期間_終了","char",8,"-",null,"⇒新規追加"]
[288,null,"認定期間_至_日付","任意","X",8,"-",129,31,"-","日付","-",289,null,null,null,null,"認定期間終了",null,null,"QPDB支給認定","認定期間_終了","char",8,"-",null,"⇒新規追加"]
[289,null,"番号確認","任意","X",2,"01：「個人番号カード」\n02：「通知カード」\n03：「住民基本台帳確認」\n04：「番号記載住民票」\n05：「その他」\n06：「記載拒否」",130,41,53,"チェックボックス","2:NAGVBAC059",290,"D130:S132",null,null,null,"番号確認",null,null,"不明","-","-","-","-",null,"⇒新規追加"]
[290,null,"番号確認_その他","任意","N",50,"-",131,14,"-","全角","-",291,null,null,null,null,null,null,null,"不明","-","-","-","-",null,"⇒新規追加"]
[291,null,"身元確認","任意","X",2,"01：「個」\n02：「運」\n03：「パ」\n04：「在」\n05：「障」\n06：「他」",131,41,53,"チェックボックス","2:NAGVBAC060",292,"V130:AA132",null,null,null,"身元確認",null,null,"不明","-","-","-","-",null,"⇒新規追加"]
[292,null,"身元確認_他","任意","N",50,"-",132,24,"-","全角","-",293,null,null,null,null,null,null,null,"不明","-","-","-","-",null,"⇒新規追加"]
[293,null,"備考","任意","N",50,"-",130,30,"-","全角","-",294,null,null,null,null,null,null,null,"QPDB支給認定","備考","nvarchar",50,"-",null,"⇒新規追加"]
[294,"ランク判定","\n父_レベル1","任意","X",2,"選択項目",137,7,41,"コンボ指数","101:",295,null,null,null,null,null,null,null,"QPDC児童指数管理","指数区分C","varchar",10,"職員入力欄"]
[295,null,"\n父_レベル2","任意","X",2,"選択項目（レベル1の選択によって変動）",137,16,42,"コンボ指数","201:",296,null,null,null,null,null,null,null,"QPDC児童指数管理","指数区分C","varchar",10,"職員入力欄"]
[296,null,"\n父_レベル3","任意","X",2,"選択項目（レベル2の選択によって変動）",137,25,43,"コンボ指数","301:",297,null,null,null,null,null,null,null,"QPDC児童指数管理","指数区分C","varchar",10,"職員入力欄"]
[297,null,"\n母_レベル1","任意","X",2,"選択項目",138,7,41,"コンボ指数","102:",298,null,null,null,null,null,null,null,"QPDC児童指数管理","指数区分C","varchar",10,"職員入力欄"]
[298,null,"\n母_レベル2","任意","X",2,"選択項目（レベル1の選択によって変動）",138,16,42,"コンボ指数","202:",299,null,null,null,null,null,null,null,"QPDC児童指数管理","指数区分C","varchar",10,"職員入力欄"]
[299,null,"\n母_レベル3","任意","X",2,"選択項目（レベル2の選択によって変動）",138,25,43,"コンボ指数","302:",300,null,null,null,null,null,null,null,"QPDC児童指数管理","指数区分C","varchar",10,"職員入力欄"]
[300,null,"\n祖父_レベル1","任意","X",2,"選択項目",139,7,41,"コンボ指数","108:",301,null,null,null,null,null,null,null,"QPDC児童指数管理","指数区分C","varchar",10,"職員入力欄"]
[301,null,"\n祖父_レベル2","任意","X",2,"選択項目（レベル1の選択によって変動）",139,16,42,"コンボ指数","208:",302,null,null,null,null,null,null,null,"QPDC児童指数管理","指数区分C","varchar",10,"職員入力欄"]
[302,null,"\n祖父_レベル3","任意","X",2,"選択項目（レベル2の選択によって変動）",139,25,43,"コンボ指数","309:",303,null,null,null,null,null,null,null,"QPDC児童指数管理","指数区分C","varchar",10,"職員入力欄",null,"⇒308？"]
[303,null,"\n祖母_レベル1","任意","X",2,"選択項目",140,7,41,"コンボ指数","109:",304,null,null,null,null,null,null,null,"QPDC児童指数管理","指数区分C","varchar",10,"職員入力欄"]
[304,null,"\n祖母_レベル2","任意","X",2,"選択項目（レベル1の選択によって変動）",140,16,42,"コンボ指数","208:",305,null,null,null,null,null,null,null,"QPDC児童指数管理","指数区分C","varchar",10,"職員入力欄",null,"⇒209？"]
[305,null,"\n祖母_レベル3","任意","X",2,"選択項目（レベル2の選択によって変動）",140,25,43,"コンボ指数","308:",306,null,null,null,null,null,null,null,"QPDC児童指数管理","指数区分C","varchar",10,"職員入力欄",null,"⇒309？"]
[306,null,"強制ランク修正F","任意","X",2,null,141,41,53,"チェックボックス","-",307,"AL136",null,null,null,"強制ランクF"]
[307,null,"強制ランク","任意","X",2,null,137,38,45,"コンボ","2:NAGVBAS009",308,"AL137",null,null,null,"強制ランク",null,null,null,null,null,null,null,null,"20210928対応"]
[308,null,"強制きょうだいランク","任意","X",2,null,138,38,45,"コンボ","2:NAGVBAS009",309,"AL138",null,null,null,"強制きょうだいランク",null,null,null,null,null,null,null,null,"20210928対応"]
[309,null,"ランク判定者","任意","X",2,"続柄Cを選択",140,38,45,"コンボ","2:NAGVBAS008",310,null,null,null,null,null,null,null,null,null,null,null,null,null,"20210928対応"]
[310,"加減点判定_ランクアップ","①ひとり親世帯等","任意","X",2,"01：「なし」\n02：「あり」",144,41,53,"チェックボックス指数","-",311,null,null,null,null,null,null,null,"QPDC児童指数管理","指数区分C","varchar",10,"職員入力欄"]
[311,null,"②既にきょうだいが利用している施設への申込","任意","X",2,"01：「なし」\n02：「あり」",145,41,53,"チェックボックス指数","-",312,null,null,null,null,null,null,null,"QPDC児童指数管理","指数区分C","varchar",10,"職員入力欄"]
[312,null,"③家庭的保育室・乳児専門保育所・準乳児専門保育所・小規模保育事業・家庭的保育事業等の卒園児","任意","X",2,"01：「なし」\n02：「あり」",146,41,53,"チェックボックス指数","-",313,null,null,null,null,null,null,null,"QPDC児童指数管理","指数区分C","varchar",10,"職員入力欄"]
[313,null,"④生計主宰者の失業","任意","X",2,"01：「なし」\n02：「あり」",147,41,53,"チェックボックス指数","-",314,null,null,null,null,null,null,null,"QPDC児童指数管理","指数区分C","varchar",10,"職員入力欄"]
[314,null,"⑤認定こども園を利用している子どもが1号から2号に認定区分が変更になり、引続き当該施設の利用を希望する場合","任意","X",2,"01：「なし」\n02：「あり」",148,41,53,"チェックボックス指数","-",315,null,null,null,null,null,null,null,"QPDC児童指数管理","指数区分C","varchar",10,"職員入力欄"]
[315,"加減点判定_調整指数","2_保育の代替え手段　育児休業からの復職","任意","X",2,"01：「なし」\n02：「あり」",151,41,53,"チェックボックス指数","-",316,null,null,null,null,null,null,null,"QPDC児童指数管理","指数区分C","varchar",10,"職員入力欄"]
[316,null,"5_保育の代替手段　同一区内（支所管内にお住まいの方は同一支所管内）に保育可能な６５歳未満の祖父母あり","任意","X",2,"01：「なし」\n02：「あり」",152,41,53,"チェックボックス指数","-",317,null,null,null,null,null,null,null,"QPDC児童指数管理","指数区分C","varchar",10,"職員入力欄"]
[317,null,"6_保育の代替手段　保育可能な６５歳未満の祖父母と同居している","任意","X",2,"01：「なし」\n02：「あり」",153,41,53,"チェックボックス指数","-",318,null,null,null,null,null,null,null,"QPDC児童指数管理","指数区分C","varchar",10,"職員入力欄"]
[318,null,"9_世帯の状況　保護者が身体障害者手帳所持１・２級、愛護手帳所持、精神障害者保健手帳所持１・２級の一つに該当する場合","任意","X",2,"01：「なし」\n02：「あり」",154,41,53,"チェックボックス指数","-",319,null,null,null,null,null,null,null,"QPDC児童指数管理","指数区分C","varchar",10,"職員入力欄"]
[319,null,"10_世帯の状況　保護者が身体障害者手帳所持３級以下又は精神障害者保健手帳所持３級で保育に著しく負担がかかる場合","任意","X",2,"01：「なし」\n02：「あり」",155,41,53,"チェックボックス指数","-",320,null,null,null,null,null,null,null,"QPDC児童指数管理","指数区分C","varchar",10,"職員入力欄"]
[320,null,"11_世帯の状況　保護者が身体障害者手帳所持１・２級、愛護手帳所持、精神障害者保健手帳所持１・２級の一つに該当する場合","任意","X",2,"01：「なし」\n02：「あり」",156,41,53,"チェックボックス指数","-",321,null,null,null,null,null,null,null,"QPDC児童指数管理","指数区分C","varchar",10,"職員入力欄"]
[321,null,"12_世帯の状況　保護者が身体障害者手帳所持３級以下又は精神障害者保健手帳所持3級で保育に著しく負担がかかる場合","任意","X",2,"01：「なし」\n02：「あり」",157,41,53,"チェックボックス指数","-",322,null,null,null,null,null,null,null,"QPDC児童指数管理","指数区分C","varchar",10,"職員入力欄"]
[322,null,"13_世帯の状況　同居の家族内に身体障害者手帳３級以上、愛護手帳、精神障害者保健手帳を持っている者がいて、保護者が日常的に介護している場合","任意","X",2,"01：「なし」\n02：「あり」",158,41,53,"チェックボックス指数","-",323,null,null,null,null,null,null,null,"QPDC児童指数管理","指数区分C","varchar",10,"職員入力欄"]
[323,null,"14_世帯の状況　別居の家族内に身体障害者手帳３級以上、愛護手帳、精神障害者保健手帳を持っている者がいて、保護者が日常的に介護している場合","任意","X",2,"01：「なし」\n02：「あり」",159,41,53,"チェックボックス指数","-",324,null,null,null,null,null,null,null,"QPDC児童指数管理","指数区分C","varchar",10,"職員入力欄"]
[324,null,"15_世帯の状況　保護者が継続的な入院、通院を必要としているきょうだい児の介護を行っている","任意","X",2,"01：「なし」\n02：「あり」",160,41,53,"チェックボックス指数","-",325,null,null,null,null,null,null,null,"QPDC児童指数管理","指数区分C","varchar",10,"職員入力欄"]
[325,null,"16_世帯の状況　保護者が通信制大学、通信教育学生である","任意","X",2,"01：「なし」\n02：「あり」",161,41,53,"チェックボックス指数","-",326,null,null,null,null,null,null,null,"QPDC児童指数管理","指数区分C","varchar",10,"職員入力欄"]
[326,null,"17_世帯の状況　生活保護世帯","任意","X",2,"01：「なし」\n02：「あり」",162,41,53,"チェックボックス指数","-",327,null,null,null,null,null,null,null,"QPDC児童指数管理","指数区分C","varchar",10,"職員入力欄"]
[327,null,"9-2_世帯の状況　保護者が身体障害者手帳所持１・２級、愛護手帳所持、精神障害者保健手帳所持１・２級の一つに該当する場合","任意","X",2,"01：「なし」\n02：「あり」",163,41,53,"チェックボックス指数","-",328,null,null,null,null,null,null,null,"QPDC児童指数管理","指数区分C","varchar",10,"職員入力欄"]
[328,null,"10-2_世帯の状況　保護者が身体障害者手帳所持３級以下又は精神障害者保健手帳所持３級で保育に著しく負担がかかる場合","任意","X",2,"01：「なし」\n02：「あり」",164,41,53,"チェックボックス指数","-",329,null,null,null,null,null,null,null,"QPDC児童指数管理","指数区分C","varchar",10,"職員入力欄"]
[329,null,"11-2_世帯の状況　保護者が身体障害者手帳所持１・２級、愛護手帳所持、精神障害者保健手帳所持１・２級の一つに該当する場合","任意","X",2,"01：「なし」\n02：「あり」",165,41,53,"チェックボックス指数","-",330,null,null,null,null,null,null,null,"QPDC児童指数管理","指数区分C","varchar",10,"職員入力欄"]
[330,null,"12-2_世帯の状況　保護者が身体障害者手帳所持３級以下又は精神障害者保健手帳所持3級で保育に著しく負担がかかる場合","任意","X",2,"01：「なし」\n02：「あり」",166,41,53,"チェックボックス指数","-",331,null,null,null,null,null,null,null,"QPDC児童指数管理","指数区分C","varchar",10,"職員入力欄"]
[331,null,"19_就労の状況　単身赴任","任意","X",2,"01：「なし」\n02：「あり」",167,41,53,"チェックボックス指数","-",332,null,null,null,null,null,null,null,"QPDC児童指数管理","指数区分C","varchar",10,"職員入力欄"]
[332,null,"20_就労の状況　毎月２回以上の夜勤を伴う勤務がある","任意","X",2,"01：「なし」\n02：「あり」",168,41,53,"チェックボックス指数","-",333,null,null,null,null,null,null,null,"QPDC児童指数管理","指数区分C","varchar",10,"職員入力欄"]
[333,null,"20-2_就労の状況　毎月２回以上の夜勤を伴う勤務がある","任意","X",2,"01：「なし」\n02：「あり」",169,41,53,"チェックボックス指数","-",334,null,null,null,null,null,null,null,"QPDC児童指数管理","指数区分C","varchar",10,"職員入力欄"]
[334,null,"21_就労の状況　継続して３カ月以上就労をしている場合","任意","X",2,"01：「なし」\n02：「あり」",170,41,53,"チェックボックス指数","-",335,null,null,null,null,null,null,null,"QPDC児童指数管理","指数区分C","varchar",10,"職員入力欄"]
[335,null,"22_就労の状況　居宅外自営だが、職場が自宅と併設している（居宅外自営協力者を除く）","任意","X",2,"01：「なし」\n02：「あり」",171,41,53,"チェックボックス指数","-",336,null,null,null,null,null,null,null,"QPDC児童指数管理","指数区分C","varchar",10,"職員入力欄"]
[336,null,"23_就労の状況　勤務実績が１カ月未満である","任意","X",2,"01：「なし」\n02：「あり」",172,41,53,"チェックボックス指数","-",337,null,null,null,null,null,null,null,"QPDC児童指数管理","指数区分C","varchar",10,"職員入力欄"]
[{"$f":"ROW()-$A$2","v":337},null,"24_ひとり親世帯等　ひとり親世帯等で６５歳未満の同居親族がいない場合","任意","X",2,"01：「なし」\n02：「あり」",173,41,53,"チェックボックス指数","-",338,null,null,null,null,null,null,null,"QPDC児童指数管理","指数区分C","varchar",10,"職員入力欄"]
[338,null,"25_ひとり親世帯等　ひとり親世帯等で６５歳未満の同居親族がいる場合","任意","X",2,"01：「なし」\n02：「あり」",174,41,53,"チェックボックス指数","-",339,null,null,null,null,null,null,null,"QPDC児童指数管理","指数区分C","varchar",10,"職員入力欄"]
[339,null,"28_きょうだいの状況　多胎児の加点","任意","X",2,"01：「なし」\n02：「あり」",175,41,53,"チェックボックス指数","-",340,null,null,null,null,null,null,null,"QPDC児童指数管理","指数区分C","varchar",10,"職員入力欄"]
[340,null,"29_きょうだいの状況　申込児以外に利用申込しない未就学児がいる","任意","X",2,"01：「なし」\n02：「あり」",176,41,53,"チェックボックス指数","-",341,null,null,null,null,null,null,null,"QPDC児童指数管理","指数区分C","varchar",10,"職員入力欄"]
[341,"加減点判定_児童加算"," 1_保育の代替手段　　乳児専門保育所、準乳児専門保育所、小規模保育事業所、家庭的保育事業所等の卒園児","任意","X",2,"01：「なし」\n02：「あり」",179,41,53,"チェックボックス指数","-",342]
[342,null," 3_保育の代替手段　　申込時点で保育の必要な事由があり、申込児を認可外保育施設に有償で預けている　","任意","X",2,"01：「なし」\n02：「あり」",180,41,53,"チェックボックス指数","-",343]
[343,null," 4_保育の代替手段　　申込児を６５歳未満の親族に預けている","任意","X",2,"01：「なし」\n02：「あり」",181,41,53,"チェックボックス指数","-",344]
[344,null," 7_保育の代替手段　　利用施設の変更申込の場合","任意","X",2,"01：「なし」\n02：「あり」",182,41,53,"チェックボックス指数","-",345]
[345,null," 8_保育の代替手段　　申込児を職場で見ている（居宅外自営協力者を除く）","任意","X",2,"01：「なし」\n02：「あり」",183,41,53,"チェックボックス指数","-",346]
[346,null,"18_世帯の状況　　利用希望開始年度において、１８歳に達した以後の最初の３月３１日までのお子さんが３人以上いる世帯の第３子以降に該当する場合","任意","X",2,"01：「なし」\n02：「あり」",184,41,53,"チェックボックス指数","-",347]
[347,null,"その他加算1","任意","X",2,"01：「なし」\n02：「あり」",185,41,53,"チェックボックス指数","-",348]
[348,null,"その他加算2","任意","X",2,"01：「なし」\n02：「あり」",186,41,53,"チェックボックス指数","-",349]
[349,null,"その他加算4","任意","X",2,"01：「なし」\n02：「あり」",187,41,53,"チェックボックス指数","-",350,null,null,null,null,null,null,null,"QPDC児童指数管理","指数区分C","varchar",10,"職員入力欄"]
[350,null,"第１希望施設コード","任意","X",20,null,51,47,"-","Excel関数","-",351,"I51:U51",null,null,null,"施設C1"]
[351,null,"第２希望施設コード","任意","X",20,null,53,47,"-","Excel関数","-",352,"I53:U53",null,null,null,"施設C2"]
[352,null,"第３希望施設コード","任意","X",20,null,55,47,"-","Excel関数","-",353,"I55:U55",null,null,null,"施設C3"]
[353,null,"第４希望施設コード","任意","X",20,null,51,50,"-","Excel関数","-",354,"Z51:AL51",null,null,null,"施設C4"]
[354,null,"第５希望施設コード","任意","X",20,null,53,50,"-","Excel関数","-",355,"Z53:AL53",null,null,null,"施設C5"]
[355,null,"第６希望施設コード","任意","X",20,null,55,50,"-","Excel関数","-",356,"Z55:AL55",null,null,null,"施設C6",null,null,"QPDC児童指数管理","指数区分C","varchar",10,"職員入力欄"]
[356,null,"強制第１希望施設コード","任意","X",20,null,52,47,"-","半角カナ","-",357,null,null,null,null,"強制施設C1"]
[357,null,"強制第２希望施設コード","任意","X",20,null,54,47,"-","半角カナ","-",358,null,null,null,null,"強制施設C2"]
[358,null,"強制第３希望施設コード","任意","X",20,null,56,47,"-","半角カナ","-",359,null,null,null,null,"強制施設C2"]
[359,null,"強制第４希望施設コード","任意","X",20,null,52,50,"-","半角カナ","-",360,null,null,null,null,"強制施設C2"]
[360,null,"強制第５希望施設コード","任意","X",20,null,54,50,"-","半角カナ","-",361,null,null,null,null,"強制施設C2"]
[361,null,"強制第６希望施設コード","任意","X",20,null,56,50,"-","半角カナ","-",362,null,null,null,null,"強制施設C6",null,null,"QPDC児童指数管理","指数区分C","varchar",10,"職員入力欄"]
[362,null,"優先枠",null,"X",20,null,117,47,48,"コンボ","2:12004200",363]
[363,null,"待機と入所になった場合",null,"X",20,null,118,47,48,"コンボ","2:12004300",364]
[364,null,"別施設入所になった場合",null,"X",20,null,119,47,48,"コンボ","2:12004400",365]

{"sheet":"申請CSV→ツール","index":8,"n_rows":472,"n_cols":13,"rows_kept":472,"cut":false,"hidden":true,"merged":[]}
["電子申請ファイル",null,null,null,null,null,"申込書フォーマット"]
[null,null,null,"データ",null,null,null,"申込書"]
["No.","項目名",null,"変換","後追記",null,"No","分類","列名","設定値","データ\n列位置"]
[1,"申請ID","→","単純転送",null,"→",3,null,"申請ID","-",4]
[2,"申請日時","→","単純転送",null,"→",5,null,"日付","-",6]
[3]
[4,"ステータス","→","単純転送",null,"→",7,null,"ステータス",7,8]
[5,"申請者の種別","→",null,null,"→"]
[6,"名前","→","単純転送",null,"→",8,null,"保護者漢字氏名","-",9]
[7,"名前（カナ）","→","変換半角",null,"→",9,null,"保護者カナ氏名","-",10]
[8,"郵便番号","→","変換郵便番号",null,"→",10,null,"保護者郵便番号",1,11]
[9,"住所 / 所在地","→","単純転送",null,"→",11,null,"保護者現住所","-",12]
[10,"生年月日（西暦）","→",null,null,"→"]
[11,"屋号","→",null,null,"→"]
[12,"屋号（カナ）","→",null,null,"→"]
[13,"法人番号","→",null,null,"→"]
[14,"法人代表者名","→",null,null,"→"]
[15,"電話番号","→",null,null,"→"]
[16,"メールアドレス","→",null,null,"→"]
[17,"連絡担当者名","→",null,null,"→"]
[18,"利用申込みに関する同意事項①","→",null,null,"→"]
[19,"利用申込みに関する同意事項②","→",null,null,"→"]
[20,null,null,null,null,null,null,null,null,null,null,null,"2022/10/17　加藤追加"]
[21,"転入予定での申込み・市内での転居予定","→",null,null,"→"]
[22,"転入・転居の予定時期（西暦）","→","単純転送",null,"→",12,null,"転居先住所（予定）_転居予定日","-",13]
[23,"転入・転居予定先住所（郵便番号）","→","変換郵便番号",null,"→",13,null,"転居先住所（予定）_郵便番号",2,14]
[24,"転入・転居予定先住所","→","単純転送",null,"→",14,null,"転居先住所（予定）_住所","-",15]
[25,"名古屋市からの送付物発送先","→","変換チェック",null,"→",15,null,"名古屋市からの送付物発送先","2:NAGVBAC001",16]
[26,"名古屋市からの送付物発送先（備考）","→",null,null,"→"]
[27,"名古屋市への過去２年以内の転入歴","→",null,null,"→"]
[28,"転入前住所","→","単純転送",null,"→",16,null,"過去2年以内の転入歴\n(転入元）_県・市名","-",17]
[29,"転入時期（西暦）","→","単純転送",null,"→",17,null,"過去2年以内の転入歴\n(転入日）","-",18]
[30,"連絡先＃１","→","変換チェック",null,"→",18,null,"保護者連絡先1_子どもとの続柄_①チェックボックス","2:NAGVBAC002",19]
[30,"連絡先＃１","→","変換コンボ除外;父",null,null,19,null,"保護者連絡先1_子どもとの続柄_①選択","2:NAGVBAS002",20]
[31,"連絡先その他","→","単純転送",null,"→",20,null,"保護者連絡先1_子どもとの続柄","-",21]
[32,"電話番号","→","単純転送",null,"→",21,null,"保護者連絡先1_電話番号",3,22]
[33,"連絡先＃２","→","変換チェック",null,"→",22,null,"保護者連絡先1_子どもとの続柄_②チェックボックス","2:NAGVBAC003",23]
[33,"連絡先＃２",null,"変換コンボ除外;母",null,null,23,null,"保護者連絡先1_子どもとの続柄_②選択","2:NAGVBAC003",24]
[34,"連絡先その他","→","単純転送",null,"→",24,null,"保護者連絡先2_子どもとの続柄","-",25]
[35,"電話番号","→","単純転送",null,"→",25,null,"保護者連絡先2_電話番号",3,26]
[36,"申込児童氏名","→","単純転送",null,"→",26,null,"申請児童漢字氏名","-",27]
[37,"申込児童氏名（カナ）","→","変換半角",null,"→",27,null,"申請児童カナ氏名","-",28]
[38,"申込者（保護者）との続柄","→",null,null,"→"]
[39,"申込者（保護者）との続柄（その他）","→",null,null,"→"]
[40,"性別","→","変換チェック",null,"→",28,null,"申請児童性別","2:NAGVBAC004",29]
[41,"申込児童の生年月日（西暦）","→","単純転送",null,"→",29,null,"申請児童生年月日","-",30]
[42,"年齢（令和4年4月1日時点）","→","単純転送",null,"→",30,null,"申請児童年齢","-",31]
[43,"アレルギー・食事制限等","→","変換チェック",null,"→",32,null,"申請児童アレルギー選択","2:NAGVBAC005",33]
[44,"アレルギー・食事制限（宗教食等）など【内容】","→","単純転送",null,"→",33,null,"申請児童アレルギー選択_あり_内容","-",34]
[45,"アレルギー・食事制限（宗教食等）など【特記事項】","→","単純転送",null,"→",34,null,"申請児童アレルギー選択_特記事項","-",35]
[46,"アレルギー・食事制限（宗教食等）など【施設・事業所への相談】","→","変換チェック",null,"→",35,null,"申請児童アレルギー選択_希望施設・事業所への相談","2:NAGVBAC006",36]
[47,"障害の有無","→","変換チェック",null,"→",36,null,"申請児童アレルギー選択_障害","2:NAGVBAC007",37]
[48,"障害の状況","→","単純転送",null,"→",37,null,"申請児童アレルギー選択_障害_あり内容","-",38]
[49,"医療的ケアの状況","→","単純転送",null,"→",null,null,"医療的ケアの状況","-",366,null,"2022/10/17　加藤追加"]
[50,"医療的ケアの種類","→","単純転送",null,"→",null,null,"医療的ケアの種類","-",367,null,"2022/10/17　加藤追加"]
[51,null,null,null,null,null,null,null,null,null,null,null,"2022/10/17　加藤追加"]
[52,"健康状態等（確認事項①）","→",null,null,"→"]
[53,"健康状態等（確認事項②）","→",null,null,"→"]
[54,"健康状態等（確認事項②）","→","単純転送",null,"→",null,null,"健康状態等_確認事項②","-",368,null,"2022/10/17　加藤追加"]
[56,"氏名（カナ）1","→","単純転送",null,"→",38,"世帯の状況（世帯構成員）","世帯構成員1カナ氏名","-",40]
[55,"氏名1","→","変換半角",null,"→",39,null,"世帯構成員1漢字氏名","-",39]
[57,"続柄（申込児童からみた関係）1","→","変換コンボ",null,"→",40,null,"世帯構成員1続柄","2:NAGVBAS004",41]
[58,"続柄（申込児童からみた関係：その他）1","→","単純転送",null,"→",41,null,"世帯構成員1続柄_入力","-",42]
[59,"生年月日（西暦）1","→","変換チェック_和暦",null,"→",42,null,"世帯構成員1生年月日_元号","2:NAGVBAC008",43]
[59,"生年月日（西暦）1","→","単純転送",null,"→",43,null,"世帯構成員1生年月日",6,44]
[60,"年齢1","→",null,null,"→"]
[61,"健康状態等1","→","単純転送",null,"→",44,null,"世帯構成員1健康状態等","-",45]
[62,"備考（勤務先名称／通学（園）先名称　等）1","→","単純転送",null,"→",45,null,"世帯構成員1備考（現在の状況）_勤務先/通学（園）先","-",46]
[63,"氏名2","→","単純転送",null,"→",47,null,"世帯構成員2カナ氏名","-",49]
[64,"氏名（カナ）2","→","変換半角",null,"→",48,null,"世帯構成員2漢字氏名","-",48]
[65,"続柄（申込児童からみた関係）2","→","変換コンボ",null,"→",49,null,"世帯構成員2続柄","2:NAGVBAS004",50]
[66,"続柄（申込児童からみた関係：その他）2","→","単純転送",null,"→",50,null,"世帯構成員2続柄_入力","-",51]
[67,"生年月日（西暦）2","→","変換チェック_和暦",null,"→",51,null,"世帯構成員2生年月日_元号","2:NAGVBAC008",52]
[67,"生年月日（西暦）2","→","単純転送",null,"→",52,null,"世帯構成員2生年月日",null,53]
[68,"年齢2","→",null,null,"→"]
[69,"健康状態等2","→","単純転送",null,"→",53,null,"世帯構成員2健康状態等","-",54]
[70,"備考（勤務先名称／通学（園）先名称　等）2","→","単純転送",null,"→",54,null,"世帯構成員2備考（現在の状況）_勤務先/通学（園）先","-",55]
[71,"氏名3","→","単純転送",null,"→",56,null,"世帯構成員3カナ氏名","-",58]
[72,"氏名（カナ）3","→","変換半角",null,"→",57,null,"世帯構成員3漢字氏名","-",57]
[73,"続柄（申込児童からみた関係）3","→","変換コンボ",null,"→",58,null,"世帯構成員3続柄","2:NAGVBAS004",59]
[74,"続柄（申込児童からみた関係：その他）3","→","単純転送",null,"→",59,null,"世帯構成員3続柄_入力","-",60]
[75,"生年月日（西暦）3","→","変換チェック_和暦",null,"→",60,null,"世帯構成員3生年月日_元号","2:NAGVBAC008",61]
[75,"生年月日（西暦）3","→","単純転送",null,"→",61,null,"世帯構成員3生年月日",6,62]
[76,"年齢3","→",null,null,"→"]
[77,"健康状態等3","→","単純転送",null,"→",62,null,"世帯構成員3健康状態等","-",63]
[78,"備考（勤務先名称／通学（園）先名称　等）3","→","単純転送",null,"→",63,null,"世帯構成員3備考（現在の状況）_勤務先/通学（園）先","-",64]
[79,"氏名4","→","単純転送",null,"→",65,null,"世帯構成員4カナ氏名","-",67]
[80,"氏名（カナ）4","→","変換半角",null,"→",66,null,"世帯構成員4漢字氏名","-",66]
[81,"続柄（申込児童からみた関係）4","→","変換コンボ",null,"→",67,null,"世帯構成員4続柄","2:NAGVBAS004",68]
[82,"続柄（申込児童からみた関係：その他）4","→","単純転送",null,"→",68,null,"世帯構成員4続柄_入力","-",69]
[83,"生年月日（西暦）4","→","変換チェック_和暦",null,"→",69,null,"世帯構成員4生年月日_元号","2:NAGVBAC008",70]
[83,"生年月日（西暦）4","→","単純転送",null,"→",70,null,"世帯構成員4生年月日",6,71]
[84,"年齢4","→",null,null,"→"]
[85,"健康状態等4","→","単純転送",null,"→",71,null,"世帯構成員4健康状態等","-",72]
[86,"備考（勤務先名称／通学（園）先名称　等）4","→","単純転送",null,"→",72,null,"世帯構成員4備考（現在の状況）_勤務先/通学（園）先","-",73]
[87,"氏名5","→","単純転送",null,"→",74,null,"世帯構成員5カナ氏名","-",76]
[88,"氏名（カナ）5","→","変換半角",null,"→",75,null,"世帯構成員5漢字氏名","-",75]
[89,"続柄（申込児童からみた関係）5","→","変換コンボ",null,"→",76,null,"世帯構成員5続柄","2:NAGVBAS004",77]
[90,"続柄（申込児童からみた関係：その他）5","→","単純転送",null,"→",77,null,"世帯構成員5続柄_入力","-",78]
[91,"生年月日（西暦）5","→","変換チェック_和暦",null,"→",78,null,"世帯構成員5生年月日_元号","2:NAGVBAC008",79]
[91,"生年月日（西暦）5","→","単純転送",null,"→",79,null,"世帯構成員5生年月日",6,80]
[92,"年齢5","→",null,null,"→"]
[93,"健康状態等5","→","単純転送",null,"→",80,null,"世帯構成員5健康状態等","-",81]
[94,"備考（勤務先名称／通学（園）先名称　等）5","→","単純転送",null,"→",81,null,"世帯構成員5備考（現在の状況）_勤務先/通学（園）先","-",82]
[95,"氏名6","→","単純転送",null,"→",83,null,"世帯構成員6カナ氏名","-",85]
[96,"氏名（カナ）6","→","変換半角",null,"→",84,null,"世帯構成員6漢字氏名","-",84]
[97,"続柄（申込児童からみた関係）6","→","変換コンボ",null,"→",85,null,"世帯構成員6続柄","2:NAGVBAS004",86]
[98,"続柄（申込児童からみた関係：その他）6","→","単純転送",null,"→",86,null,"世帯構成員6続柄_入力","-",87]
[99,"生年月日（西暦）6","→","変換チェック_和暦",null,"→",87,null,"世帯構成員6生年月日_元号","2:NAGVBAC008",88]
[99,"生年月日（西暦）6","→","単純転送",null,"→",88,null,"世帯構成員6生年月日",6,89]
[100,"年齢6","→",null,null,"→"]
[101,"健康状態等6","→","単純転送",null,"→",89,null,"世帯構成員6健康状態等","-",90]
[102,"備考（勤務先名称／通学（園）先名称　等）6","→","単純転送",null,"→",90,null,"世帯構成員6備考（現在の状況）_勤務先/通学（園）先","-",91]
[103,"申込み区分","→","変換チェック",null,"→",93,"保育施設・事業所の利用申込み内容","申込み区分","2:NAGVBAC009",94]
[104,"育児休業からの復職の意思","→","変換チェック",null,"→",137,null,"育児休業からの\n復職の意思","2:NAGVBAC017",138,null,"2022/10/17　加藤　順変更"]
[105,"育児休業からの復職時期","→","単純転送",null,"→",138,null,"復職時期","-",139,null,"2022/10/17　加藤　順変更"]
[106,"利用中の施設・事業所名称","→","単純転送",null,"→",94,null,"転園利用申込み選択時_利用中の施設・事業所名","-",95]
[107,"利用中の施設・事業所の今後の利用意向","→","変換チェック",null,"→",95,null,"転園利用申込み選択時_区分","2:NAGVBAC010",96]
[108,"【第１希望】希望施設・事業所_所在区","→","変換特殊;自他区",null,"→",96,null,"第1希望_施設・事業所名称_区",null,97]
[109,"希望施設・事業所（北区_保育所）","→","変換施設",null,"→",97,null,"第1希望_施設・事業所名称",8,98]
[110,"希望施設・事業所（　区_保育所）","→","変換施設",null,"→",null,null,null,null,98]
[111,"希望施設・事業所（北区_認定こども園）","→","変換施設",null,"→",null,null,null,null,98]
[112,"希望施設・事業所（北区_地域型保育事業）","→","変換施設",null,"→",null,null,null,null,98]
[113,"希望施設・事業所（他区_施設・事業所_所在区）","→","変換コンボ",null,"→",96,null,"第1希望_施設・事業所名称_区","2:NAGVBAS005",97]
[114,"希望施設・事業所（他区_施設・事業所）","→","変換施設",null,"→",null,null,null,null,98]
[115,"【第１希望】希望施設・事業所の見学","→","変換チェック",null,"→",98,null,"第1希望_見学の有無","2:NAGVBAC011",99]
[116,"【第１希望】希望施設・事業所の見学（予定）日","→","単純転送",null,"→",99,null,"第1希望_見学の有無_未_予定日","-",100]
[117,"【第２希望】希望施設・事業所_所在区","→","変換特殊;自他区",null,"→",100,null,"第2希望_施設・事業所名称_区",null,101]
[118,"希望施設・事業所（北区_保育所）","→","変換施設",null,"→",101,null,"第2希望_施設・事業所名称",8,102]
[119,"希望施設・事業所（　区_保育所）","→","変換施設",null,"→",null,null,null,null,102]
[120,"希望施設・事業所（北区_認定こども園）","→","変換施設",null,"→",null,null,null,null,102]
[121,"希望施設・事業所（北区_地域型保育事業）","→","変換施設",null,"→",null,null,null,null,102]
[122,"希望施設・事業所（他区_施設・事業所_所在区）","→","変換コンボ",null,"→",100,null,"第2希望_施設・事業所名称_区","2:NAGVBAS005",101]
[123,"希望施設・事業所（他区_施設・事業所）","→","変換施設",null,"→",null,null,null,null,102]
[124,"【第２希望】希望施設・事業所の見学","→","変換チェック",null,"→",102,null,"第2希望_見学の有無","2:NAGVBAC011",103]
[125,"【第２希望】希望施設・事業所の見学（予定）日","→","単純転送",null,"→",103,null,"第2希望_見学の有無_未_予定日","-",104]
[126,"【第３希望】希望施設・事業所_所在区","→","変換特殊;自他区",null,"→",104,null,"第3希望_施設・事業所名称_区",null,105]
[127,"希望施設・事業所（北区_保育所）","→","変換施設",null,"→",105,null,"第3希望_施設・事業所名称",8,106]
[128,"希望施設・事業所（　区_保育所）","→","変換施設",null,"→",null,null,null,null,106]
[129,"希望施設・事業所（北区_認定こども園）","→","変換施設",null,"→",null,null,null,null,106]
[130,"希望施設・事業所（北区_地域型保育事業）","→","変換施設",null,"→",null,null,null,null,106]
[131,"希望施設・事業所（他区_施設・事業所_所在区）","→","変換コンボ",null,"→",104,null,"第3希望_施設・事業所名称_区","2:NAGVBAS005",105]
[132,"希望施設・事業所（他区_施設・事業所）","→","変換施設",null,"→",null,null,null,null,106]
[133,"【第３希望】希望施設・事業所の見学","→","変換チェック",null,"→",106,null,"第3希望_見学の有無","2:NAGVBAC011",107]
[134,"【第３希望】希望施設・事業所の見学（予定）日","→","単純転送",null,"→",107,null,"第3希望_見学の有無_未_予定日","-",108]
[135,"【第４希望】希望施設・事業所_所在区","→","変換特殊;自他区",null,"→",108,null,"第4希望_施設・事業所名称_区",null,109]
[136,"希望施設・事業所（北区_保育所）","→","変換施設",null,"→",109,null,"第4希望_施設・事業所名称",8,110]
[137,"希望施設・事業所（　区_保育所）","→","変換施設",null,"→",null,null,null,null,110]
[138,"希望施設・事業所（北区_認定こども園）","→","変換施設",null,"→",null,null,null,null,110]
[139,"希望施設・事業所（北区_地域型保育事業）","→","変換施設",null,"→",null,null,null,null,110]
[140,"希望施設・事業所（他区_施設・事業所_所在区）","→","変換コンボ",null,"→",108,null,"第4希望_施設・事業所名称_区","2:NAGVBAS005",109]
[141,"希望施設・事業所（他区_施設・事業所）","→","変換施設",null,"→",null,null,null,null,110]
[142,"【第４希望】希望施設・事業所の見学","→","変換チェック",null,"→",110,null,"第4希望_見学の有無","2:NAGVBAC011",111]
[143,"【第４希望】希望施設・事業所の見学（予定）日","→","単純転送",null,"→",111,null,"第4希望_見学の有無_未_予定日","-",112]
[144,"【第５希望】希望施設・事業所_所在区","→","変換特殊;自他区",null,"→",112,null,"第5希望_施設・事業所名称_区",null,113]
[145,"希望施設・事業所（北区_保育所）","→","変換施設",null,"→",113,null,"第5希望_施設・事業所名称",8,114]
[146,"希望施設・事業所（　区_保育所）","→","変換施設",null,"→",null,null,null,null,114]
[147,"希望施設・事業所（北区_認定こども園）","→","変換施設",null,"→",null,null,null,null,114]
[148,"希望施設・事業所（北区_地域型保育事業）","→","変換施設",null,"→",null,null,null,null,114]
[149,"希望施設・事業所（他区_施設・事業所_所在区）","→","変換コンボ",null,"→",112,null,"第5希望_施設・事業所名称_区","2:NAGVBAS005",113]
[150,"希望施設・事業所（他区_施設・事業所）","→","変換施設",null,"→",null,null,null,null,114]
[151,"【第５希望】希望施設・事業所の見学","→","変換チェック",null,"→",114,null,"第5希望_見学の有無","2:NAGVBAC011",115]
[152,"【第５希望】希望施設・事業所の見学（予定）日","→","単純転送",null,"→",115,null,"第5希望_見学の有無_未_予定日","-",116]
[153,"【第６希望】希望施設・事業所_所在区","→","変換特殊;自他区",null,"→",116,null,"第6希望_施設・事業所名称_区",null,117]
[154,"希望施設・事業所（北区_保育所）","→","変換施設",null,"→",117,null,"第6希望_施設・事業所名称",8,118]
[155,"希望施設・事業所（　区_保育所）","→","変換施設",null,"→",null,null,null,null,118]
[156,"希望施設・事業所（北区_認定こども園）","→","変換施設",null,"→",null,null,null,null,118]
[157,"希望施設・事業所（北区_地域型保育事業）","→","変換施設",null,"→",null,null,null,null,118]
[158,"希望施設・事業所（他区_施設・事業所_所在区）","→","変換コンボ",null,"→",116,null,"第6希望_施設・事業所名称_区","2:NAGVBAS005",117]
[159,"希望施設・事業所（他区_施設・事業所）","→","変換施設",null,"→",null,null,null,null,118]
[160,"【第６希望】希望施設・事業所の見学","→","変換チェック",null,"→",118,null,"第6希望_見学の有無","2:NAGVBAC011",119]
[161,"【第６希望】希望施設・事業所の見学（予定）日","→","単純転送",null,"→",119,null,"第6希望_見学の有無_未_予定日","-",120]
[162,"民間移管施設の利用希望","→",null,null,"→"]
[163,"民間移管施設を希望する場合の注意事項","→",null,null,"→"]
[164,"民間移管に関する注意項目①","→",null,null,"→"]
[165,"民間移管に関する注意項目②","→",null,null,"→"]
[166,"民間移管に関する注意項目③","→",null,null,"→"]
[167,"民間移管に関する注意項目④","→",null,null,"→"]
[168,"民間移管に関する注意項目⑤","→",null,null,"→"]
[169,"民間移管に関する注意項目⑥","→",null,null,"→"]
[170,"民間移管に関する注意項目⑦","→",null,null,"→"]
[171,null,null,null,null,null,null,null,null,null,null,null,"2022/10/17　加藤追加"]
[172,"利用（転園）を希望する理由","→","単純転送",null,"→",120,null,"利用（転園）希望理由","-",121]
[173,"希望施設・事業所以外の調整","→","変換チェック",null,"→",121,null,"利用希望施設・事業所のいずれも利用できない場合、社会福祉事務所において他の施設・事業所の利用のための調整を行うことを希望するか。","2:NAGVBAC012",122]
[174,"利用希望時間（平日）","→","～転送前",null,"→",122,null,"利用希望時間_平日開始","-",123]
[174,"利用希望時間（平日）","→","～転送後",null,"→",123,null,"利用希望時間_平日終了","-",124]
[175,"利用希望時間（土曜日）","→","～転送前",null,"→",124,null,"利用希望時間_土曜日開始","-",125]
[175,"利用希望時間（土曜日）","→","～転送後",null,"→",125,null,"利用希望時間_土曜日終了","-",126]
[176,"利用希望時間（日・祝日）","→","～転送前",null,"→",126,null,"利用希望時間_日・祝日開始","-",127]
[176,"利用希望時間（日・祝日）","→","～転送後",null,"→",127,null,"利用希望時間_日・祝日終了","-",128]
[177,"送迎される方（送り）","→","変換チェック",null,"→",128,null,"送迎方法_送り","2:NAGVBAC013",129]
[178,"送迎される方（送り：その他）","→","単純転送",null,"→",129,null,"送迎方法_送り_その他内容","-",130]
[179,"送迎される方（迎え）","→","変換チェック",null,"→",130,null,"送迎方法_迎え","2:NAGVBAC014",131]
[180,"送迎される方（迎え：その他）","→","単純転送",null,"→",131,null,"送迎方法_迎え_その他内容","-",132]
[181,"送迎方法（使用可能な手段）","→","変換チェック",null,"→",132,null,"送迎方法_使用可能な手段","2:NAGVBAC015",133]
[182,"送迎方法（使用可能な手段：その他）","→","単純転送",null,"→",133,null,"送迎方法_使用可能な手段_その他内容","-",134]
[183,"利用希望期間（開始）","→","単純転送",null,"→",134,null,"利用希望期間選択_利用希望期間開始","-",135]
[185,"利用希望期間（終了）（年月日）","→","変換チェック",null,"→",135,null,"利用希望期間選択","2:NAGVBAC016",136]
[184,"利用希望期間（終了）","→","単純転送",null,"→",136,null,"利用希望期間選択_利用希望期間終了","-",137]
[186,"希望する保育必要量","→","変換チェック",null,"→",139,null,"希望する保育必要量","2:NAGVBAC018",140]
[187,"保護者①（申込児童からみた続柄）","→","変換チェック",null,"→",140,"父母等の状況_保育が必要な事由","利用希望理由_父_区分","2:NAGVBAC019",141]
[187,"保護者①（申込児童からみた続柄）","→","変換コンボ除外;父",null,"→",141,null,"利用希望理由_父の状況","2:NAGVBAS006",142]
[188,"保護者①（申込児童からみた続柄_その他）","→","単純転送",null,"→",141,null,"利用希望理由_父の状況","-",158]
[189,"保育の必要な事由が「就労」_保護者①","→","変換チェック","|","→",142,null,"利用希望理由_父_保育の必要な事由","2:NAGVBAC020",143]
[189,"保育の必要な事由「産前産後」_保護者①","→","変換チェック","|","→",null,null,null,"2:NAGVBAC020",143]
[189,"保育の必要な事由「疾病等」_保護者①","→","変換チェック","|","→",null,null,null,"2:NAGVBAC020",143]
[189,"保育の必要な事由「親族介護」_保護者①","→","変換チェック","|","→",null,null,null,"2:NAGVBAC020",143]
[189,"保育の必要な事由「災害復旧」_保護者①","→","変換チェック","|","→",null,null,null,"2:NAGVBAC020",143]
[189,"保育の必要な事由「求職活動」_保護者①","→","変換チェック","|","→",null,null,null,"2:NAGVBAC020",143]
[189,"保育の必要な事由「就学」_保護者①","→","変換チェック","|","→",null,null,null,"2:NAGVBAC020",143]
[189,"保育の必要な事由「発達援助」_保護者①","→","変換チェック","|","→",null,null,null,"2:NAGVBAC020",143]
[189,"保育の必要な事由「育児休業（利用開始希望）」_保護者①","→","変換チェック",null,"→",null,null,null,"2:NAGVBAC020",143]
[190,"添付ファイルの選択",null,null,null,null,null,null,null,null,null,null,"2022/10/17　加藤追加"]
[191,"添付ファイルの選択",null,null,null,null,null,null,null,null,null,null,"2022/10/17　加藤追加"]
[192,"添付ファイルの選択",null,null,null,null,null,null,null,null,null,null,"2022/10/17　加藤追加"]
[193,"添付ファイルの選択",null,null,null,null,null,null,null,null,null,null,"2022/10/17　加藤追加"]
[194,"添付ファイルの選択",null,null,null,null,null,null,null,null,null,null,"2022/10/17　加藤追加"]
[195,"添付ファイルの選択",null,null,null,null,null,null,null,null,null,null,"2022/10/17　加藤追加"]
[196,"添付ファイルの選択",null,null,null,null,null,null,null,null,null,null,"2022/10/17　加藤追加"]
[197,"添付ファイルの選択",null,null,null,null,null,null,null,null,null,null,"2022/10/17　加藤追加"]
[198,"添付ファイルの選択",null,null,null,null,null,null,null,null,null,null,"2022/10/17　加藤追加"]
[199,"【1ファイル目】選択した必要書類を添付してください。",null,null,null,null,null,null,null,null,null,null,"2022/10/17　加藤追加"]
[200,"【2ファイル目】選択した必要書類を添付してください。",null,null,null,null,null,null,null,null,null,null,"2022/10/17　加藤追加"]
[201,"【3ファイル目】選択した必要書類を添付してください。",null,null,null,null,null,null,null,null,null,null,"2022/10/17　加藤追加"]
[202,"【4ファイル目】選択した必要書類を添付してください。",null,null,null,null,null,null,null,null,null,null,"2022/10/17　加藤追加"]
[203,"【5ファイル目】選択した必要書類を添付してください。",null,null,null,null,null,null,null,null,null,null,"2022/10/17　加藤追加"]
[204,"１日あたりの勤務時間_保護者①","→","変換転送;時間",null,"→",143,null,"利用希望理由_父_就労又は就学_一日の時間","-",144]
[205,"１週間あたりの勤務日数_保護者①","→","変換転送;日",null,"→",144,null,"利用希望理由_父_就労又は就学_週の日数","-",145]
[206,"1か月あたりの勤務日数_保護者①","→","変換転送;日",null,"→",146,null,"利用希望理由_父_就労又は就学_一ヶ月の日数","-",147]
[207,"勤務時間（平日）_保護者①","→","～転送前",null,"→",147,null,"利用希望理由_父_就労又は就学_平日開始時間","-",148]
[207,"勤務時間（平日）_保護者①",null,"～転送後",null,null,148,null,"利用希望理由_父_就労又は就学_平日終了時間","-",149]
[208,"休憩時間（平日）_保護者①","→","変換転送;分",null,"→",149,null,"利用希望理由_父_就労又は就学_平日休憩時間","-",150]
[209,"勤務時間（土曜日）_保護者①","→","～転送前",null,"→",150,null,"利用希望理由_父_就労又は就学_土曜開始時間","-",151]
[209,"勤務時間（土曜日）_保護者①",null,"～転送後",null,null,151,null,"利用希望理由_父_就労又は就学_土曜終了時間","-",152]
[210,"休憩時間（土曜日）_保護者①","→","変換転送;分",null,"→",152,null,"利用希望理由_父_就労又は就学_土曜休憩時間","-",153]
[211,"勤務時間（日曜日）_保護者①","→","～転送前",null,"→",153,null,"利用希望理由_父_就労又は就学_日曜開始時間","-",154]
[211,"勤務時間（日曜日）_保護者①",null,"～転送後",null,null,154,null,"利用希望理由_父_就労又は就学_日曜終了時間","-",155]
[212,"休憩時間（日曜日）_保護者①","→","変換転送;分",null,"→",155,null,"利用希望理由_父_就労又は就学_日曜休憩時間","-",156]
[213,"休日（定期・不定期／１月あたりの日数）_保護者①","→","単純転送",null,"→",156,null,"利用希望理由_父_就労又は就学_休日曜日","-",157]
[213,"休日（定期・不定期／１月あたりの日数）_保護者①","→","変換チェック",null,"→",158,null,"利用希望理由_父_就労又は就学_祝日・不定休_祝日","-",157,"★下の行削除"]
[214,"就労内容_保護者①","→","単純転送",null,"→",160,null,"利用希望理由_父_就労又は就学_就労内容","-",161,null,"2022/10/17　加藤　順変更"]
[215,"産休・育休の取得_保護者①","→","変換チェック",null,"→",162,null,"利用希望理由_父_就労又は就学_産休・育休の取得","2:NAGVBAC022",163,null,"2022/10/17　加藤　順変更"]
[216,"産休・育休の取得期間_保護者①","→","～転送前",null,"→",163,null,"利用希望理由_父_就労又は就学_産休・育休取得期間開始","-",164,null,"2022/10/17　加藤　順変更"]
[216,"産休・育休の取得期間_保護者①",null,"～転送後",null,null,164,null,"利用希望理由_父_就労又は就学_産休・育休取得期間終了","-",165,null,"2022/10/17　加藤　順変更"]
[217,"育児短縮勤務_保護者①","→","変換チェック",null,"→",165,null,"利用希望理由_父_就労又は就学_育児短縮勤務","2:NAGVBAC023",166,null,"2022/10/17　加藤　順変更"]
[218,"育児短縮勤務の取得期間_保護者①","→","～転送前",null,"→",166,null,"利用希望理由_父_就労又は就学_育児短縮勤務期間開始","-",167,null,"2022/10/17　加藤　順変更"]
[218,"育児短縮勤務の取得期間_保護者①",null,"～転送後",null,"→",167,null,"利用希望理由_父_就労又は就学_育児短縮勤務期間終了","-",168,null,"2022/10/17　加藤　順変更"]
[219,"育児短縮勤務（取得中の勤務時間）_保護者①","→","～転送前",null,null,168,null,"利用希望理由_父_就労又は就学_育児短縮勤務時間開始","-",169,null,"2022/10/17　加藤　順変更"]
[219,"育児短縮勤務（取得中の勤務時間）_保護者①",null,"～転送後",null,null,169,null,"利用希望理由_父_就労又は就学_育児短縮勤務時間終了","-",170,null,"2022/10/17　加藤　順変更"]
[220,"通勤方法_保護者①","→","変換チェック空白除外",null,"→",170,null,"通勤(通学)方法_父","2:NAGVBAC024",171,null,"2022/10/17　加藤　順変更"]
[221,"通勤方法（その他）_保護者①","→","単純転送",null,"→",171,null,"通勤(通学)方法_父_その他","-",172,null,"2022/10/17　加藤　順変更"]
[222,"通勤時間（行き）_保護者①","→","変換転送;分",null,"→",172,null,"通勤(通学)時間_父_行き","-",173,null,"2022/10/17　加藤　順変更"]
[223,"通勤時間（帰り）_保護者①","→","変換転送;分",null,"→",173,null,"通勤(通学)時間_父_帰り","-",174,null,"2022/10/17　加藤　順変更"]
[224,"就労先住所_保護者①","→","単純転送",null,"→",null,null,"就労先住所_保護者①","-",369,null,"2022/10/17　加藤追加"]
[225,"１日あたりの就学時間_保護者①","→","変換転送;時間",null,"→",143,null,"利用希望理由_父_就労又は就学_一日の時間",null,144,null,"2022/10/17　加藤　順変更"]
[226,"１週間あたりの就学日数_保護者①","→","変換転送;日",null,"→",144,null,"利用希望理由_父_就労又は就学_週の日数",null,145,null,"2022/10/17　加藤　順変更"]
[227,"1か月あたりの就学日数_保護者①","→","変換転送;日",null,"→",146,null,"利用希望理由_父_就労又は就学_一ヶ月の日数",null,147,null,"2022/10/17　加藤　順変更"]
[228,"就学時間（平日）_保護者①","→","～転送前",null,"→",null,null,null,null,148]
[228,"就学時間（平日）_保護者①","→","～転送後",null,"→",null,null,null,null,149]
[208,"休憩時間（平日）_保護者①","→","変換転送;分",null,"→",null,null,null,null,150]
[230,"就学時間（土曜日）_保護者①","→","～転送前",null,"→",null,null,null,null,151]
[230,"就学時間（土曜日）_保護者①","→","～転送後",null,"→",null,null,null,null,152]
[210,"休憩時間（土曜日）_保護者①","→","変換転送;分",null,"→",null,null,null,null,153]
[232,"就学時間（日曜日）_保護者①","→","～転送前",null,"→",null,null,null,null,154]
[232,"就学時間（日曜日）_保護者①","→","～転送後",null,"→",null,null,null,null,155]
[212,"休憩時間（日曜日）_保護者①","→","変換転送;分",null,"→",null,null,null,null,156]
[213,"休日（定期・不定期／１月あたりの日数）_保護者①","→","変換チェック",null,"→",158,null,"利用希望理由_父_就労又は就学_祝日・不定休_祝日","-",157,"★下の行削除"]
[235,"卒業（終了）日_保護者①","→","単純転送",null,"→",161,null,"利用希望理由_父_就労又は就学_卒業日","-",162]
[236,"通学方法_保護者①","→","変換チェック空白除外",null,"→",null,null,"通勤(通学)方法_父","2:NAGVBAC024",171]
[237,"通学方法（その他）_保護者①","→","単純転送",null,"→",null,null,"通勤(通学)方法_父_その他",null,172]
[238,"通学時間（行き）_保護者①","→","変換転送;分",null,"→",null,null,null,null,173]
[239,"通学時間（帰り）_保護者①","→","変換転送;分",null,"→",null,null,null,null,174]
[240,"通学先住所_保護者①","→","単純転送",null,"→",null,null,"通学先住所_保護者①","-",370,null,"2022/10/17　加藤追加"]
[241,"疾病等（傷病名）_保護者①","→","単純転送",null,"→",174,null,"父_疾病等_傷病名","-",175]
[242,"疾病等（治療期間）_保護者①","→","～転送前",null,"→",175,null,"父_疾病等_治療期間開始","-",176]
[242,"疾病等（治療期間）_保護者①","→","～転送後",null,"→",176,null,"父_疾病等_治療期間終了","-",177]
[244,"疾病等（手帳の種類）_保護者①","→","単純転送",null,"→",177,null,"父_疾病等_手帳の種類","-",178]
[245,"疾病等（手帳の等級）_保護者①","→","単純転送",null,"→",178,null,"父_疾病等_総合等級","-",179]
[246,"被介護（看護）者（氏名）_保護者①","→","単純転送",null,"→",179,null,"父_被介護（看護）者氏名","-",180]
[247,"被介護（看護）者（申込児童との続柄）_保護者①","→","単純転送",null,"→",180,null,"父_被介護（看護）者氏名_続柄","-",181]
[248,"被介護（看護）者（住所）_保護者①","→","変換チェック",null,"→",182,null,"父_被介護（看護）者住所_同居","2:NAGVBAC025",183]
[248,"被介護（看護）者（住所）_保護者①","→","単純転送",null,"→",181,null,"父_被介護（看護）者別居先","-",182]
[250,"被介護（看護）者（傷病名）_保護者①","→","単純転送",null,"→",183,null,"父_被介護（看護）_疾病等_傷病名","-",184]
[251,"被介護（看護）者（手帳取得）_保護者①","→",null,null,"→"]
[252,"被介護（看護）者（手帳の種類）_保護者①","→","単純転送",null,"→",184,null,"父_父_被介護（看護）_疾病等_手帳の種類","-",185]
[253,"被介護（看護）者（手帳の等級）_保護者①","→","単純転送",null,"→",185,null,"父_父_被介護（看護）_疾病等_総合等級","-",186]
[254,"居所_保護者①","→","単純転送",null,"→",null,null,"居所_保護者①","-",371,null,"2022/10/17　加藤追加"]
[255,"不在の場合（事由）_保護者①","→","変換チェック",null,"→",186,null,"父_不在の場合","2:NAGVBAC026",187]
[256,"不在の場合（事由_その他）_保護者①","→","単純転送",null,"→",187,null,"父_不在の場合_その他","-",188]
[257,"不在の場合（別居開始日）_保護者①","→","単純転送",null,"→",188,null,"父_不在の場合_別居開始日","-",189]
[258,"不在の場合（居所）_保護者①","→","単純転送",null,"→",189,null,"父_不在の場合_別居先","-",190]
[259,"ひとり親世帯","→",null,null,"→"]
[260,"保護者②（申込児童との続柄）","→","変換チェック",null,"→",190,null,"利用希望理由_母_区分","2:NAGVBAC027",191]
[260,"保護者②（申込児童との続柄）","→","変換コンボ除外;母",null,"→",191,null,"利用希望理由_母の状況","2:NAGVBAS007",192]
[261,"保護者②（その他）","→","単純転送",null,"→",141,null,"利用希望理由_母の状況","-",208]
[262,"保育の必要な事由が「就労」＿保護者②","→","変換チェック","|","→",192,null,"利用希望理由_母_保育の必要な事由","2:NAGVBAC028",193]
[262,"保育の必要な事由が「産前産後」＿保護者②","→","変換チェック","|","→",null,null,null,"2:NAGVBAC028",193]
[262,"保育の必要な事由が「疾病等」＿保護者②","→","変換チェック","|","→",null,null,null,"2:NAGVBAC028",193]
[262,"保育の必要な事由が「親族介護」＿保護者②","→","変換チェック","|","→",null,null,null,"2:NAGVBAC028",193]
[262,"保育の必要な事由が「災害復旧」＿保護者②","→","変換チェック","|","→",null,null,null,"2:NAGVBAC028",193]
[262,"保育の必要な事由が「求職活動」＿保護者②","→","変換チェック","|","→",null,null,null,"2:NAGVBAC028",193]
[262,"保育の必要な事由が「就学」＿保護者②","→","変換チェック","|","→",null,null,null,"2:NAGVBAC028",193]
[262,"保育の必要な事由が「発達援助」＿保護者②","→","変換チェック","|","→",null,null,null,"2:NAGVBAC028",193]
[262,"保育の必要な事由が「育児休業（利用開始希望日時点）」＿保護者②","→","変換チェック",null,"→",null,null,null,"2:NAGVBAC028",193]
[263,"添付ファイルの選択",null,null,null,null,null,null,null,null,null,null,"2022/10/17　加藤追加"]
[264,"添付ファイルの選択",null,null,null,null,null,null,null,null,null,null,"2022/10/17　加藤追加"]
[265,"添付ファイルの選択",null,null,null,null,null,null,null,null,null,null,"2022/10/17　加藤追加"]
[266,"添付ファイルの選択",null,null,null,null,null,null,null,null,null,null,"2022/10/17　加藤追加"]
[267,"添付ファイルの選択",null,null,null,null,null,null,null,null,null,null,"2022/10/17　加藤追加"]
[268,"添付ファイルの選択",null,null,null,null,null,null,null,null,null,null,"2022/10/17　加藤追加"]
[269,"添付ファイルの選択",null,null,null,null,null,null,null,null,null,null,"2022/10/17　加藤追加"]
[270,"添付ファイルの選択",null,null,null,null,null,null,null,null,null,null,"2022/10/17　加藤追加"]
[271,"添付ファイルの選択",null,null,null,null,null,null,null,null,null,null,"2022/10/17　加藤追加"]
[272,"【1ファイル目】選択した必要書類を添付してください。",null,null,null,null,null,null,null,null,null,null,"2022/10/17　加藤追加"]
[273,"【2ファイル目】選択した必要書類を添付してください。",null,null,null,null,null,null,null,null,null,null,"2022/10/17　加藤追加"]
[274,"【3ファイル目】選択した必要書類を添付してください。",null,null,null,null,null,null,null,null,null,null,"2022/10/17　加藤追加"]
[275,"【4ファイル目】選択した必要書類を添付してください。",null,null,null,null,null,null,null,null,null,null,"2022/10/17　加藤追加"]
[276,"【5ファイル目】選択した必要書類を添付してください。",null,null,null,null,null,null,null,null,null,null,"2022/10/17　加藤追加"]
[277,"１日あたりの勤務時間_保護者②","→","変換転送;時間",null,"→",193,null,"利用希望理由_母_就労又は就学_一日の時間","-",194]
[278,"１週間あたりの勤務日数_保護者②","→","変換転送;日",null,"→",194,null,"利用希望理由_母_就労又は就学_週の日数","-",195]
[279,"１か月あたりの勤務日数_保護者②","→","変換転送;日",null,"→",196,null,"利用希望理由_母_就労又は就学_一ヶ月の日数","-",197]
[280,"勤務時間（平日）_保護者②","→","～転送前",null,"→",197,null,"利用希望理由_母_就労又は就学_平日開始時間","-",198,null,"2022/10/17　加藤　順変更"]
[280,"勤務時間（平日）_保護者②","→","～転送後",null,"→",197,null,"利用希望理由_母_就労又は就学_平日開始時間","-",199,null,"2022/10/17　加藤　順変更"]
[281,"休憩時間（平日）_保護者②","→","変換転送;分",null,"→",199,null,"利用希望理由_母_就労又は就学_平日休憩時間","-",200,null,"2022/10/17　加藤　順変更"]
[282,"勤務時間（土曜日）_保護者②","→","～転送前",null,"→",200,null,"利用希望理由_母_就労又は就学_土曜開始時間","-",201,null,"2022/10/17　加藤　順変更"]
[282,"勤務時間（土曜日）_保護者②","→","～転送後",null,"→",200,null,"利用希望理由_母_就労又は就学_土曜終了時間","-",202,null,"2022/10/17　加藤　順変更"]
[283,"休憩時間（土曜日）_保護者②","→","変換転送;分",null,"→",202,null,"利用希望理由_母_就労又は就学_土曜休憩時間","-",203,null,"2022/10/17　加藤　順変更"]
[284,"勤務時間（日曜日）_保護者②","→","～転送前",null,"→",203,null,"利用希望理由_母_就労又は就学_日曜開始時間","-",204,null,"2022/10/17　加藤　順変更"]
[284,"勤務時間（日曜日）_保護者②","→","～転送後",null,"→",203,null,"利用希望理由_母_就労又は就学_日曜終了時間","-",205,null,"2022/10/17　加藤　順変更"]
[285,"休憩時間（日曜日）_保護者②","→","変換転送;分",null,"→",205,null,"利用希望理由_母_就労又は就学_日曜休憩時間","-",206,null,"2022/10/17　加藤　順変更"]
[286,"休日（定期・不定期／１月あたりの日数）_保護者②","→","単純転送",null,"→",206,null,"利用希望理由_母_就労又は就学_休日曜日","-",207,null,"2022/10/17　加藤　順変更"]
[287,"就労内容_保護者②","→","単純転送",null,"→",210,null,"利用希望理由_母_就労又は就学_就労内容","-",211,null,"2022/10/17　加藤　順変更"]
[288,"産休・育休の取得_保護者②","→","変換チェック",null,"→",212,null,"利用希望理由_母_就労又は就学_産休・育休の取得","2:NAGVBAC030",213,null,"2022/10/17　加藤　順変更"]
[289,"産休・育休の取得期間_保護者②","→","～転送前",null,"→",213,null,"利用希望理由_母_就労又は就学_産休・育休取得期間開始","-",214,null,"2022/10/17　加藤　順変更"]
[289,"産休・育休の取得期間_保護者②","→","～転送後",null,null,214,null,"利用希望理由_母_就労又は就学_産休・育休取得期間終了","-",215,null,"2022/10/17　加藤　順変更"]
[290,"育児短時間勤務_保護者②","→","変換チェック",null,"→",215,null,"利用希望理由_母_就労又は就学_育児短縮勤務","2:NAGVBAC031",216,null,"2022/10/17　加藤　順変更"]
[291,"育児短時間勤務の取得期間_保護者②",null,"～転送前",null,null,216,null,"利用希望理由_母_就労又は就学_育児短縮勤務期間開始","-",217,null,"2022/10/17　加藤　順変更"]
[291,"育児短時間勤務の取得期間_保護者②","→","～転送後",null,"→",217,null,"利用希望理由_母_就労又は就学_育児短縮勤務期間終了","-",218,null,"2022/10/17　加藤　順変更"]
[292,"育児短時間勤務（取得中の勤務時間）_保護者②","→","～転送前",null,"→",218,null,"利用希望理由_母_就労又は就学_育児短縮勤務時間開始","-",219,null,"2022/10/17　加藤　順変更"]
[292,"育児短時間勤務（取得中の勤務時間）_保護者②","→","～転送後",null,"→",219,null,"利用希望理由_父_就労又は就学_育児短縮勤務時間終了","-",220,null,"2022/10/17　加藤　順変更"]
[293,"通勤方法_保護者②","→","変換チェック空白除外",null,"→",220,null,"通勤(通学)方法_母","2:NAGVBAC032",221,null,"2022/10/17　加藤　順変更"]
[294,"通勤方法（その他）_保護者②","→","単純転送",null,"→",221,null,"通勤(通学)方法_母_その他","-",222,null,"2022/10/17　加藤　順変更"]
[295,"通勤時間（行き）_保護者②","→","変換転送;分",null,"→",222,null,"通勤(通学)時間_母_行き","-",223,null,"2022/10/17　加藤　順変更"]
[296,"通勤時間（帰り）_保護者②","→","変換転送;分",null,"→",223,null,"通勤(通学)時間_母_帰り","-",224,null,"2022/10/17　加藤　順変更"]
[297,"通勤先住所_保護者②","→","単純転送",null,"→",null,null,"通勤先住所_保護者②","-",372,null,"2022/10/17　加藤追加"]
[298,"１日あたりの就学時間_保護者②","→","変換転送;時間",null,"→",193,null,"利用希望理由_母_就労又は就学_一日の時間",null,194]
[299,"１週間あたりの就学日数_保護者②","→","変換転送;日",null,"→",194,null,"利用希望理由_母_就労又は就学_週の日数",null,195]
[300,"１か月あたりの就学日数_保護者②","→","変換転送;日",null,"→",196,null,"利用希望理由_母_就労又は就学_一ヶ月の日数",null,197]
[301,"就学時間（平日）_保護者②","→","～転送前",null,"→",null,null,null,null,198]
[301,"就学時間（平日）_保護者②",null,"～転送後",null,null,null,null,null,null,199]
[281,"休憩時間（平日）_保護者②","→","変換転送;分",null,"→",null,null,null,null,200]
[303,"就学時間（土曜日）_保護者②","→","～転送前",null,"→",null,null,null,null,201]
[303,"就学時間（土曜日）_保護者②",null,"～転送後",null,null,null,null,null,null,202]
[283,"休憩時間（土曜日）_保護者②","→","変換転送;分",null,"→",null,null,null,null,203]
[305,"就学時間（日曜日）_保護者②","→","～転送前",null,"→",null,null,null,null,204]
[305,"就学時間（日曜日）_保護者②",null,"～転送後",null,null,null,null,null,null,205]
[285,"休憩時間（日曜日）_保護者②","→","変換転送;分",null,"→",null,null,null,null,206]
[286,"休日（定期・不定期／１月あたりの日数）_保護者②","→","単純転送",null,"→",208,null,"利用希望理由_母_就労又は就学_祝日・不定休_祝日","2:NAGVBAC029",207]
[308,"卒業（終了）日","→","単純転送",null,"→",211,null,"利用希望理由_母_就労又は就学_卒業日","-",212]
[309,"通学方法_保護者②","→","変換チェック空白除外",null,"→",null,null,"通勤(通学)方法_母","2:NAGVBAC032",221]
[310,"通学方法（その他）_保護者②","→","単純転送",null,"→",null,null,"通勤(通学)方法_母_その他",null,222]
[311,"通学時間（行き）_保護者②","→","変換転送;分",null,"→",null,null,null,null,223]
[312,"通学時間（帰り）_保護者②","→","変換転送;分",null,"→",null,null,null,null,224]
[313,"通学先住所_保護者②","→","単純転送",null,"→",null,null,"通学先住所_保護者②","-",373,null,"2022/10/17　加藤追加"]
[314,"疾病等（傷病名）_保護者②","→","単純転送",null,"→",224,null,"母_疾病等_傷病名","-",225]
[315,"疾病等（治療期間）_保護者②","→","～転送前",null,"→",225,null,"母_疾病等_治療期間開始","-",226]
[315,"疾病等（治療期間）_保護者②",null,"～転送後",null,null,226,null,"母_疾病等_治療期間終了","-",227]
[316,"疾病等（手帳取得）_保護者②","→",null,null,"→"]
[317,"疾病等（手帳の種類）_保護者②","→","単純転送",null,"→",227,null,"母_疾病等_手帳の種類","-",228]
[318,"疾病等（手帳の等級）_保護者②","→","単純転送",null,"→",228,null,"母_疾病等_総合等級","-",229]
[319,"被介護（看護）者（氏名）_保護者②","→","単純転送",null,"→",229,null,"母_被介護（看護）者氏名","-",230]
[320,"被介護（看護）者（申込児童との続柄）_保護者②","→","単純転送",null,"→",230,null,"母_被介護（看護）者氏名_続柄","-",231]
[321,"被介護（看護）者（住所）_保護者②","→","変換チェック",null,"→",232,null,"母_被介護（看護）者住所_同居","2:NAGVBAC033",233]
[321,"被介護（看護）者（住所）_保護者②","→","単純転送",null,"→",231,null,"母_被介護（看護）者別居先","-",232]
[323,"被介護（看護）者（傷病名）_保護者②","→","単純転送",null,"→",233,null,"母_疾病等_傷病名","-",234]
[324,"被介護（看護）者（手帳取得）_保護者②","→",null,null,"→"]
[325,"被介護（看護）者（手帳の種類）_保護者②","→","単純転送",null,"→",234,null,"母_疾病等_手帳の種類","-",235]
[326,"被介護（看護）者（手帳の等級）_保護者②","→","単純転送",null,"→",235,null,"母_疾病等_総合等級","-",236]
[327,"居所_保護者②","→","単純転送",null,"→",null,null,"居所_保護者②","-",374,null,"2022/10/17　加藤追加"]
[328,"不在の場合（事由）_保護者②","→","変換チェック",null,"→",236,null,"母_不在の場合","2:NAGVBAC034",237]
[329,"不在の場合（事由_その他）_保護者②","→","単純転送",null,"→",237,null,"母_不在の場合_その他","-",238]
[330,"不在の場合（別居開始日）_保護者②","→","単純転送",null,"→",238,null,"母_不在の場合_別居開始日","-",239]
[331,"不在の場合（居所）_保護者②","→","単純転送",null,"→",239,null,"母_不在の場合_別居先","-",240]
[332,"出産予定","→","変換チェック",null,"→",240,null,"母_出産予定","2:NAGVBAC035",241]
[333,"出産（予定）日","→","単純転送",null,"→",241,null,"母_出産予定日","-",242]
[334,"手当受給状況（生活保護）","→","変換チェック",null,"→",242,null,"生活保護_適用なし","2:NAGVBAC036",243]
[335,"担当ケースワーカー","→","単純転送",null,"→",243,null,"生活保護_担当ケースワーカー","-",244]
[336,"手当受給状況（ひとり親関係手当）","→","変換チェック",null,"→",245,null,"ひとり親関係手当","2:NAGVBAC037",246]
[337,"手当受給状況（ひとり親関係手当：内容）","→","変換チェック",null,"→",246,null,"ひとり親関係手当_受給状況","2:NAGVBAC038",247]
[338,"父方の祖父","→",null,null,"→"]
[339,"父方の祖父（氏名）","→","単純転送",null,"→",247,"祖父母の状況","父方祖父氏名","-",248]
[340,"父方の祖父（生年月日）","→","単純転送",null,"→",248,null,"父方祖父生年月日","-",249]
[341,"父方の祖父（年齢）","→","単純転送",null,"→",249,null,"父方祖父年齢","-",250]
[342,"父方の祖父（住所）","→","変換チェック",null,"→",250,null,"父方祖父住所","2:NAGVBAC039",251]
[343,"父方の祖父（住所：詳細）","→","単純転送",null,"→",251,null,"父方祖父住所入力欄","-",252]
[344,"父方の祖父（状況：就労）","→","変換チェック",null,"→",252,null,"父方祖父状況_就労","2:NAGVBAC040",253]
[345,"父方の祖父（状況：健康）","→","変換チェック",null,"→",253,null,"父方祖父状況_健康","2:NAGVBAC041",254]
[346,"父方の祖母","→",null,null,"→"]
[347,"父方の祖母（氏名）","→","単純転送",null,"→",254,null,"父方祖母氏名","-",255]
[348,"父方の祖母（生年月日）","→","単純転送",null,"→",255,null,"父方祖母生年月日","-",256]
[349,"父方の祖母（年齢）","→","単純転送",null,"→",256,null,"父方祖母年齢","-",257]
[350,"父方の祖母（住所）","→","変換チェック",null,"→",257,null,"父方祖母住所","2:NAGVBAC042",258]
[351,"父方の祖母（住所：詳細）","→","単純転送",null,"→",258,null,"父方祖母住所入力欄","-",259]
[352,"父方の祖母（状況：就労）","→","変換チェック",null,"→",259,null,"父方祖母状況","2:NAGVBAC043",260]
[353,"父方の祖母（状況：健康）","→","変換チェック",null,"→",260,null,"父方1状況_健康","2:NAGVBAC044",261]
[354,"母方の祖父","→",null,null,"→"]
[355,"母方の祖父（氏名）","→","単純転送",null,"→",261,null,"母方祖父氏名","-",262]
[356,"母方の祖父（生年月日）","→","単純転送",null,"→",262,null,"母方祖父生年月日","-",263]
[357,"母方の祖父（年齢）","→","単純転送",null,"→",263,null,"母方祖父年齢","-",264]
[358,"母方の祖父（住所）","→","変換チェック",null,"→",264,null,"母方祖父住所","2:NAGVBAC045",265]
[359,"母方の祖父（住所：詳細）","→","単純転送",null,"→",265,null,"母方祖父住所入力欄","-",266]
[360,"母方の祖父（状況：就労）","→","変換チェック",null,"→",266,null,"母方祖父状況","2:NAGVBAC046",267]
[361,"母方の祖父（状況：健康）","→","変換チェック",null,"→",267,null,"母方祖父状況_健康","2:NAGVBAC047",268]
[362,"母方の祖母","→",null,null,"→"]
[363,"母方の祖母（氏名）","→","単純転送",null,"→",268,null,"母方祖母氏名","-",269]
[364,"母方の祖母（生年月日）","→","単純転送",null,"→",269,null,"母方祖母生年月日","-",270]
[365,"母方の祖母（年齢）","→","単純転送",null,"→",270,null,"母方祖母年齢","-",271]
[366,"母方の祖母（住所）","→","変換チェック",null,"→",271,null,"母方祖母住所","2:NAGVBAC048",272]
[367,"母方の祖母（住所：詳細）","→","単純転送",null,"→",272,null,"母方祖母住所入力欄","-",273]
[368,"母方の祖母（状況：就労）","→","変換チェック",null,"→",273,null,"母方祖母状況","2:NAGVBAC049",274]
[369,"母方の祖母（状況：健康）","→","変換チェック",null,"→",274,null,"母方祖父状況_健康","2:NAGVBAC050",275]
[370,"申込児童以外のきょうだいの申込み状況"]
[371,"きょうだい利用の希望詳細_①","→","変換チェック",null,"→",275,"きょうだいで、同時に利用申込みを行う場合","①きょうだいが別々の保育施設等であれば利用できる場合、利用を希望するか。","2:NAGVBAC051",276]
[372,"きょうだい利用の希望詳細_②","→","変換チェック",null,"→",276,null,"②きょうだいが同時に利用できる場合、どちらを希望するか。","2:NAGVBAC052",277,null,"2022/10/17　加藤　下の行削除"]
[373,"利用申込に必要な書類（添付書類を?してください。）","→",null,null,"→"]
[374,"保育所等利用申込に係る申込児童等の状況確認票の添付","→",null,null,"→"]
[375,"ひとり親手当受給に関する確認書類（添付書類を?してください。）","→",null,null,"→"]
[376,"ひとり親世帯であることがわかる書類の添付","→",null,null,"→"]
[null,"家庭でお子さんの保育ができない状況を確認する書類_保護者①","→",null,null,"→"]
[null,"保育の必要な事由（就労）の確認書類の添付_保護者①","→",null,null,"→"]
[null,"家庭でお子さんの保育ができない状況を確認する書類_保護者①","→",null,null,"→"]
[null,"保育の必要な事由（疾病等）の確認書類の添付_保護者①","→",null,null,"→"]
[null,"家庭でお子さんの保育ができない状況を確認する書類_保護者①","→",null,null,"→"]
[null,"保育の必要な事由（親族介護）の確認書類の添付_保護者①","→",null,null,"→"]
[null,"家庭でお子さんの保育ができない状況を確認する書類_保護者①","→",null,null,"→"]
[null,"保育の必要な事由（災害復旧）の確認書類の添付_保護者①","→",null,null,"→"]
[null,"家庭でお子さんの保育ができない状況を確認する書類_保護者①","→",null,null,"→"]
[null,"保育の必要な事由（求職活動）の確認書類の添付_保護者①","→",null,null,"→"]
[null,"家庭でお子さんの保育ができない状況を確認する書類_保護者①","→",null,null,"→"]
[null,"保育の必要な事由（就学）の確認書類の添付_保護者①","→",null,null,"→"]
[null,"家庭でお子さんの保育ができない状況を確認する書類_保護者①","→",null,null,"→"]
[null,"保育の必要な事由（育児休業）の確認書類の添付_保護者①","→",null,null,"→"]
[null,"家庭でお子さんの保育ができない状況を確認する書類＿保護者②","→",null,null,"→"]
[null,"保育の必要な事由（就労）の確認書類の添付_保護者②","→",null,null,"→"]
[null,"家庭でお子さんの保育ができない状況を確認する書類＿保護者②","→",null,null,"→"]
[null,"保育の必要な事由（疾病等）の確認書類の添付_保護者②","→",null,null,"→"]
[null,"家庭でお子さんの保育ができない状況を確認する書類＿保護者②","→",null,null,"→"]
[null,"保育の必要な事由（親族介護）の確認書類の添付_保護者②","→",null,null,"→"]
[null,"家庭でお子さんの保育ができない状況を確認する書類＿保護者②","→",null,null,"→"]
[null,"保育の必要な事由（災害復旧）の確認書類の添付_保護者②","→",null,null,"→"]
[null,"家庭でお子さんの保育ができない状況を確認する書類＿保護者②","→",null,null,"→"]
[null,"保育の必要な事由（求職活動）の確認書類の添付_保護者②","→",null,null,"→"]
[null,"家庭でお子さんの保育ができない状況を確認する書類＿保護者②","→",null,null,"→"]
[null,"保育の必要な事由（就学）の確認書類の添付_保護者②","→",null,null,"→"]
[null,"家庭でお子さんの保育ができない状況を確認する書類＿保護者②","→",null,null,"→"]
[null,"保育の必要な事由（育児休業）の確認書類の添付_保護者②","→",null,null,"→"]
[null,"家庭でお子さんの保育ができない状況を確認する書類","→",null,null,"→"]
[null,"保育の必要な事由（発達援助）が確認できる書類の添付","→",null,null,"→"]
[null,"家庭でお子さんの保育ができない状況／出産（予定）日を確認する書類","→",null,null,"→"]
[null,"保育の必要な事由（産前産後）／出産（予定）日の確認書類の添付","→",null,null,"→"]
[377,"名古屋市外から転居予定での利用申込みをされる場合の必要書類","→",null,null,"→"]
[378,"転入先の住所が確認できる書類の添付","→",null,null,"→"]
[379,"令和３年１月１日時点で居住地が名古屋市以外の方の申込に必要な書類","→",null,null,"→"]
[380,"税額の確認できる書類の添付","→",null,null,"→"]
[381,"収入の確認できる書類","→",null,null,"→"]
[382,"収入の確認できる書類の添付","→",null,null,"→"]
[383,"６５歳未満の親族（祖父母等）と同居の場合に必要な書類","→",null,null,"→"]
[384,"６５歳未満の親族（祖父母等）と同居の場合に必要な書類の添付","→",null,null,"→"]
[385,"その他の提出書類","→",null,null,"→"]
[386,"オンライン利用申込み送信後の内容変更及び必要書類の送付","→",null,null,"→"]
[null,"出産予定_父","→",null,null,"→",null,null,null,null,null,null,"2022/10/17　加藤追加（仮）"]
[null,"出産（予定）日_父","→",null,null,"→",null,null,null,null,null,null,"2022/10/17　加藤追加（仮）"]

{"sheet":"申請CSV→ツール_2","index":9,"n_rows":430,"n_cols":12,"rows_kept":430,"cut":false,"hidden":true,"merged":[]}
["電子申請ファイル",null,null,null,null,null,"申込書フォーマット"]
[null,null,null,"データ",null,null,null,"申込書"]
["No.","項目名",null,"変換","後追記",null,"No","分類","列名","設定値","データ\n列位置"]
[1,"申請ID","→","単純転送",null,"→",3,null,"申請ID","-",4]
[2,"申請日時","→","単純転送",null,"→",5,null,"日付","-",6]
[]
[4,"ステータス","→","単純転送",null,"→",7,null,"ステータス",7,8]
[5,"申請者の種別","→",null,null,"→"]
[6,"名前","→","単純転送",null,"→",8,null,"保護者漢字氏名","-",9]
[7,"名前（カナ）","→","変換半角",null,"→",9,null,"保護者カナ氏名","-",10]
[8,"郵便番号","→","変換郵便番号",null,"→",10,null,"保護者郵便番号",1,11]
[9,"住所 / 所在地","→","単純転送",null,"→",11,null,"保護者現住所","-",12]
[10,"生年月日（西暦）","→",null,null,"→"]
[11,"屋号","→",null,null,"→"]
[12,"屋号（カナ）","→",null,null,"→"]
[13,"法人番号","→",null,null,"→"]
[14,"法人代表者名","→",null,null,"→"]
[15,"電話番号","→",null,null,"→"]
[16,"メールアドレス","→",null,null,"→"]
[17,"連絡担当者名","→",null,null,"→"]
[18,"利用申込みに関する同意事項①","→",null,null,"→"]
[19,"利用申込みに関する同意事項②","→",null,null,"→"]
[20,"転入予定での申込み・市内での転居予定","→",null,null,"→"]
[21,"転入・転居の予定時期（西暦）","→","単純転送",null,"→",12,null,"転居先住所（予定）_転居予定日","-",13]
[22,"転入・転居予定先住所（郵便番号）","→","変換郵便番号",null,"→",13,null,"転居先住所（予定）_郵便番号",2,14]
[23,"転入・転居予定先住所","→","単純転送",null,"→",14,null,"転居先住所（予定）_住所","-",15]
[24,"名古屋市からの送付物発送先","→","変換チェック",null,"→",15,null,"名古屋市からの送付物発送先","2:NAGVBAC001",16]
[25,"名古屋市からの送付物発送先（備考）","→",null,null,"→"]
[26,"名古屋市への過去２年以内の転入歴","→",null,null,"→"]
[27,"転入前住所","→","単純転送",null,"→",16,null,"過去2年以内の転入歴\n(転入元）_県・市名","-",17]
[28,"転入時期（西暦）","→","単純転送",null,"→",17,null,"過去2年以内の転入歴\n(転入日）","-",18]
[29,"連絡先＃１","→","変換チェック",null,"→",18,null,"保護者連絡先1_子どもとの続柄_①チェックボックス","2:NAGVBAC002",19]
[29,"連絡先＃１","→","変換コンボ除外;父",null,null,19,null,"保護者連絡先1_子どもとの続柄_①選択","2:NAGVBAS002",20]
[30,"連絡先その他","→","単純転送",null,"→",20,null,"保護者連絡先1_子どもとの続柄","-",21]
[31,"電話番号","→","単純転送",null,"→",21,null,"保護者連絡先1_電話番号",3,22]
[32,"連絡先＃２","→","変換チェック",null,"→",22,null,"保護者連絡先1_子どもとの続柄_②チェックボックス","2:NAGVBAC003",23]
[32,"連絡先＃２",null,"変換コンボ除外;母",null,null,23,null,"保護者連絡先1_子どもとの続柄_②選択","2:NAGVBAC003",24]
[33,"連絡先その他","→","単純転送",null,"→",24,null,"保護者連絡先2_子どもとの続柄","-",25]
[34,"電話番号","→","単純転送",null,"→",25,null,"保護者連絡先2_電話番号",3,26]
[35,"申込児童氏名","→","単純転送",null,"→",26,null,"申請児童漢字氏名","-",27]
[36,"申込児童氏名（カナ）","→","変換半角",null,"→",27,null,"申請児童カナ氏名","-",28]
[37,"申込者（保護者）との続柄","→",null,null,"→"]
[38,"申込者（保護者）との続柄（その他）","→",null,null,"→"]
[39,"性別","→","変換チェック",null,"→",28,null,"申請児童性別","2:NAGVBAC004",29]
[40,"申込児童の生年月日（西暦）","→","単純転送",null,"→",29,null,"申請児童生年月日","-",30]
[41,"年齢（令和4年4月1日時点）","→","単純転送",null,"→",30,null,"申請児童年齢","-",31]
[42,"アレルギー・食事制限等","→","変換チェック",null,"→",32,null,"申請児童アレルギー選択","2:NAGVBAC005",33]
[43,"アレルギー・食事制限（宗教食等）など【内容】","→","単純転送",null,"→",33,null,"申請児童アレルギー選択_あり_内容","-",34]
[44,"アレルギー・食事制限（宗教食等）など【特記事項】","→","単純転送",null,"→",34,null,"申請児童アレルギー選択_特記事項","-",35]
[45,"アレルギー・食事制限（宗教食等）など【施設・事業所への相談】","→","変換チェック",null,"→",35,null,"申請児童アレルギー選択_希望施設・事業所への相談","2:NAGVBAC006",36]
[46,"障害の有無","→","変換チェック",null,"→",36,null,"申請児童アレルギー選択_障害","2:NAGVBAC007",37]
[47,"障害の状況","→","単純転送",null,"→",37,null,"申請児童アレルギー選択_障害_あり内容","-",38]
[48,"健康状態等（確認事項①）","→",null,null,"→"]
[49,"健康状態等（確認事項②）","→",null,null,"→"]
[50,"氏名（カナ）1","→","単純転送",null,"→",38,"世帯の状況（世帯構成員）","世帯構成員1カナ氏名","-",40]
[51,"氏名1","→","変換半角",null,"→",39,null,"世帯構成員1漢字氏名","-",39]
[52,"続柄（申込児童からみた関係）1","→","変換コンボ",null,"→",40,null,"世帯構成員1続柄","2:NAGVBAS004",41]
[53,"続柄（申込児童からみた関係：その他）1","→","単純転送",null,"→",41,null,"世帯構成員1続柄_入力","-",42]
[54,"生年月日（西暦）1","→","変換チェック_和暦",null,"→",42,null,"世帯構成員1生年月日_元号","2:NAGVBAC008",43]
[54,"生年月日（西暦）1","→","単純転送",null,"→",43,null,"世帯構成員1生年月日",6,44]
[55,"年齢1","→",null,null,"→"]
[56,"健康状態等1","→","単純転送",null,"→",44,null,"世帯構成員1健康状態等","-",45]
[57,"備考（勤務先名称／通学（園）先名称　等）1","→","単純転送",null,"→",45,null,"世帯構成員1備考（現在の状況）_勤務先/通学（園）先","-",46]
[58,"氏名2","→","単純転送",null,"→",47,null,"世帯構成員2カナ氏名","-",49]
[59,"氏名（カナ）2","→","変換半角",null,"→",48,null,"世帯構成員2漢字氏名","-",48]
[60,"続柄（申込児童からみた関係）2","→","変換コンボ",null,"→",49,null,"世帯構成員2続柄","2:NAGVBAS004",50]
[61,"続柄（申込児童からみた関係：その他）2","→","単純転送",null,"→",50,null,"世帯構成員2続柄_入力","-",51]
[62,"生年月日（西暦）2","→","変換チェック_和暦",null,"→",51,null,"世帯構成員2生年月日_元号","2:NAGVBAC008",52]
[62,"生年月日（西暦）2","→","単純転送",null,"→",52,null,"世帯構成員2生年月日",null,53]
[63,"年齢2","→",null,null,"→"]
[64,"健康状態等2","→","単純転送",null,"→",53,null,"世帯構成員2健康状態等","-",54]
[65,"備考（勤務先名称／通学（園）先名称　等）2","→","単純転送",null,"→",54,null,"世帯構成員2備考（現在の状況）_勤務先/通学（園）先","-",55]
[66,"氏名3","→","単純転送",null,"→",56,null,"世帯構成員3カナ氏名","-",58]
[67,"氏名（カナ）3","→","変換半角",null,"→",57,null,"世帯構成員3漢字氏名","-",57]
[68,"続柄（申込児童からみた関係）3","→","変換コンボ",null,"→",58,null,"世帯構成員3続柄","2:NAGVBAS004",59]
[69,"続柄（申込児童からみた関係：その他）3","→","単純転送",null,"→",59,null,"世帯構成員3続柄_入力","-",60]
[70,"生年月日（西暦）3","→","変換チェック_和暦",null,"→",60,null,"世帯構成員3生年月日_元号","2:NAGVBAC008",61]
[70,"生年月日（西暦）3","→","単純転送",null,"→",61,null,"世帯構成員3生年月日",6,62]
[71,"年齢3","→",null,null,"→"]
[72,"健康状態等3","→","単純転送",null,"→",62,null,"世帯構成員3健康状態等","-",63]
[73,"備考（勤務先名称／通学（園）先名称　等）3","→","単純転送",null,"→",63,null,"世帯構成員3備考（現在の状況）_勤務先/通学（園）先","-",64]
[74,"氏名4","→","単純転送",null,"→",65,null,"世帯構成員4カナ氏名","-",67]
[75,"氏名（カナ）4","→","変換半角",null,"→",66,null,"世帯構成員4漢字氏名","-",66]
[76,"続柄（申込児童からみた関係）4","→","変換コンボ",null,"→",67,null,"世帯構成員4続柄","2:NAGVBAS004",68]
[77,"続柄（申込児童からみた関係：その他）4","→","単純転送",null,"→",68,null,"世帯構成員4続柄_入力","-",69]
[78,"生年月日（西暦）4","→","変換チェック_和暦",null,"→",69,null,"世帯構成員4生年月日_元号","2:NAGVBAC008",70]
[78,"生年月日（西暦）4","→","単純転送",null,"→",70,null,"世帯構成員4生年月日",6,71]
[79,"年齢4","→",null,null,"→"]
[80,"健康状態等4","→","単純転送",null,"→",71,null,"世帯構成員4健康状態等","-",72]
[81,"備考（勤務先名称／通学（園）先名称　等）4","→","単純転送",null,"→",72,null,"世帯構成員4備考（現在の状況）_勤務先/通学（園）先","-",73]
[82,"氏名5","→","単純転送",null,"→",74,null,"世帯構成員5カナ氏名","-",76]
[83,"氏名（カナ）5","→","変換半角",null,"→",75,null,"世帯構成員5漢字氏名","-",75]
[84,"続柄（申込児童からみた関係）5","→","変換コンボ",null,"→",76,null,"世帯構成員5続柄","2:NAGVBAS004",77]
[85,"続柄（申込児童からみた関係：その他）5","→","単純転送",null,"→",77,null,"世帯構成員5続柄_入力","-",78]
[86,"生年月日（西暦）5","→","変換チェック_和暦",null,"→",78,null,"世帯構成員5生年月日_元号","2:NAGVBAC008",79]
[86,"生年月日（西暦）5","→","単純転送",null,"→",79,null,"世帯構成員5生年月日",6,80]
[87,"年齢5","→",null,null,"→"]
[88,"健康状態等5","→","単純転送",null,"→",80,null,"世帯構成員5健康状態等","-",81]
[89,"備考（勤務先名称／通学（園）先名称　等）5","→","単純転送",null,"→",81,null,"世帯構成員5備考（現在の状況）_勤務先/通学（園）先","-",82]
[90,"氏名6","→","単純転送",null,"→",83,null,"世帯構成員6カナ氏名","-",85]
[91,"氏名（カナ）6","→","変換半角",null,"→",84,null,"世帯構成員6漢字氏名","-",84]
[92,"続柄（申込児童からみた関係）6","→","変換コンボ",null,"→",85,null,"世帯構成員6続柄","2:NAGVBAS004",86]
[93,"続柄（申込児童からみた関係：その他）6","→","単純転送",null,"→",86,null,"世帯構成員6続柄_入力","-",87]
[94,"生年月日（西暦）6","→","変換チェック_和暦",null,"→",87,null,"世帯構成員6生年月日_元号","2:NAGVBAC008",88]
[94,"生年月日（西暦）6","→","単純転送",null,"→",88,null,"世帯構成員6生年月日",6,89]
[95,"年齢6","→",null,null,"→"]
[96,"健康状態等6","→","単純転送",null,"→",89,null,"世帯構成員6健康状態等","-",90]
[97,"備考（勤務先名称／通学（園）先名称　等）6","→","単純転送",null,"→",90,null,"世帯構成員6備考（現在の状況）_勤務先/通学（園）先","-",91]
[98,"申込み区分","→","変換チェック",null,"→",93,"保育施設・事業所の利用申込み内容","申込み区分","2:NAGVBAC009",94]
[99,"利用中の施設・事業所名称","→","単純転送",null,"→",94,null,"転園利用申込み選択時_利用中の施設・事業所名","-",95]
[100,"利用中の施設・事業所の今後の利用意向","→","変換チェック",null,"→",95,null,"転園利用申込み選択時_区分","2:NAGVBAC010",96]
[101,"【第１希望】希望施設・事業所_所在区","→","変換特殊;自他区",null,"→",96,null,"第1希望_施設・事業所名称_区",null,97]
[102,"希望施設・事業所（北区_保育所）","→","変換施設",null,"→",97,null,"第1希望_施設・事業所名称",8,98]
[null,"希望施設・事業所（　区_保育所）","→","変換施設",null,"→",null,null,null,null,98,"電子申請システムで誤って削除している？"]
[103,"希望施設・事業所（北区_認定こども園）","→","変換施設",null,"→",null,null,null,null,98]
[104,"希望施設・事業所（北区_地域型保育事業）","→","変換施設",null,"→",null,null,null,null,98]
[105,"希望施設・事業所（他区_施設・事業所_所在区）","→","変換コンボ",null,"→",96,null,"第1希望_施設・事業所名称_区","2:NAGVBAS005",97]
[106,"希望施設・事業所（他区_施設・事業所）","→","変換施設",null,"→",null,null,null,null,98]
[107,"【第１希望】希望施設・事業所の見学","→","変換チェック",null,"→",98,null,"第1希望_見学の有無","2:NAGVBAC011",99]
[108,"【第１希望】希望施設・事業所の見学（予定）日","→","単純転送",null,"→",99,null,"第1希望_見学の有無_未_予定日","-",100]
[109,"【第２希望】希望施設・事業所_所在区","→","変換特殊;自他区",null,"→",100,null,"第2希望_施設・事業所名称_区",null,101]
[110,"希望施設・事業所（北区_保育所）","→","変換施設",null,"→",101,null,"第2希望_施設・事業所名称",8,102]
[111,"希望施設・事業所（　区_保育所）","→","変換施設",null,"→",null,null,null,null,102]
[112,"希望施設・事業所（北区_認定こども園）","→","変換施設",null,"→",null,null,null,null,102]
[113,"希望施設・事業所（北区_地域型保育事業）","→","変換施設",null,"→",null,null,null,null,102]
[114,"希望施設・事業所（他区_施設・事業所_所在区）","→","変換コンボ",null,"→",100,null,"第2希望_施設・事業所名称_区","2:NAGVBAS005",101]
[115,"希望施設・事業所（他区_施設・事業所）","→","変換施設",null,"→",null,null,null,null,102]
[116,"【第２希望】希望施設・事業所の見学","→","変換チェック",null,"→",102,null,"第2希望_見学の有無","2:NAGVBAC011",103]
[117,"【第２希望】希望施設・事業所の見学（予定）日","→","単純転送",null,"→",103,null,"第2希望_見学の有無_未_予定日","-",104]
[118,"【第３希望】希望施設・事業所_所在区","→","変換特殊;自他区",null,"→",104,null,"第3希望_施設・事業所名称_区",null,105]
[119,"希望施設・事業所（北区_保育所）","→","変換施設",null,"→",105,null,"第3希望_施設・事業所名称",8,106]
[120,"希望施設・事業所（　区_保育所）","→","変換施設",null,"→",null,null,null,null,106]
[121,"希望施設・事業所（北区_認定こども園）","→","変換施設",null,"→",null,null,null,null,106]
[122,"希望施設・事業所（北区_地域型保育事業）","→","変換施設",null,"→",null,null,null,null,106]
[123,"希望施設・事業所（他区_施設・事業所_所在区）","→","変換コンボ",null,"→",104,null,"第3希望_施設・事業所名称_区","2:NAGVBAS005",105]
[124,"希望施設・事業所（他区_施設・事業所）","→","変換施設",null,"→",null,null,null,null,106]
[125,"【第３希望】希望施設・事業所の見学","→","変換チェック",null,"→",106,null,"第3希望_見学の有無","2:NAGVBAC011",107]
[126,"【第３希望】希望施設・事業所の見学（予定）日","→","単純転送",null,"→",107,null,"第3希望_見学の有無_未_予定日","-",108]
[127,"【第４希望】希望施設・事業所_所在区","→","変換特殊;自他区",null,"→",108,null,"第4希望_施設・事業所名称_区",null,109]
[128,"希望施設・事業所（北区_保育所）","→","変換施設",null,"→",109,null,"第4希望_施設・事業所名称",8,110]
[129,"希望施設・事業所（　区_保育所）","→","変換施設",null,"→",null,null,null,null,110]
[130,"希望施設・事業所（北区_認定こども園）","→","変換施設",null,"→",null,null,null,null,110]
[131,"希望施設・事業所（北区_地域型保育事業）","→","変換施設",null,"→",null,null,null,null,110]
[132,"希望施設・事業所（他区_施設・事業所_所在区）","→","変換コンボ",null,"→",108,null,"第4希望_施設・事業所名称_区","2:NAGVBAS005",109]
[133,"希望施設・事業所（他区_施設・事業所）","→","変換施設",null,"→",null,null,null,null,110]
[134,"【第４希望】希望施設・事業所の見学","→","変換チェック",null,"→",110,null,"第4希望_見学の有無","2:NAGVBAC011",111]
[135,"【第４希望】希望施設・事業所の見学（予定）日","→","単純転送",null,"→",111,null,"第4希望_見学の有無_未_予定日","-",112]
[136,"【第５希望】希望施設・事業所_所在区","→","変換特殊;自他区",null,"→",112,null,"第5希望_施設・事業所名称_区",null,113]
[137,"希望施設・事業所（北区_保育所）","→","変換施設",null,"→",113,null,"第5希望_施設・事業所名称",8,114]
[138,"希望施設・事業所（　区_保育所）","→","変換施設",null,"→",null,null,null,null,114]
[139,"希望施設・事業所（北区_認定こども園）","→","変換施設",null,"→",null,null,null,null,114]
[140,"希望施設・事業所（北区_地域型保育事業）","→","変換施設",null,"→",null,null,null,null,114]
[141,"希望施設・事業所（他区_施設・事業所_所在区）","→","変換コンボ",null,"→",112,null,"第5希望_施設・事業所名称_区","2:NAGVBAS005",113]
[142,"希望施設・事業所（他区_施設・事業所）","→","変換施設",null,"→",null,null,null,null,114]
[143,"【第５希望】希望施設・事業所の見学","→","変換チェック",null,"→",114,null,"第5希望_見学の有無","2:NAGVBAC011",115]
[144,"【第５希望】希望施設・事業所の見学（予定）日","→","単純転送",null,"→",115,null,"第5希望_見学の有無_未_予定日","-",116]
[145,"【第６希望】希望施設・事業所_所在区","→","変換特殊;自他区",null,"→",116,null,"第6希望_施設・事業所名称_区",null,117]
[146,"希望施設・事業所（北区_保育所）","→","変換施設",null,"→",117,null,"第6希望_施設・事業所名称",8,118]
[147,"希望施設・事業所（　区_保育所）","→","変換施設",null,"→",null,null,null,null,118]
[148,"希望施設・事業所（北区_認定こども園）","→","変換施設",null,"→",null,null,null,null,118]
[149,"希望施設・事業所（北区_地域型保育事業）","→","変換施設",null,"→",null,null,null,null,118]
[150,"希望施設・事業所（他区_施設・事業所_所在区）","→","変換コンボ",null,"→",116,null,"第6希望_施設・事業所名称_区","2:NAGVBAS005",117]
[151,"希望施設・事業所（他区_施設・事業所）","→","変換施設",null,"→",null,null,null,null,118]
[152,"【第６希望】希望施設・事業所の見学","→","変換チェック",null,"→",118,null,"第6希望_見学の有無","2:NAGVBAC011",119]
[153,"【第６希望】希望施設・事業所の見学（予定）日","→","単純転送",null,"→",119,null,"第6希望_見学の有無_未_予定日","-",120]
[154,"民間移管施設の利用希望","→",null,null,"→"]
[155,"民間移管施設を希望する場合の注意事項","→",null,null,"→"]
[156,"民間移管に関する注意項目①","→",null,null,"→"]
[157,"民間移管に関する注意項目②","→",null,null,"→"]
[158,"民間移管に関する注意項目③","→",null,null,"→"]
[159,"民間移管に関する注意項目④","→",null,null,"→"]
[160,"民間移管に関する注意項目⑤","→",null,null,"→"]
[161,"民間移管に関する注意項目⑥","→",null,null,"→"]
[162,"民間移管に関する注意項目⑦","→",null,null,"→"]
[163,"利用（転園）を希望する理由","→","単純転送",null,"→",120,null,"利用（転園）希望理由","-",121]
[164,"希望施設・事業所以外の調整","→","変換チェック",null,"→",121,null,"利用希望施設・事業所のいずれも利用できない場合、社会福祉事務所において他の施設・事業所の利用のための調整を行うことを希望するか。","2:NAGVBAC012",122]
[165,"利用希望時間（平日）","→","～転送前",null,"→",122,null,"利用希望時間_平日開始","-",123]
[165,"利用希望時間（平日）","→","～転送後",null,"→",123,null,"利用希望時間_平日終了","-",124]
[166,"利用希望時間（土曜日）","→","～転送前",null,"→",124,null,"利用希望時間_土曜日開始","-",125]
[166,"利用希望時間（土曜日）","→","～転送後",null,"→",125,null,"利用希望時間_土曜日終了","-",126]
[167,"利用希望時間（日・祝日）","→","～転送前",null,"→",126,null,"利用希望時間_日・祝日開始","-",127]
[167,"利用希望時間（日・祝日）","→","～転送後",null,"→",127,null,"利用希望時間_日・祝日終了","-",128]
[168,"送迎される方（送り）","→","変換チェック",null,"→",128,null,"送迎方法_送り","2:NAGVBAC013",129]
[169,"送迎される方（送り：その他）","→","単純転送",null,"→",129,null,"送迎方法_送り_その他内容","-",130]
[170,"送迎される方（迎え）","→","変換チェック",null,"→",130,null,"送迎方法_迎え","2:NAGVBAC014",131]
[171,"送迎される方（迎え：その他）","→","単純転送",null,"→",131,null,"送迎方法_迎え_その他内容","-",132]
[172,"送迎方法（使用可能な手段）","→","変換チェック",null,"→",132,null,"送迎方法_使用可能な手段","2:NAGVBAC015",133]
[173,"送迎方法（使用可能な手段：その他）","→","単純転送",null,"→",133,null,"送迎方法_使用可能な手段_その他内容","-",134]
[174,"利用希望期間（開始）","→","単純転送",null,"→",134,null,"利用希望期間選択_利用希望期間開始","-",135]
[175,"利用希望期間（終了）（年月日）","→","変換チェック",null,"→",135,null,"利用希望期間選択","2:NAGVBAC016",136]
[176,"利用希望期間（終了）","→","単純転送",null,"→",136,null,"利用希望期間選択_利用希望期間終了","-",137]
[177,"育児休業からの復職の意思","→","変換チェック",null,"→",137,null,"育児休業からの\n復職の意思","2:NAGVBAC017",138]
[178,"育児休業からの復職時期","→","単純転送",null,"→",138,null,"復職時期","-",139]
[179,"希望する保育必要量","→","変換チェック",null,"→",139,null,"希望する保育必要量","2:NAGVBAC018",140]
[180,"保護者①（申込児童からみた続柄）","→","変換チェック",null,"→",140,"父母等の状況_保育が必要な事由","利用希望理由_父_区分","2:NAGVBAC019",141]
[180,"保護者①（申込児童からみた続柄）","→","変換コンボ除外;父",null,"→",141,null,"利用希望理由_父の状況","2:NAGVBAS006",142]
[181,"保護者①（申込児童からみた続柄_その他）","→","単純転送",null,"→",141,null,"利用希望理由_父の状況","-",158]
[182,"保育の必要な事由が「就労」_保護者①","→","変換チェック","|","→",142,null,"利用希望理由_父_保育の必要な事由","2:NAGVBAC020",143]
[183,"保育の必要な事由「産前産後」_保護者①","→","変換チェック","|","→",null,null,null,"2:NAGVBAC020",143]
[184,"保育の必要な事由「疾病等」_保護者①","→","変換チェック","|","→",null,null,null,"2:NAGVBAC020",143]
[185,"保育の必要な事由「親族介護」_保護者①","→","変換チェック","|","→",null,null,null,"2:NAGVBAC020",143]
[186,"保育の必要な事由「災害復旧」_保護者①","→","変換チェック","|","→",null,null,null,"2:NAGVBAC020",143]
[187,"保育の必要な事由「求職活動」_保護者①","→","変換チェック","|","→",null,null,null,"2:NAGVBAC020",143]
[188,"保育の必要な事由「就学」_保護者①","→","変換チェック","|","→",null,null,null,"2:NAGVBAC020",143]
[189,"保育の必要な事由「発達援助」_保護者①","→","変換チェック","|","→",null,null,null,"2:NAGVBAC020",143]
[190,"保育の必要な事由「育児休業（利用開始希望）」_保護者①","→","変換チェック",null,"→",null,null,null,"2:NAGVBAC020",143]
[191,"１日あたりの勤務時間_保護者①","→","変換転送;時間",null,"→",143,null,"利用希望理由_父_就労又は就学_一日の時間","-",144]
[192,"１週間あたりの勤務日数_保護者①","→","変換転送;日",null,"→",144,null,"利用希望理由_父_就労又は就学_週の日数","-",145]
[193,"1か月あたりの勤務日数_保護者①","→","変換転送;日",null,"→",146,null,"利用希望理由_父_就労又は就学_一ヶ月の日数","-",147]
[194,"１日あたりの就学時間_保護者①","→","変換転送;時間",null,"→",143,null,"利用希望理由_父_就労又は就学_一日の時間",null,144]
[195,"１週間あたりの就学日数_保護者①","→","変換転送;日",null,"→",144,null,"利用希望理由_父_就労又は就学_週の日数",null,145]
[196,"1か月あたりの就学日数_保護者①","→","変換転送;日",null,"→",146,null,"利用希望理由_父_就労又は就学_一ヶ月の日数",null,147]
[197,"勤務時間（平日）_保護者①","→","～転送前",null,"→",147,null,"利用希望理由_父_就労又は就学_平日開始時間","-",148]
[197,"勤務時間（平日）_保護者①",null,"～転送後",null,null,148,null,"利用希望理由_父_就労又は就学_平日終了時間","-",149]
[198,"休憩時間（平日）_保護者①","→","変換転送;分",null,"→",149,null,"利用希望理由_父_就労又は就学_平日休憩時間","-",150]
[199,"勤務時間（土曜日）_保護者①","→","～転送前",null,"→",150,null,"利用希望理由_父_就労又は就学_土曜開始時間","-",151]
[199,"勤務時間（土曜日）_保護者①",null,"～転送後",null,null,151,null,"利用希望理由_父_就労又は就学_土曜終了時間","-",152]
[200,"休憩時間（土曜日）_保護者①","→","変換転送;分",null,"→",152,null,"利用希望理由_父_就労又は就学_土曜休憩時間","-",153]
[201,"勤務時間（日曜日）_保護者①","→","～転送前",null,"→",153,null,"利用希望理由_父_就労又は就学_日曜開始時間","-",154]
[201,"勤務時間（日曜日）_保護者①",null,"～転送後",null,null,154,null,"利用希望理由_父_就労又は就学_日曜終了時間","-",155]
[202,"休憩時間（日曜日）_保護者①","→","変換転送;分",null,"→",155,null,"利用希望理由_父_就労又は就学_日曜休憩時間","-",156]
[203,"休日（定期・不定期／１月あたりの日数）_保護者①","→","単純転送",null,"→",156,null,"利用希望理由_父_就労又は就学_休日曜日","-",157]
[204,"就学時間（平日）_保護者①","→","～転送前",null,"→",null,null,null,null,148]
[204,"就学時間（平日）_保護者①","→","～転送後",null,"→",null,null,null,null,149]
[205,"休憩時間（平日）_保護者①","→","変換転送;分",null,"→",null,null,null,null,150]
[206,"就学時間（土曜日）_保護者①","→","～転送前",null,"→",null,null,null,null,151]
[206,"就学時間（土曜日）_保護者①","→","～転送後",null,"→",null,null,null,null,152]
[207,"休憩時間（土曜日）_保護者①","→","変換転送;分",null,"→",null,null,null,null,153]
[208,"就学時間（日曜日）_保護者①","→","～転送前",null,"→",null,null,null,null,154]
[208,"就学時間（日曜日）_保護者①","→","～転送後",null,"→",null,null,null,null,155]
[209,"休憩時間（日曜日）_保護者①","→","変換転送;分",null,"→",null,null,null,null,156]
[210,"休日（定期・不定期／１月あたりの日数）_保護者①","→","変換チェック",null,"→",158,null,"利用希望理由_父_就労又は就学_祝日・不定休_祝日","-",157,"★下の行削除"]
[211,"就労内容_保護者①","→","単純転送",null,"→",160,null,"利用希望理由_父_就労又は就学_就労内容","-",161]
[212,"卒業（終了）日_保護者①","→","単純転送",null,"→",161,null,"利用希望理由_父_就労又は就学_卒業日","-",162]
[213,"産休・育休の取得_保護者①","→","変換チェック",null,"→",162,null,"利用希望理由_父_就労又は就学_産休・育休の取得","2:NAGVBAC022",163]
[214,"産休・育休の取得期間_保護者①","→","～転送前",null,"→",163,null,"利用希望理由_父_就労又は就学_産休・育休取得期間開始","-",164]
[214,"産休・育休の取得期間_保護者①",null,"～転送後",null,null,164,null,"利用希望理由_父_就労又は就学_産休・育休取得期間終了","-",165]
[215,"育児短縮勤務_保護者①","→","変換チェック",null,"→",165,null,"利用希望理由_父_就労又は就学_育児短縮勤務","2:NAGVBAC023",166]
[216,"育児短縮勤務の取得期間_保護者①","→","～転送前",null,"→",166,null,"利用希望理由_父_就労又は就学_育児短縮勤務期間開始","-",167]
[216,"育児短縮勤務の取得期間_保護者①",null,"～転送後",null,"→",167,null,"利用希望理由_父_就労又は就学_育児短縮勤務期間終了","-",168]
[217,"育児短縮勤務（取得中の勤務時間）_保護者①","→","～転送前",null,null,168,null,"利用希望理由_父_就労又は就学_育児短縮勤務時間開始","-",169]
[217,"育児短縮勤務（取得中の勤務時間）_保護者①",null,"～転送後",null,null,169,null,"利用希望理由_父_就労又は就学_育児短縮勤務時間終了","-",170]
[218,"通勤方法_保護者①","→","変換チェック空白除外",null,"→",170,null,"通勤(通学)方法_父","2:NAGVBAC024",171]
[219,"通勤方法（その他）_保護者①","→","単純転送",null,"→",171,null,"通勤(通学)方法_父_その他","-",172]
[220,"通勤時間（行き）_保護者①","→","変換転送;分",null,"→",172,null,"通勤(通学)時間_父_行き","-",173]
[221,"通勤時間（帰り）_保護者①","→","変換転送;分",null,"→",173,null,"通勤(通学)時間_父_帰り","-",174]
[222,"通学方法_保護者①","→","変換チェック空白除外",null,"→",null,null,"通勤(通学)方法_父","2:NAGVBAC024",171]
[223,"通学方法（その他）_保護者①","→","単純転送",null,"→",null,null,"通勤(通学)方法_父_その他",null,172]
[224,"通学時間（行き）_保護者①","→","変換転送;分",null,"→",null,null,null,null,173]
[225,"通学時間（帰り）_保護者①","→","変換転送;分",null,"→",null,null,null,null,174]
[226,"疾病等（傷病名）_保護者①","→","単純転送",null,"→",174,null,"父_疾病等_傷病名","-",175]
[227,"疾病等（治療期間）_保護者①","→","～転送前",null,"→",175,null,"父_疾病等_治療期間開始","-",176]
[227,"疾病等（治療期間）_保護者①","→","～転送後",null,"→",176,null,"父_疾病等_治療期間終了","-",177]
[229,"疾病等（手帳の種類）_保護者①","→","単純転送",null,"→",177,null,"父_疾病等_手帳の種類","-",178]
[230,"疾病等（手帳の等級）_保護者①","→","単純転送",null,"→",178,null,"父_疾病等_総合等級","-",179]
[231,"被介護（看護）者（氏名）_保護者①","→","単純転送",null,"→",179,null,"父_被介護（看護）者氏名","-",180]
[232,"被介護（看護）者（申込児童との続柄）_保護者①","→","単純転送",null,"→",180,null,"父_被介護（看護）者氏名_続柄","-",181]
[233,"被介護（看護）者（住所）_保護者①","→","変換チェック",null,"→",182,null,"父_被介護（看護）者住所_同居","2:NAGVBAC025",183]
[234,"被介護（看護）者（住所）_保護者①","→","単純転送",null,"→",181,null,"父_被介護（看護）者別居先","-",182]
[235,"被介護（看護）者（傷病名）_保護者①","→","単純転送",null,"→",183,null,"父_被介護（看護）_疾病等_傷病名","-",184]
[236,"被介護（看護）者（手帳取得）_保護者①","→",null,null,"→"]
[237,"被介護（看護）者（手帳の種類）_保護者①","→","単純転送",null,"→",184,null,"父_父_被介護（看護）_疾病等_手帳の種類","-",185]
[238,"被介護（看護）者（手帳の等級）_保護者①","→","単純転送",null,"→",185,null,"父_父_被介護（看護）_疾病等_総合等級","-",186]
[239,"不在の場合（事由）_保護者①","→","変換チェック",null,"→",186,null,"父_不在の場合","2:NAGVBAC026",187]
[240,"不在の場合（事由_その他）_保護者①","→","単純転送",null,"→",187,null,"父_不在の場合_その他","-",188]
[241,"不在の場合（別居開始日）_保護者①","→","単純転送",null,"→",188,null,"父_不在の場合_別居開始日","-",189]
[242,"不在の場合（居所）_保護者①","→","単純転送",null,"→",189,null,"父_不在の場合_別居先","-",190]
[243,"ひとり親世帯","→",null,null,"→"]
[244,"保護者②（申込児童との続柄）","→","変換チェック",null,"→",190,null,"利用希望理由_母_区分","2:NAGVBAC027",191]
[244,"保護者②（申込児童との続柄）","→","変換コンボ除外;母",null,"→",191,null,"利用希望理由_母の状況","2:NAGVBAS007",192]
[245,"保護者②（その他）","→","単純転送",null,"→",141,null,"利用希望理由_母の状況","-",208]
[246,"保育の必要な事由が「就労」＿保護者②","→","変換チェック","|","→",192,null,"利用希望理由_母_保育の必要な事由","2:NAGVBAC028",193]
[247,"保育の必要な事由が「産前産後」＿保護者②","→","変換チェック","|","→",null,null,null,"2:NAGVBAC028",193]
[248,"保育の必要な事由が「疾病等」＿保護者②","→","変換チェック","|","→",null,null,null,"2:NAGVBAC028",193]
[249,"保育の必要な事由が「親族介護」＿保護者②","→","変換チェック","|","→",null,null,null,"2:NAGVBAC028",193]
[250,"保育の必要な事由が「災害復旧」＿保護者②","→","変換チェック","|","→",null,null,null,"2:NAGVBAC028",193]
[251,"保育の必要な事由が「求職活動」＿保護者②","→","変換チェック","|","→",null,null,null,"2:NAGVBAC028",193]
[252,"保育の必要な事由が「就学」＿保護者②","→","変換チェック","|","→",null,null,null,"2:NAGVBAC028",193]
[253,"保育の必要な事由が「発達援助」＿保護者②","→","変換チェック","|","→",null,null,null,"2:NAGVBAC028",193]
[254,"保育の必要な事由が「育児休業（利用開始希望日時点）」＿保護者②","→","変換チェック",null,"→",null,null,null,"2:NAGVBAC028",193]
[255,"１日あたりの勤務時間＿保護者②","→","変換転送;時間",null,"→",193,null,"利用希望理由_母_就労又は就学_一日の時間","-",194]
[256,"１週間あたりの勤務日数＿保護者②","→","変換転送;日",null,"→",194,null,"利用希望理由_母_就労又は就学_週の日数","-",195]
[257,"１か月あたりの勤務日数＿保護者②","→","変換転送;日",null,"→",196,null,"利用希望理由_母_就労又は就学_一ヶ月の日数","-",197]
[258,"１日あたりの就学時間＿保護者②","→","変換転送;時間",null,"→",193,null,"利用希望理由_母_就労又は就学_一日の時間",null,194]
[259,"１週間あたりの就学日数＿保護者②","→","変換転送;日",null,"→",194,null,"利用希望理由_母_就労又は就学_週の日数",null,195]
[260,"１か月あたりの就学日数＿保護者②","→","変換転送;日",null,"→",196,null,"利用希望理由_母_就労又は就学_一ヶ月の日数",null,197]
[261,"勤務時間（平日）＿保護者②","→","～転送前",null,"→",197,null,"利用希望理由_母_就労又は就学_平日開始時間","-",198]
[261,"勤務時間（平日）＿保護者②","→","～転送後",null,"→",197,null,"利用希望理由_母_就労又は就学_平日開始時間","-",199]
[262,"休憩時間（平日）＿保護者②","→","変換転送;分",null,"→",199,null,"利用希望理由_母_就労又は就学_平日休憩時間","-",200]
[263,"勤務時間（土曜日）＿保護者②","→","～転送前",null,"→",200,null,"利用希望理由_母_就労又は就学_土曜開始時間","-",201]
[263,"勤務時間（土曜日）＿保護者②","→","～転送後",null,"→",200,null,"利用希望理由_母_就労又は就学_土曜終了時間","-",202]
[264,"休憩時間（土曜日）＿保護者②","→","変換転送;分",null,"→",202,null,"利用希望理由_母_就労又は就学_土曜休憩時間","-",203]
[265,"勤務時間（日曜日）＿保護者②","→","～転送前",null,"→",203,null,"利用希望理由_母_就労又は就学_日曜開始時間","-",204]
[265,"勤務時間（日曜日）＿保護者②","→","～転送後",null,"→",203,null,"利用希望理由_母_就労又は就学_日曜終了時間","-",205]
[266,"休憩時間（日曜日）＿保護者②","→","変換転送;分",null,"→",205,null,"利用希望理由_母_就労又は就学_日曜休憩時間","-",206]
[267,"休日（定期・不定期／１月あたりの日数）_保護者②","→","単純転送",null,"→",206,null,"利用希望理由_母_就労又は就学_休日曜日","-",207]
[268,"就学時間（平日）＿保護者②","→","～転送前",null,"→",null,null,null,null,198]
[268,"就学時間（平日）＿保護者②",null,"～転送後",null,null,null,null,null,null,199]
[269,"休憩時間（平日）＿保護者②","→","変換転送;分",null,"→",null,null,null,null,200]
[270,"就学時間（土曜日）＿保護者②","→","～転送前",null,"→",null,null,null,null,201]
[270,"就学時間（土曜日）＿保護者②",null,"～転送後",null,null,null,null,null,null,202]
[271,"休憩時間（土曜日）＿保護者②","→","変換転送;分",null,"→",null,null,null,null,203]
[272,"就学時間（日曜日）＿保護者②","→","～転送前",null,"→",null,null,null,null,204]
[272,"就学時間（日曜日）＿保護者②",null,"～転送後",null,null,null,null,null,null,205]
[273,"休憩時間（日曜日）＿保護者②","→","変換転送;分",null,"→",null,null,null,null,206]
[274,"休日（定期・不定期／１月あたりの日数）＿保護者②","→","単純転送",null,"→",208,null,"利用希望理由_母_就労又は就学_祝日・不定休_祝日","2:NAGVBAC029",207]
[275,"就労内容＿保護者②","→","単純転送",null,"→",210,null,"利用希望理由_母_就労又は就学_就労内容","-",211]
[276,"卒業（終了）日","→","単純転送",null,"→",211,null,"利用希望理由_母_就労又は就学_卒業日","-",212]
[277,"産休・育休の取得＿保護者②","→","変換チェック",null,"→",212,null,"利用希望理由_母_就労又は就学_産休・育休の取得","2:NAGVBAC030",213]
[278,"産休・育休の取得期間＿保護者②","→","～転送前",null,"→",213,null,"利用希望理由_母_就労又は就学_産休・育休取得期間開始","-",214]
[278,"産休・育休の取得期間＿保護者②","→","～転送後",null,null,214,null,"利用希望理由_母_就労又は就学_産休・育休取得期間終了","-",215]
[279,"育児短時間勤務＿保護者②","→","変換チェック",null,"→",215,null,"利用希望理由_母_就労又は就学_育児短縮勤務","2:NAGVBAC031",216]
[280,"育児短時間勤務の取得期間＿保護者②",null,"～転送前",null,null,216,null,"利用希望理由_母_就労又は就学_育児短縮勤務期間開始","-",217]
[280,"育児短時間勤務の取得期間＿保護者②","→","～転送後",null,"→",217,null,"利用希望理由_母_就労又は就学_育児短縮勤務期間終了","-",218]
[281,"育児短時間勤務（取得中の勤務時間）＿保護者②","→","～転送前",null,"→",218,null,"利用希望理由_母_就労又は就学_育児短縮勤務時間開始","-",219]
[281,"育児短時間勤務（取得中の勤務時間）＿保護者②","→","～転送後",null,"→",219,null,"利用希望理由_父_就労又は就学_育児短縮勤務時間終了","-",220]
[282,"通勤方法＿保護者②","→","変換チェック空白除外",null,"→",220,null,"通勤(通学)方法_母","2:NAGVBAC032",221]
[283,"通勤方法（その他）＿保護者②","→","単純転送",null,"→",221,null,"通勤(通学)方法_母_その他","-",222]
[284,"通勤時間（行き）＿保護者②","→","変換転送;分",null,"→",222,null,"通勤(通学)時間_母_行き","-",223]
[285,"通勤時間（帰り）＿保護者②","→","変換転送;分",null,"→",223,null,"通勤(通学)時間_母_帰り","-",224]
[286,"通学方法＿保護者②","→","変換チェック空白除外",null,"→",null,null,"通勤(通学)方法_母","2:NAGVBAC032",221]
[287,"通学方法（その他）＿保護者②","→","単純転送",null,"→",null,null,"通勤(通学)方法_母_その他",null,222]
[288,"通学時間（行き）＿保護者②","→","変換転送;分",null,"→",null,null,null,null,223]
[289,"通学時間（帰り）＿保護者②","→","変換転送;分",null,"→",null,null,null,null,224]
[290,"疾病等（傷病名）＿保護者②","→","単純転送",null,"→",224,null,"母_疾病等_傷病名","-",225]
[291,"疾病等（治療期間）＿保護者②","→","～転送前",null,"→",225,null,"母_疾病等_治療期間開始","-",226]
[291,"疾病等（治療期間）＿保護者②",null,"～転送後",null,null,226,null,"母_疾病等_治療期間終了","-",227]
[292,"疾病等（手帳取得）＿保護者②","→",null,null,"→"]
[293,"疾病等（手帳の種類）_保護者②","→","単純転送",null,"→",227,null,"母_疾病等_手帳の種類","-",228]
[294,"疾病等（手帳の等級）_保護者②","→","単純転送",null,"→",228,null,"母_疾病等_総合等級","-",229]
[295,"被介護（看護）者（氏名）＿保護者②","→","単純転送",null,"→",229,null,"母_被介護（看護）者氏名","-",230]
[296,"被介護（看護）者（申込児童との続柄）＿保護者②","→","単純転送",null,"→",230,null,"母_被介護（看護）者氏名_続柄","-",231]
[297,"被介護（看護）者（住所）＿保護者②","→","変換チェック",null,"→",232,null,"母_被介護（看護）者住所_同居","2:NAGVBAC033",233]
[298,"被介護（看護）者（住所）＿保護者②","→","単純転送",null,"→",231,null,"母_被介護（看護）者別居先","-",232]
[299,"被介護（看護）者（傷病名）＿保護者②","→","単純転送",null,"→",233,null,"母_疾病等_傷病名","-",234]
[300,"被介護（看護）者（手帳取得）＿保護者②","→",null,null,"→"]
[301,"被介護（看護）者（手帳の種類）＿保護者②","→","単純転送",null,"→",234,null,"母_疾病等_手帳の種類","-",235]
[302,"被介護（看護）者（手帳の等級）＿保護者②","→","単純転送",null,"→",235,null,"母_疾病等_総合等級","-",236]
[303,"不在の場合（事由）＿保護者②","→","変換チェック",null,"→",236,null,"母_不在の場合","2:NAGVBAC034",237]
[304,"不在の場合（事由_その他）＿保護者②","→","単純転送",null,"→",237,null,"母_不在の場合_その他","-",238]
[305,"不在の場合（別居開始日）＿保護者②","→","単純転送",null,"→",238,null,"母_不在の場合_別居開始日","-",239]
[306,"不在の場合（居所）＿保護者②","→","単純転送",null,"→",239,null,"母_不在の場合_別居先","-",240]
[307,"出産予定","→","変換チェック",null,"→",240,null,"母_出産予定","2:NAGVBAC035",241]
[308,"出産（予定）日","→","単純転送",null,"→",241,null,"母_出産予定日","-",242]
[309,"手当受給状況（生活保護）","→","変換チェック",null,"→",242,null,"生活保護_適用なし","2:NAGVBAC036",243]
[310,"担当ケースワーカー","→","単純転送",null,"→",243,null,"生活保護_担当ケースワーカー","-",244]
[311,"手当受給状況（ひとり親関係手当）","→","変換チェック",null,"→",245,null,"ひとり親関係手当","2:NAGVBAC037",246]
[312,"手当受給状況（ひとり親関係手当：内容）","→","変換チェック",null,"→",246,null,"ひとり親関係手当_受給状況","2:NAGVBAC038",247]
[313,"父方の祖父","→",null,null,"→"]
[314,"父方の祖父（氏名）","→","単純転送",null,"→",247,"祖父母の状況","父方祖父氏名","-",248]
[315,"父方の祖父（生年月日）","→","単純転送",null,"→",248,null,"父方祖父生年月日","-",249]
[316,"父方の祖父（年齢）","→","単純転送",null,"→",249,null,"父方祖父年齢","-",250]
[317,"父方の祖父（住所）","→","変換チェック",null,"→",250,null,"父方祖父住所","2:NAGVBAC039",251]
[318,"父方の祖父（住所：詳細）","→","単純転送",null,"→",251,null,"父方祖父住所入力欄","-",252]
[319,"父方の祖父（状況：就労）","→","変換チェック",null,"→",252,null,"父方祖父状況_就労","2:NAGVBAC040",253]
[320,"父方の祖父（状況：健康）","→","変換チェック",null,"→",253,null,"父方祖父状況_健康","2:NAGVBAC041",254]
[321,"父方の祖母","→",null,null,"→"]
[322,"父方の祖母（氏名）","→","単純転送",null,"→",254,null,"父方祖母氏名","-",255]
[323,"父方の祖母（生年月日）","→","単純転送",null,"→",255,null,"父方祖母生年月日","-",256]
[324,"父方の祖母（年齢）","→","単純転送",null,"→",256,null,"父方祖母年齢","-",257]
[325,"父方の祖母（住所）","→","変換チェック",null,"→",257,null,"父方祖母住所","2:NAGVBAC042",258]
[326,"父方の祖母（住所：詳細）","→","単純転送",null,"→",258,null,"父方祖母住所入力欄","-",259]
[327,"父方の祖母（状況：就労）","→","変換チェック",null,"→",259,null,"父方祖母状況","2:NAGVBAC043",260]
[328,"父方の祖母（状況：健康）","→","変換チェック",null,"→",260,null,"父方1状況_健康","2:NAGVBAC044",261]
[329,"母方の祖父","→",null,null,"→"]
[330,"母方の祖父（氏名）","→","単純転送",null,"→",261,null,"母方祖父氏名","-",262]
[331,"母方の祖父（生年月日）","→","単純転送",null,"→",262,null,"母方祖父生年月日","-",263]
[332,"母方の祖父（年齢）","→","単純転送",null,"→",263,null,"母方祖父年齢","-",264]
[333,"母方の祖父（住所）","→","変換チェック",null,"→",264,null,"母方祖父住所","2:NAGVBAC045",265]
[334,"母方の祖父（住所：詳細）","→","単純転送",null,"→",265,null,"母方祖父住所入力欄","-",266]
[335,"母方の祖父（状況：就労）","→","変換チェック",null,"→",266,null,"母方祖父状況","2:NAGVBAC046",267]
[336,"母方の祖父（状況：健康）","→","変換チェック",null,"→",267,null,"母方祖父状況_健康","2:NAGVBAC047",268]
[337,"母方の祖母","→",null,null,"→"]
[338,"母方のの祖母（氏名）","→","単純転送",null,"→",268,null,"母方祖母氏名","-",269]
[339,"母方の祖母（生年月日）","→","単純転送",null,"→",269,null,"母方祖母生年月日","-",270]
[340,"母方の祖母（年齢）","→","単純転送",null,"→",270,null,"母方祖母年齢","-",271]
[341,"母方の祖母（住所）","→","変換チェック",null,"→",271,null,"母方祖母住所","2:NAGVBAC048",272]
[342,"母方の祖母（住所：詳細）","→","単純転送",null,"→",272,null,"母方祖母住所入力欄","-",273]
[343,"母方の祖母（状況：就労）","→","変換チェック",null,"→",273,null,"母方祖母状況","2:NAGVBAC049",274]
[344,"母方の祖母（状況：健康）","→","変換チェック",null,"→",274,null,"母方祖父状況_健康","2:NAGVBAC050",275]
[345]
[346,null,"→","変換チェック",null,"→",275,"きょうだいで、同時に利用申込みを行う場合","①きょうだいが別々の保育施設等であれば利用できる場合、利用を希望するか。","2:NAGVBAC051",276]
[347,null,"→","変換チェック",null,"→",276,null,"②きょうだいが同時に利用できる場合、どちらを希望するか。","2:NAGVBAC052",277]
[348,null,"→","変換チェック",null,"→",277,null,"③きょうだいのうち、１人だけ利用できる場合、利用を希望するか。","2:NAGVBAC053",278]
[349,"利用申込に必要な書類（添付書類を?してください。）","→",null,null,"→"]
[350,"保育所等利用申込に係る申込児童等の状況確認票の添付","→",null,null,"→"]
[351,"ひとり親手当受給に関する確認書類（添付書類を?してください。）","→",null,null,"→"]
[352,"ひとり親世帯であることがわかる書類の添付","→",null,null,"→"]
[353,"家庭でお子さんの保育ができない状況を確認する書類_保護者①","→",null,null,"→"]
[354,"保育の必要な事由（就労）の確認書類の添付_保護者①","→",null,null,"→"]
[355,"家庭でお子さんの保育ができない状況を確認する書類_保護者①","→",null,null,"→"]
[356,"保育の必要な事由（疾病等）の確認書類の添付_保護者①","→",null,null,"→"]
[357,"家庭でお子さんの保育ができない状況を確認する書類_保護者①","→",null,null,"→"]
[358,"保育の必要な事由（親族介護）の確認書類の添付_保護者①","→",null,null,"→"]
[359,"家庭でお子さんの保育ができない状況を確認する書類_保護者①","→",null,null,"→"]
[360,"保育の必要な事由（災害復旧）の確認書類の添付_保護者①","→",null,null,"→"]
[361,"家庭でお子さんの保育ができない状況を確認する書類_保護者①","→",null,null,"→"]
[362,"保育の必要な事由（求職活動）の確認書類の添付_保護者①","→",null,null,"→"]
[363,"家庭でお子さんの保育ができない状況を確認する書類_保護者①","→",null,null,"→"]
[364,"保育の必要な事由（就学）の確認書類の添付_保護者①","→",null,null,"→"]
[365,"家庭でお子さんの保育ができない状況を確認する書類_保護者①","→",null,null,"→"]
[366,"保育の必要な事由（育児休業）の確認書類の添付_保護者①","→",null,null,"→"]
[367,"家庭でお子さんの保育ができない状況を確認する書類＿保護者②","→",null,null,"→"]
[368,"保育の必要な事由（就労）の確認書類の添付_保護者②","→",null,null,"→"]
[369,"家庭でお子さんの保育ができない状況を確認する書類＿保護者②","→",null,null,"→"]
[370,"保育の必要な事由（疾病等）の確認書類の添付_保護者②","→",null,null,"→"]
[371,"家庭でお子さんの保育ができない状況を確認する書類＿保護者②","→",null,null,"→"]
[372,"保育の必要な事由（親族介護）の確認書類の添付_保護者②","→",null,null,"→"]
[373,"家庭でお子さんの保育ができない状況を確認する書類＿保護者②","→",null,null,"→"]
[374,"保育の必要な事由（災害復旧）の確認書類の添付_保護者②","→",null,null,"→"]
[375,"家庭でお子さんの保育ができない状況を確認する書類＿保護者②","→",null,null,"→"]
[376,"保育の必要な事由（求職活動）の確認書類の添付_保護者②","→",null,null,"→"]
[377,"家庭でお子さんの保育ができない状況を確認する書類＿保護者②","→",null,null,"→"]
[378,"保育の必要な事由（就学）の確認書類の添付_保護者②","→",null,null,"→"]
[379,"家庭でお子さんの保育ができない状況を確認する書類＿保護者②","→",null,null,"→"]
[380,"保育の必要な事由（育児休業）の確認書類の添付_保護者②","→",null,null,"→"]
[381,"家庭でお子さんの保育ができない状況を確認する書類","→",null,null,"→"]
[382,"保育の必要な事由（発達援助）が確認できる書類の添付","→",null,null,"→"]
[383,"家庭でお子さんの保育ができない状況／出産（予定）日を確認する書類","→",null,null,"→"]
[384,"保育の必要な事由（産前産後）／出産（予定）日の確認書類の添付","→",null,null,"→"]
[385,"名古屋市外から転居予定での利用申込みをされる場合の必要書類","→",null,null,"→"]
[386,"転入先の住所が確認できる書類の添付","→",null,null,"→"]
[387,"令和３年１月１日時点で居住地が名古屋市以外の方の申込に必要な書類","→",null,null,"→"]
[388,"税額の確認できる書類の添付","→",null,null,"→"]
[389,"収入の確認できる書類","→",null,null,"→"]
[390,"収入の確認できる書類の添付","→",null,null,"→"]
[391,"６５歳未満の親族（祖父母等）と同居の場合に必要な書類","→",null,null,"→"]
[392,"６５歳未満の親族（祖父母等）と同居の場合に必要な書類の添付","→",null,null,"→"]
[393,"その他の提出書類","→",null,null,"→"]
[394,"オンライン利用申込み送信後の内容変更及び必要書類の送付","→",null,null,"→"]

{"sheet":"申請CSV→ツールbak","index":10,"n_rows":512,"n_cols":12,"rows_kept":512,"cut":false,"hidden":true,"merged":[]}
["電子申請ファイル",null,null,null,null,null,"申込書フォーマット"]
[null,null,null,"データ",null,null,null,"申込書"]
["No.","項目名",null,"変換","後追記",null,"No","分類","列名","設定値","データ\n列位置"]
[1,"申請ID","→","単純転送",null,"→",3,null,"申請ID","-",4]
[2,"申請日時","→","単純転送",null,"→",5,null,"日付","-",6]
[]
[4,"ステータス","→","単純転送",null,"→",7,null,"ステータス",7,8]
[5,"申請者の種別","→",null,null,"→"]
[6,"名前","→","単純転送",null,"→",8,null,"保護者漢字氏名","-",9]
[7,"名前（カナ）","→","変換半角",null,"→",9,null,"保護者カナ氏名","-",10]
[8,"郵便番号","→","変換郵便番号",null,"→",10,null,"保護者郵便番号",1,11]
[9,"住所 / 所在地","→","単純転送",null,"→",11,null,"保護者現住所","-",12]
[10,"生年月日（西暦）","→",null,null,"→"]
[11,"屋号","→",null,null,"→"]
[12,"屋号（カナ）","→",null,null,"→"]
[13,"法人番号","→",null,null,"→"]
[14,"法人代表者名","→",null,null,"→"]
[15,"電話番号","→",null,null,"→"]
[16,"メールアドレス","→",null,null,"→"]
[17,"連絡担当者名","→",null,null,"→"]
[18,"利用申込みに関する同意事項①","→",null,null,"→"]
[19,"利用申込みに関する同意事項②","→",null,null,"→"]
[20]
[21,"転入予定での申込み・市内での転居予定","→",null,null,"→"]
[22,"転入・転居の予定時期（西暦）","→","単純転送",null,"→",12,null,"転居先住所（予定）_転居予定日","-",13]
[23,"転入・転居予定先住所（郵便番号）","→","変換郵便番号",null,"→",13,null,"転居先住所（予定）_郵便番号",2,14]
[24,"転入・転居予定先住所","→","単純転送",null,"→",14,null,"転居先住所（予定）_住所","-",15]
[25,"名古屋市からの送付物発送先","→","変換チェック",null,"→",15,null,"名古屋市からの送付物発送先","2:NAGVBAC001",16]
[26,"名古屋市からの送付物発送先（備考）","→",null,null,"→"]
[27,"名古屋市への過去２年以内の転入歴","→",null,null,"→"]
[28,"転入前住所","→","単純転送",null,"→",16,null,"過去2年以内の転入歴\n(転入元）_県・市名","-",17]
[29,"転入時期（西暦）","→","単純転送",null,"→",17,null,"過去2年以内の転入歴\n(転入日）","-",18]
[30,"連絡先＃１","→","変換チェック",null,"→",18,null,"保護者連絡先1_子どもとの続柄_①チェックボックス","2:NAGVBAC002",19]
[31,"連絡先＃１","→","変換コンボ除外;父",null,null,19,null,"保護者連絡先1_子どもとの続柄_①選択","2:NAGVBAS002",20]
[32,"連絡先その他","→","単純転送",null,"→",20,null,"保護者連絡先1_子どもとの続柄","-",21]
[33,"電話番号","→","単純転送",null,"→",21,null,"保護者連絡先1_電話番号",3,22]
[34,"連絡先＃２","→","変換チェック",null,"→",22,null,"保護者連絡先1_子どもとの続柄_②チェックボックス","2:NAGVBAC003",23]
[35,"連絡先＃２",null,"変換コンボ除外;母",null,null,23,null,"保護者連絡先1_子どもとの続柄_②選択","2:NAGVBAC003",24]
[36,"連絡先その他","→","単純転送",null,"→",24,null,"保護者連絡先2_子どもとの続柄","-",25]
[37,"電話番号","→","単純転送",null,"→",25,null,"保護者連絡先2_電話番号",3,26]
[38,"申込児童氏名","→","単純転送",null,"→",26,null,"申請児童漢字氏名","-",27]
[39,"申込児童氏名（カナ）","→","変換半角",null,"→",27,null,"申請児童カナ氏名","-",28]
[40,"申込者（保護者）との続柄","→",null,null,"→"]
[41,"申込者（保護者）との続柄（その他）","→",null,null,"→"]
[42,"性別","→","変換チェック",null,"→",28,null,"申請児童性別","2:NAGVBAC004",29]
[43,"申込児童の生年月日（西暦）","→","単純転送",null,"→",29,null,"申請児童生年月日","-",30]
[44,"年齢（令和4年4月1日時点）","→","単純転送",null,"→",30,null,"申請児童年齢","-",31]
[45,"アレルギー・食事制限等","→","変換チェック",null,"→",32,null,"申請児童アレルギー選択","2:NAGVBAC005",33]
[46,"アレルギー・食事制限（宗教食等）など【内容】","→","単純転送",null,"→",33,null,"申請児童アレルギー選択_あり_内容","-",34]
[47,"アレルギー・食事制限（宗教食等）など【特記事項】","→","単純転送",null,"→",34,null,"申請児童アレルギー選択_特記事項","-",35]
[48,"アレルギー・食事制限（宗教食等）など【施設・事業所への相談】","→","変換チェック",null,"→",35,null,"申請児童アレルギー選択_希望施設・事業所への相談","2:NAGVBAC006",36]
[52,"障害の有無","→","変換チェック",null,"→",36,null,"申請児童アレルギー選択_障害","2:NAGVBAC007",37]
[53,"障害の状況","→","単純転送",null,"→",37,null,"申請児童アレルギー選択_障害_あり内容","-",38]
[49,"医療的ケアの状況","→"]
[50,"医療的ケアの種類","→"]
[51]
[54,"健康状態等（確認事項①）","→",null,null,"→"]
[55,"健康状態等（確認事項②）","→",null,null,"→"]
[56,"健康状態等（確認事項②）","→"]
[57,"氏名（カナ）1","→","単純転送",null,"→",38,"世帯の状況（世帯構成員）","世帯構成員1カナ氏名","-",40]
[58,"氏名1","→","変換半角",null,"→",39,null,"世帯構成員1漢字氏名","-",39]
[59,"続柄（申込児童からみた関係）1","→","変換コンボ",null,"→",40,null,"世帯構成員1続柄","2:NAGVBAS004",41]
[60,"続柄（申込児童からみた関係：その他）1","→","単純転送",null,"→",41,null,"世帯構成員1続柄_入力","-",42]
[61,"生年月日（西暦）1","→","変換チェック_和暦",null,"→",42,null,"世帯構成員1生年月日_元号","2:NAGVBAC008",43]
[62,"生年月日（西暦）1","→","単純転送",null,"→",43,null,"世帯構成員1生年月日",6,44]
[63,"年齢1","→",null,null,"→"]
[64,"健康状態等1","→","単純転送",null,"→",44,null,"世帯構成員1健康状態等","-",45]
[65,"備考（勤務先名称／通学（園）先名称　等）1","→","単純転送",null,"→",45,null,"世帯構成員1備考（現在の状況）_勤務先/通学（園）先","-",46]
[66,"氏名2","→","単純転送",null,"→",47,null,"世帯構成員2カナ氏名","-",49]
[67,"氏名（カナ）2","→","変換半角",null,"→",48,null,"世帯構成員2漢字氏名","-",48]
[68,"続柄（申込児童からみた関係）2","→","変換コンボ",null,"→",49,null,"世帯構成員2続柄","2:NAGVBAS004",50]
[69,"続柄（申込児童からみた関係：その他）2","→","単純転送",null,"→",50,null,"世帯構成員2続柄_入力","-",51]
[70,"生年月日（西暦）2","→","変換チェック_和暦",null,"→",51,null,"世帯構成員2生年月日_元号","2:NAGVBAC008",52]
[71,"生年月日（西暦）2","→","単純転送",null,"→",52,null,"世帯構成員2生年月日",null,53]
[72,"年齢2","→",null,null,"→"]
[73,"健康状態等2","→","単純転送",null,"→",53,null,"世帯構成員2健康状態等","-",54]
[74,"備考（勤務先名称／通学（園）先名称　等）2","→","単純転送",null,"→",54,null,"世帯構成員2備考（現在の状況）_勤務先/通学（園）先","-",55]
[75,"氏名3","→","単純転送",null,"→",56,null,"世帯構成員3カナ氏名","-",58]
[76,"氏名（カナ）3","→","変換半角",null,"→",57,null,"世帯構成員3漢字氏名","-",57]
[77,"続柄（申込児童からみた関係）3","→","変換コンボ",null,"→",58,null,"世帯構成員3続柄","2:NAGVBAS004",59]
[78,"続柄（申込児童からみた関係：その他）3","→","単純転送",null,"→",59,null,"世帯構成員3続柄_入力","-",60]
[79,"生年月日（西暦）3","→","変換チェック_和暦",null,"→",60,null,"世帯構成員3生年月日_元号","2:NAGVBAC008",61]
[80,"生年月日（西暦）3","→","単純転送",null,"→",61,null,"世帯構成員3生年月日",6,62]
[81,"年齢3","→",null,null,"→"]
[82,"健康状態等3","→","単純転送",null,"→",62,null,"世帯構成員3健康状態等","-",63]
[83,"備考（勤務先名称／通学（園）先名称　等）3","→","単純転送",null,"→",63,null,"世帯構成員3備考（現在の状況）_勤務先/通学（園）先","-",64]
[84,"氏名4","→","単純転送",null,"→",65,null,"世帯構成員4カナ氏名","-",67]
[85,"氏名（カナ）4","→","変換半角",null,"→",66,null,"世帯構成員4漢字氏名","-",66]
[86,"続柄（申込児童からみた関係）4","→","変換コンボ",null,"→",67,null,"世帯構成員4続柄","2:NAGVBAS004",68]
[87,"続柄（申込児童からみた関係：その他）4","→","単純転送",null,"→",68,null,"世帯構成員4続柄_入力","-",69]
[88,"生年月日（西暦）4","→","変換チェック_和暦",null,"→",69,null,"世帯構成員4生年月日_元号","2:NAGVBAC008",70]
[89,"生年月日（西暦）4","→","単純転送",null,"→",70,null,"世帯構成員4生年月日",6,71]
[90,"年齢4","→",null,null,"→"]
[91,"健康状態等4","→","単純転送",null,"→",71,null,"世帯構成員4健康状態等","-",72]
[92,"備考（勤務先名称／通学（園）先名称　等）4","→","単純転送",null,"→",72,null,"世帯構成員4備考（現在の状況）_勤務先/通学（園）先","-",73]
[93,"氏名5","→","単純転送",null,"→",74,null,"世帯構成員5カナ氏名","-",76]
[94,"氏名（カナ）5","→","変換半角",null,"→",75,null,"世帯構成員5漢字氏名","-",75]
[95,"続柄（申込児童からみた関係）5","→","変換コンボ",null,"→",76,null,"世帯構成員5続柄","2:NAGVBAS004",77]
[96,"続柄（申込児童からみた関係：その他）5","→","単純転送",null,"→",77,null,"世帯構成員5続柄_入力","-",78]
[97,"生年月日（西暦）5","→","変換チェック_和暦",null,"→",78,null,"世帯構成員5生年月日_元号","2:NAGVBAC008",79]
[98,"生年月日（西暦）5","→","単純転送",null,"→",79,null,"世帯構成員5生年月日",6,80]
[99,"年齢5","→",null,null,"→"]
[100,"健康状態等5","→","単純転送",null,"→",80,null,"世帯構成員5健康状態等","-",81]
[101,"備考（勤務先名称／通学（園）先名称　等）5","→","単純転送",null,"→",81,null,"世帯構成員5備考（現在の状況）_勤務先/通学（園）先","-",82]
[102,"氏名6","→","単純転送",null,"→",83,null,"世帯構成員6カナ氏名","-",85]
[103,"氏名（カナ）6","→","変換半角",null,"→",84,null,"世帯構成員6漢字氏名","-",84]
[104,"続柄（申込児童からみた関係）6","→","変換コンボ",null,"→",85,null,"世帯構成員6続柄","2:NAGVBAS004",86]
[105,"続柄（申込児童からみた関係：その他）6","→","単純転送",null,"→",86,null,"世帯構成員6続柄_入力","-",87]
[106,"生年月日（西暦）6","→","変換チェック_和暦",null,"→",87,null,"世帯構成員6生年月日_元号","2:NAGVBAC008",88]
[107,"生年月日（西暦）6","→","単純転送",null,"→",88,null,"世帯構成員6生年月日",6,89]
[108,"年齢6","→",null,null,"→"]
[109,"健康状態等6","→","単純転送",null,"→",89,null,"世帯構成員6健康状態等","-",90]
[110,"備考（勤務先名称／通学（園）先名称　等）6","→","単純転送",null,"→",90,null,"世帯構成員6備考（現在の状況）_勤務先/通学（園）先","-",91]
[111,"申込み区分","→","変換チェック",null,"→",93,"保育施設・事業所の利用申込み内容","申込み区分","2:NAGVBAC009",94]
[112,"育児休業からの復職の意思","→","変換チェック",null,"→",137,null,"育児休業からの\n復職の意思","2:NAGVBAC017",138]
[113,"育児休業からの復職時期","→","単純転送",null,"→",138,null,"復職時期","-",139]
[114,"利用中の施設・事業所名称","→","単純転送",null,"→",94,null,"転園利用申込み選択時_利用中の施設・事業所名","-",95]
[115,"利用中の施設・事業所の今後の利用意向","→","変換チェック",null,"→",95,null,"転園利用申込み選択時_区分","2:NAGVBAC010",96]
[116,"【第１希望】希望施設・事業所_所在区","→","変換特殊;自他区",null,"→",96,null,"第1希望_施設・事業所名称_区",null,97]
[117,"希望施設・事業所（北区_保育所）","→","変換施設",null,"→",97,null,"第1希望_施設・事業所名称",8,98]
[118,"希望施設・事業所（　区_保育所）","→","変換施設",null,"→",null,null,null,null,98]
[119,"希望施設・事業所（北区_認定こども園）","→","変換施設",null,"→",null,null,null,null,98]
[120,"希望施設・事業所（北区_地域型保育事業）","→","変換施設",null,"→",null,null,null,null,98]
[121,"希望施設・事業所（他区_施設・事業所_所在区）","→","変換コンボ",null,"→",96,null,"第1希望_施設・事業所名称_区","2:NAGVBAS005",97]
[122,"希望施設・事業所（他区_施設・事業所）","→","変換施設",null,"→",null,null,null,null,98]
[123,"【第１希望】希望施設・事業所の見学","→","変換チェック",null,"→",98,null,"第1希望_見学の有無","2:NAGVBAC011",99]
[124,"【第１希望】希望施設・事業所の見学（予定）日","→","単純転送",null,"→",99,null,"第1希望_見学の有無_未_予定日","-",100]
[125,"【第２希望】希望施設・事業所_所在区","→","変換特殊;自他区",null,"→",100,null,"第2希望_施設・事業所名称_区",null,101]
[126,"希望施設・事業所（北区_保育所）","→","変換施設",null,"→",101,null,"第2希望_施設・事業所名称",8,102]
[127,"希望施設・事業所（　区_保育所）","→","変換施設",null,"→",null,null,null,null,102]
[128,"希望施設・事業所（北区_認定こども園）","→","変換施設",null,"→",null,null,null,null,102]
[129,"希望施設・事業所（北区_地域型保育事業）","→","変換施設",null,"→",null,null,null,null,102]
[130,"希望施設・事業所（他区_施設・事業所_所在区）","→","変換コンボ",null,"→",100,null,"第2希望_施設・事業所名称_区","2:NAGVBAS005",101]
[131,"希望施設・事業所（他区_施設・事業所）","→","変換施設",null,"→",null,null,null,null,102]
[132,"【第２希望】希望施設・事業所の見学","→","変換チェック",null,"→",102,null,"第2希望_見学の有無","2:NAGVBAC011",103]
[133,"【第２希望】希望施設・事業所の見学（予定）日","→","単純転送",null,"→",103,null,"第2希望_見学の有無_未_予定日","-",104]
[134,"【第３希望】希望施設・事業所_所在区","→","変換特殊;自他区",null,"→",104,null,"第3希望_施設・事業所名称_区",null,105]
[135,"希望施設・事業所（北区_保育所）","→","変換施設",null,"→",105,null,"第3希望_施設・事業所名称",8,106]
[136,"希望施設・事業所（　区_保育所）","→","変換施設",null,"→",null,null,null,null,106]
[137,"希望施設・事業所（北区_認定こども園）","→","変換施設",null,"→",null,null,null,null,106]
[138,"希望施設・事業所（北区_地域型保育事業）","→","変換施設",null,"→",null,null,null,null,106]
[139,"希望施設・事業所（他区_施設・事業所_所在区）","→","変換コンボ",null,"→",104,null,"第3希望_施設・事業所名称_区","2:NAGVBAS005",105]
[140,"希望施設・事業所（他区_施設・事業所）","→","変換施設",null,"→",null,null,null,null,106]
[141,"【第３希望】希望施設・事業所の見学","→","変換チェック",null,"→",106,null,"第3希望_見学の有無","2:NAGVBAC011",107]
[142,"【第３希望】希望施設・事業所の見学（予定）日","→","単純転送",null,"→",107,null,"第3希望_見学の有無_未_予定日","-",108]
[143,"【第４希望】希望施設・事業所_所在区","→","変換特殊;自他区",null,"→",108,null,"第4希望_施設・事業所名称_区",null,109]
[144,"希望施設・事業所（北区_保育所）","→","変換施設",null,"→",109,null,"第4希望_施設・事業所名称",8,110]
[145,"希望施設・事業所（　区_保育所）","→","変換施設",null,"→",null,null,null,null,110]
[146,"希望施設・事業所（北区_認定こども園）","→","変換施設",null,"→",null,null,null,null,110]
[147,"希望施設・事業所（北区_地域型保育事業）","→","変換施設",null,"→",null,null,null,null,110]
[148,"希望施設・事業所（他区_施設・事業所_所在区）","→","変換コンボ",null,"→",108,null,"第4希望_施設・事業所名称_区","2:NAGVBAS005",109]
[149,"希望施設・事業所（他区_施設・事業所）","→","変換施設",null,"→",null,null,null,null,110]
[150,"【第４希望】希望施設・事業所の見学","→","変換チェック",null,"→",110,null,"第4希望_見学の有無","2:NAGVBAC011",111]
[151,"【第４希望】希望施設・事業所の見学（予定）日","→","単純転送",null,"→",111,null,"第4希望_見学の有無_未_予定日","-",112]
[152,"【第５希望】希望施設・事業所_所在区","→","変換特殊;自他区",null,"→",112,null,"第5希望_施設・事業所名称_区",null,113]
[153,"希望施設・事業所（北区_保育所）","→","変換施設",null,"→",113,null,"第5希望_施設・事業所名称",8,114]
[154,"希望施設・事業所（　区_保育所）","→","変換施設",null,"→",null,null,null,null,114]
[155,"希望施設・事業所（北区_認定こども園）","→","変換施設",null,"→",null,null,null,null,114]
[156,"希望施設・事業所（北区_地域型保育事業）","→","変換施設",null,"→",null,null,null,null,114]
[157,"希望施設・事業所（他区_施設・事業所_所在区）","→","変換コンボ",null,"→",112,null,"第5希望_施設・事業所名称_区","2:NAGVBAS005",113]
[158,"希望施設・事業所（他区_施設・事業所）","→","変換施設",null,"→",null,null,null,null,114]
[159,"【第５希望】希望施設・事業所の見学","→","変換チェック",null,"→",114,null,"第5希望_見学の有無","2:NAGVBAC011",115]
[160,"【第５希望】希望施設・事業所の見学（予定）日","→","単純転送",null,"→",115,null,"第5希望_見学の有無_未_予定日","-",116]
[161,"【第６希望】希望施設・事業所_所在区","→","変換特殊;自他区",null,"→",116,null,"第6希望_施設・事業所名称_区",null,117]
[162,"希望施設・事業所（北区_保育所）","→","変換施設",null,"→",117,null,"第6希望_施設・事業所名称",8,118]
[163,"希望施設・事業所（　区_保育所）","→","変換施設",null,"→",null,null,null,null,118]
[164,"希望施設・事業所（北区_認定こども園）","→","変換施設",null,"→",null,null,null,null,118]
[165,"希望施設・事業所（北区_地域型保育事業）","→","変換施設",null,"→",null,null,null,null,118]
[166,"希望施設・事業所（他区_施設・事業所_所在区）","→","変換コンボ",null,"→",116,null,"第6希望_施設・事業所名称_区","2:NAGVBAS005",117]
[167,"希望施設・事業所（他区_施設・事業所）","→","変換施設",null,"→",null,null,null,null,118]
[168,"【第６希望】希望施設・事業所の見学","→","変換チェック",null,"→",118,null,"第6希望_見学の有無","2:NAGVBAC011",119]
[169,"【第６希望】希望施設・事業所の見学（予定）日","→","単純転送",null,"→",119,null,"第6希望_見学の有無_未_予定日","-",120]
[170,"民間移管施設の利用希望","→",null,null,"→"]
[171,"民間移管施設を希望する場合の注意事項","→",null,null,"→"]
[172,"民間移管に関する注意項目①","→",null,null,"→"]
[173,"民間移管に関する注意項目②","→",null,null,"→"]
[174,"民間移管に関する注意項目③","→",null,null,"→"]
[175,"民間移管に関する注意項目④","→",null,null,"→"]
[176,"民間移管に関する注意項目⑤","→",null,null,"→"]
[177,"民間移管に関する注意項目⑥","→",null,null,"→"]
[178,"民間移管に関する注意項目⑦","→",null,null,"→"]
[179]
[180,"利用（転園）を希望する理由","→","単純転送",null,"→",120,null,"利用（転園）希望理由","-",121]
[181,"希望施設・事業所以外の調整","→","変換チェック",null,"→",121,null,"利用希望施設・事業所のいずれも利用できない場合、社会福祉事務所において他の施設・事業所の利用のための調整を行うことを希望するか。","2:NAGVBAC012",122]
[182,"利用希望時間（平日）","→","～転送前",null,"→",122,null,"利用希望時間_平日開始","-",123]
[183,"利用希望時間（平日）","→","～転送後",null,"→",123,null,"利用希望時間_平日終了","-",124]
[184,"利用希望時間（土曜日）","→","～転送前",null,"→",124,null,"利用希望時間_土曜日開始","-",125]
[185,"利用希望時間（土曜日）","→","～転送後",null,"→",125,null,"利用希望時間_土曜日終了","-",126]
[186,"利用希望時間（日・祝日）","→","～転送前",null,"→",126,null,"利用希望時間_日・祝日開始","-",127]
[187,"利用希望時間（日・祝日）","→","～転送後",null,"→",127,null,"利用希望時間_日・祝日終了","-",128]
[188,"送迎される方（送り）","→","変換チェック",null,"→",128,null,"送迎方法_送り","2:NAGVBAC013",129]
[189,"送迎される方（送り：その他）","→","単純転送",null,"→",129,null,"送迎方法_送り_その他内容","-",130]
[190,"送迎される方（迎え）","→","変換チェック",null,"→",130,null,"送迎方法_迎え","2:NAGVBAC014",131]
[191,"送迎される方（迎え：その他）","→","単純転送",null,"→",131,null,"送迎方法_迎え_その他内容","-",132]
[192,"送迎方法（使用可能な手段）","→","変換チェック",null,"→",132,null,"送迎方法_使用可能な手段","2:NAGVBAC015",133]
[193,"送迎方法（使用可能な手段：その他）","→","単純転送",null,"→",133,null,"送迎方法_使用可能な手段_その他内容","-",134]
[194,"利用希望期間（開始）","→","単純転送",null,"→",134,null,"利用希望期間選択_利用希望期間開始","-",135]
[195,"利用希望期間（終了）（年月日）","→","変換チェック",null,"→",135,null,"利用希望期間選択","2:NAGVBAC016",136]
[196,"利用希望期間（終了）","→","単純転送",null,"→",136,null,"利用希望期間選択_利用希望期間終了","-",137]
[197,"育児休業からの復職の意思","→","変換チェック",null,"→",137,null,"育児休業からの\n復職の意思","2:NAGVBAC017",138]
[198,"育児休業からの復職時期","→","単純転送",null,"→",138,null,"復職時期","-",139]
[199,"希望する保育必要量","→","変換チェック",null,"→",139,null,"希望する保育必要量","2:NAGVBAC018",140]
[200,"保護者①（申込児童からみた続柄）","→","変換チェック",null,"→",140,"父母等の状況_保育が必要な事由","利用希望理由_父_区分","2:NAGVBAC019",141]
[201,"保護者①（申込児童からみた続柄）","→","変換コンボ除外;父",null,"→",141,null,"利用希望理由_父の状況","2:NAGVBAS006",142]
[202,"保護者①（申込児童からみた続柄_その他）","→","単純転送",null,"→",141,null,"利用希望理由_父の状況","-",158]
[203,"保育の必要な事由が「就労」_保護者①","→","変換チェック","|","→",142,null,"利用希望理由_父_保育の必要な事由","2:NAGVBAC020",143]
[204,"保育の必要な事由「産前産後」_保護者①","→","変換チェック","|","→",null,null,null,"2:NAGVBAC020",143]
[205,"保育の必要な事由「疾病等」_保護者①","→","変換チェック","|","→",null,null,null,"2:NAGVBAC020",143]
[206,"保育の必要な事由「親族介護」_保護者①","→","変換チェック","|","→",null,null,null,"2:NAGVBAC020",143]
[207,"保育の必要な事由「災害復旧」_保護者①","→","変換チェック","|","→",null,null,null,"2:NAGVBAC020",143]
[208,"保育の必要な事由「求職活動」_保護者①","→","変換チェック","|","→",null,null,null,"2:NAGVBAC020",143]
[209,"保育の必要な事由「就学」_保護者①","→","変換チェック","|","→",null,null,null,"2:NAGVBAC020",143]
[210,"保育の必要な事由「発達援助」_保護者①","→","変換チェック","|","→",null,null,null,"2:NAGVBAC020",143]
[211,"保育の必要な事由「育児休業（利用開始希望）」_保護者①","→","変換チェック",null,"→",null,null,null,"2:NAGVBAC020",143]
[212,"添付ファイルの選択"]
[213,"添付ファイルの選択"]
[214,"添付ファイルの選択"]
[215,"添付ファイルの選択"]
[216,"添付ファイルの選択"]
[217,"添付ファイルの選択"]
[218,"添付ファイルの選択"]
[219,"添付ファイルの選択"]
[220,"添付ファイルの選択"]
[221,"【1ファイル目】選択した必要書類を添付してください。"]
[222,"【2ファイル目】選択した必要書類を添付してください。"]
[223,"【3ファイル目】選択した必要書類を添付してください。"]
[224,"【4ファイル目】選択した必要書類を添付してください。"]
[225,"【5ファイル目】選択した必要書類を添付してください。"]
[226,"１日あたりの勤務時間_保護者①","→","変換転送;時間",null,"→",143,null,"利用希望理由_父_就労又は就学_一日の時間","-",144]
[227,"１週間あたりの勤務日数_保護者①","→","変換転送;日",null,"→",144,null,"利用希望理由_父_就労又は就学_週の日数","-",145]
[228,"1か月あたりの勤務日数_保護者①","→","変換転送;日",null,"→",146,null,"利用希望理由_父_就労又は就学_一ヶ月の日数","-",147]
[229,"１日あたりの就学時間_保護者①","→","変換転送;時間",null,"→",143,null,"利用希望理由_父_就労又は就学_一日の時間",null,144]
[230,"１週間あたりの就学日数_保護者①","→","変換転送;日",null,"→",144,null,"利用希望理由_父_就労又は就学_週の日数",null,145]
[231,"1か月あたりの就学日数_保護者①","→","変換転送;日",null,"→",146,null,"利用希望理由_父_就労又は就学_一ヶ月の日数",null,147]
[232,"勤務時間（平日）_保護者①","→","～転送前",null,"→",147,null,"利用希望理由_父_就労又は就学_平日開始時間","-",148]
[233,"勤務時間（平日）_保護者①",null,"～転送後",null,null,148,null,"利用希望理由_父_就労又は就学_平日終了時間","-",149]
[234,"休憩時間（平日）_保護者①","→","変換転送;分",null,"→",149,null,"利用希望理由_父_就労又は就学_平日休憩時間","-",150]
[235,"勤務時間（土曜日）_保護者①","→","～転送前",null,"→",150,null,"利用希望理由_父_就労又は就学_土曜開始時間","-",151]
[236,"勤務時間（土曜日）_保護者①",null,"～転送後",null,null,151,null,"利用希望理由_父_就労又は就学_土曜終了時間","-",152]
[237,"休憩時間（土曜日）_保護者①","→","変換転送;分",null,"→",152,null,"利用希望理由_父_就労又は就学_土曜休憩時間","-",153]
[238,"勤務時間（日曜日）_保護者①","→","～転送前",null,"→",153,null,"利用希望理由_父_就労又は就学_日曜開始時間","-",154]
[239,"勤務時間（日曜日）_保護者①",null,"～転送後",null,null,154,null,"利用希望理由_父_就労又は就学_日曜終了時間","-",155]
[240,"休憩時間（日曜日）_保護者①","→","変換転送;分",null,"→",155,null,"利用希望理由_父_就労又は就学_日曜休憩時間","-",156]
[241,"休日（定期・不定期／１月あたりの日数）_保護者①","→","単純転送",null,"→",156,null,"利用希望理由_父_就労又は就学_休日曜日","-",157]
[242,"休日（定期・不定期／１月あたりの日数）_保護者①","→","変換チェック",null,"→",158,null,"利用希望理由_父_就労又は就学_祝日・不定休_祝日","-",157,"★下の行削除"]
[265,"就労内容_保護者①","→","単純転送",null,"→",160,null,"利用希望理由_父_就労又は就学_就労内容","-",161]
[243,"産休・育休の取得_保護者①","→","変換チェック",null,"→",162,null,"利用希望理由_父_就労又は就学_産休・育休の取得","2:NAGVBAC022",163]
[244,"産休・育休の取得期間_保護者①","→","～転送前",null,"→",163,null,"利用希望理由_父_就労又は就学_産休・育休取得期間開始","-",164]
[245,"産休・育休の取得期間_保護者①",null,"～転送後",null,null,164,null,"利用希望理由_父_就労又は就学_産休・育休取得期間終了","-",165]
[246,"育児短縮勤務_保護者①","→","変換チェック",null,"→",165,null,"利用希望理由_父_就労又は就学_育児短縮勤務","2:NAGVBAC023",166]
[247,"育児短縮勤務の取得期間_保護者①","→","～転送前",null,"→",166,null,"利用希望理由_父_就労又は就学_育児短縮勤務期間開始","-",167]
[248,"育児短縮勤務の取得期間_保護者①",null,"～転送後",null,"→",167,null,"利用希望理由_父_就労又は就学_育児短縮勤務期間終了","-",168]
[249,"育児短縮勤務（取得中の勤務時間）_保護者①","→","～転送前",null,null,168,null,"利用希望理由_父_就労又は就学_育児短縮勤務時間開始","-",169]
[250,"育児短縮勤務（取得中の勤務時間）_保護者①",null,"～転送後",null,null,169,null,"利用希望理由_父_就労又は就学_育児短縮勤務時間終了","-",170]
[251,"通勤方法_保護者①","→","変換チェック空白除外",null,"→",170,null,"通勤(通学)方法_父","2:NAGVBAC024",171]
[252,"通勤方法（その他）_保護者①","→","単純転送",null,"→",171,null,"通勤(通学)方法_父_その他","-",172]
[253,"通勤時間（行き）_保護者①","→","変換転送;分",null,"→",172,null,"通勤(通学)時間_父_行き","-",173]
[254,"通勤時間（帰り）_保護者①","→","変換転送;分",null,"→",173,null,"通勤(通学)時間_父_帰り","-",174]
[283,"就労先住所_保護者①"]
[229,"１日あたりの就学時間_保護者①","→","変換転送;時間",null,"→",143,null,"利用希望理由_父_就労又は就学_一日の時間",null,144]
[230,"１週間あたりの就学日数_保護者①","→","変換転送;日",null,"→",144,null,"利用希望理由_父_就労又は就学_週の日数",null,145]
[231,"1か月あたりの就学日数_保護者①","→","変換転送;日",null,"→",146,null,"利用希望理由_父_就労又は就学_一ヶ月の日数",null,147]
[255,"就学時間（平日）_保護者①","→","～転送前",null,"→",null,null,null,null,148]
[256,"就学時間（平日）_保護者①","→","～転送後",null,"→",null,null,null,null,149]
[257,"休憩時間（平日）_保護者①","→","変換転送;分",null,"→",null,null,null,null,150]
[258,"就学時間（土曜日）_保護者①","→","～転送前",null,"→",null,null,null,null,151]
[259,"就学時間（土曜日）_保護者①","→","～転送後",null,"→",null,null,null,null,152]
[260,"休憩時間（土曜日）_保護者①","→","変換転送;分",null,"→",null,null,null,null,153]
[261,"就学時間（日曜日）_保護者①","→","～転送前",null,"→",null,null,null,null,154]
[262,"就学時間（日曜日）_保護者①","→","～転送後",null,"→",null,null,null,null,155]
[263,"休憩時間（日曜日）_保護者①","→","変換転送;分",null,"→",null,null,null,null,156]
[264,"休日（定期・不定期／１月あたりの日数）_保護者①","→","変換チェック",null,"→",158,null,"利用希望理由_父_就労又は就学_祝日・不定休_祝日","-",157,"★下の行削除"]
[265,"就労内容_保護者①","→","単純転送",null,"→",160,null,"利用希望理由_父_就労又は就学_就労内容","-",161]
[266,"卒業（終了）日_保護者①","→","単純転送",null,"→",161,null,"利用希望理由_父_就労又は就学_卒業日","-",162]
[267,"産休・育休の取得_保護者①","→","変換チェック",null,"→",162,null,"利用希望理由_父_就労又は就学_産休・育休の取得","2:NAGVBAC022",163]
[268,"産休・育休の取得期間_保護者①","→","～転送前",null,"→",163,null,"利用希望理由_父_就労又は就学_産休・育休取得期間開始","-",164]
[269,"産休・育休の取得期間_保護者①",null,"～転送後",null,null,164,null,"利用希望理由_父_就労又は就学_産休・育休取得期間終了","-",165]
[270,"育児短縮勤務_保護者①","→","変換チェック",null,"→",165,null,"利用希望理由_父_就労又は就学_育児短縮勤務","2:NAGVBAC023",166]
[271,"育児短縮勤務の取得期間_保護者①","→","～転送前",null,"→",166,null,"利用希望理由_父_就労又は就学_育児短縮勤務期間開始","-",167]
[272,"育児短縮勤務の取得期間_保護者①",null,"～転送後",null,"→",167,null,"利用希望理由_父_就労又は就学_育児短縮勤務期間終了","-",168]
[273,"育児短縮勤務（取得中の勤務時間）_保護者①","→","～転送前",null,null,168,null,"利用希望理由_父_就労又は就学_育児短縮勤務時間開始","-",169]
[274,"育児短縮勤務（取得中の勤務時間）_保護者①",null,"～転送後",null,null,169,null,"利用希望理由_父_就労又は就学_育児短縮勤務時間終了","-",170]
[275,"通勤方法_保護者①","→","変換チェック空白除外",null,"→",170,null,"通勤(通学)方法_父","2:NAGVBAC024",171]
[276,"通勤方法（その他）_保護者①","→","単純転送",null,"→",171,null,"通勤(通学)方法_父_その他","-",172]
[277,"通勤時間（行き）_保護者①","→","変換転送;分",null,"→",172,null,"通勤(通学)時間_父_行き","-",173]
[278,"通勤時間（帰り）_保護者①","→","変換転送;分",null,"→",173,null,"通勤(通学)時間_父_帰り","-",174]
[279,"通学方法_保護者①","→","変換チェック空白除外",null,"→",null,null,"通勤(通学)方法_父","2:NAGVBAC024",171]
[280,"通学方法（その他）_保護者①","→","単純転送",null,"→",null,null,"通勤(通学)方法_父_その他",null,172]
[281,"通学時間（行き）_保護者①","→","変換転送;分",null,"→",null,null,null,null,173]
[282,"通学時間（帰り）_保護者①","→","変換転送;分",null,"→",null,null,null,null,174]
[284,"通学先住所_保護者①"]
[285,"疾病等（傷病名）_保護者①","→","単純転送",null,"→",174,null,"父_疾病等_傷病名","-",175]
[286,"疾病等（治療期間）_保護者①","→","～転送前",null,"→",175,null,"父_疾病等_治療期間開始","-",176]
[287,"疾病等（治療期間）_保護者①","→","～転送後",null,"→",176,null,"父_疾病等_治療期間終了","-",177]
[288,"疾病等（手帳の種類）_保護者①","→","単純転送",null,"→",177,null,"父_疾病等_手帳の種類","-",178]
[289,"疾病等（手帳の等級）_保護者①","→","単純転送",null,"→",178,null,"父_疾病等_総合等級","-",179]
[290,"被介護（看護）者（氏名）_保護者①","→","単純転送",null,"→",179,null,"父_被介護（看護）者氏名","-",180]
[291,"被介護（看護）者（申込児童との続柄）_保護者①","→","単純転送",null,"→",180,null,"父_被介護（看護）者氏名_続柄","-",181]
[292,"被介護（看護）者（住所）_保護者①","→","変換チェック",null,"→",182,null,"父_被介護（看護）者住所_同居","2:NAGVBAC025",183]
[293,"被介護（看護）者（住所）_保護者①","→","単純転送",null,"→",181,null,"父_被介護（看護）者別居先","-",182]
[294,"被介護（看護）者（傷病名）_保護者①","→","単純転送",null,"→",183,null,"父_被介護（看護）_疾病等_傷病名","-",184]
[295,"被介護（看護）者（手帳取得）_保護者①","→",null,null,"→"]
[296,"被介護（看護）者（手帳の種類）_保護者①","→","単純転送",null,"→",184,null,"父_父_被介護（看護）_疾病等_手帳の種類","-",185]
[297,"被介護（看護）者（手帳の等級）_保護者①","→","単純転送",null,"→",185,null,"父_父_被介護（看護）_疾病等_総合等級","-",186]
[298,"居所_保護者①"]
[299,"不在の場合（事由）_保護者①","→","変換チェック",null,"→",186,null,"父_不在の場合","2:NAGVBAC026",187]
[300,"不在の場合（事由_その他）_保護者①","→","単純転送",null,"→",187,null,"父_不在の場合_その他","-",188]
[301,"不在の場合（別居開始日）_保護者①","→","単純転送",null,"→",188,null,"父_不在の場合_別居開始日","-",189]
[302,"不在の場合（居所）_保護者①","→","単純転送",null,"→",189,null,"父_不在の場合_別居先","-",190]
[303,"ひとり親世帯","→",null,null,"→"]
[304,"保護者②（申込児童との続柄）","→","変換チェック",null,"→",190,null,"利用希望理由_母_区分","2:NAGVBAC027",191]
[305,"保護者②（申込児童との続柄）","→","変換コンボ除外;母",null,"→",191,null,"利用希望理由_母の状況","2:NAGVBAS007",192]
[306,"保護者②（その他）","→","単純転送",null,"→",141,null,"利用希望理由_母の状況","-",208]
[307,"保育の必要な事由が「就労」＿保護者②","→","変換チェック","|","→",192,null,"利用希望理由_母_保育の必要な事由","2:NAGVBAC028",193]
[308,"保育の必要な事由が「産前産後」＿保護者②","→","変換チェック","|","→",null,null,null,"2:NAGVBAC028",193]
[309,"保育の必要な事由が「疾病等」＿保護者②","→","変換チェック","|","→",null,null,null,"2:NAGVBAC028",193]
[310,"保育の必要な事由が「親族介護」＿保護者②","→","変換チェック","|","→",null,null,null,"2:NAGVBAC028",193]
[311,"保育の必要な事由が「災害復旧」＿保護者②","→","変換チェック","|","→",null,null,null,"2:NAGVBAC028",193]
[312,"保育の必要な事由が「求職活動」＿保護者②","→","変換チェック","|","→",null,null,null,"2:NAGVBAC028",193]
[313,"保育の必要な事由が「就学」＿保護者②","→","変換チェック","|","→",null,null,null,"2:NAGVBAC028",193]
[314,"保育の必要な事由が「発達援助」＿保護者②","→","変換チェック","|","→",null,null,null,"2:NAGVBAC028",193]
[315,"保育の必要な事由が「育児休業（利用開始希望日時点）」＿保護者②","→","変換チェック",null,"→",null,null,null,"2:NAGVBAC028",193]
[316,"添付ファイルの選択"]
[317,"添付ファイルの選択"]
[318,"添付ファイルの選択"]
[319,"添付ファイルの選択"]
[320,"添付ファイルの選択"]
[321,"添付ファイルの選択"]
[322,"添付ファイルの選択"]
[323,"添付ファイルの選択"]
[324,"添付ファイルの選択"]
[325,"【1ファイル目】選択した必要書類を添付してください。"]
[326,"【2ファイル目】選択した必要書類を添付してください。"]
[327,"【3ファイル目】選択した必要書類を添付してください。"]
[328,"【4ファイル目】選択した必要書類を添付してください。"]
[329,"【5ファイル目】選択した必要書類を添付してください。"]
[330,"１日あたりの勤務時間＿保護者②","→","変換転送;時間",null,"→",193,null,"利用希望理由_母_就労又は就学_一日の時間","-",194]
[331,"１週間あたりの勤務日数＿保護者②","→","変換転送;日",null,"→",194,null,"利用希望理由_母_就労又は就学_週の日数","-",195]
[332,"１か月あたりの勤務日数＿保護者②","→","変換転送;日",null,"→",196,null,"利用希望理由_母_就労又は就学_一ヶ月の日数","-",197]
[333,"勤務時間（平日）＿保護者②","→","～転送前",null,"→",197,null,"利用希望理由_母_就労又は就学_平日開始時間","-",198]
[334,"勤務時間（平日）＿保護者②","→","～転送後",null,"→",197,null,"利用希望理由_母_就労又は就学_平日開始時間","-",199]
[335,"休憩時間（平日）＿保護者②","→","変換転送;分",null,"→",199,null,"利用希望理由_母_就労又は就学_平日休憩時間","-",200]
[336,"勤務時間（土曜日）＿保護者②","→","～転送前",null,"→",200,null,"利用希望理由_母_就労又は就学_土曜開始時間","-",201]
[337,"勤務時間（土曜日）＿保護者②","→","～転送後",null,"→",200,null,"利用希望理由_母_就労又は就学_土曜終了時間","-",202]
[338,"休憩時間（土曜日）＿保護者②","→","変換転送;分",null,"→",202,null,"利用希望理由_母_就労又は就学_土曜休憩時間","-",203]
[339,"勤務時間（日曜日）＿保護者②","→","～転送前",null,"→",203,null,"利用希望理由_母_就労又は就学_日曜開始時間","-",204]
[340,"勤務時間（日曜日）＿保護者②","→","～転送後",null,"→",203,null,"利用希望理由_母_就労又は就学_日曜終了時間","-",205]
[341,"休憩時間（日曜日）＿保護者②","→","変換転送;分",null,"→",205,null,"利用希望理由_母_就労又は就学_日曜休憩時間","-",206]
[342,"休日（定期・不定期／１月あたりの日数）_保護者②","→","単純転送",null,"→",206,null,"利用希望理由_母_就労又は就学_休日曜日","-",207]
[343,"就労内容＿保護者②","→","単純転送",null,"→",210,null,"利用希望理由_母_就労又は就学_就労内容","-",211]
[344,"産休・育休の取得＿保護者②","→","変換チェック",null,"→",212,null,"利用希望理由_母_就労又は就学_産休・育休の取得","2:NAGVBAC030",213]
[345,"産休・育休の取得期間＿保護者②","→","～転送前",null,"→",213,null,"利用希望理由_母_就労又は就学_産休・育休取得期間開始","-",214]
[346,"産休・育休の取得期間＿保護者②","→","～転送後",null,null,214,null,"利用希望理由_母_就労又は就学_産休・育休取得期間終了","-",215]
[347,"育児短時間勤務＿保護者②","→","変換チェック",null,"→",215,null,"利用希望理由_母_就労又は就学_育児短縮勤務","2:NAGVBAC031",216]
[348,"育児短時間勤務の取得期間＿保護者②",null,"～転送前",null,null,216,null,"利用希望理由_母_就労又は就学_育児短縮勤務期間開始","-",217]
[349,"育児短時間勤務の取得期間＿保護者②","→","～転送後",null,"→",217,null,"利用希望理由_母_就労又は就学_育児短縮勤務期間終了","-",218]
[350,"育児短時間勤務（取得中の勤務時間）＿保護者②","→","～転送前",null,"→",218,null,"利用希望理由_母_就労又は就学_育児短縮勤務時間開始","-",219]
[351,"育児短時間勤務（取得中の勤務時間）＿保護者②","→","～転送後",null,"→",219,null,"利用希望理由_父_就労又は就学_育児短縮勤務時間終了","-",220]
[352,"通勤方法＿保護者②","→","変換チェック空白除外",null,"→",220,null,"通勤(通学)方法_母","2:NAGVBAC032",221]
[353,"通勤方法（その他）＿保護者②","→","単純転送",null,"→",221,null,"通勤(通学)方法_母_その他","-",222]
[354,"通勤時間（行き）＿保護者②","→","変換転送;分",null,"→",222,null,"通勤(通学)時間_母_行き","-",223]
[355,"通勤時間（帰り）＿保護者②","→","変換転送;分",null,"→",223,null,"通勤(通学)時間_母_帰り","-",224]
[397,"通勤先住所_保護者②"]
[356,"１日あたりの就学時間＿保護者②","→","変換転送;時間",null,"→",193,null,"利用希望理由_母_就労又は就学_一日の時間",null,194]
[357,"１週間あたりの就学日数＿保護者②","→","変換転送;日",null,"→",194,null,"利用希望理由_母_就労又は就学_週の日数",null,195]
[358,"１か月あたりの就学日数＿保護者②","→","変換転送;日",null,"→",196,null,"利用希望理由_母_就労又は就学_一ヶ月の日数",null,197]
[359,"勤務時間（平日）＿保護者②","→","～転送前",null,"→",197,null,"利用希望理由_母_就労又は就学_平日開始時間","-",198]
[360,"勤務時間（平日）＿保護者②","→","～転送後",null,"→",197,null,"利用希望理由_母_就労又は就学_平日開始時間","-",199]
[361,"休憩時間（平日）＿保護者②","→","変換転送;分",null,"→",199,null,"利用希望理由_母_就労又は就学_平日休憩時間","-",200]
[362,"勤務時間（土曜日）＿保護者②","→","～転送前",null,"→",200,null,"利用希望理由_母_就労又は就学_土曜開始時間","-",201]
[363,"勤務時間（土曜日）＿保護者②","→","～転送後",null,"→",200,null,"利用希望理由_母_就労又は就学_土曜終了時間","-",202]
[364,"休憩時間（土曜日）＿保護者②","→","変換転送;分",null,"→",202,null,"利用希望理由_母_就労又は就学_土曜休憩時間","-",203]
[365,"勤務時間（日曜日）＿保護者②","→","～転送前",null,"→",203,null,"利用希望理由_母_就労又は就学_日曜開始時間","-",204]
[366,"勤務時間（日曜日）＿保護者②","→","～転送後",null,"→",203,null,"利用希望理由_母_就労又は就学_日曜終了時間","-",205]
[367,"休憩時間（日曜日）＿保護者②","→","変換転送;分",null,"→",205,null,"利用希望理由_母_就労又は就学_日曜休憩時間","-",206]
[368,"休日（定期・不定期／１月あたりの日数）_保護者②","→","単純転送",null,"→",206,null,"利用希望理由_母_就労又は就学_休日曜日","-",207]
[369,"就学時間（平日）＿保護者②","→","～転送前",null,"→",null,null,null,null,198]
[370,"就学時間（平日）＿保護者②",null,"～転送後",null,null,null,null,null,null,199]
[371,"休憩時間（平日）＿保護者②","→","変換転送;分",null,"→",null,null,null,null,200]
[372,"就学時間（土曜日）＿保護者②","→","～転送前",null,"→",null,null,null,null,201]
[373,"就学時間（土曜日）＿保護者②",null,"～転送後",null,null,null,null,null,null,202]
[374,"休憩時間（土曜日）＿保護者②","→","変換転送;分",null,"→",null,null,null,null,203]
[375,"就学時間（日曜日）＿保護者②","→","～転送前",null,"→",null,null,null,null,204]
[376,"就学時間（日曜日）＿保護者②",null,"～転送後",null,null,null,null,null,null,205]
[377,"休憩時間（日曜日）＿保護者②","→","変換転送;分",null,"→",null,null,null,null,206]
[378,"休日（定期・不定期／１月あたりの日数）＿保護者②","→","単純転送",null,"→",208,null,"利用希望理由_母_就労又は就学_祝日・不定休_祝日","2:NAGVBAC029",207]
[379,"就労内容＿保護者②","→","単純転送",null,"→",210,null,"利用希望理由_母_就労又は就学_就労内容","-",211]
[380,"卒業（終了）日","→","単純転送",null,"→",211,null,"利用希望理由_母_就労又は就学_卒業日","-",212]
[381,"産休・育休の取得＿保護者②","→","変換チェック",null,"→",212,null,"利用希望理由_母_就労又は就学_産休・育休の取得","2:NAGVBAC030",213]
[382,"産休・育休の取得期間＿保護者②","→","～転送前",null,"→",213,null,"利用希望理由_母_就労又は就学_産休・育休取得期間開始","-",214]
[383,"産休・育休の取得期間＿保護者②","→","～転送後",null,null,214,null,"利用希望理由_母_就労又は就学_産休・育休取得期間終了","-",215]
[384,"育児短時間勤務＿保護者②","→","変換チェック",null,"→",215,null,"利用希望理由_母_就労又は就学_育児短縮勤務","2:NAGVBAC031",216]
[385,"育児短時間勤務の取得期間＿保護者②",null,"～転送前",null,null,216,null,"利用希望理由_母_就労又は就学_育児短縮勤務期間開始","-",217]
[386,"育児短時間勤務の取得期間＿保護者②","→","～転送後",null,"→",217,null,"利用希望理由_母_就労又は就学_育児短縮勤務期間終了","-",218]
[387,"育児短時間勤務（取得中の勤務時間）＿保護者②","→","～転送前",null,"→",218,null,"利用希望理由_母_就労又は就学_育児短縮勤務時間開始","-",219]
[388,"育児短時間勤務（取得中の勤務時間）＿保護者②","→","～転送後",null,"→",219,null,"利用希望理由_父_就労又は就学_育児短縮勤務時間終了","-",220]
[389,"通勤方法＿保護者②","→","変換チェック空白除外",null,"→",220,null,"通勤(通学)方法_母","2:NAGVBAC032",221]
[390,"通勤方法（その他）＿保護者②","→","単純転送",null,"→",221,null,"通勤(通学)方法_母_その他","-",222]
[391,"通勤時間（行き）＿保護者②","→","変換転送;分",null,"→",222,null,"通勤(通学)時間_母_行き","-",223]
[392,"通勤時間（帰り）＿保護者②","→","変換転送;分",null,"→",223,null,"通勤(通学)時間_母_帰り","-",224]
[393,"通学方法＿保護者②","→","変換チェック空白除外",null,"→",null,null,"通勤(通学)方法_母","2:NAGVBAC032",221]
[394,"通学方法（その他）＿保護者②","→","単純転送",null,"→",null,null,"通勤(通学)方法_母_その他",null,222]
[395,"通学時間（行き）＿保護者②","→","変換転送;分",null,"→",null,null,null,null,223]
[396,"通学時間（帰り）＿保護者②","→","変換転送;分",null,"→",null,null,null,null,224]
[398,"通学先住所_保護者②"]
[399,"疾病等（傷病名）＿保護者②","→","単純転送",null,"→",224,null,"母_疾病等_傷病名","-",225]
[400,"疾病等（治療期間）＿保護者②","→","～転送前",null,"→",225,null,"母_疾病等_治療期間開始","-",226]
[401,"疾病等（治療期間）＿保護者②",null,"～転送後",null,null,226,null,"母_疾病等_治療期間終了","-",227]
[402,"疾病等（手帳取得）＿保護者②","→",null,null,"→"]
[403,"疾病等（手帳の種類）_保護者②","→","単純転送",null,"→",227,null,"母_疾病等_手帳の種類","-",228]
[404,"疾病等（手帳の等級）_保護者②","→","単純転送",null,"→",228,null,"母_疾病等_総合等級","-",229]
[405,"被介護（看護）者（氏名）＿保護者②","→","単純転送",null,"→",229,null,"母_被介護（看護）者氏名","-",230]
[406,"被介護（看護）者（申込児童との続柄）＿保護者②","→","単純転送",null,"→",230,null,"母_被介護（看護）者氏名_続柄","-",231]
[407,"被介護（看護）者（住所）＿保護者②","→","変換チェック",null,"→",232,null,"母_被介護（看護）者住所_同居","2:NAGVBAC033",233]
[408,"被介護（看護）者（住所）＿保護者②","→","単純転送",null,"→",231,null,"母_被介護（看護）者別居先","-",232]
[409,"被介護（看護）者（傷病名）＿保護者②","→","単純転送",null,"→",233,null,"母_疾病等_傷病名","-",234]
[410,"被介護（看護）者（手帳取得）＿保護者②","→",null,null,"→"]
[411,"被介護（看護）者（手帳の種類）＿保護者②","→","単純転送",null,"→",234,null,"母_疾病等_手帳の種類","-",235]
[412,"被介護（看護）者（手帳の等級）＿保護者②","→","単純転送",null,"→",235,null,"母_疾病等_総合等級","-",236]
[413,"居所_保護者②"]
[414,"不在の場合（事由）＿保護者②","→","変換チェック",null,"→",236,null,"母_不在の場合","2:NAGVBAC034",237]
[415,"不在の場合（事由_その他）＿保護者②","→","単純転送",null,"→",237,null,"母_不在の場合_その他","-",238]
[416,"不在の場合（別居開始日）＿保護者②","→","単純転送",null,"→",238,null,"母_不在の場合_別居開始日","-",239]
[417,"不在の場合（居所）＿保護者②","→","単純転送",null,"→",239,null,"母_不在の場合_別居先","-",240]
[418,"出産予定","→","変換チェック",null,"→",240,null,"母_出産予定","2:NAGVBAC035",241]
[419,"出産（予定）日","→","単純転送",null,"→",241,null,"母_出産予定日","-",242]
[420,"手当受給状況（生活保護）","→","変換チェック",null,"→",242,null,"生活保護_適用なし","2:NAGVBAC036",243]
[421,"担当ケースワーカー","→","単純転送",null,"→",243,null,"生活保護_担当ケースワーカー","-",244]
[422,"手当受給状況（ひとり親関係手当）","→","変換チェック",null,"→",245,null,"ひとり親関係手当","2:NAGVBAC037",246]
[423,"手当受給状況（ひとり親関係手当：内容）","→","変換チェック",null,"→",246,null,"ひとり親関係手当_受給状況","2:NAGVBAC038",247]
[424,"父方の祖父","→",null,null,"→"]
[425,"父方の祖父（氏名）","→","単純転送",null,"→",247,"祖父母の状況","父方祖父氏名","-",248]
[426,"父方の祖父（生年月日）","→","単純転送",null,"→",248,null,"父方祖父生年月日","-",249]
[427,"父方の祖父（年齢）","→","単純転送",null,"→",249,null,"父方祖父年齢","-",250]
[428,"父方の祖父（住所）","→","変換チェック",null,"→",250,null,"父方祖父住所","2:NAGVBAC039",251]
[429,"父方の祖父（住所：詳細）","→","単純転送",null,"→",251,null,"父方祖父住所入力欄","-",252]
[430,"父方の祖父（状況：就労）","→","変換チェック",null,"→",252,null,"父方祖父状況_就労","2:NAGVBAC040",253]
[431,"父方の祖父（状況：健康）","→","変換チェック",null,"→",253,null,"父方祖父状況_健康","2:NAGVBAC041",254]
[432,"父方の祖母","→",null,null,"→"]
[433,"父方の祖母（氏名）","→","単純転送",null,"→",254,null,"父方祖母氏名","-",255]
[434,"父方の祖母（生年月日）","→","単純転送",null,"→",255,null,"父方祖母生年月日","-",256]
[435,"父方の祖母（年齢）","→","単純転送",null,"→",256,null,"父方祖母年齢","-",257]
[436,"父方の祖母（住所）","→","変換チェック",null,"→",257,null,"父方祖母住所","2:NAGVBAC042",258]
[437,"父方の祖母（住所：詳細）","→","単純転送",null,"→",258,null,"父方祖母住所入力欄","-",259]
[438,"父方の祖母（状況：就労）","→","変換チェック",null,"→",259,null,"父方祖母状況","2:NAGVBAC043",260]
[439,"父方の祖母（状況：健康）","→","変換チェック",null,"→",260,null,"父方1状況_健康","2:NAGVBAC044",261]
[440,"母方の祖父","→",null,null,"→"]
[441,"母方の祖父（氏名）","→","単純転送",null,"→",261,null,"母方祖父氏名","-",262]
[442,"母方の祖父（生年月日）","→","単純転送",null,"→",262,null,"母方祖父生年月日","-",263]
[443,"母方の祖父（年齢）","→","単純転送",null,"→",263,null,"母方祖父年齢","-",264]
[444,"母方の祖父（住所）","→","変換チェック",null,"→",264,null,"母方祖父住所","2:NAGVBAC045",265]
[445,"母方の祖父（住所：詳細）","→","単純転送",null,"→",265,null,"母方祖父住所入力欄","-",266]
[446,"母方の祖父（状況：就労）","→","変換チェック",null,"→",266,null,"母方祖父状況","2:NAGVBAC046",267]
[447,"母方の祖父（状況：健康）","→","変換チェック",null,"→",267,null,"母方祖父状況_健康","2:NAGVBAC047",268]
[448,"母方の祖母","→",null,null,"→"]
[449,"母方のの祖母（氏名）","→","単純転送",null,"→",268,null,"母方祖母氏名","-",269]
[450,"母方の祖母（生年月日）","→","単純転送",null,"→",269,null,"母方祖母生年月日","-",270]
[451,"母方の祖母（年齢）","→","単純転送",null,"→",270,null,"母方祖母年齢","-",271]
[452,"母方の祖母（住所）","→","変換チェック",null,"→",271,null,"母方祖母住所","2:NAGVBAC048",272]
[453,"母方の祖母（住所：詳細）","→","単純転送",null,"→",272,null,"母方祖母住所入力欄","-",273]
[454,"母方の祖母（状況：就労）","→","変換チェック",null,"→",273,null,"母方祖母状況","2:NAGVBAC049",274]
[455,"母方の祖母（状況：健康）","→","変換チェック",null,"→",274,null,"母方祖父状況_健康","2:NAGVBAC050",275]
[456,"申込児童以外のきょうだいの申込み状況"]
[457,"きょうだい利用の希望詳細_①","→","変換チェック",null,"→",275,"きょうだいで、同時に利用申込みを行う場合","①きょうだいが別々の保育施設等であれば利用できる場合、利用を希望するか。","2:NAGVBAC051",276]
[458,"きょうだい利用の希望詳細_②","→","変換チェック",null,"→",276,null,"②きょうだいが同時に利用できる場合、どちらを希望するか。","2:NAGVBAC052",277]
[459,"きょうだい利用の希望詳細_③","→","変換チェック",null,"→",277,null,"③きょうだいのうち、１人だけ利用できる場合、利用を希望するか。","2:NAGVBAC053",278]
[460,"利用申込に必要な書類（添付書類を?してください。）","→",null,null,"→"]
[461,"保育所等利用申込に係る申込児童等の状況確認票の添付","→",null,null,"→"]
[462,"ひとり親手当受給に関する確認書類（添付書類を?してください。）","→",null,null,"→"]
[463,"ひとり親世帯であることがわかる書類の添付","→",null,null,"→"]
[464,"家庭でお子さんの保育ができない状況を確認する書類_保護者①","→",null,null,"→"]
[465,"保育の必要な事由（就労）の確認書類の添付_保護者①","→",null,null,"→"]
[466,"家庭でお子さんの保育ができない状況を確認する書類_保護者①","→",null,null,"→"]
[467,"保育の必要な事由（疾病等）の確認書類の添付_保護者①","→",null,null,"→"]
[468,"家庭でお子さんの保育ができない状況を確認する書類_保護者①","→",null,null,"→"]
[469,"保育の必要な事由（親族介護）の確認書類の添付_保護者①","→",null,null,"→"]
[470,"家庭でお子さんの保育ができない状況を確認する書類_保護者①","→",null,null,"→"]
[471,"保育の必要な事由（災害復旧）の確認書類の添付_保護者①","→",null,null,"→"]
[472,"家庭でお子さんの保育ができない状況を確認する書類_保護者①","→",null,null,"→"]
[473,"保育の必要な事由（求職活動）の確認書類の添付_保護者①","→",null,null,"→"]
[474,"家庭でお子さんの保育ができない状況を確認する書類_保護者①","→",null,null,"→"]
[475,"保育の必要な事由（就学）の確認書類の添付_保護者①","→",null,null,"→"]
[476,"家庭でお子さんの保育ができない状況を確認する書類_保護者①","→",null,null,"→"]
[477,"保育の必要な事由（育児休業）の確認書類の添付_保護者①","→",null,null,"→"]
[478,"家庭でお子さんの保育ができない状況を確認する書類＿保護者②","→",null,null,"→"]
[479,"保育の必要な事由（就労）の確認書類の添付_保護者②","→",null,null,"→"]
[480,"家庭でお子さんの保育ができない状況を確認する書類＿保護者②","→",null,null,"→"]
[481,"保育の必要な事由（疾病等）の確認書類の添付_保護者②","→",null,null,"→"]
[482,"家庭でお子さんの保育ができない状況を確認する書類＿保護者②","→",null,null,"→"]
[483,"保育の必要な事由（親族介護）の確認書類の添付_保護者②","→",null,null,"→"]
[484,"家庭でお子さんの保育ができない状況を確認する書類＿保護者②","→",null,null,"→"]
[485,"保育の必要な事由（災害復旧）の確認書類の添付_保護者②","→",null,null,"→"]
[486,"家庭でお子さんの保育ができない状況を確認する書類＿保護者②","→",null,null,"→"]
[487,"保育の必要な事由（求職活動）の確認書類の添付_保護者②","→",null,null,"→"]
[488,"家庭でお子さんの保育ができない状況を確認する書類＿保護者②","→",null,null,"→"]
[489,"保育の必要な事由（就学）の確認書類の添付_保護者②","→",null,null,"→"]
[490,"家庭でお子さんの保育ができない状況を確認する書類＿保護者②","→",null,null,"→"]
[491,"保育の必要な事由（育児休業）の確認書類の添付_保護者②","→",null,null,"→"]
[492,"家庭でお子さんの保育ができない状況を確認する書類","→",null,null,"→"]
[493,"保育の必要な事由（発達援助）が確認できる書類の添付","→",null,null,"→"]
[494,"家庭でお子さんの保育ができない状況／出産（予定）日を確認する書類","→",null,null,"→"]
[495,"保育の必要な事由（産前産後）／出産（予定）日の確認書類の添付","→",null,null,"→"]
[496,"名古屋市外から転居予定での利用申込みをされる場合の必要書類","→",null,null,"→"]
[497,"転入先の住所が確認できる書類の添付","→",null,null,"→"]
[498,"令和３年１月１日時点で居住地が名古屋市以外の方の申込に必要な書類","→",null,null,"→"]
[499,"税額の確認できる書類の添付","→",null,null,"→"]
[500,"収入の確認できる書類","→",null,null,"→"]
[501,"収入の確認できる書類の添付","→",null,null,"→"]
[502,"６５歳未満の親族（祖父母等）と同居の場合に必要な書類","→",null,null,"→"]
[503,"６５歳未満の親族（祖父母等）と同居の場合に必要な書類の添付","→",null,null,"→"]
[504,"その他の提出書類","→",null,null,"→"]
[505,"オンライン利用申込み送信後の内容変更及び必要書類の送付","→",null,null,"→"]

{"sheet":"登録データ一覧シート","index":11,"n_rows":18,"n_cols":376,"rows_kept":18,"cut":false,"hidden":true,"merged":[[16,1,16,2],[16,306,16,309],[16,310,16,340],[16,142,16,246],[16,278,16,279],[16,275,16,277],[16,280,16,293],[16,365,16,375],[16,362,16,364],[16,356,16,361],[1,8,3,8],[16,3,16,25],[16,26,16,37],[16,38,16,92],[16,93,16,141],[7,10,8,10],[6,10,6,12],[16,350,16,355],[16,341,16,349]]}
[]
[null,"電子申請取込：",null,null,null,"電子申請ファイル取込","",null,"ツールメンテナンス"]
[]
[null,"データ分割：",null,null,null,"分割取込（エラー取込）："]
[]
[null,"データ印刷："]
[]
[null,"ファイル出力：",null,null,null,"電子申請ファイル出力",""]
[]
[null,"ファイル出力フォルダ（空欄の場合：フォルダ指定）"]
[]
[]
[null,"ファイル出力CSVファイル名（空欄の場合：電子申請データ）",null,null,null,null,"初期所管区コード"]
[null,"電子申請データ"]
[]
[]
[null,"識別情報",null,"申込者【教育・保育給付認定保護者（原則、世帯主）】",null,null,null,null,null,null,null,null,null,null,null,null,null,null,null,null,null,null,null,null,null,null,"世帯の状況（申請児童）",null,null,null,null,null,null,null,null,null,null,null,"世帯の状況（世帯構成員）",null,null,null,null,null,null,null,null,null,null,null,null,null,null,null,null,null,null,null,null,null,null,null,null,null,null,null,null,null,null,null,null,null,null,null,null,null,null,null,null,null,null,null,null,null,null,null,null,null,null,null,null,null,null,"保育施設・事業所の利用申込み内容",null,null,null,null,null,null,null,null,null,null,null,null,null,null,null,null,null,null,null,null,null,null,null,null,null,null,null,null,null,null,null,null,null,null,null,null,null,null,null,null,null,null,null,null,null,null,null,null,"父母等の状況_保育が必要な事由",null,null,null,null,null,null,null,null,null,null,null,null,null,null,null,null,null,null,null,null,null,null,null,null,null,null,null,null,null,null,null,null,null,null,null,null,null,null,null,null,null,null,null,null,null,null,null,null,null,null,null,null,null,null,null,null,null,null,null,null,null,null,null,null,null,null,null,null,null,null,null,null,null,null,null,null,null,null,null,null,null,null,null,null,null,null,null,null,null,null,null,null,null,null,null,null,null,null,null,null,null,null,null,null,"祖父母の状況",null,null,null,null,null,null,null,null,null,null,null,null,null,null,null,null,null,null,null,null,null,null,null,null,null,null,null,"きょうだいで、同時に利用申込みを行う場合",null,null,"教育・保育給付認定申請の委任",null,"名古屋市記載欄",null,null,null,null,null,null,null,null,null,null,null,null,null,"ランク判定",null,null,null,null,null,null,null,null,null,null,null,"加減点判定_ランクアップ",null,null,null,"加減点判定_調整指数",null,null,null,null,null,null,null,null,null,null,null,null,null,null,null,null,null,null,null,null,null,null,null,null,null,null,null,null,null,null,"加減点判定_児童加算",null,null,null,null,null,null,null,null,"施設コード",null,null,null,null,null,"施設コード",null,null,null,null,null,"入所申込情報",null,null,"Ver2追加（仮）"]
[null,"データNo","申請状態","申請ID","宛先区長","日付","世帯台帳番号","ステータス","保護者漢字氏名","保護者カナ氏名","保護者郵便番号","保護者現住所","転居先住所（予定）_転居予定日","転居先住所（予定）_郵便番号","転居先住所（予定）_住所","名古屋市からの送付物発送先","過去2年以内の転入歴(転入元）_県・市名","過去2年以内の転入歴(転入日）","保護者連絡先1_子どもとの続柄_①チェックボックス","保護者連絡先1_子どもとの続柄_①選択","保護者連絡先1_子どもとの続柄","保護者連絡先1_電話番号","保護者連絡先1_子どもとの続柄_②チェックボックス","保護者連絡先1_子どもとの続柄_②選択","保護者連絡先2_子どもとの続柄","保護者連絡先2_電話番号","申請児童漢字氏名","申請児童カナ氏名","申請児童性別","申請児童生年月日","申請児童年齢","申請児童個人番号","申請児童アレルギー選択","申請児童アレルギー選択_あり_内容","申請児童アレルギー選択_特記事項","申請児童アレルギー選択_希望施設・事業所への相談","申請児童アレルギー選択_障害","申請児童アレルギー選択_障害_あり内容","世帯構成員1カナ氏名","世帯構成員1漢字氏名","世帯構成員1続柄","世帯構成員1続柄_入力","世帯構成員1生年月日_元号","世帯構成員1生年月日","世帯構成員1健康状態等","世帯構成員1備考（現在の状況）_勤務先/通学（園）先","世帯構成員1個人番号","世帯構成員2カナ氏名","世帯構成員2漢字氏名","世帯構成員2続柄","世帯構成員2続柄_入力","世帯構成員2生年月日_元号","世帯構成員2生年月日","世帯構成員2健康状態等","世帯構成員2備考（現在の状況）_勤務先/通学（園）先","世帯構成員2個人番号","世帯構成員3カナ氏名","世帯構成員3漢字氏名","世帯構成員3続柄","世帯構成員3続柄_入力","世帯構成員3生年月日_元号","世帯構成員3生年月日","世帯構成員3健康状態等","世帯構成員3備考（現在の状況）_勤務先/通学（園）先","世帯構成員3個人番号","世帯構成員4カナ氏名","世帯構成員4漢字氏名","世帯構成員4続柄","世帯構成員4続柄_入力","世帯構成員4生年月日_元号","世帯構成員4生年月日","世帯構成員4健康状態等","世帯構成員4備考（現在の状況）_勤務先/通学（園）先","世帯構成員4個人番号","世帯構成員5カナ氏名","世帯構成員5漢字氏名","世帯構成員5続柄","世帯構成員5続柄_入力","世帯構成員5生年月日_元号","世帯構成員5生年月日","世帯構成員5健康状態等","世帯構成員5備考（現在の状況）_勤務先/通学（園）先","世帯構成員5個人番号","世帯構成員6カナ氏名","世帯構成員6漢字氏名","世帯構成員6続柄","世帯構成員6続柄_入力","世帯構成員6生年月日_元号","世帯構成員6生年月日","世帯構成員6健康状態等","世帯構成員6備考（現在の状況）_勤務先/通学（園）先","世帯構成員6個人番号","世帯構成員7以上あり","申込み区分","転園利用申込み選択時_利用中の施設・事業所名","転園利用申込み選択時_区分","第1希望_施設・事業所名称_区","第1希望_施設・事業所名称","第1希望_見学の有無","第1希望_見学の有無_未_予定日","第2希望_施設・事業所名称_区","第2希望_施設・事業所名称","第2希望_見学の有無","第2希望_見学の有無_未_予定日","第3希望_施設・事業所名称_区","第3希望_施設・事業所名称","第3希望_見学の有無","第3希望_見学の有無_未_予定日","第4希望_施設・事業所名称_区","第4希望_施設・事業所名称","第4希望_見学の有無","第4希望_見学の有無_未_予定日","第5希望_施設・事業所名称_区","第5希望_施設・事業所名称","第5希望_見学の有無","第5希望_見学の有無_未_予定日","第6希望_施設・事業所名称_区","第6希望_施設・事業所名称","第6希望_見学の有無","第6希望_見学の有無_未_予定日","利用（転園）希望理由","利用希望施設・事業所のいずれも利用できない場合、社会福祉事務所において他の施設・事業所の利用のための調整を行うことを希望するか。","利用希望時間_平日開始","利用希望時間_平日終了","利用希望時間_土曜日開始","利用希望時間_土曜日終了","利用希望時間_日・祝日開始","利用希望時間_日・祝日終了","送迎方法_送り","送迎方法_送り_その他内容","送迎方法_迎え","送迎方法_迎え_その他内容","送迎方法_使用可能な手段","送迎方法_使用可能な手段_その他内容","利用希望期間選択_利用希望期間開始","利用希望期間選択","利用希望期間選択_利用希望期間終了","育児休業からの復職の意思","復職時期","希望する保育必要量","利用希望理由_父_区分","利用希望理由_父の状況","利用希望理由_父_保育の必要な事由","利用希望理由_父_就労又は就学_一日の時間","利用希望理由_父_就労又は就学_週の日数","利用希望理由_父_就労又は就学_週の時間","利用希望理由_父_就労又は就学_一ヶ月の日数","利用希望理由_父_就労又は就学_平日開始時間","利用希望理由_父_就労又は就学_平日終了時間","利用希望理由_父_就労又は就学_平日休憩時間","利用希望理由_父_就労又は就学_土曜開始時間","利用希望理由_父_就労又は就学_土曜終了時間","利用希望理由_父_就労又は就学_土曜休憩時間","利用希望理由_父_就労又は就学_日曜開始時間","利用希望理由_父_就労又は就学_日曜終了時間","利用希望理由_父_就労又は就学_日曜休憩時間","利用希望理由_父_就労又は就学_休日曜日","利用希望理由_父の状況詳細","不使用①","不使用②","利用希望理由_父_就労又は就学_就労内容","利用希望理由_父_就労又は就学_卒業日","利用希望理由_父_就労又は就学_産休・育休の取得","利用希望理由_父_就労又は就学_産休・育休取得期間開始","利用希望理由_父_就労又は就学_産休・育休取得期間終了","利用希望理由_父_就労又は就学_育児短縮勤務","利用希望理由_父_就労又は就学_育児短縮勤務期間開始","利用希望理由_父_就労又は就学_育児短縮勤務期間終了","利用希望理由_父_就労又は就学_育児短縮勤務時間開始","利用希望理由_父_就労又は就学_育児短縮勤務時間終了","通勤(通学)方法_父","通勤(通学)方法_父_その他","通勤(通学)時間_父_行き","通勤(通学)時間_父_帰り","父_疾病等_傷病名","父_疾病等_治療期間開始","父_疾病等_治療期間終了","父_疾病等_手帳の種類","父_疾病等_総合等級","父_被介護（看護）者氏名","父_被介護（看護）者氏名_続柄","父_被介護（看護）者別居先","父_被介護（看護）者住所_同居","父_被介護（看護）_疾病等_傷病名","父_父_被介護（看護）_疾病等_手帳の種類","父_父_被介護（看護）_疾病等_総合等級","父_不在の場合","父_不在の場合_その他","父_不在の場合_別居開始日","父_不在の場合_別居先","利用希望理由_母_区分","利用希望理由_母の状況","利用希望理由_母_保育の必要な事由","利用希望理由_母_就労又は就学_一日の時間","利用希望理由_母_就労又は就学_週の日数","利用希望理由_母_就労又は就学_週の時間","利用希望理由_母_就労又は就学_一ヶ月の日数","利用希望理由_母_就労又は就学_平日開始時間","利用希望理由_母_就労又は就学_平日終了時間","利用希望理由_母_就労又は就学_平日休憩時間","利用希望理由_母_就労又は就学_土曜開始時間","利用希望理由_母_就労又は就学_土曜終了時間","利用希望理由_母_就労又は就学_土曜休憩時間","利用希望理由_母_就労又は就学_日曜開始時間","利用希望理由_母_就労又は就学_日曜終了時間","利用希望理由_母_就労又は就学_日曜休憩時間","利用希望理由_母_就労又は就学_休日曜日","利用希望理由_母の状況詳細","不使用③","不使用④","利用希望理由_母_就労又は就学_就労内容","利用希望理由_母_就労又は就学_卒業日","利用希望理由_母_就労又は就学_産休・育休の取得","利用希望理由_母_就労又は就学_産休・育休取得期間開始","利用希望理由_母_就労又は就学_産休・育休取得期間終了","利用希望理由_母_就労又は就学_育児短縮勤務","利用希望理由_母_就労又は就学_育児短縮勤務期間開始","利用希望理由_母_就労又は就学_育児短縮勤務期間終了","利用希望理由_母_就労又は就学_育児短縮勤務時間開始","利用希望理由_母_就労又は就学_育児短縮勤務時間終了","通勤(通学)方法_母","通勤(通学)方法_母_その他","通勤(通学)時間_母_行き","通勤(通学)時間_母_帰り","母_疾病等_傷病名","母_疾病等_治療期間開始","母_疾病等_治療期間終了","母_疾病等_手帳の種類","母_疾病等_総合等級","母_被介護（看護）者氏名","母_被介護（看護）者氏名_続柄","母_被介護（看護）者別居先","母_被介護（看護）者住所_同居","母_疾病等_傷病名","母_疾病等_手帳の種類","母_疾病等_総合等級","母_不在の場合","母_不在の場合_その他","母_不在の場合_別居開始日","母_不在の場合_別居先","母_出産予定","母_出産予定日","生活保護_適用なし","生活保護_担当ケースワーカー","生活保護_適用あり_受給開始年月日","ひとり親関係手当","ひとり親関係手当_受給状況","父方祖父氏名","父方祖父生年月日","父方祖父年齢","父方祖父住所","父方祖父住所入力欄","父方祖父状況_就労","父方祖父状況_健康","父方祖母氏名","父方祖母生年月日","父方祖母年齢","父方祖母住所","父方祖母住所入力欄","父方祖母状況","父方1状況_健康","母方祖父氏名","母方祖父生年月日","母方祖父年齢","母方祖父住所","母方祖父住所入力欄","母方祖父状況","母方祖父状況_健康","母方祖母氏名","母方祖母生年月日","母方祖母年齢","母方祖母住所","母方祖母住所入力欄","母方祖母状況","母方祖父状況_健康","①きょうだいが別々の保育施設等であれば利用できる場合、利用を希望するか。","②きょうだいが同時に利用できる場合、どちらを希望するか。","③きょうだいのうち、１人だけ利用できる場合、利用を希望するか。","代理人名","教育・保育給付認定保護者氏名","要件対象者","要件対象者_その他","保育の必要な事由","優先利用","優先利用_その他","認定区分","認定期間_自","認定期間_至","認定期間_至_日付","番号確認","番号確認_その他","身元確認","身元確認_他","備考","父_レベル1","父_レベル2","父_レベル3","母_レベル1","母_レベル2","母_レベル3","祖父_レベル1","祖父_レベル2","祖父_レベル3","祖母_レベル1","祖母_レベル2","祖母_レベル3","強制ランク修正F","強制ランク","強制きょうだいランク","ランク判定者","①ひとり親世帯等","②既にきょうだいが利用している施設への申込","③家庭的保育室・乳児専門保育所・準乳児専門保育所・小規模保育事業・家庭的保育事業等の卒園児","④生計主宰者の失業","⑤認定こども園を利用している子どもが1号から2号に認定区分が変更になり、引続き当該施設の利用を希望する場合","2_保育の代替え手段　育児休業からの復職","5_保育の代替手段　同一区内（支所管内にお住まいの方は同一支所管内）に保育可能な６５歳未満の祖父母あり","6_保育の代替手段　保育可能な６５歳未満の祖父母と同居している","9_世帯の状況　保護者が身体障害者手帳所持１・２級、愛護手帳所持、精神障害者保健手帳所持１・２級の一つに該当する場合","10_世帯の状況　保護者が身体障害者手帳所持３級以下又は精神障害者保健手帳所持３級で保育に著しく負担がかかる場合","11_世帯の状況　保護者が身体障害者手帳所持１・２級、愛護手帳所持、精神障害者保健手帳所持１・２級の一つに該当する場合","12_世帯の状況　保護者が身体障害者手帳所持３級以下又は精神障害者保健手帳所持3級で保育に著しく負担がかかる場合","13_世帯の状況　同居の家族内に身体障害者手帳３級以上、愛護手帳、精神障害者保健手帳を持っている者がいて、保護者が日常的に介護している場合","14_世帯の状況　別居の家族内に身体障害者手帳３級以上、愛護手帳、精神障害者保健手帳を持っている者がいて、保護者が日常的に介護している場合","15_世帯の状況　保護者が継続的な入院、通院を必要としているきょうだい児の介護を行っている","16_世帯の状況　保護者が通信制大学、通信教育学生である","17_世帯の状況　生活保護世帯","9-2_世帯の状況　保護者が身体障害者手帳所持１・２級、愛護手帳所持、精神障害者保健手帳所持１・２級の一つに該当する場合","10-2_世帯の状況　保護者が身体障害者手帳所持３級以下又は精神障害者保健手帳所持３級で保育に著しく負担がかかる場合","11-2_世帯の状況　保護者が身体障害者手帳所持１・２級、愛護手帳所持、精神障害者保健手帳所持１・２級の一つに該当する場合","12-2_世帯の状況　保護者が身体障害者手帳所持３級以下又は精神障害者保健手帳所持3級で保育に著しく負担がかかる場合","19_就労の状況　単身赴任","20_就労の状況　毎月２回以上の夜勤を伴う勤務がある","20-2_就労の状況　毎月２回以上の夜勤を伴う勤務がある","21_就労の状況　継続して３カ月以上就労をしている場合","22_就労の状況　居宅外自営だが、職場が自宅と併設している（居宅外自営協力者を除く）","23_就労の状況　勤務実績が１カ月未満である","24_ひとり親世帯等　ひとり親世帯等で６５歳未満の同居親族がいない場合","25_ひとり親世帯等　ひとり親世帯等で６５歳未満の同居親族がいる場合","28_きょうだいの状況　多胎児の加点","29_きょうだいの状況　申込児以外に利用申込しない未就学児がいる"," 1_保育の代替手段　　乳児専門保育所、準乳児専門保育所、小規模保育事業所、家庭的保育事業所等の卒園児"," 3_保育の代替手段　　申込時点で保育の必要な事由があり、申込児を認可外保育施設に有償で預けている　"," 4_保育の代替手段　　申込児を６５歳未満の親族に預けている"," 7_保育の代替手段　　利用施設の変更申込の場合"," 8_保育の代替手段　　申込児を職場で見ている（居宅外自営協力者を除く）","18_世帯の状況　　利用希望開始年度において、１８歳に達した以後の最初の３月３１日までのお子さんが３人以上いる世帯の第３子以降に該当する場合","その他加算1","その他加算2","その他加算4","第１希望施設コード","第２希望施設コード","第３希望施設コード","第４希望施設コード","第５希望施設コード","第６希望施設コード","強制第１希望施設コード","強制第２希望施設コード","強制第３希望施設コード","強制第４希望施設コード","強制第５希望施設コード","強制第６希望施設コード","優先枠","待機と入所になった場合","別施設入所になった場合","医療的ケアの状況","医療的ケアの種類","健康状態等_確認事項②","就労先住所_保護者①","通学先住所_保護者①","居所_保護者①","通勤先住所_保護者②","通学先住所_保護者②","居所_保護者②","父_出産予定（仮）","父_出産予定日（仮）"]

{"sheet":"申請データ","index":12,"n_rows":278,"n_cols":53,"rows_kept":278,"cut":false,"hidden":false,"merged":[[117,44,117,45],[70,9,70,11],[70,13,70,15],[70,26,70,28],[70,30,70,32],[105,17,105,18],[105,11,105,16],[105,3,105,10],[112,20,112,21],[112,22,112,36],[110,20,110,27],[110,28,110,33],[110,34,110,35],[107,5,107,19],[107,20,107,21],[107,22,107,36],[107,3,107,4],[96,24,96,26],[96,27,96,35],[77,35,77,36],[77,30,77,33],[115,44,115,45],[116,44,116,45],[95,28,95,29],[95,31,95,36],[97,26,97,36],[87,20,87,22],[87,23,87,36],[88,20,88,23],[88,24,88,27],[88,28,88,31],[88,32,88,33],[88,34,88,36],[96,21,96,22],[97,20,97,25],[94,34,94,36],[95,21,95,23],[95,25,95,26],[105,34,105,35],[115,2,115,36],[91,9,92,17],[88,7,88,10],[88,17,88,19],[88,11,88,14],[93,3,93,5],[2,13,2,15],[2,16,2,26],[33,14,34,14],[33,15,34,15],[19,25,19,32],[19,33,19,37],[18,31,18,37],[33,19,34,19],[23,28,23,31],[27,19,27,21],[24,22,24,24],[28,3,28,13],[28,23,28,37],[29,5,29,13],[29,23,30,37],[18,25,18,30],[27,3,27,6],[16,35,16,36],[17,35,17,36],[16,25,16,29],[23,19,26,21],[24,25,25,37],[77,26,77,27],[77,24,77,25],[77,22,77,23],[64,1,65,5],[65,6,65,37],[66,1,67,5],[66,6,66,30],[67,7,67,11],[64,11,64,12],[64,6,64,10],[64,26,64,37],[76,20,76,21],[76,22,76,24],[72,32,72,33],[76,29,76,32],[77,5,77,6],[77,7,77,8],[77,9,77,10],[76,33,76,34],[76,35,76,36],[77,20,77,21],[77,13,77,16],[77,18,77,19],[64,13,64,16],[97,3,97,8],[97,9,97,19],[98,3,98,4],[99,23,99,27],[99,6,99,10],[99,16,99,19],[94,7,94,10],[94,11,94,14],[94,15,94,16],[94,17,94,19],[95,14,95,19],[95,11,95,12],[95,8,95,9],[95,4,95,6],[96,4,96,5],[96,7,96,9],[94,24,94,27],[88,3,88,6],[88,15,88,16],[100,13,100,21],[130,30,130,36],[100,9,100,11],[98,20,98,21],[98,22,98,36],[99,33,99,36],[100,22,100,26],[100,28,100,31],[98,5,98,19],[130,8,130,17],[129,29,129,30],[127,6,127,18],[109,3,109,19],[108,30,108,31],[108,32,108,35],[113,26,113,27],[113,28,113,29],[113,6,113,7],[113,9,113,10],[113,11,113,12],[108,6,108,7],[108,9,108,10],[108,23,108,24],[108,26,108,27],[85,16,85,19],[83,20,83,25],[86,20,86,25],[86,26,86,30],[86,32,86,36],[87,3,87,5],[87,6,87,19],[86,3,86,8],[86,9,86,13],[86,15,86,19],[85,20,85,24],[85,33,85,36],[85,3,85,7],[79,8,79,19],[83,13,83,15],[83,10,83,11],[83,3,83,8],[84,3,84,5],[79,3,79,7],[82,15,82,16],[82,17,82,18],[83,34,83,36],[84,20,84,22],[84,23,84,28],[84,29,84,30],[84,31,84,36],[82,8,82,10],[82,11,82,12],[83,27,83,28],[83,30,83,32],[75,18,75,19],[75,16,75,17],[75,35,75,36],[71,20,71,36],[72,23,72,24],[52,36,52,37],[52,25,52,27],[52,32,52,35],[56,36,56,37],[51,8,51,20],[53,8,53,20],[55,8,55,20],[51,25,51,37],[53,25,53,37],[55,25,55,37],[68,7,68,13],[51,21,52,22],[51,23,52,24],[52,15,52,18],[52,19,52,20],[15,21,17,23],[20,6,20,10],[39,17,40,17],[39,18,40,18],[39,19,40,19],[17,25,17,29],[52,8,52,10],[15,6,15,20],[15,3,15,5],[18,10,18,20],[19,3,19,20],[18,4,18,9],[46,23,46,25],[37,23,37,25],[51,6,52,7],[43,23,43,25],[31,23,31,25],[30,3,30,13],[31,10,31,12],[38,5,38,13],[38,23,39,37],[32,23,33,37],[34,23,34,25],[48,30,48,36],[35,23,36,37],[1,1,1,5],[2,6,2,9],[3,6,3,9],[8,1,8,3],[8,4,8,6],[8,7,8,8],[6,1,6,30],[2,10,2,11],[3,10,3,11],[5,6,5,29],[3,13,3,17],[3,18,3,26],[8,9,8,11],[8,26,8,27],[8,23,8,24],[8,20,8,21],[2,33,2,37],[3,32,3,37],[2,28,2,32],[3,28,3,31],[27,28,27,36],[28,1,31,2],[15,1,17,2],[39,16,40,16],[42,16,43,16],[42,17,43,17],[42,18,43,18],[42,19,43,19],[36,17,37,17],[36,18,37,18],[36,19,37,19],[34,3,34,9],[33,17,34,17],[33,16,34,16],[34,10,34,12],[33,18,34,18],[35,5,35,13],[32,1,46,2],[32,5,32,13],[40,23,40,25],[41,5,41,13],[41,23,42,37],[33,3,33,13],[36,3,36,13],[22,1,22,2],[28,14,28,19],[23,1,27,2],[23,3,23,5],[23,6,23,18],[28,20,28,22],[30,14,31,14],[30,15,31,15],[30,19,31,19],[22,3,22,18],[22,19,22,37],[26,6,26,11],[26,12,26,14],[26,15,26,16],[26,17,26,18],[24,3,25,14],[24,16,25,16],[24,18,25,18],[24,15,25,15],[24,17,25,17],[37,3,37,9],[45,16,46,16],[45,17,46,17],[45,18,46,18],[45,19,46,19],[46,3,46,9],[46,10,46,12],[42,15,43,15],[45,14,46,14],[45,15,46,15],[36,14,37,14],[36,15,37,15],[39,14,40,14],[39,15,40,15],[36,16,37,16],[42,14,43,14],[40,10,40,12],[39,3,39,13],[42,3,42,13],[37,10,37,12],[31,3,31,9],[54,32,54,35],[56,32,56,35],[54,36,54,37],[61,3,61,5],[61,19,63,20],[48,1,50,2],[49,3,49,37],[44,5,44,13],[45,3,45,13],[54,25,54,27],[56,25,56,27],[63,6,63,9],[63,10,63,12],[62,10,62,12],[53,4,54,5],[53,21,54,22],[61,21,61,23],[62,3,62,5],[62,21,62,23],[63,3,63,5],[63,21,63,23],[61,6,61,9],[61,13,61,15],[61,10,61,12],[136,1,136,5],[136,6,136,14],[136,15,136,23],[136,24,136,32],[137,1,137,5],[137,6,137,14],[61,31,61,36],[62,31,62,36],[63,13,63,15],[63,16,63,18],[62,16,62,18],[76,9,76,11],[76,12,76,15],[76,16,76,17],[76,18,76,19],[76,5,76,7],[76,26,76,28],[75,5,75,7],[75,9,75,11],[61,16,61,18],[78,20,78,22],[78,23,78,36],[79,20,79,24],[79,25,79,36],[181,2,181,32],[171,2,171,32],[172,2,172,32],[173,2,173,32],[174,2,174,32],[175,2,175,32],[176,2,176,32],[162,2,162,32],[163,2,163,32],[164,2,164,32],[165,2,165,32],[166,2,166,32],[167,2,167,32],[168,2,168,32],[169,2,169,32],[170,2,170,32],[180,2,180,32],[138,15,138,23],[138,24,138,32],[139,15,139,23],[139,24,139,32],[155,2,155,32],[139,1,139,5],[139,6,139,14],[150,1,150,32],[151,2,151,32],[152,2,152,32],[140,1,140,5],[153,2,153,32],[154,2,154,32],[140,6,140,14],[140,15,140,23],[140,24,140,32],[140,33,140,36],[140,37,140,38],[178,1,178,32],[179,2,179,32],[143,1,143,32],[144,2,144,32],[145,2,145,32],[146,2,146,32],[147,2,147,32],[148,2,148,32],[156,2,156,32],[157,2,157,32],[158,2,158,32],[159,2,159,32],[160,2,160,32],[161,2,161,32],[52,44,52,45],[53,44,53,45],[55,44,55,45],[56,44,56,45],[66,33,67,37],[54,44,54,45],[137,33,137,36],[138,33,139,36],[137,37,137,38],[138,37,139,38],[109,20,109,36],[118,10,118,36],[117,2,117,36],[118,6,118,7],[118,3,118,5],[112,3,112,4],[112,5,112,19],[95,1,98,2],[99,1,99,2],[100,1,101,2],[137,15,137,23],[137,24,137,32],[138,1,138,5],[138,6,138,14],[136,33,136,36],[136,37,136,38],[51,47,51,48],[52,47,52,48],[53,47,53,48],[89,27,89,36],[90,20,90,31],[90,32,90,35],[91,20,91,25],[91,26,92,34],[91,35,92,35],[91,36,92,36],[92,20,92,25],[93,20,93,22],[72,35,72,36],[73,23,73,24],[73,26,73,36],[74,22,74,23],[74,25,74,26],[74,28,74,32],[74,34,74,36],[75,20,75,21],[75,22,75,24],[75,26,75,28],[54,47,54,48],[56,47,56,48],[20,24,20,25],[105,20,105,27],[105,28,105,33],[67,13,67,30],[63,34,63,36],[62,13,62,15],[70,20,70,21],[70,23,70,24],[72,26,72,27],[72,29,72,30],[66,31,67,32],[89,10,89,19],[90,15,90,18],[90,3,90,14],[91,3,91,8],[91,18,92,18],[91,19,92,19],[92,3,92,8],[50,47,50,48],[55,47,55,48],[50,44,50,45],[51,44,51,45],[16,3,17,20],[20,14,20,19],[20,1,20,5],[20,21,20,23],[15,25,15,29],[15,30,15,37],[18,1,19,2],[18,21,19,23],[132,25,132,26],[101,3,101,7],[124,1,125,4],[124,7,124,14],[125,14,125,21],[104,1,108,1],[104,2,105,2],[104,3,104,19],[104,20,104,36],[106,2,107,2],[103,1,103,2],[103,3,103,19],[103,20,103,36],[111,9,111,19],[109,1,113,1],[62,6,62,9],[131,30,132,36],[131,13,131,17],[131,28,132,29],[82,13,82,14],[131,1,132,2],[82,3,82,7],[74,17,74,19],[74,11,74,15],[74,8,74,9],[74,5,74,6],[75,3,75,4],[77,3,77,4],[75,12,75,15],[76,3,76,4],[78,6,78,19],[78,3,78,5],[84,12,84,13],[84,6,84,11],[84,14,84,19],[83,17,83,19],[131,19,132,20],[130,1,130,6],[94,28,94,31],[94,32,94,33],[132,9,132,10],[132,11,132,14],[93,6,93,19],[96,10,96,18],[43,3,43,9],[43,10,43,12],[30,16,31,16],[30,17,31,17],[30,18,31,18],[40,3,40,9],[68,1,68,5],[70,1,71,2],[72,1,73,2],[71,3,71,19],[70,6,70,7],[70,3,70,4],[73,9,73,19],[72,12,72,13],[72,15,72,16],[72,18,72,19],[72,9,72,10],[72,6,72,7],[73,6,73,7],[68,15,68,21],[58,1,60,1],[58,2,59,37],[57,12,57,37],[61,1,63,2],[106,9,106,19],[106,26,106,36],[111,26,111,36],[127,1,127,5],[127,19,127,31],[80,3,80,6],[80,20,80,23],[93,23,93,36],[100,3,100,7],[82,20,82,24],[82,25,82,27],[82,28,82,29],[82,30,82,31],[82,32,82,33],[82,34,82,35],[74,1,86,2],[87,1,88,2],[89,1,94,2],[51,1,57,2],[51,3,57,3],[111,2,112,2],[110,3,110,10],[110,11,110,16],[119,2,119,36],[121,2,121,36],[120,3,120,5],[120,10,120,36],[127,32,127,36],[109,2,110,2],[110,17,110,18],[113,21,113,22],[113,30,113,31],[113,32,113,35],[113,4,113,5],[113,13,113,14],[113,15,113,18],[116,23,116,36],[116,3,116,21],[122,18,122,36],[122,3,122,16],[113,23,113,24],[29,20,29,22],[30,20,30,22],[81,8,81,9],[80,15,80,19],[80,32,80,36],[81,25,81,26],[31,20,31,21],[81,27,81,35],[81,10,81,18],[32,20,32,22],[33,20,33,22],[34,20,34,21],[35,20,35,22],[36,20,36,22],[37,20,37,21],[38,20,38,22],[39,20,39,22],[40,20,40,21],[41,20,41,22],[42,20,42,22],[43,20,43,21],[44,20,44,22],[55,21,56,22],[55,23,56,24],[108,28,108,29],[45,20,45,22],[46,20,46,21],[108,11,108,12],[108,4,108,5],[108,13,108,14],[108,15,108,18],[108,21,108,22],[81,20,81,23],[81,3,81,6],[51,4,52,5],[55,4,56,5],[55,6,56,7],[54,8,54,10],[56,8,56,10],[54,15,54,18],[54,19,54,20],[56,15,56,18],[56,19,56,20],[53,23,54,24],[44,23,45,37],[53,6,54,7],[75,29,75,32],[75,33,75,34]]}
[]
[null,2022,null,null,null,null,"※登録データ一覧シート転送時に使用"]
[null,"《新規登録》",null,null,null,null,"ﾃﾞｰﾀ№",null,null,null,null,null,null,"申請ID",null,null,"",null,null,null,null,null,null,null,null,null,null,null,"世帯台帳番号"]
[null,null,null,null,null,null,"申請状態",null,null,null,"",null,null,"世帯員7人以上",null,null,null,null,"",null,null,null,null,null,null,null,null,null,"ステータス",null,null,null,""]
[]
[null,"第２号様式"]
[null,"教育・保育給付認定申請書（2・3号認定用）"]
[]
[null,"（宛先）",null,null,"名古屋市",null,null,null,null,null,null,null,"区長",null,null,null,null,null,"令和",null,null,null,"年",null,null,"月",null,null,"日",null,null,null,null,null,null,null,null,null,null,null,23101]
[null,"【同意事項】",null,null,"　次のとおり、教育・保育給付2号・3号に係る教育・保育給付認定を申請します。"]
[null,"　名古屋市が、連絡先欄に記入の電話番号へ、教育・保育給付認定及び利用調整に関する連絡をすることに同意します。"]
[null,"　なお、必要な場合は、名古屋市において市民税等に関する課税資料(必要に応じ世帯分を含む。)、住民基本台帳、生活保護受給状況、障"]
[null,"害の種類及び程度に関する資料、児童扶養手当、ひとり親家庭手当、愛知県遺児手当及びひとり親家庭等医療費助成制度に関する資料並び"]
[null,"に妊娠の届出に関する資料を確認されることに同意します。また、施設・事業所に必要に応じ情報提供することに同意します。"]
[null,"■申込者【教育・保育給付認定保護者（原則、世帯主）】",null,null,null,null,null,null,null,null,null,null,null,null,null,null,null,null,null,"※教育・保育給付認定保護者が、利用料の納入義務者となります。"]
[null,"氏　名",null,"（フリガナ）",null,null,null,null,null,null,null,null,null,null,null,null,null,null,null,null,null,"連 絡 先",null,null,null,"電話番号",null,null,null,null,"子どもとの続柄"]
[null,null,null,null,null,null,null,null,null,null,null,null,null,null,null,null,null,null,null,null,null,null,null,null,"①",null,null,null,null,null,"父","","母",null,"（",null,null,")",null,null,false,false,null,null,"続柄その他","",null,null,null,null,null,null,{"$f":"IFERROR(AO17*1&\"|\"&AP17*1,\"★エラー★\")","v":"0|0"}]
[null,null,null,null,null,null,null,null,null,null,null,null,null,null,null,null,null,null,null,null,null,null,null,null,"②",null,null,null,null,null,"父","","母",null,"（",null,null,")",null,null,false,false,null,null,"続柄その他","",null,null,null,null,null,null,{"$f":"IFERROR(AO18*1&\"|\"&AP18*1,\"★エラー★\")","v":"0|0"}]
[null,"現住所",null,"〒",null,null,null,null,null,null,null,null,null,null,null,null,null,null,null,null,null,"転居（予定）\n先住所",null,null,"〒　　　　－"]
[null,null,null,null,null,null,null,null,null,null,null,null,null,null,null,null,null,null,null,null,null,null,null,null,"(",null,null,null,null,null,null,null,null,"転居(転入)予定)"]
[null,"過去2年以内の\n転入歴　",null,null,null,null,null,null,null,null,null,"市・町・村から",null,null,null,null,null,null,null,null,"転入","送付物発送先",null,null,null,null,null,"現住所",null,null,null,"転居（予定）先住所"]
[null,"■申込児童及び世帯の状況（申込みに係る児童の保護者、家族及び同居人）",null,null,null,null,null,null,null,null,null,null,null,null,null,null,null,null,null,null,null,null,null,null,null,null,null,null,null,null,null,null,null,null,null,null,null,null,null,null,null,0,null,null,null,null,null,null,null,null,null,null,{"$f":"IFERROR(AO22*1&\"|\"&AP22*1,\"★エラー★\")","v":"0|0"}]
[null,"区分",null,"氏名",null,null,null,null,null,null,null,null,null,null,null,null,null,null,null,"健康状態等"]
[null,"申込\n児童",null,"（フリガナ）",null,null,null,null,null,null,null,null,null,null,null,null,null,null,null,"アレルギー\n食事制限等",null,null,null,"なし",null,null,"あり(",null,null,null,null,null,")",null,"検査未実施",null,null,null,null,null,false,false,false,null,null,null,null,null,null,null,null,null,{"$f":"IFERROR(AO24*1&\"|\"&AP24*1&\"|\"&AQ24*1,\"★エラー★\")","v":"0|0|0"}]
[null,null,null,null,null,null,null,null,null,null,null,null,null,null,null,null,"男",null,"女",null,null,null,"特記事項：",null,null,null,null,null,null,null,null,null,null,null,null,null,null,null,null,null,false,0,null,null,null,null,null,null,null,null,null,null,{"$f":"IFERROR(AO25*1&\"|\"&AP25*1,\"★エラー★\")","v":"0|0"}]
[null,null,null,null,null,null,null,null,null,null,null,null,null,null,null,null,null,null,null,null,null,null,null,null,null,null,null,null,null,null,null,null,null,null,null,null,null,null,null,null,false,false,null,null,null,null,null,null,null,null,null,null,{"$f":"IFERROR(AO26*1&\"|\"&AP26*1,\"★エラー★\")","v":"0|0"}]
[null,null,null,"(生年月日:",null,null,null,null,null,null,null,null,"4月1日時点",null,null,null,null,"歳)",null,null,null,null,"希望施設・事業所への相談",null,null,null,null,null,null,null,null,null,"済",null,null,"未"]
[null,null,null,"個人番号",null,null,null,null,null,null,null,null,null,null,null,null,null,null,null,"障　害",null,null,null,"なし",null,null,"あり",null,null,null,null,null,null,null,null,null,null,null,null,null,false,false,{"$f":"H28&I28&J28&K28&L28&M28&N28&O28&P28&Q28&R28&S28","v":""},null,null,null,null,null,null,null,null,null,{"$f":"IFERROR(AO28*1&\"|\"&AP28*1,\"★エラー★\")","v":"0|0"}]
[null,"世帯\n構成員",null,"氏名",null,null,null,null,null,null,null,null,null,null,"生年月日",null,null,null,null,null,"健康状態等",null,null,"備考（勤務先名称/通学（園）先名称　等）"]
[null,null,null,"(フリガナ)",null,null,null,null,null,null,null,null,null,null,null,"昭",null,"平",null,"令","良好",null,null,null,null,null,null,null,null,null,null,null,null,null,null,null,null,null,null,null,false,false,false,false,null,null,null,null,null,null,null,null,{"$f":"IFERROR(AO30*1&\"|\"&AP30*1&\"|\"&AQ30*1,\"★エラー★\")","v":"0|0|0"}]
[null,null,null,null,null,null,null,null,null,null,null,null,null,null,null,"年",null,"月",null,"日","　　その他（",null,null,null,null,null,null,null,null,null,null,null,null,null,null,null,null,null,null,null,{"$f":"IFERROR(DATEVALUE(IF(OR(AO30=TRUE,AO30=1),\"昭和\",IF(OR(AP30=TRUE,AP30=1),\"平成\",IF(OR(AQ30=TRUE,AQ30=1),\"令和\",\"ERROR\")))&O31&P31&Q31&R31&S31&T31),\"\")","v":""}]
[null,null,null,"続柄(",null,null,null,null,null,null,null,null,null,")",null,null,null,null,null,null,null,null,"）","個人番号",null,null,null,null,null,null,null,null,null,null,null,null,null,null,null,null,1,{"$f":"AA32&AB32&AC32&AD32&AE32&AF32&AG32&AH32&AI32&AJ32&AK32&AL32","v":""},null,null,"続柄その他",""]
[null,"※申請児童の保護者（申請者含む）、家族及び同居人全て記入ください。",null,"(フリガナ)",null,null,null,null,null,null,null,null,null,null,null,"昭",null,"平",null,"令","良好",null,null,null,null,null,null,null,null,null,null,null,null,null,null,null,null,null,null,null,false,false,false,null,null,null,null,null,null,null,null,null,{"$f":"IFERROR(AO33*1&\"|\"&AP33*1&\"|\"&AQ33*1,\"★エラー★\")","v":"0|0|0"}]
[null,null,null,null,null,null,null,null,null,null,null,null,null,null,null,"年",null,"月",null,"日","　　その他（",null,null,null,null,null,null,null,null,null,null,null,null,null,null,null,null,null,null,null,{"$f":"IFERROR(DATEVALUE(IF(OR(AO33=TRUE,AO33=1),\"昭和\",IF(OR(AP33=TRUE,AP33=1),\"平成\",IF(OR(AQ33=TRUE,AQ33=1),\"令和\",\"ERROR\")))&O34&P34&Q34&R34&S34&T34),\"\")","v":""}]
[null,null,null,"続柄(",null,null,null,null,null,null,null,null,null,")",null,null,null,null,null,null,null,null,"）","個人番号",null,null,null,null,null,null,null,null,null,null,null,null,null,null,null,null,2,{"$f":"AA35&AB35&AC35&AD35&AE35&AF35&AG35&AH35&AI35&AJ35&AK35&AL35","v":""},null,null,"続柄その他",""]
[null,null,null,"(フリガナ)",null,null,null,null,null,null,null,null,null,null,null,"昭",null,"平",null,"令","良好",null,null,null,null,null,null,null,null,null,null,null,null,null,null,null,null,null,null,null,false,false,false,null,null,null,null,null,null,null,null,null,{"$f":"IFERROR(AO36*1&\"|\"&AP36*1&\"|\"&AQ36*1,\"★エラー★\")","v":"0|0|0"}]
[null,null,null,null,null,null,null,null,null,null,null,null,null,null,null,"年",null,"月",null,"日","　　その他（",null,null,null,null,null,null,null,null,null,null,null,null,null,null,null,null,null,null,null,{"$f":"IFERROR(DATEVALUE(IF(OR(AO36=TRUE,AO36=1),\"昭和\",IF(OR(AP36=TRUE,AP36=1),\"平成\",IF(OR(AQ36=TRUE,AQ36=1),\"令和\",\"ERROR\")))&O37&P37&Q37&R37&S37&T37),\"\")","v":""}]
[null,null,null,"続柄(",null,null,null,null,null,null,null,null,null,")",null,null,null,null,null,null,null,null,"）","個人番号",null,null,null,null,null,null,null,null,null,null,null,null,null,null,null,null,3,{"$f":"AA38&AB38&AC38&AD38&AE38&AF38&AG38&AH38&AI38&AJ38&AK38&AL38","v":""},null,null,"続柄その他",""]
[null,null,null,"(フリガナ)",null,null,null,null,null,null,null,null,null,null,null,"昭",null,"平",null,"令","良好",null,null,null,null,null,null,null,null,null,null,null,null,null,null,null,null,null,null,null,false,false,false,null,null,null,null,null,null,null,null,null,{"$f":"IFERROR(AO39*1&\"|\"&AP39*1&\"|\"&AQ39*1,\"★エラー★\")","v":"0|0|0"}]
[null,null,null,null,null,null,null,null,null,null,null,null,null,null,null,"年",null,"月",null,"日","　　その他（",null,null,null,null,null,null,null,null,null,null,null,null,null,null,null,null,null,null,null,{"$f":"IFERROR(DATEVALUE(IF(OR(AO39=TRUE,AO39=1),\"昭和\",IF(OR(AP39=TRUE,AP39=1),\"平成\",IF(OR(AQ39=TRUE,AQ39=1),\"令和\",\"ERROR\")))&O40&P40&Q40&R40&S40&T40),\"\")","v":""}]
[null,null,null,"続柄(",null,null,null,null,null,null,null,null,null,")",null,null,null,null,null,null,null,null,"）","個人番号",null,null,null,null,null,null,null,null,null,null,null,null,null,null,null,null,4,{"$f":"AA41&AB41&AC41&AD41&AE41&AF41&AG41&AH41&AI41&AJ41&AK41&AL41","v":""},null,null,"続柄その他"]
[null,null,null,"(フリガナ)",null,null,null,null,null,null,null,null,null,null,null,"昭",null,"平",null,"令","良好",null,null,null,null,null,null,null,null,null,null,null,null,null,null,null,null,null,null,null,false,false,false,null,null,null,null,null,null,null,null,null,{"$f":"IFERROR(AO42*1&\"|\"&AP42*1&\"|\"&AQ42*1,\"★エラー★\")","v":"0|0|0"}]
[null,null,null,null,null,null,null,null,null,null,null,null,null,null,null,"年",null,"月",null,"日","　　その他（",null,null,null,null,null,null,null,null,null,null,null,null,null,null,null,null,null,null,null,{"$f":"IFERROR(DATEVALUE(IF(OR(AO42=TRUE,AO42=1),\"昭和\",IF(OR(AP42=TRUE,AP42=1),\"平成\",IF(OR(AQ42=TRUE,AQ42=1),\"令和\",\"ERROR\")))&O43&P43&Q43&R43&S43&T43),\"\")","v":""}]
[null,null,null,"続柄(",null,null,null,null,null,null,null,null,null,")",null,null,null,null,null,null,null,null,"）","個人番号",null,null,null,null,null,null,null,null,null,null,null,null,null,null,null,null,5,{"$f":"AA44&AB44&AC44&AD44&AE44&AF44&AG44&AH44&AI44&AJ44&AK44&AL44","v":""},null,null,"続柄その他",""]
[null,null,null,"(フリガナ)",null,null,null,null,null,null,null,null,null,null,null,"昭",null,"平",null,"令","良好",null,null,null,null,null,null,null,null,null,null,null,null,null,null,null,null,null,null,null,false,false,false,null,null,null,null,null,null,null,null,null,{"$f":"IFERROR(AO45*1&\"|\"&AP45*1&\"|\"&AQ45*1,\"★エラー★\")","v":"0|0|0"}]
[null,null,null,null,null,null,null,null,null,null,null,null,null,null,null,"年",null,"月",null,"日","　　その他（",null,null,null,null,null,null,null,null,null,null,null,null,null,null,null,null,null,null,null,{"$f":"IFERROR(DATEVALUE(IF(OR(AO45=TRUE,AO45=1),\"昭和\",IF(OR(AP45=TRUE,AP45=1),\"平成\",IF(OR(AQ45=TRUE,AQ45=1),\"令和\",\"ERROR\")))&O46&P46&Q46&R46&S46&T46),\"\")","v":""}]
[null,null,null,"続柄(",null,null,null,null,null,null,null,null,null,")",null,null,null,null,null,null,null,null,"）","個人番号",null,null,null,null,null,null,null,null,null,null,null,null,null,null,null,null,6,{"$f":"AA47&AB47&AC47&AD47&AE47&AF47&AG47&AH47&AI47&AJ47&AK47&AL47","v":""},null,null,"続柄その他",""]
[null,"■保育施設・事業所の利用申込み内容"]
[null,"申込み区分",null,null,"新規",null,null,"卒園(３月末で卒園となる方)",null,null,null,null,null,null,null,null,"転園【現在利用中(市外含む)の施設・事業所名称:",null,null,null,null,null,null,null,null,null,null,null,null,null,null,null,null,null,null,null,null,"】",null,null,false,false,false,null,null,null,null,null,null,null,null,null,{"$f":"IFERROR(AO49*1&\"|\"&AP49*1&\"|\"&AQ49*1,\"★エラー★\")","v":"0|0|0"}]
[null,null,null,"★転園申込みの場合（他市町村から転入予定で申込む場合も含む）は、転園にかかる意向を選択してください。"]
[null,null,null,null,null,"希望施設に利用決定したら現施設・事業所を退所します",null,null,null,null,null,null,null,null,null,null,null,null,null,null,null,null,null,"利用調整結果に関わらず現施設・事業所を退所します",null,null,null,null,null,null,null,null,null,null,null,null,null,null,null,null,false,false,0,null,"希望施設名",null,"希望施設C","希望施設名",null,"希望施設C",null,null,{"$f":"IFERROR(AO51*1&\"|\"&AP51*1,\"★エラー★\")","v":"0|0"}]
[null,"希望施設・事業所",null,"希望順位","第1\n希望",null,null,null,null,null,null,null,null,null,null,null,null,null,null,null,null,"第4\n希望",null,null,null,null,null,null,null,null,null,null,null,null,null,null,null,null,null,null,null,null,null,null,"第1希望施設",null,{"$f":"IF(AU53<>\"\", IFERROR(VLOOKUP(AU53,施設情報!B:B,1,FALSE),\"★該当なし★\"), IF(I52<>\"\",IFERROR(VLOOKUP(SUBSTITUTE(SUBSTITUTE(I52,\"(仮)\",\"\"),\"（仮）\",\"\"),施設情報!F:G,2,FALSE),\"★該当なし★\"),\"\"))","v":""},"第4希望施設",null,{"$f":"IF(AX53<>\"\", IFERROR(VLOOKUP(AX53,施設情報!B:B,1,FALSE),\"★該当なし★\"), IF(Z52<>\"\",IFERROR(VLOOKUP(SUBSTITUTE(SUBSTITUTE(Z52,\"(仮)\",\"\"),\"（仮）\",\"\"),施設情報!F:G,2,FALSE),\"★該当なし★\"),\"\"))","v":""}]
[null,null,null,null,null,null,null,null,"見学",null,null,null,"済",null,"未(",null,null,null,null,"予定)",null,null,null,null,null,"見学",null,null,null,"済",null,"未(",null,null,null,null,"予定)",null,null,null,false,false,null,null,"強制第１希望施設コード：",null,"","強制第４希望施設コード：",null,"",null,null,{"$f":"IFERROR(AO53*1&\"|\"&AP53*1,\"★エラー★\")","v":"0|0"}]
[null,null,null,null,"第2\n希望",null,null,null,null,null,null,null,null,null,null,null,null,null,null,null,null,"第5\n希望",null,null,null,null,null,null,null,null,null,null,null,null,null,null,null,null,null,null,false,false,null,null,"第2希望施設",null,{"$f":"IF(AU55<>\"\", IFERROR(VLOOKUP(AU55,施設情報!B:B,1,FALSE),\"★該当なし★\"), IF(I54<>\"\",IFERROR(VLOOKUP(SUBSTITUTE(SUBSTITUTE(I54,\"(仮)\",\"\"),\"（仮）\",\"\"),施設情報!F:G,2,FALSE),\"★該当なし★\"),\"\"))","v":""},"第5希望施設",null,{"$f":"IF(AX55<>\"\", IFERROR(VLOOKUP(AX55,施設情報!B:B,1,FALSE),\"★該当なし★\"), IF(Z54<>\"\",IFERROR(VLOOKUP(SUBSTITUTE(SUBSTITUTE(Z54,\"(仮)\",\"\"),\"（仮）\",\"\"),施設情報!F:G,2,FALSE),\"★該当なし★\"),\"\"))","v":""},null,null,"0|0"]
[null,null,null,null,null,null,null,null,"見学",null,null,null,"済",null,"未(",null,null,null,null,"予定)",null,null,null,null,null,"見学",null,null,null,"済",null,"未(",null,null,null,null,"予定)",null,null,null,false,false,null,null,"強制第２希望施設コード：",null,"","強制第５希望施設コード：",null,"",null,null,"0|0"]
[null,null,null,null,"第3\n希望",null,null,null,null,null,null,null,null,null,null,null,null,null,null,null,null,"第6\n希望",null,null,null,null,null,null,null,null,null,null,null,null,null,null,null,null,null,null,false,false,null,null,"第3希望施設",null,{"$f":"IF(AU57<>\"\", IFERROR(VLOOKUP(AU57,施設情報!B:B,1,FALSE),\"★該当なし★\"), IF(I56<>\"\",IFERROR(VLOOKUP(SUBSTITUTE(SUBSTITUTE(I56,\"(仮)\",\"\"),\"（仮）\",\"\"),施設情報!F:G,2,FALSE),\"★該当なし★\"),\"\"))","v":""},"第6希望施設",null,{"$f":"IF(AX57<>\"\", IFERROR(VLOOKUP(AX57,施設情報!B:B,1,FALSE),\"★該当なし★\"), IF(Z56<>\"\",IFERROR(VLOOKUP(SUBSTITUTE(SUBSTITUTE(Z56,\"(仮)\",\"\"),\"（仮）\",\"\"),施設情報!F:G,2,FALSE),\"★該当なし★\"),\"\"))","v":""},null,null,"0|0"]
[null,null,null,null,null,null,null,null,"見学",null,null,null,"済",null,"未(",null,null,null,null,"予定)",null,null,null,null,null,"見学",null,null,null,"済",null,"未(",null,null,null,null,"予定)",null,null,null,false,false,null,null,"強制第３希望施設コード：",null,"","強制第6希望施設コード：",null,"",null,null,"0|0"]
[null,null,null,null,"利用(転園)を希望する理由",null,null,null,null,null,null,null,null,null,null,null,null,null,null,null,null,null,null,null,null,null,null,null,null,null,null,null,null,null,null,null,null,null,null,null,false,false,null,null,null,null,null,null,null,null,null,null,"0|0"]
[null,"調整希望","希望施設・事業所のいずれも利用できない場合、すべての利用申込み者が希望する第6希望までの利用調整終了後、空きのある施設・事業所をご案内します。\n※必ずしも希望に沿った施設・事業所とは限りません"]
[]
[null,null,"上記、希望施設・事業所以外の調整について",null,null,null,null,null,null,null,null,null,null,null,null,null,null,null,"希望する",null,null,null,null,null,null,"希望施設・事業所以外は、希望しない",null,null,null,null,null,null,null,null,null,null,null,null,null,null,false,false,null,null,null,null,null,null,null,null,null,null,{"$f":"IFERROR(AO61*1&\"|\"&AP61*1,\"★エラー★\")","v":"0|0"}]
[null,"希望\n利用\n時間",null,"平　　日",null,null,null,null,null,null,"から",null,null,null,null,null,"まで",null,null,"送迎\n方法",null,"送り",null,null,null,"父",null,"母",null,"その他(",null,null,null,null,null,null,null,")",null,null,false,false,false,null,null,null,null,null,null,null,null,null,{"$f":"IFERROR(AO62*1&\"|\"&AP62*1&\"|\"&AQ62*1,\"★エラー★\")","v":"0|0|0"}]
[null,null,null,"土曜日",null,null,null,null,null,null,"から",null,null,null,null,null,"まで",null,null,null,null,"迎え",null,null,null,"父",null,"母",null,"その他(",null,null,null,null,null,null,null,")",null,null,false,false,false,null,null,null,null,null,null,null,null,null,{"$f":"IFERROR(AO63*1&\"|\"&AP63*1&\"|\"&AQ63*1,\"★エラー★\")","v":"0|0|0"}]
[null,null,null,"日・祝日",null,null,null,null,null,null,"から",null,null,null,null,null,"まで",null,null,null,null,"手段",null,null,null,"徒歩",null,"自転車",null,null,"車",null,null,"その他(",null,null,null,")",null,null,false,false,false,false,null,null,null,null,null,null,null,null,{"$f":"IFERROR(AO64*1&\"|\"&AP64*1&\"|\"&AQ64*1&\"|\"&AR64*1,\"★エラー★\")","v":"0|0|0|0"}]
[null,"利用希望\n期間",null,null,null,null,null,null,null,null,null,"から",null,null,null,null,null,"まで",null,"・",null,null,"就学前まで",null,null,null,null,null,null,null,null,null,null,null,null,null,null,null,null,null,false,null,null,null,null,null,null,null,null,null,null,null,{"$f":"IFERROR(AO65*1,\"★エラー★\")","v":0}]
[null,null,null,null,null,null,"※開始日は原則、各月1日付けとなりますが、希望する施設・事業所の受入年齢により月途中からの利用となる場合があります。"]
[null,"育児休業からの\n復職の意思",null,null,null,null,"★育児休業からの復職予定で申込む場合は、いずれか選択してください。",null,null,null,null,null,null,null,null,null,null,null,null,null,null,null,null,null,null,null,null,null,null,null,null,"復職\n時期　　　"]
[null,null,null,null,null,null,null,"直ちに復職を希望する",null,null,null,null,null,"希望施設・事業所に入所できない場合は、育児休業の延長も許容できる　　",null,null,null,null,null,null,null,null,null,null,null,null,null,null,null,null,null,null,null,null,null,null,null,null,null,null,false,false,null,null,null,null,null,null,null,null,null,null,{"$f":"IFERROR(AO68*1&\"|\"&AP68*1,\"★エラー★\")","v":"0|0"}]
[null,"希望する保育必要量",null,null,null,null,null,"保育標準時間（最大11時間まで）",null,null,null,null,null,null,null,"保育短時間（最大8時間まで）",null,null,null,null,null,null,"※なお、申請書の希望、保育の必要な事由、状況等から区役所が決定します",null,null,null,null,null,null,null,null,null,null,null,null,null,null,null,null,null,false,false,null,null,null,null,null,null,null,null,null,null,{"$f":"IFERROR(AO69*1&\"|\"&AP69*1,\"★エラー★\")","v":"0|0"}]
[null,"■父母等の「保育の必要な事由」",null,null,null,null,null,null,null,null,null,"※事由により必要書類が異なります。「保育所・認定こども園・小規模保育事業・家庭的保育事業等の利用のご案内」をご確認ください。"]
[null,"区分",null,null,null,null,"父・ ",null,"（",null,null,null,null,null,null,null,"）の状況",null,null,null,null,null,null,"母・ ",null,"（",null,null,null,null,null,null,null,"）の状況",null,null,null,null,null,null,false,false,null,null,null,null,null,null,null,null,null,null,{"$f":"IFERROR(AO71*1,\"★エラー★\")","v":0}]
[null,null,null,"※保護者が父母以外の場合は、（）に申請児童との関係を記入してください。",null,null,null,null,null,null,null,null,null,null,null,null,null,null,null,null,"※保護者が父母以外の場合は、（）に申請児童との関係を記入してください。",null,null,null,null,null,null,null,null,null,null,null,null,null,null,null,null,null,null,null,false,0,null,null,null,null,null,null,null,null,null,null,{"$f":"IFERROR(AO72*1,\"★エラー★\")","v":0}]
[null,"保育の必要な事由",null,null,"就労",null,"産前産後",null,null,"疾病等",null,null,"親族介護",null,null,"災害復旧",null,null,"求職活動",null,null,"就労",null,"産前産後",null,null,"疾病等",null,null,"親族介護",null,null,"災害復旧",null,null,"求職活動",null,null,null,null,false,false,false,false,false,false,false,false,false,null,null,null,{"$f":"IFERROR(AO73*1&\"|\"&AP73*1&\"|\"&AQ73*1&\"|\"&AR73*1&\"|\"&AS73*1&\"|\"&AT73*1&\"|\"&AU73*1&\"|\"&AV73*1&\"|\"&AW73*1,\"★エラー★\")","v":"0|0|0|0|0|0|0|0|0"}]
[null,null,null,null,"就学",null,"発達援助",null,null,"育児休業(利用開始月に復職しない場合)",null,null,null,null,null,null,null,null,null,null,null,"就学",null,"発達援助",null,null,"育児休業(利用開始月に復職しない場合)",null,null,null,null,null,null,null,null,null,null,null,null,null,false,false,false,false,false,false,false,false,false,null,null,null,{"$f":"IFERROR(AO74*1&\"|\"&AP74*1&\"|\"&AQ74*1&\"|\"&AR74*1&\"|\"&AS74*1&\"|\"&AT74*1&\"|\"&AU74*1&\"|\"&AV74*1&\"|\"&AW74*1,\"★エラー★\")","v":"0|0|0|0|0|0|0|0|0"}]
[null,"就労または就学",null,"１日",null,"時間・週",null,null,"日勤務（週",null,null,"時間以上勤務）・１か月",null,null,null,null,null,"日勤務",null,null,"１日",null,"時間・週",null,null,"日勤務（週",null,null,"時間以上勤務）・１か月",null,null,null,null,null,"日勤務"]
[null,null,null,"平 　日：",null,null,null,null,"～",null,null,null,"まで （うち、休憩",null,null,null,null,null,"分）",null,"平　日：",null,null,null,null,"～",null,null,null,"まで （うち、休憩",null,null,null,null,null,"分）"]
[null,null,null,"土 / 日：",null,null,null,null,"～",null,null,null,"まで （うち、休憩",null,null,null,null,null,"分）",null,"土 / 日：",null,null,null,null,"～",null,null,null,"まで （うち、休憩",null,null,null,null,null,"分）"]
[null,null,null,"休 　日：",null,"毎週",null,null,null,"曜日（月",null,null,"日）","・ 祝日 ・ 不定休（月",null,null,null,null,"日程度）",null,"休 　日：",null,"毎週",null,null,null,"曜日（月",null,null,"日）","・ 祝日 ・ 不定休（月",null,null,null,null,"日程度）"]
[null,null,null,"就労内容:",null,null,null,null,null,null,null,null,null,null,null,null,null,null,null,null,"就労内容:",null,null,null,null,null,null,null,null,null,null,null,null,null,null,null,null,null,null,null,false,""]
[null,null,null,"就労(就学)先住所:",null,null,null,null,null,null,null,null,null,null,null,null,null,null,null,null,"就労(就学)先住所:"]
[null,null,null,"通勤(通学)方法：",null,null,null,null,"徒歩",null,"自転車",null,null,"車",null,"公共交通機関",null,null,null,null,"通勤(通学)方法：",null,null,null,null,"徒歩",null,"自転車",null,null,"車",null,"公共交通機関",null,null,null,null,null,null,null,null,false,false,false,0,0,0,null,null,null,null,null,{"$f":"IFERROR(AO81*1&\"|\"&AP81*1&\"|\"&AQ81*1&\"|\"&AR81*1,\"★エラー★\")","v":"0|0|0|0"}]
[null,null,null,null,null,null,null,null,"その他（",null,null,null,null,null,null,null,null,null,null,"）",null,null,null,null,null,"その他（",null,null,null,null,null,null,null,null,null,null,"）"]
[null,null,null,"通勤(通学)時間：",null,null,null,null,"行き",null,null,null,null,"分",null,"帰り",null,null,null,"分","通勤(通学)時間：",null,null,null,null,"行き",null,null,null,null,"分",null,"帰り",null,null,null,"分",null,null,null,null,0,0,0,0,0,0,null,null,null,null,null,{"$f":"IFERROR(AO83*1&\"|\"&AP83*1&\"|\"&AQ83*1&\"|\"&AR83*1,\"★エラー★\")","v":"0|0|0|0"}]
[null,null,null,"産休・育休の取得：",null,null,null,null,null,null,"取得中",null,null,"取得予定",null,null,null,"なし",null,null,"産休・育休の取得：",null,null,null,null,null,null,"取得中",null,null,"取得予定",null,null,null,"なし",null,null,null,null,null,false,false,false,null,null,null,null,null,null,null,null,null,{"$f":"IFERROR(AO84*1&\"|\"&AP84*1&\"|\"&AQ84*1,\"★エラー★\")","v":"0|0|0"}]
[null,null,null,"取得期間：",null,null,null,null,null,null,null,null,"～",null,null,null,null,null,null,null,"取得期間：",null,null,null,null,null,null,null,null,"～",null,null,null,null,null,null,null,null,null,null,false,false,false,null,null,null,null,null,null,null,null,null,{"$f":"IFERROR(AO85*1&\"|\"&AP85*1&\"|\"&AQ85*1,\"★エラー★\")","v":"0|0|0"}]
[null,null,null,"育児短縮勤務:",null,null,null,null,null,"取得中",null,null,"取得予定",null,null,null,"なし",null,null,null,"育児短縮勤務:",null,null,null,null,null,"取得中",null,null,"取得予定",null,null,null,"なし",null,null,null,null,null,null,false,false,false,null,null,null,null,null,null,null,null,null,{"$f":"IFERROR(AO86*1&\"|\"&AP86*1&\"|\"&AQ86*1,\"★エラー★\")","v":"0|0|0"}]
[null,null,null,"取得中の勤務時間:",null,null,null,null,null,null,null,null,null,null,"～",null,null,null,null,null,"取得中の勤務時間:",null,null,null,null,null,null,null,null,null,null,"～"]
[null,"疾病等",null,"傷病名：",null,null,null,null,null,null,null,null,null,null,null,null,null,null,null,null,"傷病名："]
[null,null,null,"手帳の種類：",null,null,null,null,null,null,null,"手帳　等級：",null,null,null,null,null,"級・度",null,null,"手帳の種類：",null,null,null,null,null,null,null,"手帳　等級：",null,null,null,null,null,"級・度"]
[null,"親族\n介護\n（看護）",null,"被介護（看護）者氏名：",null,null,null,null,null,null,null,null,null,null,null,null,null,null,null,null,"被介護（看護）者氏名："]
[null,null,null,"（申込児童との続柄：",null,null,null,null,null,null,null,null,null,null,null,null,null,null,null,")","（申込児童との続柄：",null,null,null,null,null,null,null,null,null,null,null,null,null,null,null,")"]
[null,null,null,"被介護（看護）者住所：",null,null,null,null,null,null,null,null,null,null,null,null,null,null,null,"同居","被介護（看護）者住所：",null,null,null,null,null,null,null,null,null,null,null,null,null,null,null,"同居",null,null,null,false,null,null,null,null,null,null,null,null,null,null,null,{"$f":"IFERROR(AO92*1,\"★エラー★\")","v":0}]
[null,null,null,"（別居の場合のみ記入）",null,null,null,null,null,null,null,null,null,null,null,null,null,null,null,null,"（別居の場合のみ記入）",null,null,null,null,null,null,null,null,null,null,null,null,null,null,null,null,null,null,null,false,null,null,null,null,null,null,null,null,null,null,null,{"$f":"IFERROR(AO93*1,\"★エラー★\")","v":0}]
[null,null,null,"傷病名：",null,null,null,null,null,null,null,null,null,null,null,null,null,null,null,null,"傷病名："]
[null,null,null,"手帳の種類：",null,null,null,null,null,null,null,"手帳　等級：",null,null,null,null,null,"級・度",null,null,"手帳の種類：",null,null,null,null,null,null,null,"手帳　等級：",null,null,null,null,null,"級・度"]
[null,"不在の\n場合",null,null,"単身赴任",null,null,null,"未婚",null,null,"離別",null,null,"離婚前提別居",null,null,null,null,null,null,"単身赴任",null,null,null,"未婚",null,null,"離別",null,null,"離婚前提別居",null,null,null,null,null,null,null,null,false,false,false,false,false,false,null,null,null,null,null,null,{"$f":"IFERROR(AO96*1&\"|\"&AP96*1&\"|\"&AQ96*1&\"|\"&AR96*1&\"|\"&AS96*1&\"|\"&AT96*1,\"★エラー★\")","v":"0|0|0|0|0|0"}]
[null,null,null,null,"死別",null,null,"その他（",null,null,null,null,null,null,null,null,null,null,null,"）",null,"死別",null,null,"その他（",null,null,null,null,null,null,null,null,null,null,null,"）",null,null,null,false,false,false,false,false,false,null,null,null,null,null,null,{"$f":"IFERROR(AO97*1&\"|\"&AP97*1&\"|\"&AQ97*1&\"|\"&AR97*1&\"|\"&AS97*1&\"|\"&AT97*1,\"★エラー★\")","v":"0|0|0|0|0|0"}]
[null,null,null,null,null,null,null,null,null,"より別居中",null,null,null,null,null,null,null,null,null,null,null,null,null,null,null,null,"より別居中"]
[null,null,null,"居所：",null,null,null,null,null,null,null,null,null,null,null,null,null,null,null,null,"居所：",null,null,null,null,null,null,null,null,null,null,null,null,null,null,null,null,null,null,null,false,false,null,null,null,null,null,null,null,null,null,null,{"$f":"IFERROR(AO99*1&\"|\"&AP99*1,\"★エラー★\")","v":"0|0"}]
[null,"出産予定",null,null,"あり（",null,null,null,null,null,null,"（予定））",null,null,null,null,"なし",null,null,null,null,"あり（",null,null,null,null,null,null,"（予定））",null,null,null,null,"なし",null,null,null,null,null,null,false,false,null,null,null,null,null,null,null,null,null,null,{"$f":"IFERROR(AO100*1&\"|\"&AP100*1,\"★エラー★\")","v":"0|0"}]
[null,"手当受給状況",null,"生活保護",null,null,null,null,null,"適用なし",null,null,null,"適用あり(担当ケースワーカー：",null,null,null,null,null,null,null,null,null,null,null,null,null,null,null,null,null,null,"開始)",null,null,"申請中",null,null,null,null,false,false,false,null,null,null,null,null,null,null,null,null,{"$f":"IFERROR(AO101*1&\"|\"&AP101*1&\"|\"&AQ101*1,\"★エラー★\")","v":"0|0|0"}]
[null,null,null,"ひとり親関係手当",null,null,null,null,null,"なし",null,"受給（ ",null,null,"児童扶養手当受給",null,null,null,null,"ひとり親家庭手当受給",null,null,null,null,null,"遺児手当受給",null,null,null,"ひとり親医療証　）",null,null,null,null,"申請中　",null,null,null,null,null,false,false,false,null,null,null,null,null,null,null,null,null,{"$f":"IFERROR(AO102*1&\"|\"&AP102*1&\"|\"&AQ102*1,\"★エラー★\")","v":"0|0|0"}]
[null,"■祖父母の状況",null,null,null,null,null,null,null,null,null,null,null,null,null,null,null,null,null,null,null,null,null,null,null,null,null,null,null,null,null,null,null,null,null,null,null,null,null,null,false,0,false,false,null,null,null,null,null,null,null,null,{"$f":"IFERROR(AO103*1&\"|\"&AP103*1&\"|\"&AQ103*1&\"|\"&AR103*1,\"★エラー★\")","v":"0|0|0|0"}]
[null,"区分",null,"父方",null,null,null,null,null,null,null,null,null,null,null,null,null,null,null,null,"母方",null,null,null,null,null,null,null,null,null,null,null,null,null,null,null,null,null,null,null,false,false,null,null,null,null,null,null,null,null,null,null,{"$f":"IFERROR(AO104*1&\"|\"&AP104*1,\"★エラー★\")","v":"0|0"}]
[null,"祖父","氏名",null,null,null,null,null,null,null,null,null,null,null,null,null,null,null,null,null,null,null,null,null,null,null,null,null,null,null,null,null,null,null,null,null,null,null,null,null,false,false,null,null,null,null,null,null,null,null,null,null,{"$f":"IFERROR(AO105*1&\"|\"&AP105*1,\"★エラー★\")","v":"0|0"}]
[null,null,null,"（生年月日：",null,null,null,null,null,null,null,null,null,null,null,null,null,null,null,"歳）","（生年月日：",null,null,null,null,null,null,null,null,null,null,null,null,null,null,null,"歳)",null,null,null,false,false,false,null,null,null,null,null,null,null,null,null,{"$f":"IFERROR(AO106*1&\"|\"&AP106*1&\"|\"&AQ106*1,\"★エラー★\")","v":"0|0|0"}]
[null,null,"住所",null,"別居",null,null,"同居",null,"※申請児童と別居の場合のみ住所を記入ください。",null,null,null,null,null,null,null,null,null,null,null,"別居",null,null,"同居",null,"※申請児童と別居の場合のみ住所を記入ください。",null,null,null,null,null,null,null,null,null,null,null,null,null,false,false,false,null,null,null,null,null,null,null,null,null,{"$f":"IFERROR(AO107*1&\"|\"&AP107*1&\"|\"&AQ107*1,\"★エラー★\")","v":"0|0|0"}]
[null,null,null,"住所：",null,null,null,null,null,null,null,null,null,null,null,null,null,null,null,null,"住所：",null,null,null,null,null,null,null,null,null,null,null,null,null,null,null,null,null,null,null,false,false,false,null,null,null,null,null,null,null,null,null,{"$f":"IFERROR(AO108*1&\"|\"&AP108*1&\"|\"&AQ108*1,\"★エラー★\")","v":"0|0|0"}]
[null,null,"状況",null,"就労",null,"　無就労",null,null,"入院",null,"通院",null,"その他（",null,null,null,null,null,"）",null,"就労",null,"　無就労",null,null,"入院",null,"通院",null,"その他（",null,null,null,null,null,"）",null,null,null,false,false,false,null,null,null,null,null,null,null,null,null,{"$f":"IFERROR(AO109*1&\"|\"&AP109*1&\"|\"&AQ109*1,\"★エラー★\")","v":"0|0|0"}]
[null,"祖母","氏名"]
[null,null,null,"（生年月日：",null,null,null,null,null,null,null,null,null,null,null,null,null,null,null,"歳）","（生年月日：",null,null,null,null,null,null,null,null,null,null,null,null,null,null,null,"歳)"]
[null,null,"住所",null,"別居",null,null,"同居",null,"※申請児童と別居の場合のみ住所を記入ください。",null,null,null,null,null,null,null,null,null,null,null,"別居",null,null,"同居",null,"※申請児童と別居の場合のみ住所を記入ください。",null,null,null,null,null,null,null,null,null,null,null,null,null,false,false,null,null,null,null,null,null,null,null,null,null,{"$f":"IFERROR(AO112*1&\"|\"&AP112*1,\"★エラー★\")","v":"0|0"}]
[null,null,null,"住所：",null,null,null,null,null,null,null,null,null,null,null,null,null,null,null,null,"住所：",null,null,null,null,null,null,null,null,null,null,null,null,null,null,null,null,null,null,null,false,false,null,null,null,null,null,null,null,null,null,null,{"$f":"IFERROR(AO113*1&\"|\"&AP113*1,\"★エラー★\")","v":"0|0"}]
[null,null,"状況",null,"就労",null,"　無就労",null,null,"入院",null,"通院",null,"その他（",null,null,null,null,null,"）",null,"就労",null,"　無就労",null,null,"入院",null,"通院",null,"その他（",null,null,null,null,null,"）",null,null,null,false,false,false,null,null,null,null,null,null,null,null,null,{"$f":"IFERROR(AO114*1&\"|\"&AP114*1&\"|\"&AQ114*1,\"★エラー★\")","v":"0|0|0"}]
[null,"■きょうだいが同時に利用申込みを行う場合",null,null,null,null,null,null,null,null,null,null,null,null,"「保育所・認定こども園・小規模保育事業・家庭的保育事業等の利用のご案内」の17ページを確認の上、記入してください。",null,null,null,null,null,null,null,null,null,null,null,null,null,null,null,null,null,null,null,null,null,null,null,null,null,false,false,false,null,null,null,null,null,null,null,null,null,{"$f":"IFERROR(AO115*1&\"|\"&AP115*1&\"|\"&AQ115*1,\"★エラー★\")","v":"0|0|0"}]
[null,"①","きょうだいのいずれかが第1希望の施設を利用できない場合、きょうだい全員が揃って利用できる第2希望以下の希望施設の利用を希望しますか。",null,null,null,null,null,null,null,null,null,null,null,null,null,null,null,null,null,null,null,null,null,null,null,null,null,null,null,null,null,null,null,null,null,null,null,null,null,false,false,false,null,"優先枠",null,"",null,null,null,null,null,{"$f":"IFERROR(AO116*1&\"|\"&AP116*1&\"|\"&AQ116*1,\"★エラー★\")","v":"0|0|0"}]
[null,null,null,"希望する→希望施設の記載方法について「利用のご案内」をご確認ください。",null,null,null,null,null,null,null,null,null,null,null,null,null,null,null,null,null,null,null,"希望しない（それぞれの希望順位が高い施設を希望する）",null,null,null,null,null,null,null,null,null,null,null,null,null,null,null,null,false,false,false,null,"待機と入所になった場合",null,"",null,null,null,null,null,{"$f":"IFERROR(AO117*1&\"|\"&AP117*1&\"|\"&AQ117*1,\"★エラー★\")","v":"0|0|0"}]
[null,"②","（①を「希望する」場合）きょうだい全員が揃って利用できる希望施設がない場合、それぞれの希望順位が高い施設の利用を希望しますか。",null,null,null,null,null,null,null,null,null,null,null,null,null,null,null,null,null,null,null,null,null,null,null,null,null,null,null,null,null,null,null,null,null,null,null,null,null,false,false,null,null,"別施設入所になった場合",null,"",null,null,null,null,null,{"$f":"IFERROR(AO118*1&\"|\"&AP118*1,\"★エラー★\")","v":"0|0"}]
[null,null,null,"希望する",null,null,null,null,null,null,"希望しない（きょうだい全員が揃って利用できる希望施設がある場合にのみ利用を希望する）",null,null,null,null,null,null,null,null,null,null,null,null,null,null,null,null,null,null,null,null,null,null,null,null,null,null,null,null,null,false,false,null,null,null,null,null,null,null,null,null,null,{"$f":"IFERROR(AO119*1&\"|\"&AP119*1,\"★エラー★\")","v":"0|0"}]
[null,"③","きょうだいのいずれかが希望施設を利用できない場合、利用できるきょうだいだけでも利用を希望しますか。",null,null,null,null,null,null,null,null,null,null,null,null,null,null,null,null,null,null,null,null,null,null,null,null,null,null,null,null,null,null,null,null,null,null,null,null,null,null,0,null,null,null,null,null,null,null,null,null,null,{"$f":"IFERROR(AO120*1&\"|\"&AP120*1,\"★エラー★\")","v":"0|0"}]
[null,null,null,"希望する",null,null,null,null,null,null,"希望しない（きょうだい全員が希望施設のいずれかを利用できる場合にのみ利用を希望する）"]
[null,"④","（転園申込みの場合）きょうだい全員が揃って利用できる希望施設がない場合、現在利用している施設の継続利用を希望しますか。"]
[null,null,null,"希望する→希望施設に現在利用している施設も記入してください。",null,null,null,null,null,null,null,null,null,null,null,null,null,null,"希望しない（きょうだい全員が揃って利用できる施設がなくても転園を希望する）"]
[null,"■教育・保育給付認定申請の委任"]
[null,"委任状欄",null,null,null,"私は、",null,null,null,null,null,null,null,null,null,"を代理人と定め、個人番号を記載した本認定の申請に関する権限を委任します。"]
[null,null,null,null,null," 教育・保育給付認定保護者氏名：",null,null,null,null,null,null,null,null,null,null,null,null,null,null,null,null,"※教育・保育給付認定保護者以外の方が提出する場合にご記入ください。"]
[null,"■ 名古屋市記載欄",null,null,null,null,null,null,null,null,null,null,null,null,null,null,null,null,null,null,null,null,null,null,null,null,null,null,null,null,null,null,null,null,null,null,null,null,null,null,false,false,false,null,null,null,null,null,null,null,null,null,{"$f":"IFERROR(AO127*1&\"|\"&AP127*1&\"|\"&AQ127*1,\"★エラー★\")","v":"0|0|0"}]
[null,"要件対象者",null,null,null,null,"保育の必要な事由",null,null,null,null,null,null,null,null,null,null,null,null,"優先利用",null,null,null,null,null,null,null,null,null,null,null,null,"認定区分",null,null,null,null,null,null,null,false,false,false,false,false,false,false,false,false,null,null,null,{"$f":"IFERROR(AO128*1&\"|\"&AP128*1&\"|\"&AQ128*1&\"|\"&AR128*1&\"|\"&AS128*1&\"|\"&AT128*1&\"|\"&AU128*1&\"|\"&AV128*1&\"|\"&AW128*1,\"★エラー★\")","v":"0|0|0|0|0|0|0|0|0"}]
[null,"","父",null,"母",null,null,"就労",null,"産前産後",null,null,"疾病",null,"親族介護",null,null,"災害復旧",null,null,"ひとり親",null,null,"生活保護",null,null,"失業",null,"障害",null,"育休あけ",null,null,null,null,"標準時間",null,null,null,null,false,false,false,false,false,false,false,false,null,null,null,null,{"$f":"IFERROR(AO129*1&\"|\"&AP129*1&\"|\"&AQ129*1&\"|\"&AR129*1&\"|\"&AS129*1&\"|\"&AT129*1&\"|\"&AU129*1&\"|\"&AV129*1,\"★エラー★\")","v":"0|0|0|0|0|0|0|0"}]
[null,null,"その他（",null,null,"）",null,"求職活動",null,null,"就学",null,"発達援助",null,null,"育休中",null,null,null,null,"きょうだい利用",null,null,null,"　　卒園児",null,null,"その他（",null,null,null,"　　）",null,"　 号",null,"短時間",null,null,null,null,false,false,null,null,null,null,null,null,null,null,null,null,{"$f":"IFERROR(AO130*1&\"|\"&AP130*1,\"★エラー★\")","v":"0|0"}]
[null,"認定期間",null,null,null,null,null,"自　  　　　　年　　　　月　　　　日",null,null,null,null,null,null,null,null,null,null,false,null,"満３歳の前日",null,null,null,null,"小学校就学前",null,null,null,null,null,null,null,null,null,null,null,null,null,null,false,false,false,false,false,false,null,null,null,null,null,null,{"$f":"IFERROR(AO131*1&\"|\"&AP131*1&\"|\"&AQ131*1&\"|\"&AR131*1&\"|\"&AS131*1&\"|\"&AT131*1,\"★エラー★\")","v":"0|0|0|0|0|0"}]
[null,"番号\n確認",null,null,"個人番号カード",null,null,null,null,"通知カード",null,null,null,"住民基本台帳確認",null,null,null,null,null,"身元確認",null,null,"個",null,"運","　　パ",null,"　在","備考",null,null,null,null,null,null,null,null,null,null,null,false,false,false,false,false,false,null,null,null,null,null,null,{"$f":"IFERROR(AO132*1&\"|\"&AP132*1&\"|\"&AQ132*1&\"|\"&AR132*1&\"|\"&AS132*1&\"|\"&AT132*1,\"★エラー★\")","v":"0|0|0|0|0|0"}]
[null,null,null,null,"番号記載住民票",null,null,null,null,"その他（　　　　　　　　　　　　",null,null,null,null,null,"）",null,"記載拒否",null,null,null,null,"障","","他(",null,null,")",null,null,null,null,null,null,null,null,null,null,null,null,false,false,false,null,null,null,null,null,null,null,null,null,{"$f":"IFERROR(AO133*1&\"|\"&AP133*1&\"|\"&AQ133*1,\"★エラー★\")","v":"0|0|0"}]
[]
[null,"■ 職員入力欄"]
[null,"ランク判定"]
[null,"区分",null,null,null,null,"レベル1",null,null,null,null,null,null,null,null,"レベル2",null,null,null,null,null,null,null,null,"レベル3",null,null,null,null,null,null,null,null,"強制ランク修正F",null,null,null,null,null,null,null,null,null,null,null,null,"ランク"]
[null,"父",null,null,null,null,null,null,null,null,null,null,null,null,null,null,null,null,null,null,null,null,null,null,null,null,null,null,null,null,null,null,null,"強制ランク",null,null,null,"",null,null,{"$f":"IFERROR(VLOOKUP($B$2&\"101:\"&$G138,指数!$A:$L,12,FALSE), \"\")","v":""},{"$f":"IFERROR(VLOOKUP($B$2&\"201:\"&$AO138&\":\"&$P138,指数!$A:$L,12,FALSE), \"\")","v":""},{"$f":"IFERROR(VLOOKUP($B$2&\"301:\"&$AP138&\":\"&$Y138,指数!$A:$L,12,FALSE), \"\")","v":""},"01",null,"父",{"$f":"IFERROR(VLOOKUP(\"2:NAGVBAS009:\"&AV138*10,ZBパラメータ!B:F,5,FALSE),\"\")","v":""},{"$f":"INT(IFERROR(VLOOKUP($B$2&\"1\"&AR138&\":\"&AO138,指数!B:X,23,FALSE),0))+INT(IFERROR(VLOOKUP($B$2&\"2\"&AR138&\":\"&AP138,指数!B:X,23,FALSE),0))+INT(IFERROR(VLOOKUP($B$2&\"3\"&AR138&\":\"&AQ138,指数!B:X,23,FALSE),0))","v":0}]
[null,"母",null,null,null,null,null,null,null,null,null,null,null,null,null,null,null,null,null,null,null,null,null,null,null,null,null,null,null,null,null,null,null,"強制きょうだいランク",null,null,null,"",null,null,{"$f":"IFERROR(VLOOKUP($B$2&\"102:\"&$G139,指数!$A:$L,12,FALSE), \"\")","v":""},{"$f":"IFERROR(VLOOKUP($B$2&\"202:\"&$AO139&\":\"&$P139,指数!$A:$L,12,FALSE), \"\")","v":""},{"$f":"IFERROR(VLOOKUP($B$2&\"302:\"&$AP139&\":\"&$Y139,指数!$A:$L,12,FALSE), \"\")","v":""},"02",null,"母",{"$f":"IFERROR(VLOOKUP(\"2:NAGVBAS009:\"&AV139*10,ZBパラメータ!B:F,5,FALSE),\"\")","v":""},{"$f":"INT(IFERROR(VLOOKUP($B$2&\"1\"&AR139&\":\"&AO139,指数!B:X,23,FALSE),0))+INT(IFERROR(VLOOKUP($B$2&\"2\"&AR139&\":\"&AP139,指数!B:X,23,FALSE),0))+INT(IFERROR(VLOOKUP($B$2&\"3\"&AR139&\":\"&AQ139,指数!B:X,23,FALSE),0))","v":0}]
[null,"祖父",null,null,null,null,null,null,null,null,null,null,null,null,null,null,null,null,null,null,null,null,null,null,null,null,null,null,null,null,null,null,null,null,null,null,null,null,null,null,{"$f":"IFERROR(VLOOKUP($B$2&\"108:\"&$G140,指数!$A:$L,12,FALSE), \"\")","v":""},{"$f":"IFERROR(VLOOKUP($B$2&\"208:\"&$AO140&\":\"&$P140,指数!$A:$L,12,FALSE), \"\")","v":""},{"$f":"IFERROR(VLOOKUP($B$2&\"309:\"&$AP140&\":\"&$Y140,指数!$A:$L,12,FALSE), \"\")","v":""},"08",null,"祖父",{"$f":"IFERROR(VLOOKUP(\"2:NAGVBAS009:\"&AV140*10,ZBパラメータ!B:F,5,FALSE),\"\")","v":""},{"$f":"INT(IFERROR(VLOOKUP($B$2&\"1\"&AR140&\":\"&AO140,指数!B:X,23,FALSE),0))+INT(IFERROR(VLOOKUP($B$2&\"2\"&AR140&\":\"&AP140,指数!B:X,23,FALSE),0))+INT(IFERROR(VLOOKUP($B$2&\"3\"&AR140&\":\"&AQ140,指数!B:X,23,FALSE),0))","v":0}]
[null,"祖母",null,null,null,null,null,null,null,null,null,null,null,null,null,null,null,null,null,null,null,null,null,null,null,null,null,null,null,null,null,null,null,"ランク判定者",null,null,null,"",null,null,{"$f":"IFERROR(VLOOKUP($B$2&\"109:\"&$G141,指数!$A:$L,12,FALSE), \"\")","v":""},{"$f":"IFERROR(VLOOKUP($B$2&\"208:\"&$AO141&\":\"&$P141,指数!$A:$L,12,FALSE), \"\")","v":""},{"$f":"IFERROR(VLOOKUP($B$2&\"308:\"&$AP141&\":\"&$Y141,指数!$A:$L,12,FALSE), \"\")","v":""},"09",null,"祖母",{"$f":"IFERROR(VLOOKUP(\"2:NAGVBAS009:\"&AV141*10,ZBパラメータ!B:F,5,FALSE),\"\")","v":""},{"$f":"INT(IFERROR(VLOOKUP($B$2&\"1\"&AR141&\":\"&AO141,指数!B:X,23,FALSE),0))+INT(IFERROR(VLOOKUP($B$2&\"2\"&AR141&\":\"&AP141,指数!B:X,23,FALSE),0))+INT(IFERROR(VLOOKUP($B$2&\"3\"&AR141&\":\"&AQ141,指数!B:X,23,FALSE),0))","v":0}]
[null,null,null,null,null,null,null,null,null,null,null,null,null,null,null,null,null,null,null,null,null,null,null,null,null,null,null,null,null,null,null,null,null,null,null,null,null,null,null,null,null,null,null,null,null,null,null,null,null,null,null,null,{"$f":"IFERROR(AO142*1,\"★エラー★\")","v":0}]
[null,"加減点判定"]
[null,"ランクアップ"]
[null,null,"①ひとり親世帯等",null,null,null,null,null,null,null,null,null,null,null,null,null,null,null,null,null,null,null,null,null,null,null,null,null,null,null,null,null,null,null,null,null,null,null,null,null,null,8000000010,null,null,null,null,null,null,null,null,null,null,{"$f":"IFERROR(AO145*AP145,\"★エラー★\")","v":0}]
[null,null,"②既にきょうだいが利用している施設への申込　　",null,null,null,null,null,null,null,null,null,null,null,null,null,null,null,null,null,null,null,null,null,null,null,null,null,null,null,null,null,null,null,null,null,null,null,null,null,null,8000000020,null,null,null,null,null,null,null,null,null,null,{"$f":"IFERROR(AO146*AP146,\"★エラー★\")","v":0}]
[null,null,"③家庭的保育室・乳児専門保育所・準乳児専門保育所・小規模保育事業・家庭的保育事業等の卒園児",null,null,null,null,null,null,null,null,null,null,null,null,null,null,null,null,null,null,null,null,null,null,null,null,null,null,null,null,null,null,null,null,null,null,null,null,null,null,8000000030,null,null,null,null,null,null,null,null,null,null,{"$f":"IFERROR(AO147*AP147,\"★エラー★\")","v":0}]
[null,null,"④生計主宰者の失業",null,null,null,null,null,null,null,null,null,null,null,null,null,null,null,null,null,null,null,null,null,null,null,null,null,null,null,null,null,null,null,null,null,null,null,null,null,null,8000000040,null,null,null,null,null,null,null,null,null,null,{"$f":"IFERROR(AO148*AP148,\"★エラー★\")","v":0}]
[null,null,"⑤認定こども園を利用している子どもが1号から2号に認定区分が変更になり、引続き当該施設の利用を希望する場合",null,null,null,null,null,null,null,null,null,null,null,null,null,null,null,null,null,null,null,null,null,null,null,null,null,null,null,null,null,null,null,null,null,null,null,null,null,null,8000000050,null,null,null,null,null,null,null,null,null,null,{"$f":"IFERROR(AO149*AP149,\"★エラー★\")","v":0}]
[]
[null,"調整指数"]
[null,null,"2_保育の代替え手段　育児休業からの復職　　",null,null,null,null,null,null,null,null,null,null,null,null,null,null,null,null,null,null,null,null,null,null,null,null,null,null,null,null,null,null,null,null,null,null,null,null,null,null,"2000000102",null,null,null,null,null,null,null,null,null,null,{"$f":"IFERROR(AO152*AP152,\"★エラー★\")","v":0}]
[null,null,"5_保育の代替手段　同一区内（支所管内にお住まいの方は同一支所管内）に保育可能な６５歳未満の祖父母あり",null,null,null,null,null,null,null,null,null,null,null,null,null,null,null,null,null,null,null,null,null,null,null,null,null,null,null,null,null,null,null,null,null,null,null,null,null,null,"2000000105",null,null,null,null,null,null,null,null,null,null,0]
[null,null,"6_保育の代替手段　保育可能な６５歳未満の祖父母と同居している",null,null,null,null,null,null,null,null,null,null,null,null,null,null,null,null,null,null,null,null,null,null,null,null,null,null,null,null,null,null,null,null,null,null,null,null,null,null,"2000000106",null,null,null,null,null,null,null,null,null,null,0]
[null,null,"9_世帯の状況　保護者が身体障害者手帳所持１・２級、愛護手帳所持、精神障害者保健手帳所持１・２級の一つに該当する場合",null,null,null,null,null,null,null,null,null,null,null,null,null,null,null,null,null,null,null,null,null,null,null,null,null,null,null,null,null,null,null,null,null,null,null,null,null,null,"2000000201",null,null,null,null,null,null,null,null,null,null,0]
[null,null,"10_世帯の状況　保護者が身体障害者手帳所持３級以下又は精神障害者保健手帳所持３級で保育に著しく負担がかかる場合",null,null,null,null,null,null,null,null,null,null,null,null,null,null,null,null,null,null,null,null,null,null,null,null,null,null,null,null,null,null,null,null,null,null,null,null,null,null,"2000000202",null,null,null,null,null,null,null,null,null,null,0]
[null,null,"11_世帯の状況　保護者が身体障害者手帳所持１・２級、愛護手帳所持、精神障害者保健手帳所持１・２級の一つに該当する場合",null,null,null,null,null,null,null,null,null,null,null,null,null,null,null,null,null,null,null,null,null,null,null,null,null,null,null,null,null,null,null,null,null,null,null,null,null,null,"2000000203",null,null,null,null,null,null,null,null,null,null,0]
[null,null,"12_世帯の状況　保護者が身体障害者手帳所持３級以下又は精神障害者保健手帳所持3級で保育に著しく負担がかかる場合",null,null,null,null,null,null,null,null,null,null,null,null,null,null,null,null,null,null,null,null,null,null,null,null,null,null,null,null,null,null,null,null,null,null,null,null,null,null,"2000000204",null,null,null,null,null,null,null,null,null,null,0]
[null,null,"13_世帯の状況　同居の家族内に身体障害者手帳３級以上、愛護手帳、精神障害者保健手帳を持っている者がいて、保護者が日常的に介護している場合",null,null,null,null,null,null,null,null,null,null,null,null,null,null,null,null,null,null,null,null,null,null,null,null,null,null,null,null,null,null,null,null,null,null,null,null,null,null,"2000000205",null,null,null,null,null,null,null,null,null,null,0]
[null,null,"14_世帯の状況　別居の家族内に身体障害者手帳３級以上、愛護手帳、精神障害者保健手帳を持っている者がいて、保護者が日常的に介護している場合",null,null,null,null,null,null,null,null,null,null,null,null,null,null,null,null,null,null,null,null,null,null,null,null,null,null,null,null,null,null,null,null,null,null,null,null,null,null,"2000000206",null,null,null,null,null,null,null,null,null,null,0]
[null,null,"15_世帯の状況　保護者が継続的な入院、通院を必要としているきょうだい児の介護を行っている",null,null,null,null,null,null,null,null,null,null,null,null,null,null,null,null,null,null,null,null,null,null,null,null,null,null,null,null,null,null,null,null,null,null,null,null,null,null,"2000000207",null,null,null,null,null,null,null,null,null,null,0]
[null,null,"16_世帯の状況　保護者が通信制大学、通信教育学生である",null,null,null,null,null,null,null,null,null,null,null,null,null,null,null,null,null,null,null,null,null,null,null,null,null,null,null,null,null,null,null,null,null,null,null,null,null,null,"2000000208",null,null,null,null,null,null,null,null,null,null,0]
[null,null,"17_世帯の状況　生活保護世帯",null,null,null,null,null,null,null,null,null,null,null,null,null,null,null,null,null,null,null,null,null,null,null,null,null,null,null,null,null,null,null,null,null,null,null,null,null,null,"2000000209",null,null,null,null,null,null,null,null,null,null,0]
[null,null,"9-2_世帯の状況　保護者が身体障害者手帳所持１・２級、愛護手帳所持、精神障害者保健手帳所持１・２級の一つに該当する場合",null,null,null,null,null,null,null,null,null,null,null,null,null,null,null,null,null,null,null,null,null,null,null,null,null,null,null,null,null,null,null,null,null,null,null,null,null,null,"2000000211",null,null,null,null,null,null,null,null,null,null,0]
[null,null,"10-2_世帯の状況　保護者が身体障害者手帳所持３級以下又は精神障害者保健手帳所持３級で保育に著しく負担がかかる場合",null,null,null,null,null,null,null,null,null,null,null,null,null,null,null,null,null,null,null,null,null,null,null,null,null,null,null,null,null,null,null,null,null,null,null,null,null,null,"2000000212",null,null,null,null,null,null,null,null,null,null,0]
[null,null,"11-2_世帯の状況　保護者が身体障害者手帳所持１・２級、愛護手帳所持、精神障害者保健手帳所持１・２級の一つに該当する場合",null,null,null,null,null,null,null,null,null,null,null,null,null,null,null,null,null,null,null,null,null,null,null,null,null,null,null,null,null,null,null,null,null,null,null,null,null,null,"2000000213",null,null,null,null,null,null,null,null,null,null,0]
[null,null,"12-2_世帯の状況　保護者が身体障害者手帳所持３級以下又は精神障害者保健手帳所持3級で保育に著しく負担がかかる場合",null,null,null,null,null,null,null,null,null,null,null,null,null,null,null,null,null,null,null,null,null,null,null,null,null,null,null,null,null,null,null,null,null,null,null,null,null,null,"2000000214",null,null,null,null,null,null,null,null,null,null,0]
[null,null,"19_就労の状況　単身赴任",null,null,null,null,null,null,null,null,null,null,null,null,null,null,null,null,null,null,null,null,null,null,null,null,null,null,null,null,null,null,null,null,null,null,null,null,null,null,"2000000301",null,null,null,null,null,null,null,null,null,null,0]
[null,null,"20_就労の状況　毎月２回以上の夜勤を伴う勤務がある",null,null,null,null,null,null,null,null,null,null,null,null,null,null,null,null,null,null,null,null,null,null,null,null,null,null,null,null,null,null,null,null,null,null,null,null,null,null,"2000000302",null,null,null,null,null,null,null,null,null,null,0]
[null,null,"20-2_就労の状況　毎月２回以上の夜勤を伴う勤務がある ",null,null,null,null,null,null,null,null,null,null,null,null,null,null,null,null,null,null,null,null,null,null,null,null,null,null,null,null,null,null,null,null,null,null,null,null,null,null,"2000000306",null,null,null,null,null,null,null,null,null,null,0]
[null,null,"21_就労の状況　継続して３カ月以上就労をしている場合",null,null,null,null,null,null,null,null,null,null,null,null,null,null,null,null,null,null,null,null,null,null,null,null,null,null,null,null,null,null,null,null,null,null,null,null,null,null,"2000000313",null,null,null,null,null,null,null,null,null,null,0]
[null,null,"22_就労の状況　居宅外自営だが、職場が自宅と併設している（居宅外自営協力者を除く）",null,null,null,null,null,null,null,null,null,null,null,null,null,null,null,null,null,null,null,null,null,null,null,null,null,null,null,null,null,null,null,null,null,null,null,null,null,null,"2000000314",null,null,null,null,null,null,null,null,null,null,0]
[null,null,"23_就労の状況　勤務実績が１カ月未満である",null,null,null,null,null,null,null,null,null,null,null,null,null,null,null,null,null,null,null,null,null,null,null,null,null,null,null,null,null,null,null,null,null,null,null,null,null,null,"2000000315",null,null,null,null,null,null,null,null,null,null,0]
[null,null,"24_ひとり親世帯等　ひとり親世帯等で６５歳未満の同居親族がいない場合",null,null,null,null,null,null,null,null,null,null,null,null,null,null,null,null,null,null,null,null,null,null,null,null,null,null,null,null,null,null,null,null,null,null,null,null,null,null,"2000000401",null,null,null,null,null,null,null,null,null,null,0]
[null,null,"25_ひとり親世帯等　ひとり親世帯等で６５歳未満の同居親族がいる場合",null,null,null,null,null,null,null,null,null,null,null,null,null,null,null,null,null,null,null,null,null,null,null,null,null,null,null,null,null,null,null,null,null,null,null,null,null,null,"2000000402",null,null,null,null,null,null,null,null,null,null,0]
[null,null,"28_きょうだいの状況　多胎児の加点",null,null,null,null,null,null,null,null,null,null,null,null,null,null,null,null,null,null,null,null,null,null,null,null,null,null,null,null,null,null,null,null,null,null,null,null,null,null,"2000000421",null,null,null,null,null,null,null,null,null,null,0]
[null,null,"29_きょうだいの状況　申込児以外に利用申込しない未就学児がいる",null,null,null,null,null,null,null,null,null,null,null,null,null,null,null,null,null,null,null,null,null,null,null,null,null,null,null,null,null,null,null,null,null,null,null,null,null,null,"2000000503",null,null,null,null,null,null,null,null,null,null,0]
[]
[null,"児童加算"]
[null,null," 1_保育の代替手段　　乳児専門保育所、準乳児専門保育所、小規模保育事業所、家庭的保育事業所等の卒園児",null,null,null,null,null,null,null,null,null,null,null,null,null,null,null,null,null,null,null,null,null,null,null,null,null,null,null,null,null,null,null,null,null,null,null,null,null,null,"3000000101",null,null,null,null,null,null,null,null,null,null,{"$f":"IFERROR(AO180*AP180,\"★エラー★\")","v":0}]
[null,null," 3_保育の代替手段　　申込時点で保育の必要な事由があり、申込児を認可外保育施設に有償で預けている　",null,null,null,null,null,null,null,null,null,null,null,null,null,null,null,null,null,null,null,null,null,null,null,null,null,null,null,null,null,null,null,null,null,null,null,null,null,null,"3000000103",null,null,null,null,null,null,null,null,null,null,0]
[null,null," 4_保育の代替手段　　申込児を６５歳未満の親族に預けている",null,null,null,null,null,null,null,null,null,null,null,null,null,null,null,null,null,null,null,null,null,null,null,null,null,null,null,null,null,null,null,null,null,null,null,null,null,null,"3000000104",null,null,null,null,null,null,null,null,null,null,0]
[null,null," 7_保育の代替手段　　利用施設の変更申込の場合",null,null,null,null,null,null,null,null,null,null,null,null,null,null,null,null,null,null,null,null,null,null,null,null,null,null,null,null,null,null,null,null,null,null,null,null,null,null,"3000000107",null,null,null,null,null,null,null,null,null,null,0]
[null,null," 8_保育の代替手段　　申込児を職場で見ている（居宅外自営協力者を除く）",null,null,null,null,null,null,null,null,null,null,null,null,null,null,null,null,null,null,null,null,null,null,null,null,null,null,null,null,null,null,null,null,null,null,null,null,null,null,"3000000108",null,null,null,null,null,null,null,null,null,null,0]
[null,null,"18_世帯の状況　　利用希望開始年度において、１８歳に達した以後の最初の３月３１日までのお子さんが３人以上いる世帯の第３子以降に該当する場合",null,null,null,null,null,null,null,null,null,null,null,null,null,null,null,null,null,null,null,null,null,null,null,null,null,null,null,null,null,null,null,null,null,null,null,null,null,null,"3000000201",null,null,null,null,null,null,null,null,null,null,0]
[null,null,"その他加算1",null,null,null,null,null,null,null,null,null,null,null,null,null,null,null,null,null,null,null,null,null,null,null,null,null,null,null,null,null,null,null,null,null,null,null,null,null,null,"3000000901",null,null,null,null,null,null,null,null,null,null,0]
[null,null,"その他加算2",null,null,null,null,null,null,null,null,null,null,null,null,null,null,null,null,null,null,null,null,null,null,null,null,null,null,null,null,null,null,null,null,null,null,null,null,null,null,"3000000902",null,null,null,null,null,null,null,null,null,null,0]
[null,null,"その他加算4",null,null,null,null,null,null,null,null,null,null,null,null,null,null,null,null,null,null,null,null,null,null,null,null,null,null,null,null,null,null,null,null,null,null,null,null,null,null,"3000000904",null,null,null,null,null,null,null,null,null,null,0]
[]
[]
[]
[]
[]
[]
[]
[]
[]
[]
[]
[]
[]
[]
[]
[]
[]
[]
[]
[]
[]
[]
[]
[]
[]
[]
[]
[]
[]
[]
[]
[]
[]
[]
[]
[]
[]
[]
[]
[]
[]
[]
[]
[]
[]
[]
[]
[]
[]
[]
[]
[]
[]
[]
[]
[]
[]
[]
[]
[]
[]
[]
[]
[]
[]
[]
[]
[]
[]
[]
[]
[]
[]
[]
[]
[]
[]
[]
[]
[]
[]
[]
[]
[]
[]
[]
[]
[]
[]
[null,null,null,null,null,null,null,null,null,null,null,null,null,null,null,null,null,null,null,null,null,null,null,null,null,null,null,null,null,null,null,null,null,null,null,null,null,null,null,null,false,false]